Workbook

Sheet T
D13: =Name_Project & " | " & Name_Model -> Sample Project | Project Finance Model - Debt Sculpting
E15: =Name_Client -> NHFIC
E17: =NC!F10 -> 2020-09-10

Sheet Disclaimer
A1: Disclaimer

Sheet Instructions
A1: Instructions
C3: Instructions
C5: This model is designed to provide an indication of the feasibility of a project, particularly in relation to the application of NHFIC funding. This sheet provides a description of the worksheets, cells and Inputs contained within the model the user will be required to navigate to generate a useful outcome. However, on the Inputs sheet there are specific descriptions for each section that provide further guidance to understand what inputs are required and how each input affects the model. To use the model, follow these steps: 1. The user should review the disclaimer to understand the parameters and purpose of the model; 2. Read the information contained in this instructions sheet to understand how to navigate the model; 3. Carefully input the project / organisation specific inputs required to calibrate the model on the Inputs sheet; 4. Ensure all model checks are showing 'OK' indicating the model and project retain their integrity; and 5. Review results and outputs, particularly on the 'Summary' and 'NHFIC_Funding_Outputs' sheets.
C7: Worksheets
C9: The following conventions are used for the various worksheets in the model. The user is only required to enter inputs into the Inputs sheet, and only in appropriate cells. The Outputs sheets provide the necessary outputs to understand the outcome of the model based on the input parameters. The calculation sheets should not be adjusted and are locked to maintain the integrity of the model.
C11: Worksheet Name | D11: Example | F11: Worksheet Description
C13: Inputs | D13: Inputs | F13: Input sheets, such as assumptions and scenarios
C15: Outputs | D15: Outputs | F15: Output sheets, such as cashflow waterfall, financials, charts etc.
C17: Calculations | D17: Calculations | F17: Main body of calulations
C19: Source Data | D19: Source Data | F19: Raw source data
C22: Cells
C24: The following conventions are used for the various cell formats in the Inputs sheet in the model. The user is only required to edit the Assumption cells and where appropriate should only use the options provided in the drop down menu.
C26: Cell Format Name | D26: Example | F26: Format Description
C28: Header0 | D28: Header0 | F28: Sheet Header Level 0
C30: Header1 | D30: Header1 | F30: Header Level 1
C32: Header2 | D32: Header2 | F32: Header Level 2
C34: Header3 | D34: Header3 | F34: Header Level 3
C36: Table_Header | D36: Table Heading | F36: Header of a table or of an off-sheet reference
C38: Assumption | D38: 100 | F38: A user driven input: this is the only cell that should be edited.
C40: OffSheet | D40: 100 | F40: A link to another worksheet to minimise the number of inter-worksheet references
C42: InSheet | D42: 100 | F42: A link within the worksheet or an interim calculation step
C44: Technical_Input | D44: 100 | F44: A model input or constant that should not be changed to protect the integrity of the model
C46: Empty_Cell | F46: A cell that is left intentionally blank to avoid the risk of error
C48: Check | D48: 0 | F48: Model check - displays OK when zero and WARNING when non zero and updated with conditional formatting
C50: Inputs Sheet Structure
C52: The Inputs sheet is structured for the user to input the parameters of the target project. The following sections are included in the Inputs sheet.
C54: Inputs Section | D54: Description
C56: General | D56: User is required to input general information relating to the project
C58: Timing | D58: User is required to input the timing relating to the project
C60: Macroeconomics | D60: User is required to input macroeconomic (e.g. escalation) assumptions relating to revenues and costs in the project
C62: Development Inputs | D62: User is required to input construction costs and parameters relating to the development and project size
C64: Project Assumptions | D64: User is required to input development assumptions relating to residential, commercial and retail units
C66: Revenue Assumptions | D66: User is required to input revenue assumptions relating to rental revenue and asset sales
C68: Operating Assumptions | D68: User is required to input operating expenditure assumptions
C70: Funding | D70: User is required to input funding assumptions such as capital structure and drawdown profiles
C72: Debt | D72: User is required to input NHFIC Debt, Senior Debt and Subordinated Debt assumptions to inform debt structure
C74: Equity | D74: User is required to input equity assumptions
C76: Tax and Depreciation | D76: User is required to input assumptions relating to depreciation and tax
C78: Model Checks | D78: Not required to be used - provides checks on the integrity of the model and the project

Sheet Inputs
A1: Inputs
A2: =Name_Project & " | " & Name_Model -> Sample Project | Project Finance Model - Debt Sculpting
A3: =Name_Client -> NHFIC | D3: =Master_Check -> 408
C5: Input | D5: Unit | E5: Defined Range | F5: Additional Instructions | G5: Value
A7: General
B8: Project Information
C9: Project Name | D9: Text | E9: Name_Project | G9: Sample Project
C10: Model Start Date | D10: Date | E10: Model_Start | G10: =Model_Start_Min -> 2019-06-30
C11: Model Start Date - minimum | D11: Date | E11: Model_Start_Min | G11: 2019-06-30
A14: Timing
B15: Instructions
C17: ="Enter model timing, including applicable time period for each phase. Note that the Operations period must be matched to the length of financing facilities in row "&CELL("row",A452) -> Enter model timing, including applicable time period for each phase. Note that the Operations period must be matched to the length of financing facilities in row 452
B19: Planning and Approvals
C20: Planning and Approvals Start | D20: Date | G20: 2020-06-30
C21: Planning and Approvals Duration | D21: Qtrs | G21: 4
C22: Planning and Approvals End | D22: Date | E22: PA_End | G22: =EOMONTH(G20,G21*Months_Qtr) -> 2021-06-30
B24: Design and Construction
C25: Construction Start | D25: Date | E25: Cons_Start | G25: =G22+1 -> 2021-07-01
C26: Construction Duration | D26: Qtrs | E26: Cons_Duration | G26: 6
C27: Construction End | D27: Date | E27: Cons_End | G27: =EOMONTH(G25,G26*Months_Qtr-1) -> 2022-12-31
C28: Construction End (FY) | D28: Year | G28: =INDEX(Timing!$J$16:$GI$16,MATCH(Cons_End,Timing!$J$6:$GI$6,0)) -> 2023
B30: Operations
C31: Operations Start | D31: Date | E31: Ops_Start | G31: =G27+1 -> 2023-01-01
C32: Operations Duration | D32: Qtrs | E32: Ops_Dur | G32: 200
C33: Operations End | D33: Date | E33: Ops_End | G33: =EOMONTH(G31,G32*Months_Qtr-1) -> 2072-12-31
A36: Macroeconomics
B37: Instructions
C39: Enter the indexation inputs for the model. The base date refers to when indexation commences, the frequency refers to how often the indexation applies and the Rate (% p.p.) refers to the applied rate. The final year of the interest rates apply thereafter.
B41: Escalation Indices
C42: Revenue | G42: Base date | H42: Frequency | I42: Rate (% p.p)
C43: Social Housing | D43: misc. | G43: 2024-09-30 | H43: 12 | I43: 0.02
C44: Affordable Housing | D44: misc. | G44: 2024-09-30 | H44: 12 | I44: 0.02
C45: Market Housing | D45: misc. | G45: 2024-09-30 | H45: 12 | I45: 0.02
C46: Commercial | D46: misc. | G46: 2024-09-30 | H46: 12 | I46: 0.02
C47: Retail | D47: misc. | G47: 2024-09-30 | H47: 12 | I47: 0.02
C49: Costs | G49: Base date | H49: Frequency | I49: Rate (% p.p)
C50: Operation and Maintenance | D50: misc. | G50: 2024-09-30 | H50: 12 | I50: 0.02
C51: Life Cycle Costs | D51: misc. | G51: 2024-09-30 | H51: 12 | I51: 0.02
C52: Refurbishment Cost | G52: 2024-09-30 | H52: 12 | I52: 0.02
C54: Dwelling Value | G54: Base date | H54: Frequency | I54: Rate (% p.p)
C55: Dwelling Value | D55: misc. | G55: 2024-09-30 | H55: 12 | I55: 0.01
C57: CPI | G57: Base date | H57: Frequency | I57: Rate (% p.p)
C58: CPI | D58: misc. | G58: 2024-09-30 | H58: 12 | I58: 0.025
B60: Interest Income
C61: Interest rate | D61: % p.a. | F61: Informs the interest rate applied to the NHFIC amortisation reserve account (if interest only option is selected) | G61: 0.015
C62: Interest rate (applied) | D62: % p.a. | G62: =G61+VerySmallNumber -> 0.0150001
A65: Development Inputs
B66: Instructions
C68: Insert the development costs, other project costs, financing costs and DSRA balance to inform the capital costs of the project. Development related costs are to be input into cells G72:G82 and other project costs are to be input into cells G86:G101. Note that all development and project costs are to be input excluding GST. If GST is required on individual cost items set the related cells in column H to "Yes", GST will be added to the total cost. The asset category is used for tax and depreciation purposes. The cost type refers to either S-Curve (spread over the development period) or Upfront (incurred in the first period).
B70: Construction Costs (should include indexation)
C71: Development Costs | G71: Cost (Excl GST) | H71: GST inc. | I71: GST | J71: Asset Cat | K71: Cost Type
B72: =INDEX(NC!$B$58:$B$59,MATCH(K72,List_Capex_Payments,0)) -> 1 | C72: Land and Acquisition Costs | D72: AUD | F72: Note: Cost type indicates whether a cost is likely to be incurred upfront (such as land acquisition) or spread over the construction period through the applicable S-Curve) | G72: 1000000 | H72: 0 | I72: =IF(H72=1,G72*$G$563,0) -> 0 | J72: 2 | K72: S-Curve
B73: =INDEX(NC!$B$58:$B$59,MATCH(K73,List_Capex_Payments,0)) -> 1 | C73: Demolition | D73: AUD | F73: Note: The Model will automatically apply an S-Curve based on the construction duration selected earlier | G73: 1000000 | H73: 0 | I73: 0 | J73: 2 | K73: S-Curve
B74: =INDEX(NC!$B$58:$B$59,MATCH(K74,List_Capex_Payments,0)) -> 0 | C74: Remediation and Site Preparation Costs | D74: AUD | F74: Note: All costs are to be input as excluding GST, should GST be required please select "Yes" and GST will be added. | G74: 5354000 | H74: 0 | I74: 0 | J74: 2 | K74: Upfront
B75: =INDEX(NC!$B$58:$B$59,MATCH(K75,List_Capex_Payments,0)) -> 0 | C75: Services & Transport Infrastructure Costs | D75: AUD | G75: 10000000 | H75: 0 | I75: 0 | J75: 2 | K75: Upfront
B76: =INDEX(NC!$B$58:$B$59,MATCH(K76,List_Capex_Payments,0)) -> 1 | C76: Construction costs (excl. above) | D76: AUD | G76: 313531580 | H76: 0 | I76: 0 | J76: 2 | K76: S-Curve
B77: =INDEX(NC!$B$58:$B$59,MATCH(K77,List_Capex_Payments,0)) -> 0 | C77: Professional Fees - Design Consultants | D77: AUD | G77: 16518164.58 | H77: 0 | I77: 0 | J77: 2 | K77: Upfront
B78: =INDEX(NC!$B$58:$B$59,MATCH(K78,List_Capex_Payments,0)) -> 1 | C78: Head Contractors Preliminaries & Supervision | D78: AUD | G78: 10000000 | H78: 0 | I78: 0 | J78: 2 | K78: S-Curve
B79: =INDEX(NC!$B$58:$B$59,MATCH(K79,List_Capex_Payments,0)) -> 1 | C79: Head Contractors Margin | D79: AUD | G79: 10000000 | H79: 0 | I79: 0 | J79: 2 | K79: S-Curve
B80: =INDEX(NC!$B$58:$B$59,MATCH(K80,List_Capex_Payments,0)) -> 1 | C80: [spare] | D80: AUD | G80: 0 | H80: 0 | I80: 0 | J80: 2 | K80: S-Curve
B81: =INDEX(NC!$B$58:$B$59,MATCH(K81,List_Capex_Payments,0)) -> 1 | C81: [spare] | D81: AUD | G81: 0 | H81: 0 | I81: 0 | J81: 2 | K81: S-Curve
B82: =INDEX(NC!$B$58:$B$59,MATCH(K82,List_Capex_Payments,0)) -> 1 | C82: [spare] | D82: AUD | G82: 0 | H82: 0 | I82: 0 | J82: 2 | K82: S-Curve
C83: Total development costs | D83: AUD | G83: =SUM(G72:G82) -> 367403744.6 | I83: =SUM(I72:I82) -> 0
C85: Other Project Costs
B86: =INDEX(NC!$B$58:$B$59,MATCH(K86,List_Capex_Payments,0)) -> 1 | C86: Marketing | D86: AUD | G86: 1449207.753 | H86: 0 | I86: =IF(H86=1,G86*$G$563,0) -> 0 | J86: 1 | K86: S-Curve
B87: =INDEX(NC!$B$58:$B$59,MATCH(K87,List_Capex_Payments,0)) -> 1 | C87: Incentives | D87: AUD | G87: 5000000 | H87: 0 | I87: 0 | J87: 1 | K87: S-Curve
B88: =INDEX(NC!$B$58:$B$59,MATCH(K88,List_Capex_Payments,0)) -> 1 | C88: Legal/Disbursements | D88: AUD | G88: 0 | H88: 0 | I88: 0 | J88: 1 | K88: S-Curve
B89: =INDEX(NC!$B$58:$B$59,MATCH(K89,List_Capex_Payments,0)) -> 1 | C89: Holding Charges | D89: AUD | G89: 2694000 | H89: 0 | I89: 0 | J89: 1 | K89: S-Curve
B90: =INDEX(NC!$B$58:$B$59,MATCH(K90,List_Capex_Payments,0)) -> 1 | C90: Agents Commission | D90: AUD | G90: 1811509.691 | H90: 0 | I90: 0 | J90: 1 | K90: S-Curve
B91: =INDEX(NC!$B$58:$B$59,MATCH(K91,List_Capex_Payments,0)) -> 1 | C91: Leasing Fee | D91: AUD | G91: 0 | H91: 0 | I91: 0 | J91: 1 | K91: S-Curve
B92: =INDEX(NC!$B$58:$B$59,MATCH(K92,List_Capex_Payments,0)) -> 1 | C92: Survey/Owners Corporation | D92: AUD | G92: 500000 | H92: 0 | I92: 0 | J92: 1 | K92: S-Curve
B93: =INDEX(NC!$B$58:$B$59,MATCH(K93,List_Capex_Payments,0)) -> 1 | C93: Contributions (E.g. SIC / 7.11) | D93: AUD | G93: 4704024.108 | H93: 0 | I93: 0 | J93: 1 | K93: S-Curve
B94: =INDEX(NC!$B$58:$B$59,MATCH(K94,List_Capex_Payments,0)) -> 1 | C94: Long Service Levy | D94: AUD | G94: 640000 | H94: 0 | I94: 0 | J94: 1 | K94: S-Curve
B95: =INDEX(NC!$B$58:$B$59,MATCH(K95,List_Capex_Payments,0)) -> 1 | C95: Bonds | D95: AUD | G95: 52563.17435 | H95: 0 | I95: 0 | J95: 1 | K95: S-Curve
B96: =INDEX(NC!$B$58:$B$59,MATCH(K96,List_Capex_Payments,0)) -> 1 | C96: Other (E.g. Display) | D96: AUD | G96: 0 | H96: 0 | I96: 0 | J96: 1 | K96: S-Curve
B97: =INDEX(NC!$B$58:$B$59,MATCH(K97,List_Capex_Payments,0)) -> 1 | C97: Development Manager | D97: AUD | G97: 7040775.218 | H97: 0 | I97: 0 | J97: 1 | K97: S-Curve
B98: =INDEX(NC!$B$58:$B$59,MATCH(K98,List_Capex_Payments,0)) -> 1 | C98: Development Contingency | D98: AUD | G98: 0 | H98: 0 | I98: 0 | J98: 1 | K98: S-Curve
B99: =INDEX(NC!$B$58:$B$59,MATCH(K99,List_Capex_Payments,0)) -> 1 | C99: [spare] | D99: AUD | G99: 0 | H99: 0 | I99: 0 | J99: 2 | K99: S-Curve
B100: =INDEX(NC!$B$58:$B$59,MATCH(K100,List_Capex_Payments,0)) -> 1 | C100: [spare] | D100: AUD | G100: 0 | H100: 0 | I100: 0 | J100: 2 | K100: S-Curve
B101: =INDEX(NC!$B$58:$B$59,MATCH(K101,List_Capex_Payments,0)) -> 1 | C101: [spare] | D101: AUD | G101: 0 | H101: 0 | I101: 0 | J101: 2 | K101: S-Curve
C102: Total other project costs | D102: AUD | G102: =SUM(G86:G101) -> 23892079.94 | I102: =SUM(I86:I101) -> 0
C104: Grant Funding
C105: NHIF Grant Funding | D105: AUD | F105: ="NHIF Grant Funding input is available in "&CELL("address",G404) -> NHIF Grant Funding input is available in $G$404 | G105: =-$G$404 -> -2000000
C106: Capital Grant Funding | D106: AUD | F106: ="Capital Grant Funding input is available in "&CELL("address",G405) -> Capital Grant Funding input is available in $G$405 | G106: =-$G$405 -> -2000000
C108: Financing Costs
C109: Finance Fees | G109: Cost | J109: Asset Cat | K109: Cost Type
B110: =INDEX(NC!$B$58:$B$59,MATCH(K110,List_Capex_Payments,0)) -> 1 | C110: NHFIC Financing Fees and Interest During Construction | D110: AUD | F110: Note that separate feasibility may be required to inform financing fees and interest during construction | G110: 5000000 | J110: 3 | K110: S-Curve
B111: =INDEX(NC!$B$58:$B$59,MATCH(K111,List_Capex_Payments,0)) -> 1 | C111: Bank Debt Financing Fees and Interest During Construction | D111: AUD | F111: Note: This cost should include upfront, commitment, and any other applciable fees. It is anticipated that the project wlll have a separate feasibiltiy from which these costs can be quantified | G111: 5000000 | J111: 3 | K111: S-Curve
C113: DSRA
C114: DSRA Tolerance | D114: % | F114: The tolerance is used as a check for the DSRA initial deposit | G114: 0.1 | H114: Error check
G116: Input | H116: Test Value | I116: Variance | J116: Asset Cat | K116: Check
C117: NHFIC Initial DSRA Deposit | D117: AUD | F117: Note the Test Value is used to estimate the initial deposit into the DSRA | G117: 2131453.135 | H117: =NHFIC_DSRA_Test*Million -> 2131453.135 | I117: =IF(H117=0,0,ABS(1-H117/G117)) -> 0 | K117: =IF(I117<=$G$114,0,1) -> 0
C118: Senior Debt Initial DSRA Deposit | D118: AUD | F118: To size the DSRA, the user can copy and paste the test values as values into the input cells until it is iterated such that the variance is zero | G118: 2016685.942 | H118: =SeniorDebt_DSRA_Test*Million -> 2016685.942 | I118: =IF(H118=0,0,ABS(1-H118/G118)) -> 0 | K118: =IF(I118<=$G$114,0,1) -> 0
C119: Subordinated Debt Initial DSRA Deposit | D119: AUD | G119: 0 | H119: =SubDebt_DSRA_Test*Million -> 0 | I119: =IF(H119=0,0,ABS(1-H119/G119)) -> 0 | K119: =IF(I119<=$G$114,0,1) -> 0
C120: Total finance fees | D120: AUD | G120: =SUM(G110:G111,G117:G119) -> 14148139.08
C122: Summary of Capital Costs | G122: Total | H122: Upfront | I122: S-Curve | J122: Check
C123: Total excluding GST (excluding interest) | D123: AUD | G123: =G83+G102+G120 -> 405443963.6 | H123: =SUMIFS($G$72:$G$111,$K$72:$K$111,H$122)+SUM(G117:G119) -> 36020303.66 | I123: =SUMIFS($G$72:$G$111,$K$72:$K$111,I$122) -> 369423659.9
C124: Total GST | D124: AUD | G124: =I83+I102 -> 0 | H124: =SUMIFS($I$72:$I$111,$K$72:$K$111,H$122) -> 0 | I124: =SUMIFS($I$72:$I$111,$K$72:$K$111,I$122) -> 0
C125: Total including GST | D125: AUD | F125: Note: Where this error check returns a warning, check that all costs above have a cost type allocated in Column J | G125: =SUM(G123:G124) -> 405443963.6 | H125: =SUM(H123:H124) -> 36020303.66 | I125: =SUM(I123:I124) -> 369423659.9 | J125: =G125-SUM(H125:I125) -> 0
A128: Project Assumptions
B129: Instructions
C131: Input the relevant residential dwelling types, the volume and average NLA of each type. Also input the commercial and retail NLA.
B133: Residential Dwellings
C134: Dwelling Types | G134: Input
C135: Dwelling type 1 | D135: Text | F135: Note: Enter all applicable dwelling type descriptions for inclusion in the project | G135: Studio
C136: Dwelling type 2 | D136: Text | G136: 1 Bedroom
C137: Dwelling type 3 | D137: Text | G137: 2 Bedroom
C138: Dwelling type 4 | D138: Text | G138: 3 Bedroom
C139: Dwelling type 5 | D139: Text | G139: 4 Bedroom
C140: Dwelling type 6 | D140: Text | G140: 5 Bedroom
C141: Dwelling type 7 | D141: Text | G141: [spare]
C142: Dwelling type 8 | D142: Text | G142: [spare]
C143: Dwelling type 9 | D143: Text | G143: [spare]
C144: Dwelling type 10 | D144: Text | G144: [spare]
C146: Dwelling Volume | G146: Social | H146: Affordable | I146: Market | J146: Total
C147: =Inputs!G135 -> Studio | D147: Num | F147: Note: Enter the number of each dwelling typology and tenancy type to be delivered | G147: 68 | H147: 37 | I147: 0 | J147: =SUM(G147:I147) -> 105
C148: =Inputs!G136 -> 1 Bedroom | D148: Num | G148: 49 | H148: 150 | I148: 52 | J148: 251
C149: =Inputs!G137 -> 2 Bedroom | D149: Num | G149: 53 | H149: 169 | I149: 89 | J149: 311
C150: =Inputs!G138 -> 3 Bedroom | D150: Num | G150: 0 | H150: 19 | I150: 7 | J150: 26
C151: =Inputs!G139 -> 4 Bedroom | D151: Num | G151: 0 | H151: 0 | I151: 0 | J151: 0
C152: =Inputs!G140 -> 5 Bedroom | D152: Num | G152: 0 | H152: 0 | I152: 0 | J152: 0
C153: =Inputs!G141 -> [spare] | D153: Num | G153: 0 | H153: 0 | I153: 0 | J153: =SUM(G153:I153) -> 0
C154: =Inputs!G142 -> [spare] | D154: Num | G154: 0 | H154: 0 | I154: 0 | J154: =SUM(G154:I154) -> 0
C155: =Inputs!G143 -> [spare] | D155: Num | G155: 0 | H155: 0 | I155: 0 | J155: =SUM(G155:I155) -> 0
C156: =Inputs!G144 -> [spare] | D156: Num | G156: 0 | H156: 0 | I156: 0 | J156: =SUM(G156:I156) -> 0
C157: Total dwellings | D157: Num | G157: =SUM(G147:G156) -> 170 | H157: =SUM(H147:H156) -> 375 | I157: =SUM(I147:I156) -> 148 | J157: =SUM(J147:J156) -> 693
C159: NLA Assumptions | G159: Social | H159: Affordable | I159: Market
C160: =C147 -> Studio | D160: m2 / dwelling | F160: Note: Enter the size of each dwelling by typology and tenancy type to be delivered | G160: 36.20689655 | H160: 38.08823529 | I160: 38.08823529
C161: 1 Bedroom | D161: m2 / dwelling | G161: 51.29310345 | H161: 53.52941176 | I161: 55.58823529
C162: 2 Bedroom | D162: m2 / dwelling | G162: 72.4137931 | H162: 74.11764706 | I162: 79.26470588
C163: 3 Bedroom | D163: m2 / dwelling | G163: 97.79411765 | H163: 97.79411765 | I163: 97.79411765
C164: 4 Bedroom | D164: m2 / dwelling | G164: 0 | H164: 0 | I164: 0
C165: 5 Bedroom | D165: m2 / dwelling | G165: 0 | H165: 0 | I165: 0
C166: [spare] | D166: m2 / dwelling | G166: 0 | H166: 0 | I166: 0
C167: [spare] | D167: m2 / dwelling | G167: 0 | H167: 0 | I167: 0
C168: [spare] | D168: m2 / dwelling | G168: 0 | H168: 0 | I168: 0
C169: [spare] | D169: m2 / dwelling | G169: 0 | H169: 0 | I169: 0
C170: Total NLA | D170: m2 | G170: =SUMPRODUCT(G160:G169,G147:G156) -> 8813.362069 | H170: =SUMPRODUCT(H160:H169,H147:H156) -> 23822.64706 | I170: =SUMPRODUCT(I160:I169,I147:I156) -> 10629.70588
B172: Commercial and Retail
C173: Commercial | D173: m2 | F173: Note: Enter size of any commercial space to be included in the project | G173: 4969.2852
C174: Retail | D174: m2 | F174: Note: Enter size of any retail space to be included in the project | G174: 4505.8336
B176: Development Composition
F177: No input required - calculation only | G177: Social | H177: Affordable | I177: Market | J177: Commercial | K177: Retail | L177: Total
C178: No. Dwellings | D178: table | G178: =G157 -> 170 | H178: =H157 -> 375 | I178: =I157 -> 148 | L178: =SUM(G178:K178) -> 693
C179: Total NLA (sqm) | D179: table | G179: =G170 -> 8813.362069 | H179: =H170 -> 23822.64706 | I179: =I170 -> 10629.70588 | J179: =G173 -> 4969.2852 | K179: =G174 -> 4505.8336 | L179: =SUM(G179:K179) -> 52740.83381
C180: % of Total | D180: table | G180: =G179/$L179 -> 0.1671069915 | H180: =H179/$L179 -> 0.4516926514 | I180: =I179/$L179 -> 0.201546034 | J180: =J179/$L179 -> 0.0942208312 | K180: =K179/$L179 -> 0.08543349194 | L180: =SUM(G180:K180) -> 1
A183: Revenue Assumptions
B184: Instructions
C186: Input the appropriate assumptions relating to revenue. These include the rental rate per square metre and either sale price per square metre or sales price per unit. This is required for residential, commercial and retail space. Adjustments to revenue can also be applied by inputting vacancy/bad debt rates. The timing of sales can be input either in the first year after construction or over the operations phase. These are applied on an annual basis with sales occurring at the final period of the financial year.
B188: Rental Adjustments
C189: Affordable Housing Discount to Market | D189: % | G189: 0.75
B191: Vacancy and Bad Debt Rates
G192: 1 | H192: 2 | I192: 3
C193: Social | D193: % | F193: Note: Enter the total level of vacancy and bad debts, to determine occupancy. Inputs are required for the first two operating years to allow for rampup, with the final column being for the third and all subsequent years | G193: 0.03 | H193: 0.02 | I193: 0.01
C194: Affordable | D194: % | G194: 0.035 | H194: 0.025 | I194: 0.015
C195: Market | D195: % | G195: 0.04 | H195: 0.03 | I195: 0.02
C196: Commercial | D196: % | G196: 0 | H196: 0 | I196: 0
C197: Retail | D197: % | G197: 0 | H197: 0 | I197: 0
B199: Base Rent
C200: Residential | G200: Social | H200: Affordable | I200: Market
C201: =C147 -> Studio | D201: $ / p.wk | F201: Note: Enter the rental amount per week for each dwelling for social and market housing. Affordable housing rent is calculated based on the discount input above | G201: 150 | H201: =I201*$G$189 -> 225 | I201: 300
C202: 1 Bedroom | D202: $ / p.wk | G202: 160 | H202: =I202*$G$189 -> 225 | I202: 300
C203: 2 Bedroom | D203: $ / p.wk | G203: 200 | H203: 225 | I203: 300
C204: 3 Bedroom | D204: $ / p.wk | G204: 200 | H204: 225 | I204: 300
C205: 4 Bedroom | D205: $ / p.wk | H205: 0
C206: 5 Bedroom | D206: $ / p.wk | H206: 0
C207: [spare] | D207: $ / p.wk | H207: 0
C208: [spare] | D208: $ / p.wk | H208: 0
C209: [spare] | D209: $ / p.wk | H209: 0
C210: [spare] | D210: $ / p.wk | H210: 0
C212: Commercial / Retail | G212: Face Rent | H212: Reduction | I212: Adj. Lease
C213: Commercial Lease | D213: $ / m2 / p.a | F213: Note: Enter the face rent, and any percentage incentive or other reduction. Applicable rental will then be calculated | G213: 450 | H213: 0.05 | I213: =G213*(1-$H213) -> 427.5
C214: Retail Lease | D214: $ / m2 / p.a | G214: 475 | H214: 0.05 | I214: =G214*(1-$H214) -> 451.25
B216: Base Dwelling Sale Value
C217: Residential Dwellings
C218: Basis Selection
C219: Selection | D219: Selection | F219: Note: Select whether sales pricing is to be on a per dwelling on per square metre rate | G219: Sales price
F220: Note: Based on this selection, the relevant inputs should be completed below for all typologies
C221: Option 1 | D221: Text | F221: ="Applies the square metre rate inputs in cell "&CELL("address",C224) -> Applies the square metre rate inputs in cell $C$224 | G221: Square metre rate
C222: Option 2 | D222: Text | F222: ="Applies the sales price inputs in cell "&CELL("address",C236) -> Applies the sales price inputs in cell $C$236 | G222: Sales price
C224: Square Metre Rate Inputs | G224: $ / Sqm | H224: Social | I224: Affordable | J224: Market
C225: =C147 -> Studio | D225: $ / Dwelling | G225: 10500 | H225: =$G225*G160 -> 380172.4138 | I225: =$G225*H160 -> 399926.4706 | J225: 399926.4706
C226: 1 Bedroom | D226: $ / Dwelling | G226: 10900 | H226: =$G226*G161 -> 559094.8276 | I226: 583470.5882 | J226: 605911.7647
C227: 2 Bedroom | D227: $ / Dwelling | G227: 10600 | H227: 767586.2069 | I227: 785647.0588 | J227: 840205.8824
C228: 3 Bedroom | D228: $ / Dwelling | G228: 10500 | H228: 1026838.235 | I228: 1026838.235 | J228: 1026838.235
C229: 4 Bedroom | D229: $ / Dwelling | H229: 0 | I229: 0 | J229: 0
C230: 5 Bedroom | D230: $ / Dwelling | H230: 0 | I230: 0 | J230: 0
C231: [spare] | D231: $ / Dwelling | H231: 0 | I231: 0 | J231: 0
C232: [spare] | D232: $ / Dwelling | H232: 0 | I232: 0 | J232: 0
C233: [spare] | D233: $ / Dwelling | H233: 0 | I233: 0 | J233: 0
C234: [spare] | D234: $ / Dwelling | H234: 0 | I234: 0 | J234: 0
C236: Sales Price Inputs | H236: Social | I236: Affordable | J236: Market
C237: =C147 -> Studio | D237: $ / Dwelling | H237: 510000 | I237: 1580000 | J237: 550000
C238: 1 Bedroom | D238: $ / Dwelling | H238: 180000 | I238: 200000 | J238: 550000
C239: 2 Bedroom | D239: $ / Dwelling | H239: 300000 | I239: 300000 | J239: 550000
C240: 3 Bedroom | D240: $ / Dwelling | H240: 300000 | I240: 300000 | J240: 550000
C241: 4 Bedroom | D241: $ / Dwelling | H241: 300000 | I241: 300000 | J241: 550000
C242: 5 Bedroom | D242: $ / Dwelling | H242: 300000 | I242: 300000 | J242: 550000
C243: [spare] | D243: $ / Dwelling | H243: 0 | I243: 0 | J243: 0
C244: [spare] | D244: $ / Dwelling | H244: 0 | I244: 0 | J244: 0
... 294 more rows

Sheet Summary
A1: Summary
A2: =Name_Project & " | " & Name_Model -> Sample Project | Project Finance Model - Debt Sculpting
A3: =Name_Client -> NHFIC
C5: Checks | I5: Total Project Revenue
C6: Integrity check | D6: [1,0] | G6: =Integrity_Check -> 0 | I6: Sales revenue | J6: AUD M | M6: =QFS!I30 -> 0
C7: Project check | D7: [1,0] | G7: =Project_Check -> 0 | I7: Rental revenue | J7: AUD M | M7: =QFS!I31 -> 673.8040658
C8: Debt ratio check | D8: [1,0] | G8: =DebtRatio_Check -> 408 | I8: Commercial and retail revenue | J8: AUD M | M8: =QFS!I33 -> 346.5394133
I9: Total revenue | J9: AUD M | M9: =SUM(M6:M8) -> 1020.343479
C10: Key Dates and Timing
C11: Planning and approvals end | D11: date | G11: =PA_End -> 2021-06-30 | I11: Equity Returns
C12: Construction completion | D12: date | G12: =Cons_End -> 2022-12-31 | I12: Project IRR (post tax) | J12: % | M12: =Equity!E78 -> 0.007830116153
C13: Construction duration | D13: qtrs | G13: =Cons_Dur -> 6 | I13: Equity IRR (post tax) | J13: % | M13: =Equity!E89 -> 2.980232239e-09
C14: Operations duration | D14: qtrs | G14: =Ops_Dur -> 200
I15: Debt Ratios
C16: Capital Structure | I16: NHFIC | K16: NHFIC Debt | L16: Senior Debt | M16: Sub Debt
C17: =Inputs!C397 -> NHFIC Debt | D17: AUD M | F17: =Inputs!H397/Million -> 200 | G17: =F17/$F$23 -> 0.4932864168 | I17: DSCR minimum | J17: x | K17: =Min_NHFICDebt_DSCR -> 1.399952564 | L17: =Min_SenDebt_DSCR -> 0.421075148 | M17: =Min_SubDebt_DSCR -> 0
C18: =Inputs!C398 -> Senior Debt | D18: AUD M | F18: =Inputs!H398/Million -> 100 | G18: =F18/$F$23 -> 0.2466432084 | I18: DSCR average | J18: x | K18: =Ave_NHFIC_DSCR -> 1.64338224 | L18: =Ave_SenDebt_DSCR -> 1.109605093 | M18: =Ave_SubDebt_DSCR -> 0
C19: =Inputs!C399 -> Subordinated Debt | D19: AUD M | F19: =Inputs!H399/Million -> 0 | G19: 0 | I19: ICR minimum | J19: x | K19: =Min_NHFICDebt_ICR -> 1.663056429 | L19: =Min_SenDebt_ICR -> 0.5280829141 | M19: =Min_SubDebt_ICR -> 0
C20: =Inputs!C400 -> Equity | D20: AUD M | F20: =Inputs!H400/Million -> 101.4439636 | G20: 0.2502046465 | I20: ICR average | J20: x | K20: =Ave_NHFIC_ICR -> 2.763081972 | L20: =Ave_SenDebt_ICR -> 2.562774478 | M20: =Ave_SubDebt_ICR -> 0
C21: NHFIC Grant | D21: AUD M | F21: =Inputs!G404/Million -> 2 | G21: 0.004932864168 | I21: LLCR minimum | J21: x | K21: =Min_NHFICDebt_LLCR -> 0.102187743 | L21: =Min_SenDebt_LLCR -> 0.9423375259 | M21: =Min_SubDebt_LLCR -> 0
C22: Capital Grant | D22: AUD M | F22: =Inputs!G405/Million -> 2 | G22: 0.004932864168
C23: Total funding | D23: AUD M | F23: =SUM(F17:F22) -> 405.4439636 | G23: =SUM(G17:G22) -> 1 | I23: Debt Facilities Summary
C24: Gearing | D24: % | G24: =SUM(G17:G19) -> 0.7399296251 | I24: NHFIC | K24: Start Date | L24: End Date | M24: Tenor | N24: Margin | O24: Upfront | P24: Profile | Q24: Amount
I25: Total facility | J25: misc | K25: =NHFIC_Start -> 2023-01-01 | L25: =NHFIC_End -> 2072-12-31 | M25: =NHFIC_Tenor -> 50 | N25: n.a. | O25: n.a. | P25: =IF(OR(SUM(P26:P29)=0,SUM(P26:P29)=4),P26,"Mixed") -> 1 | Q25: =F17 -> 200
C26: Sources and Applications | I26: =NHFIC_DF1 -> NHFIC Debt Facility 1 | J26: =INDEX(Inputs!$G$450:$K$450,MATCH($I26,Inputs!$G$449:$K$449,0)) -> 1 | K26: =INDEX(Inputs!$G$451:$K$451,MATCH($I26,Inputs!$G$449:$K$449,0))*$J26 -> 2023-01-01 | L26: =INDEX(Inputs!$G$454:$K$454,MATCH($I26,Inputs!$G$449:$K$449,0))*$J26 -> 2032-12-31 | M26: =INDEX(Inputs!$G$452:$K$452,MATCH($I26,Inputs!$G$449:$K$449,0))*$J26 -> 10 | N26: =INDEX(Inputs!$G$456:$K$456,MATCH($I26,Inputs!$G$449:$K$449,0))*$J26 -> 0.01156 | O26: =INDEX(Inputs!$G$457:$K$457,MATCH($I26,Inputs!$G$449:$K$449,0))*$J26 -> 0.0065 | P26: =IF(J26=0,"- ",INDEX(Inputs!$G$455:$K$455,MATCH($I26,Inputs!$G$449:$K$449,0))) -> 1 | Q26: =Debt!E473 -> -15.1998465
C27: Sources | I27: =NHFIC_DF2 -> NHFIC Debt Facility 2 | J27: =INDEX(Inputs!$G$450:$K$450,MATCH($I27,Inputs!$G$449:$K$449,0)) -> 1 | K27: =INDEX(Inputs!$G$451:$K$451,MATCH($I27,Inputs!$G$449:$K$449,0))*$J27 -> 2033-01-01 | L27: =INDEX(Inputs!$G$454:$K$454,MATCH($I27,Inputs!$G$449:$K$449,0))*$J27 -> 2042-12-31 | M27: =INDEX(Inputs!$G$452:$K$452,MATCH($I27,Inputs!$G$449:$K$449,0))*$J27 -> 10 | N27: =INDEX(Inputs!$G$456:$K$456,MATCH($I27,Inputs!$G$449:$K$449,0))*$J27 -> 0.0156 | O27: =INDEX(Inputs!$G$457:$K$457,MATCH($I27,Inputs!$G$449:$K$449,0))*$J27 -> 0.007 | P27: =IF(J27=0,"- ",INDEX(Inputs!$G$455:$K$455,MATCH($I27,Inputs!$G$449:$K$449,0))) -> 1 | Q27: =Debt!E474 -> -16.2685834
C28: =Cons!C225 -> NHFIC Debt | D28: AUD M | G28: =Cons!I228 -> -200 | I28: =NHFIC_DF3 -> NHFIC Debt Facility 3 | J28: =INDEX(Inputs!$G$450:$K$450,MATCH($I28,Inputs!$G$449:$K$449,0)) -> 1 | K28: =INDEX(Inputs!$G$451:$K$451,MATCH($I28,Inputs!$G$449:$K$449,0))*$J28 -> 2043-01-01 | L28: =INDEX(Inputs!$G$454:$K$454,MATCH($I28,Inputs!$G$449:$K$449,0))*$J28 -> 2052-12-31 | M28: =INDEX(Inputs!$G$452:$K$452,MATCH($I28,Inputs!$G$449:$K$449,0))*$J28 -> 10 | N28: =INDEX(Inputs!$G$456:$K$456,MATCH($I28,Inputs!$G$449:$K$449,0))*$J28 -> 0.0174 | O28: =INDEX(Inputs!$G$457:$K$457,MATCH($I28,Inputs!$G$449:$K$449,0))*$J28 -> 0.0085 | P28: =IF(J28=0,"- ",INDEX(Inputs!$G$455:$K$455,MATCH($I28,Inputs!$G$449:$K$449,0))) -> 1 | Q28: =Debt!E475 -> -23.55881923
C29: =Cons!C233 -> Senior Debt | D29: AUD M | G29: =Cons!I236 -> -100 | I29: =NHFIC_DF4 -> NHFIC Debt Facility 4 | J29: =INDEX(Inputs!$G$450:$K$450,MATCH($I29,Inputs!$G$449:$K$449,0)) -> 1 | K29: =INDEX(Inputs!$G$451:$K$451,MATCH($I29,Inputs!$G$449:$K$449,0))*$J29 -> 2053-01-01 | L29: =INDEX(Inputs!$G$454:$K$454,MATCH($I29,Inputs!$G$449:$K$449,0))*$J29 -> 2062-12-31 | M29: =INDEX(Inputs!$G$452:$K$452,MATCH($I29,Inputs!$G$449:$K$449,0))*$J29 -> 10 | N29: =INDEX(Inputs!$G$456:$K$456,MATCH($I29,Inputs!$G$449:$K$449,0))*$J29 -> 0.0198 | O29: =INDEX(Inputs!$G$457:$K$457,MATCH($I29,Inputs!$G$449:$K$449,0))*$J29 -> 0.0095 | P29: =IF(J29=0,"- ",INDEX(Inputs!$G$455:$K$455,MATCH($I29,Inputs!$G$449:$K$449,0))) -> 1 | Q29: =Debt!E476 -> -29.91268042
C30: =Cons!C241 -> Subordinated Debt | D30: AUD M | G30: =Cons!I244 -> 0 | I30: =NHFIC_DF5 -> NHFIC Debt Facility 5 | J30: =INDEX(Inputs!$G$450:$K$450,MATCH($I30,Inputs!$G$449:$K$449,0)) -> 1 | K30: =INDEX(Inputs!$G$451:$K$451,MATCH($I30,Inputs!$G$449:$K$449,0))*$J30 -> 2063-01-01 | L30: =INDEX(Inputs!$G$454:$K$454,MATCH($I30,Inputs!$G$449:$K$449,0))*$J30 -> 2072-12-31 | M30: =INDEX(Inputs!$G$452:$K$452,MATCH($I30,Inputs!$G$449:$K$449,0))*$J30 -> 10 | N30: =INDEX(Inputs!$G$456:$K$456,MATCH($I30,Inputs!$G$449:$K$449,0))*$J30 -> 0.02 | O30: =INDEX(Inputs!$G$457:$K$457,MATCH($I30,Inputs!$G$449:$K$449,0))*$J30 -> 0.01 | P30: =IF(J30=0,"- ",INDEX(Inputs!$G$455:$K$455,MATCH($I30,Inputs!$G$449:$K$449,0))) -> 1 | Q30: =Debt!E477 -> -40.06007045
C31: =Cons!C249 -> Equity | D31: AUD M | G31: =Cons!I252 -> -101.4439636
C32: Total | D32: AUD M | G32: =SUM(G28:G31) -> -401.4439636 | I32: Senior Debt
I33: Bank debt facility | J33: misc | K33: =K34 -> 2032-12-31 | L33: =L37 -> 2072-12-31 | M33: =SUM(M34:M38) -> 50 | N33: n.a. | O33: n.a. | P33: n.a. | Q33: =F18 -> 100
C34: Applications | I34: Refi facility 1 | J34: =Inputs!G502 -> 1 | K34: =Inputs!H502 -> 2032-12-31 | L34: =K35 -> 2042-12-31 | M34: =Inputs!$G$495 -> 10 | N34: =Inputs!J502 -> 0.02 | O34: =Inputs!I502 -> 0.005 | P34: n.a. | Q34: n.a.
C35: =Cons!C155 -> Design and construction | D35: AUD M | G35: =Cons!I155 -> 367.4037446 | I35: Refi facility 2 | J35: =Inputs!G503 -> 1 | K35: =Inputs!H503 -> 2042-12-31 | L35: =K36 -> 2052-12-31 | M35: =Inputs!$G$495 -> 10 | N35: =Inputs!J503 -> 0.014 | O35: =Inputs!I503 -> 0.006 | P35: n.a. | Q35: n.a.
C36: =Cons!C156 -> Other project costs | D36: AUD M | G36: =Cons!I156 -> 23.89207994 | I36: Refi facility 3 | J36: =Inputs!G504 -> 1 | K36: =Inputs!H504 -> 2052-12-31 | L36: =K37 -> 2062-12-31 | M36: =Inputs!$G$495 -> 10 | N36: =Inputs!J504 -> 0.012 | O36: =Inputs!I504 -> 0.006 | P36: n.a. | Q36: n.a.
C37: =Cons!C157 -> NHIF grant funding | D37: AUD M | G37: =Cons!I157 -> -2 | I37: Refi facility 4 | J37: =Inputs!G505 -> 1 | K37: =Inputs!H505 -> 2062-12-31 | L37: =K38 -> 2072-12-31 | M37: =Inputs!$G$495 -> 10 | N37: =Inputs!J505 -> 0.01 | O37: =Inputs!I505 -> 0.006 | P37: n.a. | Q37: n.a.
C38: =Cons!C159 -> GST | D38: AUD M | G38: =Cons!I159 -> 0 | I38: Refi facility 5 | J38: =Inputs!G506 -> 1 | K38: =Inputs!H506 -> 2072-12-31 | L38: =Inputs!G494 -> 2072-12-31 | M38: =Inputs!$G$495 -> 10 | N38: =Inputs!J506 -> 0.009 | O38: =Inputs!I506 -> 0.006 | P38: n.a. | Q38: n.a.
C39: =Cons!C160 -> Financing costs | D39: AUD M | G39: =Cons!I160 -> 10 | I39: Remaining NHFIC debt additions | J39: misc | K39: =Debt!E595 -> 2072-12-31 | L39: n.a. | M39: n.a. | N39: n.a. | O39: n.a. | P39: n.a. | Q39: =Debt!I595 -> 0
C40: =Cons!C161 -> NHFIC DSRA | D40: AUD M | G40: =Cons!I161 -> 2.131453135
C41: =Cons!C162 -> Senior Debt DSRA | D41: AUD M | G41: =Cons!I162 -> 2.016685942 | I41: Subordinated Debt
C42: =Cons!C163 -> Subordinated Debt DSRA | D42: AUD M | G42: =Cons!I163 -> 0 | I42: Bank debt facility | J42: misc | K42: =K43 -> 2032-12-31 | L42: =L46 -> 2072-12-31 | M42: =SUM(M43:M46) -> 40 | N42: n.a. | O42: n.a. | P42: n.a. | Q42: =F19 -> 0
C43: Total Development Cost Required | D43: AUD M | G43: =SUM(G35:G42) -> 403.4439636 | I43: Refi facility 1 | J43: =Inputs!G522 -> 1 | K43: =Inputs!H522 -> 2032-12-31 | L43: =K44 -> 2042-12-31 | M43: =Inputs!$G$515 -> 10 | N43: =Inputs!J522 -> 0.015 | O43: =Inputs!I522 -> 0.005 | P43: n.a. | Q43: n.a.
I44: Refi facility 2 | J44: =Inputs!G523 -> 1 | K44: =Inputs!H523 -> 2042-12-31 | L44: =K45 -> 2052-12-31 | M44: =Inputs!$G$515 -> 10 | N44: =Inputs!J523 -> 0.014 | O44: =Inputs!I523 -> 0.006 | P44: n.a. | Q44: n.a.
C45: Project Composition | E45: NLA | F45: Properties | G45: Sales | I45: Refi facility 3 | J45: =Inputs!G524 -> 1 | K45: =Inputs!H524 -> 2052-12-31 | L45: =K46 -> 2062-12-31 | M45: =Inputs!$G$515 -> 10 | N45: =Inputs!J524 -> 0.012 | O45: =Inputs!I524 -> 0.006 | P45: n.a. | Q45: n.a.
C46: Social | D46: misc | E46: =INDEX(Inputs!$G$179:$K$179,MATCH($C46,Inputs!$G$177:$K$177,0)) -> 8813.362069 | F46: =INDEX(Inputs!$G$178:$K$178,MATCH($C46,Inputs!$G$177:$K$177,0)) -> 170 | G46: =Inputs!H277 -> 0 | I46: Refi facility 4 | J46: =Inputs!G525 -> 1 | K46: =Inputs!H525 -> 2062-12-31 | L46: =K47 -> 2072-12-31 | M46: =Inputs!$G$515 -> 10 | N46: =Inputs!J525 -> 0.01 | O46: =Inputs!I525 -> 0.006 | P46: n.a. | Q46: n.a.
C47: Affordable | D47: misc | E47: =INDEX(Inputs!$G$179:$K$179,MATCH($C47,Inputs!$G$177:$K$177,0)) -> 23822.64706 | F47: =INDEX(Inputs!$G$178:$K$178,MATCH($C47,Inputs!$G$177:$K$177,0)) -> 375 | G47: =Inputs!H290 -> 0 | I47: Refi facility 5 | J47: =Inputs!G526 -> 1 | K47: =Inputs!H526 -> 2072-12-31 | L47: =Inputs!G514 -> 2072-12-31 | M47: =Inputs!$G$515 -> 10 | N47: =Inputs!J526 -> 0.009 | O47: =Inputs!I526 -> 0.006 | P47: n.a. | Q47: n.a.
C48: Market | D48: misc | E48: =INDEX(Inputs!$G$179:$K$179,MATCH($C48,Inputs!$G$177:$K$177,0)) -> 10629.70588 | F48: =INDEX(Inputs!$G$178:$K$178,MATCH($C48,Inputs!$G$177:$K$177,0)) -> 148 | G48: =Inputs!H303 -> 0 | I48: Remaining senior debt additions | J48: misc | K48: =K39 -> 2072-12-31 | L48: n.a. | M48: n.a. | N48: n.a. | O48: n.a. | P48: n.a. | Q48: =Debt!I679 -> 0
C49: Commercial | D49: misc | E49: =INDEX(Inputs!$G$179:$K$179,MATCH($C49,Inputs!$G$177:$K$177,0)) -> 4969.2852 | F49: n.a. | G49: n.a.
C50: Retail | D50: misc | E50: =INDEX(Inputs!$G$179:$K$179,MATCH($C50,Inputs!$G$177:$K$177,0)) -> 4505.8336 | F50: n.a. | G50: n.a.
C51: Total | D51: misc | E51: =SUM(E46:E50) -> 52740.83381 | F51: =SUM(F46:F50) -> 693 | G51: =SUM(G46:G50) -> 0

Sheet NHFIC_Funding_Outputs
A1: NHFIC Funding Outputs
A2: =Name_Project & " | " & Name_Model -> Sample Project | Project Finance Model - Debt Sculpting
A3: =Name_Client -> NHFIC
C5: NHFIC Gearing
C6: NHFIC Funding | G6: AUD M | H6: =Summary!F17 -> 200
C7: NHFIC Maximum Gearing | G7: % | H7: =Max_NHFIC_Gearing -> 0.5
C8: NHFIC Gearing | G8: % | H8: =Summary!G17 -> 0.4932864168
C9: NHFIC Gearing Check | G9: Check | H9: =IF(H8>H7,1,0) -> 0
C11: NHFIC Debt DSCR
C12: Min DSCR | G12: n.a.
C13: DSCR check | G13: Check | H13: =IF(SUM(D16:H16)>0,1,0) -> 0
C15: Facility | D15: 1 | E15: 2 | F15: 3 | G15: 4 | H15: 5
C16: DSCR Check | D16: =IF(Inputs!G450=1,IF(Inputs!G455=1,NHFIC_F1_DSCRCHECK,"n.a"),"n.a") -> 0 | E16: =IF(Inputs!H450=1,IF(Inputs!H455=1,NHFIC_F2_DSCRCHECK,"n.a"),"n.a") -> 0 | F16: =IF(Inputs!I450=1,IF(Inputs!I455=1,NHFIC_F3_DSCRCHECK,"n.a"),"n.a") -> 0 | G16: =IF(Inputs!J450=1,IF(Inputs!J455=1,NHFIC_F4_DSCRCHECK,"n.a"),"n.a") -> 0 | H16: =IF(Inputs!K450=1,IF(Inputs!K455=1,NHFIC_F5_DSCRCHECK,"n.a"),"n.a") -> 0
C39: NHFIC Debt ICR
C40: Min ICR | G40: n.a. | H40: =Min_NHFICDebt_ICR -> 1.663056429
C41: ICR check | G41: Check | H41: =IF(Debt!I776=0,0,1) -> 0
C64: NHFIC Debt LLCR
C65: Min LLCR | G65: n.a. | H65: =Min_NHFICDebt_LLCR -> 0.102187743
C66: LLCR check | G66: Check | H66: =IF(Debt!I786=0,0,1) -> 1
C89: NHFIC Debt Repayment Profile ($M)
D90: =Inputs!G$449 -> NHFIC Debt Facility 1 | E90: =Inputs!H$449 -> NHFIC Debt Facility 2 | F90: =Inputs!I$449 -> NHFIC Debt Facility 3 | G90: =Inputs!J$449 -> NHFIC Debt Facility 4 | H90: =Inputs!K$449 -> NHFIC Debt Facility 5
D91: =IF(Inputs!G$450=0,"n.a.",Inputs!G$455) -> 1 | E91: =IF(Inputs!H$450=0,"n.a.",Inputs!H$455) -> 1 | F91: =IF(Inputs!I$450=0,"n.a.",Inputs!I$455) -> 1 | G91: =IF(Inputs!J$450=0,"n.a.",Inputs!J$455) -> 1 | H91: =IF(Inputs!K$450=0,"n.a.",Inputs!K$455) -> 1
C112: NHFIC Debt Balance ($M) - Principal and Interest
C113: Amortisation Profile Selected | H113: =Amort_Select -> 0
C114: Amortisation Amount | G114: AUD M | H114: =Debt!E149 -> 125
C115: Facility Repayment Check | H115: =NHFIC_DS_AmortisationRepayment_Check -> 0
C138: NHFIC Debt Balance ($M) - Interest Only
C161: Benefit of NHFIC Funding
C162: NPV of Senior Debt interest | G162: AUD M | H162: =Data_Q!E93 -> 48.3708086
C163: NPV of NHFIC interest | G163: AUD M | H163: =Data_Q!E85 -> 42.40478707
C164: Benefit of NHFIC Funding | G164: AUD M | H164: =H162-H163 -> 5.966021537
C166: Average Dwelling Cost | G166: AUD / Dwelling | H166: =Summary!G43/Summary!F51*Million -> 582170.2216
C168: Additional Projected Dwellings with NHFIC Funding | G168: Dwellings | H168: =H164*Million/H166 -> 10.24789884

Sheet QFS
A1: Quarterly Financial Statements
A2: =Name_Project & " | " & Name_Model -> Sample Project | Project Finance Model - Debt Sculpting
A3: =Name_Client -> NHFIC | D3: =Master_Check -> 408
C5: Period Start | D5: Date | J5: =Timing!J5 -> 2019-07-01 | K5: =Timing!K5 -> 2019-10-01 | L5: =Timing!L5 -> 2020-01-01 | M5: =Timing!M5 -> 2020-04-01 | N5: =Timing!N5 -> 2020-07-01 | O5: =Timing!O5 -> 2020-10-01 | P5: =Timing!P5 -> 2021-01-01 | Q5: =Timing!Q5 -> 2021-04-01 | R5: =Timing!R5 -> 2021-07-01 | S5: =Timing!S5 -> 2021-10-01 | T5: =Timing!T5 -> 2022-01-01 | U5: =Timing!U5 -> 2022-04-01 | V5: =Timing!V5 -> 2022-07-01 | W5: =Timing!W5 -> 2022-10-01 | X5: =Timing!X5 -> 2023-01-01 | Y5: =Timing!Y5 -> 2023-04-01 | Z5: =Timing!Z5 -> 2023-07-01 | AA5: =Timing!AA5 -> 2023-10-01 | AB5: =Timing!AB5 -> 2024-01-01 | AC5: =Timing!AC5 -> 2024-04-01 | AD5: =Timing!AD5 -> 2024-07-01 | AE5: =Timing!AE5 -> 2024-10-01 | AF5: =Timing!AF5 -> 2025-01-01 | AG5: =Timing!AG5 -> 2025-04-01 | AH5: =Timing!AH5 -> 2025-07-01 | AI5: =Timing!AI5 -> 2025-10-01 | AJ5: =Timing!AJ5 -> 2026-01-01 | AK5: =Timing!AK5 -> 2026-04-01 | AL5: =Timing!AL5 -> 2026-07-01 | AM5: =Timing!AM5 -> 2026-10-01 | AN5: =Timing!AN5 -> 2027-01-01 | AO5: =Timing!AO5 -> 2027-04-01 | AP5: =Timing!AP5 -> 2027-07-01 | AQ5: =Timing!AQ5 -> 2027-10-01 | AR5: =Timing!AR5 -> 2028-01-01 | AS5: =Timing!AS5 -> 2028-04-01 | AT5: =Timing!AT5 -> 2028-07-01 | AU5: =Timing!AU5 -> 2028-10-01 | AV5: =Timing!AV5 -> 2029-01-01 | AW5: =Timing!AW5 -> 2029-04-01 | AX5: =Timing!AX5 -> 2029-07-01 | AY5: =Timing!AY5 -> 2029-10-01 | AZ5: =Timing!AZ5 -> 2030-01-01 | BA5: =Timing!BA5 -> 2030-04-01 | BB5: =Timing!BB5 -> 2030-07-01 | BC5: =Timing!BC5 -> 2030-10-01 | BD5: =Timing!BD5 -> 2031-01-01 | BE5: =Timing!BE5 -> 2031-04-01 | BF5: =Timing!BF5 -> 2031-07-01 | BG5: =Timing!BG5 -> 2031-10-01 | BH5: =Timing!BH5 -> 2032-01-01 | BI5: =Timing!BI5 -> 2032-04-01 | BJ5: =Timing!BJ5 -> 2032-07-01 | BK5: =Timing!BK5 -> 2032-10-01 | BL5: =Timing!BL5 -> 2033-01-01 | BM5: =Timing!BM5 -> 2033-04-01 | BN5: =Timing!BN5 -> 2033-07-01 | BO5: =Timing!BO5 -> 2033-10-01 | BP5: =Timing!BP5 -> 2034-01-01 | BQ5: =Timing!BQ5 -> 2034-04-01 | BR5: =Timing!BR5 -> 2034-07-01 | BS5: =Timing!BS5 -> 2034-10-01 | BT5: =Timing!BT5 -> 2035-01-01 | BU5: =Timing!BU5 -> 2035-04-01 | BV5: =Timing!BV5 -> 2035-07-01 | BW5: =Timing!BW5 -> 2035-10-01 | BX5: =Timing!BX5 -> 2036-01-01 | BY5: =Timing!BY5 -> 2036-04-01 | BZ5: =Timing!BZ5 -> 2036-07-01 | CA5: =Timing!CA5 -> 2036-10-01 | CB5: =Timing!CB5 -> 2037-01-01 | CC5: =Timing!CC5 -> 2037-04-01 | CD5: =Timing!CD5 -> 2037-07-01 | CE5: =Timing!CE5 -> 2037-10-01 | CF5: =Timing!CF5 -> 2038-01-01 | CG5: =Timing!CG5 -> 2038-04-01 | CH5: =Timing!CH5 -> 2038-07-01 | CI5: =Timing!CI5 -> 2038-10-01 | CJ5: =Timing!CJ5 -> 2039-01-01 | CK5: =Timing!CK5 -> 2039-04-01 | CL5: =Timing!CL5 -> 2039-07-01 | CM5: =Timing!CM5 -> 2039-10-01 | CN5: =Timing!CN5 -> 2040-01-01 | CO5: =Timing!CO5 -> 2040-04-01 | CP5: =Timing!CP5 -> 2040-07-01 | CQ5: =Timing!CQ5 -> 2040-10-01 | CR5: =Timing!CR5 -> 2041-01-01 | CS5: =Timing!CS5 -> 2041-04-01 | CT5: =Timing!CT5 -> 2041-07-01 | CU5: =Timing!CU5 -> 2041-10-01 | CV5: =Timing!CV5 -> 2042-01-01 | CW5: =Timing!CW5 -> 2042-04-01 | CX5: =Timing!CX5 -> 2042-07-01 | CY5: =Timing!CY5 -> 2042-10-01 | CZ5: =Timing!CZ5 -> 2043-01-01 | DA5: =Timing!DA5 -> 2043-04-01 | DB5: =Timing!DB5 -> 2043-07-01 | DC5: =Timing!DC5 -> 2043-10-01 | DD5: =Timing!DD5 -> 2044-01-01 | DE5: =Timing!DE5 -> 2044-04-01 | DF5: =Timing!DF5 -> 2044-07-01 | DG5: =Timing!DG5 -> 2044-10-01 | DH5: =Timing!DH5 -> 2045-01-01 | DI5: =Timing!DI5 -> 2045-04-01 | DJ5: =Timing!DJ5 -> 2045-07-01 | DK5: =Timing!DK5 -> 2045-10-01 | DL5: =Timing!DL5 -> 2046-01-01 | DM5: =Timing!DM5 -> 2046-04-01 | DN5: =Timing!DN5 -> 2046-07-01 | DO5: =Timing!DO5 -> 2046-10-01 | DP5: =Timing!DP5 -> 2047-01-01 | DQ5: =Timing!DQ5 -> 2047-04-01 | DR5: =Timing!DR5 -> 2047-07-01 | DS5: =Timing!DS5 -> 2047-10-01 | DT5: =Timing!DT5 -> 2048-01-01 | DU5: =Timing!DU5 -> 2048-04-01 | DV5: =Timing!DV5 -> 2048-07-01 | DW5: =Timing!DW5 -> 2048-10-01 | DX5: =Timing!DX5 -> 2049-01-01 | DY5: =Timing!DY5 -> 2049-04-01 | DZ5: =Timing!DZ5 -> 2049-07-01 | EA5: =Timing!EA5 -> 2049-10-01 | EB5: =Timing!EB5 -> 2050-01-01 | EC5: =Timing!EC5 -> 2050-04-01 | ED5: =Timing!ED5 -> 2050-07-01 | EE5: =Timing!EE5 -> 2050-10-01 | EF5: =Timing!EF5 -> 2051-01-01 | EG5: =Timing!EG5 -> 2051-04-01 | EH5: =Timing!EH5 -> 2051-07-01 | EI5: =Timing!EI5 -> 2051-10-01 | EJ5: =Timing!EJ5 -> 2052-01-01 | EK5: =Timing!EK5 -> 2052-04-01 | EL5: =Timing!EL5 -> 2052-07-01 | EM5: =Timing!EM5 -> 2052-10-01 | EN5: =Timing!EN5 -> 2053-01-01 | EO5: =Timing!EO5 -> 2053-04-01 | EP5: =Timing!EP5 -> 2053-07-01 | EQ5: =Timing!EQ5 -> 2053-10-01 | ER5: =Timing!ER5 -> 2054-01-01 | ES5: =Timing!ES5 -> 2054-04-01 | ET5: =Timing!ET5 -> 2054-07-01 | EU5: =Timing!EU5 -> 2054-10-01 | EV5: =Timing!EV5 -> 2055-01-01 | EW5: =Timing!EW5 -> 2055-04-01 | EX5: =Timing!EX5 -> 2055-07-01 | EY5: =Timing!EY5 -> 2055-10-01 | EZ5: =Timing!EZ5 -> 2056-01-01 | FA5: =Timing!FA5 -> 2056-04-01 | FB5: =Timing!FB5 -> 2056-07-01 | FC5: =Timing!FC5 -> 2056-10-01 | FD5: =Timing!FD5 -> 2057-01-01 | FE5: =Timing!FE5 -> 2057-04-01 | FF5: =Timing!FF5 -> 2057-07-01 | FG5: =Timing!FG5 -> 2057-10-01 | FH5: =Timing!FH5 -> 2058-01-01 | FI5: =Timing!FI5 -> 2058-04-01 | FJ5: =Timing!FJ5 -> 2058-07-01 | FK5: =Timing!FK5 -> 2058-10-01 | FL5: =Timing!FL5 -> 2059-01-01 | FM5: =Timing!FM5 -> 2059-04-01 | FN5: =Timing!FN5 -> 2059-07-01 | FO5: =Timing!FO5 -> 2059-10-01 | FP5: =Timing!FP5 -> 2060-01-01 | FQ5: =Timing!FQ5 -> 2060-04-01 | FR5: =Timing!FR5 -> 2060-07-01 | FS5: =Timing!FS5 -> 2060-10-01 | FT5: =Timing!FT5 -> 2061-01-01 | FU5: =Timing!FU5 -> 2061-04-01 | FV5: =Timing!FV5 -> 2061-07-01 | FW5: =Timing!FW5 -> 2061-10-01 | FX5: =Timing!FX5 -> 2062-01-01 | FY5: =Timing!FY5 -> 2062-04-01 | FZ5: =Timing!FZ5 -> 2062-07-01 | GA5: =Timing!GA5 -> 2062-10-01 | GB5: =Timing!GB5 -> 2063-01-01 | GC5: =Timing!GC5 -> 2063-04-01 | GD5: =Timing!GD5 -> 2063-07-01 | GE5: =Timing!GE5 -> 2063-10-01 | GF5: =Timing!GF5 -> 2064-01-01 | GG5: =Timing!GG5 -> 2064-04-01 | GH5: =Timing!GH5 -> 2064-07-01 | GI5: =Timing!GI5 -> 2064-10-01 | GJ5: =Timing!GJ5 -> 2065-01-01 | GK5: =Timing!GK5 -> 2065-04-01 | GL5: =Timing!GL5 -> 2065-07-01 | GM5: =Timing!GM5 -> 2065-10-01 | GN5: =Timing!GN5 -> 2066-01-01 | GO5: =Timing!GO5 -> 2066-04-01 | GP5: =Timing!GP5 -> 2066-07-01 | GQ5: =Timing!GQ5 -> 2066-10-01 | GR5: =Timing!GR5 -> 2067-01-01 | GS5: =Timing!GS5 -> 2067-04-01 | GT5: =Timing!GT5 -> 2067-07-01 | GU5: =Timing!GU5 -> 2067-10-01 | GV5: =Timing!GV5 -> 2068-01-01 | GW5: =Timing!GW5 -> 2068-04-01 | GX5: =Timing!GX5 -> 2068-07-01 | GY5: =Timing!GY5 -> 2068-10-01 | GZ5: =Timing!GZ5 -> 2069-01-01 | HA5: =Timing!HA5 -> 2069-04-01 | HB5: =Timing!HB5 -> 2069-07-01 | HC5: =Timing!HC5 -> 2069-10-01 | HD5: =Timing!HD5 -> 2070-01-01 | HE5: =Timing!HE5 -> 2070-04-01 | HF5: =Timing!HF5 -> 2070-07-01 | HG5: =Timing!HG5 -> 2070-10-01 | HH5: =Timing!HH5 -> 2071-01-01 | HI5: =Timing!HI5 -> 2071-04-01 | HJ5: =Timing!HJ5 -> 2071-07-01 | HK5: =Timing!HK5 -> 2071-10-01 | HL5: =Timing!HL5 -> 2072-01-01 | HM5: =Timing!HM5 -> 2072-04-01 | HN5: =Timing!HN5 -> 2072-07-01 | HO5: =Timing!HO5 -> 2072-10-01 | HP5: =Timing!HP5 -> 2073-01-01 | HQ5: =Timing!HQ5 -> 2073-04-01 | HR5: =Timing!HR5 -> 2073-07-01 | HS5: =Timing!HS5 -> 2073-10-01 | HT5: =Timing!HT5 -> 2074-01-01 | HU5: =Timing!HU5 -> 2074-04-01 | HV5: =Timing!HV5 -> 2074-07-01 | HW5: =Timing!HW5 -> 2074-10-01 | HX5: =Timing!HX5 -> 2075-01-01 | HY5: =Timing!HY5 -> 2075-04-01 | HZ5: =Timing!HZ5 -> 2075-07-01 | IA5: =Timing!IA5 -> 2075-10-01 | IB5: =Timing!IB5 -> 2076-01-01 | IC5: =Timing!IC5 -> 2076-04-01 | ID5: =Timing!ID5 -> 2076-07-01 | IE5: =Timing!IE5 -> 2076-10-01 | IF5: =Timing!IF5 -> 2077-01-01 | IG5: =Timing!IG5 -> 2077-04-01 | IH5: =Timing!IH5 -> 2077-07-01 | II5: =Timing!II5 -> 2077-10-01 | IJ5: =Timing!IJ5 -> 2078-01-01 | IK5: =Timing!IK5 -> 2078-04-01 | IL5: =Timing!IL5 -> 2078-07-01 | IM5: =Timing!IM5 -> 2078-10-01 | IN5: =Timing!IN5 -> 2079-01-01 | IO5: =Timing!IO5 -> 2079-04-01 | IP5: =Timing!IP5 -> 2079-07-01 | IQ5: =Timing!IQ5 -> 2079-10-01 | IR5: =Timing!IR5 -> 2080-01-01 | IS5: =Timing!IS5 -> 2080-04-01 | IT5: =Timing!IT5 -> 2080-07-01 | IU5: =Timing!IU5 -> 2080-10-01
C6: Period End | D6: Date | J6: =Timing!J6 -> 2019-09-30 | K6: =Timing!K6 -> 2019-12-31 | L6: =Timing!L6 -> 2020-03-31 | M6: =Timing!M6 -> 2020-06-30 | N6: =Timing!N6 -> 2020-09-30 | O6: =Timing!O6 -> 2020-12-31 | P6: =Timing!P6 -> 2021-03-31 | Q6: =Timing!Q6 -> 2021-06-30 | R6: =Timing!R6 -> 2021-09-30 | S6: =Timing!S6 -> 2021-12-31 | T6: =Timing!T6 -> 2022-03-31 | U6: =Timing!U6 -> 2022-06-30 | V6: =Timing!V6 -> 2022-09-30 | W6: =Timing!W6 -> 2022-12-31 | X6: =Timing!X6 -> 2023-03-31 | Y6: =Timing!Y6 -> 2023-06-30 | Z6: =Timing!Z6 -> 2023-09-30 | AA6: =Timing!AA6 -> 2023-12-31 | AB6: =Timing!AB6 -> 2024-03-31 | AC6: =Timing!AC6 -> 2024-06-30 | AD6: =Timing!AD6 -> 2024-09-30 | AE6: =Timing!AE6 -> 2024-12-31 | AF6: =Timing!AF6 -> 2025-03-31 | AG6: =Timing!AG6 -> 2025-06-30 | AH6: =Timing!AH6 -> 2025-09-30 | AI6: =Timing!AI6 -> 2025-12-31 | AJ6: =Timing!AJ6 -> 2026-03-31 | AK6: =Timing!AK6 -> 2026-06-30 | AL6: =Timing!AL6 -> 2026-09-30 | AM6: =Timing!AM6 -> 2026-12-31 | AN6: =Timing!AN6 -> 2027-03-31 | AO6: =Timing!AO6 -> 2027-06-30 | AP6: =Timing!AP6 -> 2027-09-30 | AQ6: =Timing!AQ6 -> 2027-12-31 | AR6: =Timing!AR6 -> 2028-03-31 | AS6: =Timing!AS6 -> 2028-06-30 | AT6: =Timing!AT6 -> 2028-09-30 | AU6: =Timing!AU6 -> 2028-12-31 | AV6: =Timing!AV6 -> 2029-03-31 | AW6: =Timing!AW6 -> 2029-06-30 | AX6: =Timing!AX6 -> 2029-09-30 | AY6: =Timing!AY6 -> 2029-12-31 | AZ6: =Timing!AZ6 -> 2030-03-31 | BA6: =Timing!BA6 -> 2030-06-30 | BB6: =Timing!BB6 -> 2030-09-30 | BC6: =Timing!BC6 -> 2030-12-31 | BD6: =Timing!BD6 -> 2031-03-31 | BE6: =Timing!BE6 -> 2031-06-30 | BF6: =Timing!BF6 -> 2031-09-30 | BG6: =Timing!BG6 -> 2031-12-31 | BH6: =Timing!BH6 -> 2032-03-31 | BI6: =Timing!BI6 -> 2032-06-30 | BJ6: =Timing!BJ6 -> 2032-09-30 | BK6: =Timing!BK6 -> 2032-12-31 | BL6: =Timing!BL6 -> 2033-03-31 | BM6: =Timing!BM6 -> 2033-06-30 | BN6: =Timing!BN6 -> 2033-09-30 | BO6: =Timing!BO6 -> 2033-12-31 | BP6: =Timing!BP6 -> 2034-03-31 | BQ6: =Timing!BQ6 -> 2034-06-30 | BR6: =Timing!BR6 -> 2034-09-30 | BS6: =Timing!BS6 -> 2034-12-31 | BT6: =Timing!BT6 -> 2035-03-31 | BU6: =Timing!BU6 -> 2035-06-30 | BV6: =Timing!BV6 -> 2035-09-30 | BW6: =Timing!BW6 -> 2035-12-31 | BX6: =Timing!BX6 -> 2036-03-31 | BY6: =Timing!BY6 -> 2036-06-30 | BZ6: =Timing!BZ6 -> 2036-09-30 | CA6: =Timing!CA6 -> 2036-12-31 | CB6: =Timing!CB6 -> 2037-03-31 | CC6: =Timing!CC6 -> 2037-06-30 | CD6: =Timing!CD6 -> 2037-09-30 | CE6: =Timing!CE6 -> 2037-12-31 | CF6: =Timing!CF6 -> 2038-03-31 | CG6: =Timing!CG6 -> 2038-06-30 | CH6: =Timing!CH6 -> 2038-09-30 | CI6: =Timing!CI6 -> 2038-12-31 | CJ6: =Timing!CJ6 -> 2039-03-31 | CK6: =Timing!CK6 -> 2039-06-30 | CL6: =Timing!CL6 -> 2039-09-30 | CM6: =Timing!CM6 -> 2039-12-31 | CN6: =Timing!CN6 -> 2040-03-31 | CO6: =Timing!CO6 -> 2040-06-30 | CP6: =Timing!CP6 -> 2040-09-30 | CQ6: =Timing!CQ6 -> 2040-12-31 | CR6: =Timing!CR6 -> 2041-03-31 | CS6: =Timing!CS6 -> 2041-06-30 | CT6: =Timing!CT6 -> 2041-09-30 | CU6: =Timing!CU6 -> 2041-12-31 | CV6: =Timing!CV6 -> 2042-03-31 | CW6: =Timing!CW6 -> 2042-06-30 | CX6: =Timing!CX6 -> 2042-09-30 | CY6: =Timing!CY6 -> 2042-12-31 | CZ6: =Timing!CZ6 -> 2043-03-31 | DA6: =Timing!DA6 -> 2043-06-30 | DB6: =Timing!DB6 -> 2043-09-30 | DC6: =Timing!DC6 -> 2043-12-31 | DD6: =Timing!DD6 -> 2044-03-31 | DE6: =Timing!DE6 -> 2044-06-30 | DF6: =Timing!DF6 -> 2044-09-30 | DG6: =Timing!DG6 -> 2044-12-31 | DH6: =Timing!DH6 -> 2045-03-31 | DI6: =Timing!DI6 -> 2045-06-30 | DJ6: =Timing!DJ6 -> 2045-09-30 | DK6: =Timing!DK6 -> 2045-12-31 | DL6: =Timing!DL6 -> 2046-03-31 | DM6: =Timing!DM6 -> 2046-06-30 | DN6: =Timing!DN6 -> 2046-09-30 | DO6: =Timing!DO6 -> 2046-12-31 | DP6: =Timing!DP6 -> 2047-03-31 | DQ6: =Timing!DQ6 -> 2047-06-30 | DR6: =Timing!DR6 -> 2047-09-30 | DS6: =Timing!DS6 -> 2047-12-31 | DT6: =Timing!DT6 -> 2048-03-31 | DU6: =Timing!DU6 -> 2048-06-30 | DV6: =Timing!DV6 -> 2048-09-30 | DW6: =Timing!DW6 -> 2048-12-31 | DX6: =Timing!DX6 -> 2049-03-31 | DY6: =Timing!DY6 -> 2049-06-30 | DZ6: =Timing!DZ6 -> 2049-09-30 | EA6: =Timing!EA6 -> 2049-12-31 | EB6: =Timing!EB6 -> 2050-03-31 | EC6: =Timing!EC6 -> 2050-06-30 | ED6: =Timing!ED6 -> 2050-09-30 | EE6: =Timing!EE6 -> 2050-12-31 | EF6: =Timing!EF6 -> 2051-03-31 | EG6: =Timing!EG6 -> 2051-06-30 | EH6: =Timing!EH6 -> 2051-09-30 | EI6: =Timing!EI6 -> 2051-12-31 | EJ6: =Timing!EJ6 -> 2052-03-31 | EK6: =Timing!EK6 -> 2052-06-30 | EL6: =Timing!EL6 -> 2052-09-30 | EM6: =Timing!EM6 -> 2052-12-31 | EN6: =Timing!EN6 -> 2053-03-31 | EO6: =Timing!EO6 -> 2053-06-30 | EP6: =Timing!EP6 -> 2053-09-30 | EQ6: =Timing!EQ6 -> 2053-12-31 | ER6: =Timing!ER6 -> 2054-03-31 | ES6: =Timing!ES6 -> 2054-06-30 | ET6: =Timing!ET6 -> 2054-09-30 | EU6: =Timing!EU6 -> 2054-12-31 | EV6: =Timing!EV6 -> 2055-03-31 | EW6: =Timing!EW6 -> 2055-06-30 | EX6: =Timing!EX6 -> 2055-09-30 | EY6: =Timing!EY6 -> 2055-12-31 | EZ6: =Timing!EZ6 -> 2056-03-31 | FA6: =Timing!FA6 -> 2056-06-30 | FB6: =Timing!FB6 -> 2056-09-30 | FC6: =Timing!FC6 -> 2056-12-31 | FD6: =Timing!FD6 -> 2057-03-31 | FE6: =Timing!FE6 -> 2057-06-30 | FF6: =Timing!FF6 -> 2057-09-30 | FG6: =Timing!FG6 -> 2057-12-31 | FH6: =Timing!FH6 -> 2058-03-31 | FI6: =Timing!FI6 -> 2058-06-30 | FJ6: =Timing!FJ6 -> 2058-09-30 | FK6: =Timing!FK6 -> 2058-12-31 | FL6: =Timing!FL6 -> 2059-03-31 | FM6: =Timing!FM6 -> 2059-06-30 | FN6: =Timing!FN6 -> 2059-09-30 | FO6: =Timing!FO6 -> 2059-12-31 | FP6: =Timing!FP6 -> 2060-03-31 | FQ6: =Timing!FQ6 -> 2060-06-30 | FR6: =Timing!FR6 -> 2060-09-30 | FS6: =Timing!FS6 -> 2060-12-31 | FT6: =Timing!FT6 -> 2061-03-31 | FU6: =Timing!FU6 -> 2061-06-30 | FV6: =Timing!FV6 -> 2061-09-30 | FW6: =Timing!FW6 -> 2061-12-31 | FX6: =Timing!FX6 -> 2062-03-31 | FY6: =Timing!FY6 -> 2062-06-30 | FZ6: =Timing!FZ6 -> 2062-09-30 | GA6: =Timing!GA6 -> 2062-12-31 | GB6: =Timing!GB6 -> 2063-03-31 | GC6: =Timing!GC6 -> 2063-06-30 | GD6: =Timing!GD6 -> 2063-09-30 | GE6: =Timing!GE6 -> 2063-12-31 | GF6: =Timing!GF6 -> 2064-03-31 | GG6: =Timing!GG6 -> 2064-06-30 | GH6: =Timing!GH6 -> 2064-09-30 | GI6: =Timing!GI6 -> 2064-12-31 | GJ6: =Timing!GJ6 -> 2065-03-31 | GK6: =Timing!GK6 -> 2065-06-30 | GL6: =Timing!GL6 -> 2065-09-30 | GM6: =Timing!GM6 -> 2065-12-31 | GN6: =Timing!GN6 -> 2066-03-31 | GO6: =Timing!GO6 -> 2066-06-30 | GP6: =Timing!GP6 -> 2066-09-30 | GQ6: =Timing!GQ6 -> 2066-12-31 | GR6: =Timing!GR6 -> 2067-03-31 | GS6: =Timing!GS6 -> 2067-06-30 | GT6: =Timing!GT6 -> 2067-09-30 | GU6: =Timing!GU6 -> 2067-12-31 | GV6: =Timing!GV6 -> 2068-03-31 | GW6: =Timing!GW6 -> 2068-06-30 | GX6: =Timing!GX6 -> 2068-09-30 | GY6: =Timing!GY6 -> 2068-12-31 | GZ6: =Timing!GZ6 -> 2069-03-31 | HA6: =Timing!HA6 -> 2069-06-30 | HB6: =Timing!HB6 -> 2069-09-30 | HC6: =Timing!HC6 -> 2069-12-31 | HD6: =Timing!HD6 -> 2070-03-31 | HE6: =Timing!HE6 -> 2070-06-30 | HF6: =Timing!HF6 -> 2070-09-30 | HG6: =Timing!HG6 -> 2070-12-31 | HH6: =Timing!HH6 -> 2071-03-31 | HI6: =Timing!HI6 -> 2071-06-30 | HJ6: =Timing!HJ6 -> 2071-09-30 | HK6: =Timing!HK6 -> 2071-12-31 | HL6: =Timing!HL6 -> 2072-03-31 | HM6: =Timing!HM6 -> 2072-06-30 | HN6: =Timing!HN6 -> 2072-09-30 | HO6: =Timing!HO6 -> 2072-12-31 | HP6: =Timing!HP6 -> 2073-03-31 | HQ6: =Timing!HQ6 -> 2073-06-30 | HR6: =Timing!HR6 -> 2073-09-30 | HS6: =Timing!HS6 -> 2073-12-31 | HT6: =Timing!HT6 -> 2074-03-31 | HU6: =Timing!HU6 -> 2074-06-30 | HV6: =Timing!HV6 -> 2074-09-30 | HW6: =Timing!HW6 -> 2074-12-31 | HX6: =Timing!HX6 -> 2075-03-31 | HY6: =Timing!HY6 -> 2075-06-30 | HZ6: =Timing!HZ6 -> 2075-09-30 | IA6: =Timing!IA6 -> 2075-12-31 | IB6: =Timing!IB6 -> 2076-03-31 | IC6: =Timing!IC6 -> 2076-06-30 | ID6: =Timing!ID6 -> 2076-09-30 | IE6: =Timing!IE6 -> 2076-12-31 | IF6: =Timing!IF6 -> 2077-03-31 | IG6: =Timing!IG6 -> 2077-06-30 | IH6: =Timing!IH6 -> 2077-09-30 | II6: =Timing!II6 -> 2077-12-31 | IJ6: =Timing!IJ6 -> 2078-03-31 | IK6: =Timing!IK6 -> 2078-06-30 | IL6: =Timing!IL6 -> 2078-09-30 | IM6: =Timing!IM6 -> 2078-12-31 | IN6: =Timing!IN6 -> 2079-03-31 | IO6: =Timing!IO6 -> 2079-06-30 | IP6: =Timing!IP6 -> 2079-09-30 | IQ6: =Timing!IQ6 -> 2079-12-31 | IR6: =Timing!IR6 -> 2080-03-31 | IS6: =Timing!IS6 -> 2080-06-30 | IT6: =Timing!IT6 -> 2080-09-30 | IU6: =Timing!IU6 -> 2080-12-31
C7: Model Flag | D7: [1,0] | J7: =Timing!J7 -> 1 | K7: =Timing!K7 -> 1 | L7: =Timing!L7 -> 1 | M7: =Timing!M7 -> 1 | N7: =Timing!N7 -> 1 | O7: =Timing!O7 -> 1 | P7: =Timing!P7 -> 1 | Q7: =Timing!Q7 -> 1 | R7: =Timing!R7 -> 1 | S7: =Timing!S7 -> 1 | T7: =Timing!T7 -> 1 | U7: =Timing!U7 -> 1 | V7: =Timing!V7 -> 1 | W7: =Timing!W7 -> 1 | X7: =Timing!X7 -> 1 | Y7: =Timing!Y7 -> 1 | Z7: =Timing!Z7 -> 1 | AA7: =Timing!AA7 -> 1 | AB7: =Timing!AB7 -> 1 | AC7: =Timing!AC7 -> 1 | AD7: =Timing!AD7 -> 1 | AE7: =Timing!AE7 -> 1 | AF7: =Timing!AF7 -> 1 | AG7: =Timing!AG7 -> 1 | AH7: =Timing!AH7 -> 1 | AI7: =Timing!AI7 -> 1 | AJ7: =Timing!AJ7 -> 1 | AK7: =Timing!AK7 -> 1 | AL7: =Timing!AL7 -> 1 | AM7: =Timing!AM7 -> 1 | AN7: =Timing!AN7 -> 1 | AO7: =Timing!AO7 -> 1 | AP7: =Timing!AP7 -> 1 | AQ7: =Timing!AQ7 -> 1 | AR7: =Timing!AR7 -> 1 | AS7: =Timing!AS7 -> 1 | AT7: =Timing!AT7 -> 1 | AU7: =Timing!AU7 -> 1 | AV7: =Timing!AV7 -> 1 | AW7: =Timing!AW7 -> 1 | AX7: =Timing!AX7 -> 1 | AY7: =Timing!AY7 -> 1 | AZ7: =Timing!AZ7 -> 1 | BA7: =Timing!BA7 -> 1 | BB7: =Timing!BB7 -> 1 | BC7: =Timing!BC7 -> 1 | BD7: =Timing!BD7 -> 1 | BE7: =Timing!BE7 -> 1 | BF7: =Timing!BF7 -> 1 | BG7: =Timing!BG7 -> 1 | BH7: =Timing!BH7 -> 1 | BI7: =Timing!BI7 -> 1 | BJ7: =Timing!BJ7 -> 1 | BK7: =Timing!BK7 -> 1 | BL7: =Timing!BL7 -> 1 | BM7: =Timing!BM7 -> 1 | BN7: =Timing!BN7 -> 1 | BO7: =Timing!BO7 -> 1 | BP7: =Timing!BP7 -> 1 | BQ7: =Timing!BQ7 -> 1 | BR7: =Timing!BR7 -> 1 | BS7: =Timing!BS7 -> 1 | BT7: =Timing!BT7 -> 1 | BU7: =Timing!BU7 -> 1 | BV7: =Timing!BV7 -> 1 | BW7: =Timing!BW7 -> 1 | BX7: =Timing!BX7 -> 1 | BY7: =Timing!BY7 -> 1 | BZ7: =Timing!BZ7 -> 1 | CA7: =Timing!CA7 -> 1 | CB7: =Timing!CB7 -> 1 | CC7: =Timing!CC7 -> 1 | CD7: =Timing!CD7 -> 1 | CE7: =Timing!CE7 -> 1 | CF7: =Timing!CF7 -> 1 | CG7: =Timing!CG7 -> 1 | CH7: =Timing!CH7 -> 1 | CI7: =Timing!CI7 -> 1 | CJ7: =Timing!CJ7 -> 1 | CK7: =Timing!CK7 -> 1 | CL7: =Timing!CL7 -> 1 | CM7: =Timing!CM7 -> 1 | CN7: =Timing!CN7 -> 1 | CO7: =Timing!CO7 -> 1 | CP7: =Timing!CP7 -> 1 | CQ7: =Timing!CQ7 -> 1 | CR7: =Timing!CR7 -> 1 | CS7: =Timing!CS7 -> 1 | CT7: =Timing!CT7 -> 1 | CU7: =Timing!CU7 -> 1 | CV7: =Timing!CV7 -> 1 | CW7: =Timing!CW7 -> 1 | CX7: =Timing!CX7 -> 1 | CY7: =Timing!CY7 -> 1 | CZ7: =Timing!CZ7 -> 1 | DA7: =Timing!DA7 -> 1 | DB7: =Timing!DB7 -> 1 | DC7: =Timing!DC7 -> 1 | DD7: =Timing!DD7 -> 1 | DE7: =Timing!DE7 -> 1 | DF7: =Timing!DF7 -> 1 | DG7: =Timing!DG7 -> 1 | DH7: =Timing!DH7 -> 1 | DI7: =Timing!DI7 -> 1 | DJ7: =Timing!DJ7 -> 1 | DK7: =Timing!DK7 -> 1 | DL7: =Timing!DL7 -> 1 | DM7: =Timing!DM7 -> 1 | DN7: =Timing!DN7 -> 1 | DO7: =Timing!DO7 -> 1 | DP7: =Timing!DP7 -> 1 | DQ7: =Timing!DQ7 -> 1 | DR7: =Timing!DR7 -> 1 | DS7: =Timing!DS7 -> 1 | DT7: =Timing!DT7 -> 1 | DU7: =Timing!DU7 -> 1 | DV7: =Timing!DV7 -> 1 | DW7: =Timing!DW7 -> 1 | DX7: =Timing!DX7 -> 1 | DY7: =Timing!DY7 -> 1 | DZ7: =Timing!DZ7 -> 1 | EA7: =Timing!EA7 -> 1 | EB7: =Timing!EB7 -> 1 | EC7: =Timing!EC7 -> 1 | ED7: =Timing!ED7 -> 1 | EE7: =Timing!EE7 -> 1 | EF7: =Timing!EF7 -> 1 | EG7: =Timing!EG7 -> 1 | EH7: =Timing!EH7 -> 1 | EI7: =Timing!EI7 -> 1 | EJ7: =Timing!EJ7 -> 1 | EK7: =Timing!EK7 -> 1 | EL7: =Timing!EL7 -> 1 | EM7: =Timing!EM7 -> 1 | EN7: =Timing!EN7 -> 1 | EO7: =Timing!EO7 -> 1 | EP7: =Timing!EP7 -> 1 | EQ7: =Timing!EQ7 -> 1 | ER7: =Timing!ER7 -> 1 | ES7: =Timing!ES7 -> 1 | ET7: =Timing!ET7 -> 1 | EU7: =Timing!EU7 -> 1 | EV7: =Timing!EV7 -> 1 | EW7: =Timing!EW7 -> 1 | EX7: =Timing!EX7 -> 1 | EY7: =Timing!EY7 -> 1 | EZ7: =Timing!EZ7 -> 1 | FA7: =Timing!FA7 -> 1 | FB7: =Timing!FB7 -> 1 | FC7: =Timing!FC7 -> 1 | FD7: =Timing!FD7 -> 1 | FE7: =Timing!FE7 -> 1 | FF7: =Timing!FF7 -> 1 | FG7: =Timing!FG7 -> 1 | FH7: =Timing!FH7 -> 1 | FI7: =Timing!FI7 -> 1 | FJ7: =Timing!FJ7 -> 1 | FK7: =Timing!FK7 -> 1 | FL7: =Timing!FL7 -> 1 | FM7: =Timing!FM7 -> 1 | FN7: =Timing!FN7 -> 1 | FO7: =Timing!FO7 -> 1 | FP7: =Timing!FP7 -> 1 | FQ7: =Timing!FQ7 -> 1 | FR7: =Timing!FR7 -> 1 | FS7: =Timing!FS7 -> 1 | FT7: =Timing!FT7 -> 1 | FU7: =Timing!FU7 -> 1 | FV7: =Timing!FV7 -> 1 | FW7: =Timing!FW7 -> 1 | FX7: =Timing!FX7 -> 1 | FY7: =Timing!FY7 -> 1 | FZ7: =Timing!FZ7 -> 1 | GA7: =Timing!GA7 -> 1 | GB7: =Timing!GB7 -> 1 | GC7: =Timing!GC7 -> 1 | GD7: =Timing!GD7 -> 1 | GE7: =Timing!GE7 -> 1 | GF7: =Timing!GF7 -> 1 | GG7: =Timing!GG7 -> 1 | GH7: =Timing!GH7 -> 1 | GI7: =Timing!GI7 -> 1 | GJ7: =Timing!GJ7 -> 1 | GK7: =Timing!GK7 -> 1 | GL7: =Timing!GL7 -> 1 | GM7: =Timing!GM7 -> 1 | GN7: =Timing!GN7 -> 1 | GO7: =Timing!GO7 -> 1 | GP7: =Timing!GP7 -> 1 | GQ7: =Timing!GQ7 -> 1 | GR7: =Timing!GR7 -> 1 | GS7: =Timing!GS7 -> 1 | GT7: =Timing!GT7 -> 1 | GU7: =Timing!GU7 -> 1 | GV7: =Timing!GV7 -> 1 | GW7: =Timing!GW7 -> 1 | GX7: =Timing!GX7 -> 1 | GY7: =Timing!GY7 -> 1 | GZ7: =Timing!GZ7 -> 1 | HA7: =Timing!HA7 -> 1 | HB7: =Timing!HB7 -> 1 | HC7: =Timing!HC7 -> 1 | HD7: =Timing!HD7 -> 1 | HE7: =Timing!HE7 -> 1 | HF7: =Timing!HF7 -> 1 | HG7: =Timing!HG7 -> 1 | HH7: =Timing!HH7 -> 1 | HI7: =Timing!HI7 -> 1 | HJ7: =Timing!HJ7 -> 1 | HK7: =Timing!HK7 -> 1 | HL7: =Timing!HL7 -> 1 | HM7: =Timing!HM7 -> 1 | HN7: =Timing!HN7 -> 1 | HO7: =Timing!HO7 -> 1 | HP7: =Timing!HP7 -> 0 | HQ7: =Timing!HQ7 -> 0 | HR7: =Timing!HR7 -> 0 | HS7: =Timing!HS7 -> 0 | HT7: =Timing!HT7 -> 0 | HU7: =Timing!HU7 -> 0 | HV7: =Timing!HV7 -> 0 | HW7: =Timing!HW7 -> 0 | HX7: =Timing!HX7 -> 0 | HY7: =Timing!HY7 -> 0 | HZ7: =Timing!HZ7 -> 0 | IA7: =Timing!IA7 -> 0 | IB7: =Timing!IB7 -> 0 | IC7: =Timing!IC7 -> 0 | ID7: =Timing!ID7 -> 0 | IE7: =Timing!IE7 -> 0 | IF7: =Timing!IF7 -> 0 | IG7: =Timing!IG7 -> 0 | IH7: =Timing!IH7 -> 0 | II7: =Timing!II7 -> 0 | IJ7: =Timing!IJ7 -> 0 | IK7: =Timing!IK7 -> 0 | IL7: =Timing!IL7 -> 0 | IM7: =Timing!IM7 -> 0 | IN7: =Timing!IN7 -> 0 | IO7: =Timing!IO7 -> 0 | IP7: =Timing!IP7 -> 0 | IQ7: =Timing!IQ7 -> 0 | IR7: =Timing!IR7 -> 0 | IS7: =Timing!IS7 -> 0 | IT7: =Timing!IT7 -> 0 | IU7: =Timing!IU7 -> 0
C8: Construction Flag | D8: [1,0] | J8: =Timing!J8 -> 0 | K8: =Timing!K8 -> 0 | L8: =Timing!L8 -> 0 | M8: =Timing!M8 -> 0 | N8: =Timing!N8 -> 0 | O8: =Timing!O8 -> 0 | P8: =Timing!P8 -> 0 | Q8: =Timing!Q8 -> 0 | R8: =Timing!R8 -> 1 | S8: =Timing!S8 -> 1 | T8: =Timing!T8 -> 1 | U8: =Timing!U8 -> 1 | V8: =Timing!V8 -> 1 | W8: =Timing!W8 -> 1 | X8: =Timing!X8 -> 0 | Y8: =Timing!Y8 -> 0 | Z8: =Timing!Z8 -> 0 | AA8: =Timing!AA8 -> 0 | AB8: =Timing!AB8 -> 0 | AC8: =Timing!AC8 -> 0 | AD8: =Timing!AD8 -> 0 | AE8: =Timing!AE8 -> 0 | AF8: =Timing!AF8 -> 0 | AG8: =Timing!AG8 -> 0 | AH8: =Timing!AH8 -> 0 | AI8: =Timing!AI8 -> 0 | AJ8: =Timing!AJ8 -> 0 | AK8: =Timing!AK8 -> 0 | AL8: =Timing!AL8 -> 0 | AM8: =Timing!AM8 -> 0 | AN8: =Timing!AN8 -> 0 | AO8: =Timing!AO8 -> 0 | AP8: =Timing!AP8 -> 0 | AQ8: =Timing!AQ8 -> 0 | AR8: =Timing!AR8 -> 0 | AS8: =Timing!AS8 -> 0 | AT8: =Timing!AT8 -> 0 | AU8: =Timing!AU8 -> 0 | AV8: =Timing!AV8 -> 0 | AW8: =Timing!AW8 -> 0 | AX8: =Timing!AX8 -> 0 | AY8: =Timing!AY8 -> 0 | AZ8: =Timing!AZ8 -> 0 | BA8: =Timing!BA8 -> 0 | BB8: =Timing!BB8 -> 0 | BC8: =Timing!BC8 -> 0 | BD8: =Timing!BD8 -> 0 | BE8: =Timing!BE8 -> 0 | BF8: =Timing!BF8 -> 0 | BG8: =Timing!BG8 -> 0 | BH8: =Timing!BH8 -> 0 | BI8: =Timing!BI8 -> 0 | BJ8: =Timing!BJ8 -> 0 | BK8: =Timing!BK8 -> 0 | BL8: =Timing!BL8 -> 0 | BM8: =Timing!BM8 -> 0 | BN8: =Timing!BN8 -> 0 | BO8: =Timing!BO8 -> 0 | BP8: =Timing!BP8 -> 0 | BQ8: =Timing!BQ8 -> 0 | BR8: =Timing!BR8 -> 0 | BS8: =Timing!BS8 -> 0 | BT8: =Timing!BT8 -> 0 | BU8: =Timing!BU8 -> 0 | BV8: =Timing!BV8 -> 0 | BW8: =Timing!BW8 -> 0 | BX8: =Timing!BX8 -> 0 | BY8: =Timing!BY8 -> 0 | BZ8: =Timing!BZ8 -> 0 | CA8: =Timing!CA8 -> 0 | CB8: =Timing!CB8 -> 0 | CC8: =Timing!CC8 -> 0 | CD8: =Timing!CD8 -> 0 | CE8: =Timing!CE8 -> 0 | CF8: =Timing!CF8 -> 0 | CG8: =Timing!CG8 -> 0 | CH8: =Timing!CH8 -> 0 | CI8: =Timing!CI8 -> 0 | CJ8: =Timing!CJ8 -> 0 | CK8: =Timing!CK8 -> 0 | CL8: =Timing!CL8 -> 0 | CM8: =Timing!CM8 -> 0 | CN8: =Timing!CN8 -> 0 | CO8: =Timing!CO8 -> 0 | CP8: =Timing!CP8 -> 0 | CQ8: =Timing!CQ8 -> 0 | CR8: =Timing!CR8 -> 0 | CS8: =Timing!CS8 -> 0 | CT8: =Timing!CT8 -> 0 | CU8: =Timing!CU8 -> 0 | CV8: =Timing!CV8 -> 0 | CW8: =Timing!CW8 -> 0 | CX8: =Timing!CX8 -> 0 | CY8: =Timing!CY8 -> 0 | CZ8: =Timing!CZ8 -> 0 | DA8: =Timing!DA8 -> 0 | DB8: =Timing!DB8 -> 0 | DC8: =Timing!DC8 -> 0 | DD8: =Timing!DD8 -> 0 | DE8: =Timing!DE8 -> 0 | DF8: =Timing!DF8 -> 0 | DG8: =Timing!DG8 -> 0 | DH8: =Timing!DH8 -> 0 | DI8: =Timing!DI8 -> 0 | DJ8: =Timing!DJ8 -> 0 | DK8: =Timing!DK8 -> 0 | DL8: =Timing!DL8 -> 0 | DM8: =Timing!DM8 -> 0 | DN8: =Timing!DN8 -> 0 | DO8: =Timing!DO8 -> 0 | DP8: =Timing!DP8 -> 0 | DQ8: =Timing!DQ8 -> 0 | DR8: =Timing!DR8 -> 0 | DS8: =Timing!DS8 -> 0 | DT8: =Timing!DT8 -> 0 | DU8: =Timing!DU8 -> 0 | DV8: =Timing!DV8 -> 0 | DW8: =Timing!DW8 -> 0 | DX8: =Timing!DX8 -> 0 | DY8: =Timing!DY8 -> 0 | DZ8: =Timing!DZ8 -> 0 | EA8: =Timing!EA8 -> 0 | EB8: =Timing!EB8 -> 0 | EC8: =Timing!EC8 -> 0 | ED8: =Timing!ED8 -> 0 | EE8: =Timing!EE8 -> 0 | EF8: =Timing!EF8 -> 0 | EG8: =Timing!EG8 -> 0 | EH8: =Timing!EH8 -> 0 | EI8: =Timing!EI8 -> 0 | EJ8: =Timing!EJ8 -> 0 | EK8: =Timing!EK8 -> 0 | EL8: =Timing!EL8 -> 0 | EM8: =Timing!EM8 -> 0 | EN8: =Timing!EN8 -> 0 | EO8: =Timing!EO8 -> 0 | EP8: =Timing!EP8 -> 0 | EQ8: =Timing!EQ8 -> 0 | ER8: =Timing!ER8 -> 0 | ES8: =Timing!ES8 -> 0 | ET8: =Timing!ET8 -> 0 | EU8: =Timing!EU8 -> 0 | EV8: =Timing!EV8 -> 0 | EW8: =Timing!EW8 -> 0 | EX8: =Timing!EX8 -> 0 | EY8: =Timing!EY8 -> 0 | EZ8: =Timing!EZ8 -> 0 | FA8: =Timing!FA8 -> 0 | FB8: =Timing!FB8 -> 0 | FC8: =Timing!FC8 -> 0 | FD8: =Timing!FD8 -> 0 | FE8: =Timing!FE8 -> 0 | FF8: =Timing!FF8 -> 0 | FG8: =Timing!FG8 -> 0 | FH8: =Timing!FH8 -> 0 | FI8: =Timing!FI8 -> 0 | FJ8: =Timing!FJ8 -> 0 | FK8: =Timing!FK8 -> 0 | FL8: =Timing!FL8 -> 0 | FM8: =Timing!FM8 -> 0 | FN8: =Timing!FN8 -> 0 | FO8: =Timing!FO8 -> 0 | FP8: =Timing!FP8 -> 0 | FQ8: =Timing!FQ8 -> 0 | FR8: =Timing!FR8 -> 0 | FS8: =Timing!FS8 -> 0 | FT8: =Timing!FT8 -> 0 | FU8: =Timing!FU8 -> 0 | FV8: =Timing!FV8 -> 0 | FW8: =Timing!FW8 -> 0 | FX8: =Timing!FX8 -> 0 | FY8: =Timing!FY8 -> 0 | FZ8: =Timing!FZ8 -> 0 | GA8: =Timing!GA8 -> 0 | GB8: =Timing!GB8 -> 0 | GC8: =Timing!GC8 -> 0 | GD8: =Timing!GD8 -> 0 | GE8: =Timing!GE8 -> 0 | GF8: =Timing!GF8 -> 0 | GG8: =Timing!GG8 -> 0 | GH8: =Timing!GH8 -> 0 | GI8: =Timing!GI8 -> 0 | GJ8: =Timing!GJ8 -> 0 | GK8: =Timing!GK8 -> 0 | GL8: =Timing!GL8 -> 0 | GM8: =Timing!GM8 -> 0 | GN8: =Timing!GN8 -> 0 | GO8: =Timing!GO8 -> 0 | GP8: =Timing!GP8 -> 0 | GQ8: =Timing!GQ8 -> 0 | GR8: =Timing!GR8 -> 0 | GS8: =Timing!GS8 -> 0 | GT8: =Timing!GT8 -> 0 | GU8: =Timing!GU8 -> 0 | GV8: =Timing!GV8 -> 0 | GW8: =Timing!GW8 -> 0 | GX8: =Timing!GX8 -> 0 | GY8: =Timing!GY8 -> 0 | GZ8: =Timing!GZ8 -> 0 | HA8: =Timing!HA8 -> 0 | HB8: =Timing!HB8 -> 0 | HC8: =Timing!HC8 -> 0 | HD8: =Timing!HD8 -> 0 | HE8: =Timing!HE8 -> 0 | HF8: =Timing!HF8 -> 0 | HG8: =Timing!HG8 -> 0 | HH8: =Timing!HH8 -> 0 | HI8: =Timing!HI8 -> 0 | HJ8: =Timing!HJ8 -> 0 | HK8: =Timing!HK8 -> 0 | HL8: =Timing!HL8 -> 0 | HM8: =Timing!HM8 -> 0 | HN8: =Timing!HN8 -> 0 | HO8: =Timing!HO8 -> 0 | HP8: =Timing!HP8 -> 0 | HQ8: =Timing!HQ8 -> 0 | HR8: =Timing!HR8 -> 0 | HS8: =Timing!HS8 -> 0 | HT8: =Timing!HT8 -> 0 | HU8: =Timing!HU8 -> 0 | HV8: =Timing!HV8 -> 0 | HW8: =Timing!HW8 -> 0 | HX8: =Timing!HX8 -> 0 | HY8: =Timing!HY8 -> 0 | HZ8: =Timing!HZ8 -> 0 | IA8: =Timing!IA8 -> 0 | IB8: =Timing!IB8 -> 0 | IC8: =Timing!IC8 -> 0 | ID8: =Timing!ID8 -> 0 | IE8: =Timing!IE8 -> 0 | IF8: =Timing!IF8 -> 0 | IG8: =Timing!IG8 -> 0 | IH8: =Timing!IH8 -> 0 | II8: =Timing!II8 -> 0 | IJ8: =Timing!IJ8 -> 0 | IK8: =Timing!IK8 -> 0 | IL8: =Timing!IL8 -> 0 | IM8: =Timing!IM8 -> 0 | IN8: =Timing!IN8 -> 0 | IO8: =Timing!IO8 -> 0 | IP8: =Timing!IP8 -> 0 | IQ8: =Timing!IQ8 -> 0 | IR8: =Timing!IR8 -> 0 | IS8: =Timing!IS8 -> 0 | IT8: =Timing!IT8 -> 0 | IU8: =Timing!IU8 -> 0
C9: Operations Flag | D9: [1,0] | J9: =Timing!J9 -> 0 | K9: =Timing!K9 -> 0 | L9: =Timing!L9 -> 0 | M9: =Timing!M9 -> 0 | N9: =Timing!N9 -> 0 | O9: =Timing!O9 -> 0 | P9: =Timing!P9 -> 0 | Q9: =Timing!Q9 -> 0 | R9: =Timing!R9 -> 0 | S9: =Timing!S9 -> 0 | T9: =Timing!T9 -> 0 | U9: =Timing!U9 -> 0 | V9: =Timing!V9 -> 0 | W9: =Timing!W9 -> 0 | X9: =Timing!X9 -> 1 | Y9: =Timing!Y9 -> 1 | Z9: =Timing!Z9 -> 1 | AA9: =Timing!AA9 -> 1 | AB9: =Timing!AB9 -> 1 | AC9: =Timing!AC9 -> 1 | AD9: =Timing!AD9 -> 1 | AE9: =Timing!AE9 -> 1 | AF9: =Timing!AF9 -> 1 | AG9: =Timing!AG9 -> 1 | AH9: =Timing!AH9 -> 1 | AI9: =Timing!AI9 -> 1 | AJ9: =Timing!AJ9 -> 1 | AK9: =Timing!AK9 -> 1 | AL9: =Timing!AL9 -> 1 | AM9: =Timing!AM9 -> 1 | AN9: =Timing!AN9 -> 1 | AO9: =Timing!AO9 -> 1 | AP9: =Timing!AP9 -> 1 | AQ9: =Timing!AQ9 -> 1 | AR9: =Timing!AR9 -> 1 | AS9: =Timing!AS9 -> 1 | AT9: =Timing!AT9 -> 1 | AU9: =Timing!AU9 -> 1 | AV9: =Timing!AV9 -> 1 | AW9: =Timing!AW9 -> 1 | AX9: =Timing!AX9 -> 1 | AY9: =Timing!AY9 -> 1 | AZ9: =Timing!AZ9 -> 1 | BA9: =Timing!BA9 -> 1 | BB9: =Timing!BB9 -> 1 | BC9: =Timing!BC9 -> 1 | BD9: =Timing!BD9 -> 1 | BE9: =Timing!BE9 -> 1 | BF9: =Timing!BF9 -> 1 | BG9: =Timing!BG9 -> 1 | BH9: =Timing!BH9 -> 1 | BI9: =Timing!BI9 -> 1 | BJ9: =Timing!BJ9 -> 1 | BK9: =Timing!BK9 -> 1 | BL9: =Timing!BL9 -> 1 | BM9: =Timing!BM9 -> 1 | BN9: =Timing!BN9 -> 1 | BO9: =Timing!BO9 -> 1 | BP9: =Timing!BP9 -> 1 | BQ9: =Timing!BQ9 -> 1 | BR9: =Timing!BR9 -> 1 | BS9: =Timing!BS9 -> 1 | BT9: =Timing!BT9 -> 1 | BU9: =Timing!BU9 -> 1 | BV9: =Timing!BV9 -> 1 | BW9: =Timing!BW9 -> 1 | BX9: =Timing!BX9 -> 1 | BY9: =Timing!BY9 -> 1 | BZ9: =Timing!BZ9 -> 1 | CA9: =Timing!CA9 -> 1 | CB9: =Timing!CB9 -> 1 | CC9: =Timing!CC9 -> 1 | CD9: =Timing!CD9 -> 1 | CE9: =Timing!CE9 -> 1 | CF9: =Timing!CF9 -> 1 | CG9: =Timing!CG9 -> 1 | CH9: =Timing!CH9 -> 1 | CI9: =Timing!CI9 -> 1 | CJ9: =Timing!CJ9 -> 1 | CK9: =Timing!CK9 -> 1 | CL9: =Timing!CL9 -> 1 | CM9: =Timing!CM9 -> 1 | CN9: =Timing!CN9 -> 1 | CO9: =Timing!CO9 -> 1 | CP9: =Timing!CP9 -> 1 | CQ9: =Timing!CQ9 -> 1 | CR9: =Timing!CR9 -> 1 | CS9: =Timing!CS9 -> 1 | CT9: =Timing!CT9 -> 1 | CU9: =Timing!CU9 -> 1 | CV9: =Timing!CV9 -> 1 | CW9: =Timing!CW9 -> 1 | CX9: =Timing!CX9 -> 1 | CY9: =Timing!CY9 -> 1 | CZ9: =Timing!CZ9 -> 1 | DA9: =Timing!DA9 -> 1 | DB9: =Timing!DB9 -> 1 | DC9: =Timing!DC9 -> 1 | DD9: =Timing!DD9 -> 1 | DE9: =Timing!DE9 -> 1 | DF9: =Timing!DF9 -> 1 | DG9: =Timing!DG9 -> 1 | DH9: =Timing!DH9 -> 1 | DI9: =Timing!DI9 -> 1 | DJ9: =Timing!DJ9 -> 1 | DK9: =Timing!DK9 -> 1 | DL9: =Timing!DL9 -> 1 | DM9: =Timing!DM9 -> 1 | DN9: =Timing!DN9 -> 1 | DO9: =Timing!DO9 -> 1 | DP9: =Timing!DP9 -> 1 | DQ9: =Timing!DQ9 -> 1 | DR9: =Timing!DR9 -> 1 | DS9: =Timing!DS9 -> 1 | DT9: =Timing!DT9 -> 1 | DU9: =Timing!DU9 -> 1 | DV9: =Timing!DV9 -> 1 | DW9: =Timing!DW9 -> 1 | DX9: =Timing!DX9 -> 1 | DY9: =Timing!DY9 -> 1 | DZ9: =Timing!DZ9 -> 1 | EA9: =Timing!EA9 -> 1 | EB9: =Timing!EB9 -> 1 | EC9: =Timing!EC9 -> 1 | ED9: =Timing!ED9 -> 1 | EE9: =Timing!EE9 -> 1 | EF9: =Timing!EF9 -> 1 | EG9: =Timing!EG9 -> 1 | EH9: =Timing!EH9 -> 1 | EI9: =Timing!EI9 -> 1 | EJ9: =Timing!EJ9 -> 1 | EK9: =Timing!EK9 -> 1 | EL9: =Timing!EL9 -> 1 | EM9: =Timing!EM9 -> 1 | EN9: =Timing!EN9 -> 1 | EO9: =Timing!EO9 -> 1 | EP9: =Timing!EP9 -> 1 | EQ9: =Timing!EQ9 -> 1 | ER9: =Timing!ER9 -> 1 | ES9: =Timing!ES9 -> 1 | ET9: =Timing!ET9 -> 1 | EU9: =Timing!EU9 -> 1 | EV9: =Timing!EV9 -> 1 | EW9: =Timing!EW9 -> 1 | EX9: =Timing!EX9 -> 1 | EY9: =Timing!EY9 -> 1 | EZ9: =Timing!EZ9 -> 1 | FA9: =Timing!FA9 -> 1 | FB9: =Timing!FB9 -> 1 | FC9: =Timing!FC9 -> 1 | FD9: =Timing!FD9 -> 1 | FE9: =Timing!FE9 -> 1 | FF9: =Timing!FF9 -> 1 | FG9: =Timing!FG9 -> 1 | FH9: =Timing!FH9 -> 1 | FI9: =Timing!FI9 -> 1 | FJ9: =Timing!FJ9 -> 1 | FK9: =Timing!FK9 -> 1 | FL9: =Timing!FL9 -> 1 | FM9: =Timing!FM9 -> 1 | FN9: =Timing!FN9 -> 1 | FO9: =Timing!FO9 -> 1 | FP9: =Timing!FP9 -> 1 | FQ9: =Timing!FQ9 -> 1 | FR9: =Timing!FR9 -> 1 | FS9: =Timing!FS9 -> 1 | FT9: =Timing!FT9 -> 1 | FU9: =Timing!FU9 -> 1 | FV9: =Timing!FV9 -> 1 | FW9: =Timing!FW9 -> 1 | FX9: =Timing!FX9 -> 1 | FY9: =Timing!FY9 -> 1 | FZ9: =Timing!FZ9 -> 1 | GA9: =Timing!GA9 -> 1 | GB9: =Timing!GB9 -> 1 | GC9: =Timing!GC9 -> 1 | GD9: =Timing!GD9 -> 1 | GE9: =Timing!GE9 -> 1 | GF9: =Timing!GF9 -> 1 | GG9: =Timing!GG9 -> 1 | GH9: =Timing!GH9 -> 1 | GI9: =Timing!GI9 -> 1 | GJ9: =Timing!GJ9 -> 1 | GK9: =Timing!GK9 -> 1 | GL9: =Timing!GL9 -> 1 | GM9: =Timing!GM9 -> 1 | GN9: =Timing!GN9 -> 1 | GO9: =Timing!GO9 -> 1 | GP9: =Timing!GP9 -> 1 | GQ9: =Timing!GQ9 -> 1 | GR9: =Timing!GR9 -> 1 | GS9: =Timing!GS9 -> 1 | GT9: =Timing!GT9 -> 1 | GU9: =Timing!GU9 -> 1 | GV9: =Timing!GV9 -> 1 | GW9: =Timing!GW9 -> 1 | GX9: =Timing!GX9 -> 1 | GY9: =Timing!GY9 -> 1 | GZ9: =Timing!GZ9 -> 1 | HA9: =Timing!HA9 -> 1 | HB9: =Timing!HB9 -> 1 | HC9: =Timing!HC9 -> 1 | HD9: =Timing!HD9 -> 1 | HE9: =Timing!HE9 -> 1 | HF9: =Timing!HF9 -> 1 | HG9: =Timing!HG9 -> 1 | HH9: =Timing!HH9 -> 1 | HI9: =Timing!HI9 -> 1 | HJ9: =Timing!HJ9 -> 1 | HK9: =Timing!HK9 -> 1 | HL9: =Timing!HL9 -> 1 | HM9: =Timing!HM9 -> 1 | HN9: =Timing!HN9 -> 1 | HO9: =Timing!HO9 -> 1 | HP9: =Timing!HP9 -> 0 | HQ9: =Timing!HQ9 -> 0 | HR9: =Timing!HR9 -> 0 | HS9: =Timing!HS9 -> 0 | HT9: =Timing!HT9 -> 0 | HU9: =Timing!HU9 -> 0 | HV9: =Timing!HV9 -> 0 | HW9: =Timing!HW9 -> 0 | HX9: =Timing!HX9 -> 0 | HY9: =Timing!HY9 -> 0 | HZ9: =Timing!HZ9 -> 0 | IA9: =Timing!IA9 -> 0 | IB9: =Timing!IB9 -> 0 | IC9: =Timing!IC9 -> 0 | ID9: =Timing!ID9 -> 0 | IE9: =Timing!IE9 -> 0 | IF9: =Timing!IF9 -> 0 | IG9: =Timing!IG9 -> 0 | IH9: =Timing!IH9 -> 0 | II9: =Timing!II9 -> 0 | IJ9: =Timing!IJ9 -> 0 | IK9: =Timing!IK9 -> 0 | IL9: =Timing!IL9 -> 0 | IM9: =Timing!IM9 -> 0 | IN9: =Timing!IN9 -> 0 | IO9: =Timing!IO9 -> 0 | IP9: =Timing!IP9 -> 0 | IQ9: =Timing!IQ9 -> 0 | IR9: =Timing!IR9 -> 0 | IS9: =Timing!IS9 -> 0 | IT9: =Timing!IT9 -> 0 | IU9: =Timing!IU9 -> 0
B11: Counters and Flags
C12: Day(s) in Period | D12: #num | J12: =Timing!J12 -> 92 | K12: =Timing!K12 -> 92 | L12: =Timing!L12 -> 91 | M12: =Timing!M12 -> 91 | N12: =Timing!N12 -> 92 | O12: =Timing!O12 -> 92 | P12: =Timing!P12 -> 90 | Q12: =Timing!Q12 -> 91 | R12: =Timing!R12 -> 92 | S12: =Timing!S12 -> 92 | T12: =Timing!T12 -> 90 | U12: =Timing!U12 -> 91 | V12: =Timing!V12 -> 92 | W12: =Timing!W12 -> 92 | X12: =Timing!X12 -> 90 | Y12: =Timing!Y12 -> 91 | Z12: =Timing!Z12 -> 92 | AA12: =Timing!AA12 -> 92 | AB12: =Timing!AB12 -> 91 | AC12: =Timing!AC12 -> 91 | AD12: =Timing!AD12 -> 92 | AE12: =Timing!AE12 -> 92 | AF12: =Timing!AF12 -> 90 | AG12: =Timing!AG12 -> 91 | AH12: =Timing!AH12 -> 92 | AI12: =Timing!AI12 -> 92 | AJ12: =Timing!AJ12 -> 90 | AK12: =Timing!AK12 -> 91 | AL12: =Timing!AL12 -> 92 | AM12: =Timing!AM12 -> 92 | AN12: =Timing!AN12 -> 90 | AO12: =Timing!AO12 -> 91 | AP12: =Timing!AP12 -> 92 | AQ12: =Timing!AQ12 -> 92 | AR12: =Timing!AR12 -> 91 | AS12: =Timing!AS12 -> 91 | AT12: =Timing!AT12 -> 92 | AU12: =Timing!AU12 -> 92 | AV12: =Timing!AV12 -> 90 | AW12: =Timing!AW12 -> 91 | AX12: =Timing!AX12 -> 92 | AY12: =Timing!AY12 -> 92 | AZ12: =Timing!AZ12 -> 90 | BA12: =Timing!BA12 -> 91 | BB12: =Timing!BB12 -> 92 | BC12: =Timing!BC12 -> 92 | BD12: =Timing!BD12 -> 90 | BE12: =Timing!BE12 -> 91 | BF12: =Timing!BF12 -> 92 | BG12: =Timing!BG12 -> 92 | BH12: =Timing!BH12 -> 91 | BI12: =Timing!BI12 -> 91 | BJ12: =Timing!BJ12 -> 92 | BK12: =Timing!BK12 -> 92 | BL12: =Timing!BL12 -> 90 | BM12: =Timing!BM12 -> 91 | BN12: =Timing!BN12 -> 92 | BO12: =Timing!BO12 -> 92 | BP12: =Timing!BP12 -> 90 | BQ12: =Timing!BQ12 -> 91 | BR12: =Timing!BR12 -> 92 | BS12: =Timing!BS12 -> 92 | BT12: =Timing!BT12 -> 90 | BU12: =Timing!BU12 -> 91 | BV12: =Timing!BV12 -> 92 | BW12: =Timing!BW12 -> 92 | BX12: =Timing!BX12 -> 91 | BY12: =Timing!BY12 -> 91 | BZ12: =Timing!BZ12 -> 92 | CA12: =Timing!CA12 -> 92 | CB12: =Timing!CB12 -> 90 | CC12: =Timing!CC12 -> 91 | CD12: =Timing!CD12 -> 92 | CE12: =Timing!CE12 -> 92 | CF12: =Timing!CF12 -> 90 | CG12: =Timing!CG12 -> 91 | CH12: =Timing!CH12 -> 92 | CI12: =Timing!CI12 -> 92 | CJ12: =Timing!CJ12 -> 90 | CK12: =Timing!CK12 -> 91 | CL12: =Timing!CL12 -> 92 | CM12: =Timing!CM12 -> 92 | CN12: =Timing!CN12 -> 91 | CO12: =Timing!CO12 -> 91 | CP12: =Timing!CP12 -> 92 | CQ12: =Timing!CQ12 -> 92 | CR12: =Timing!CR12 -> 90 | CS12: =Timing!CS12 -> 91 | CT12: =Timing!CT12 -> 92 | CU12: =Timing!CU12 -> 92 | CV12: =Timing!CV12 -> 90 | CW12: =Timing!CW12 -> 91 | CX12: =Timing!CX12 -> 92 | CY12: =Timing!CY12 -> 92 | CZ12: =Timing!CZ12 -> 90 | DA12: =Timing!DA12 -> 91 | DB12: =Timing!DB12 -> 92 | DC12: =Timing!DC12 -> 92 | DD12: =Timing!DD12 -> 91 | DE12: =Timing!DE12 -> 91 | DF12: =Timing!DF12 -> 92 | DG12: =Timing!DG12 -> 92 | DH12: =Timing!DH12 -> 90 | DI12: =Timing!DI12 -> 91 | DJ12: =Timing!DJ12 -> 92 | DK12: =Timing!DK12 -> 92 | DL12: =Timing!DL12 -> 90 | DM12: =Timing!DM12 -> 91 | DN12: =Timing!DN12 -> 92 | DO12: =Timing!DO12 -> 92 | DP12: =Timing!DP12 -> 90 | DQ12: =Timing!DQ12 -> 91 | DR12: =Timing!DR12 -> 92 | DS12: =Timing!DS12 -> 92 | DT12: =Timing!DT12 -> 91 | DU12: =Timing!DU12 -> 91 | DV12: =Timing!DV12 -> 92 | DW12: =Timing!DW12 -> 92 | DX12: =Timing!DX12 -> 90 | DY12: =Timing!DY12 -> 91 | DZ12: =Timing!DZ12 -> 92 | EA12: =Timing!EA12 -> 92 | EB12: =Timing!EB12 -> 90 | EC12: =Timing!EC12 -> 91 | ED12: =Timing!ED12 -> 92 | EE12: =Timing!EE12 -> 92 | EF12: =Timing!EF12 -> 90 | EG12: =Timing!EG12 -> 91 | EH12: =Timing!EH12 -> 92 | EI12: =Timing!EI12 -> 92 | EJ12: =Timing!EJ12 -> 91 | EK12: =Timing!EK12 -> 91 | EL12: =Timing!EL12 -> 92 | EM12: =Timing!EM12 -> 92 | EN12: =Timing!EN12 -> 90 | EO12: =Timing!EO12 -> 91 | EP12: =Timing!EP12 -> 92 | EQ12: =Timing!EQ12 -> 92 | ER12: =Timing!ER12 -> 90 | ES12: =Timing!ES12 -> 91 | ET12: =Timing!ET12 -> 92 | EU12: =Timing!EU12 -> 92 | EV12: =Timing!EV12 -> 90 | EW12: =Timing!EW12 -> 91 | EX12: =Timing!EX12 -> 92 | EY12: =Timing!EY12 -> 92 | EZ12: =Timing!EZ12 -> 91 | FA12: =Timing!FA12 -> 91 | FB12: =Timing!FB12 -> 92 | FC12: =Timing!FC12 -> 92 | FD12: =Timing!FD12 -> 90 | FE12: =Timing!FE12 -> 91 | FF12: =Timing!FF12 -> 92 | FG12: =Timing!FG12 -> 92 | FH12: =Timing!FH12 -> 90 | FI12: =Timing!FI12 -> 91 | FJ12: =Timing!FJ12 -> 92 | FK12: =Timing!FK12 -> 92 | FL12: =Timing!FL12 -> 90 | FM12: =Timing!FM12 -> 91 | FN12: =Timing!FN12 -> 92 | FO12: =Timing!FO12 -> 92 | FP12: =Timing!FP12 -> 91 | FQ12: =Timing!FQ12 -> 91 | FR12: =Timing!FR12 -> 92 | FS12: =Timing!FS12 -> 92 | FT12: =Timing!FT12 -> 90 | FU12: =Timing!FU12 -> 91 | FV12: =Timing!FV12 -> 92 | FW12: =Timing!FW12 -> 92 | FX12: =Timing!FX12 -> 90 | FY12: =Timing!FY12 -> 91 | FZ12: =Timing!FZ12 -> 92 | GA12: =Timing!GA12 -> 92 | GB12: =Timing!GB12 -> 90 | GC12: =Timing!GC12 -> 91 | GD12: =Timing!GD12 -> 92 | GE12: =Timing!GE12 -> 92 | GF12: =Timing!GF12 -> 91 | GG12: =Timing!GG12 -> 91 | GH12: =Timing!GH12 -> 92 | GI12: =Timing!GI12 -> 92 | GJ12: =Timing!GJ12 -> 90 | GK12: =Timing!GK12 -> 91 | GL12: =Timing!GL12 -> 92 | GM12: =Timing!GM12 -> 92 | GN12: =Timing!GN12 -> 90 | GO12: =Timing!GO12 -> 91 | GP12: =Timing!GP12 -> 92 | GQ12: =Timing!GQ12 -> 92 | GR12: =Timing!GR12 -> 90 | GS12: =Timing!GS12 -> 91 | GT12: =Timing!GT12 -> 92 | GU12: =Timing!GU12 -> 92 | GV12: =Timing!GV12 -> 91 | GW12: =Timing!GW12 -> 91 | GX12: =Timing!GX12 -> 92 | GY12: =Timing!GY12 -> 92 | GZ12: =Timing!GZ12 -> 90 | HA12: =Timing!HA12 -> 91 | HB12: =Timing!HB12 -> 92 | HC12: =Timing!HC12 -> 92 | HD12: =Timing!HD12 -> 90 | HE12: =Timing!HE12 -> 91 | HF12: =Timing!HF12 -> 92 | HG12: =Timing!HG12 -> 92 | HH12: =Timing!HH12 -> 90 | HI12: =Timing!HI12 -> 91 | HJ12: =Timing!HJ12 -> 92 | HK12: =Timing!HK12 -> 92 | HL12: =Timing!HL12 -> 91 | HM12: =Timing!HM12 -> 91 | HN12: =Timing!HN12 -> 92 | HO12: =Timing!HO12 -> 92 | HP12: =Timing!HP12 -> 90 | HQ12: =Timing!HQ12 -> 91 | HR12: =Timing!HR12 -> 92 | HS12: =Timing!HS12 -> 92 | HT12: =Timing!HT12 -> 90 | HU12: =Timing!HU12 -> 91 | HV12: =Timing!HV12 -> 92 | HW12: =Timing!HW12 -> 92 | HX12: =Timing!HX12 -> 90 | HY12: =Timing!HY12 -> 91 | HZ12: =Timing!HZ12 -> 92 | IA12: =Timing!IA12 -> 92 | IB12: =Timing!IB12 -> 91 | IC12: =Timing!IC12 -> 91 | ID12: =Timing!ID12 -> 92 | IE12: =Timing!IE12 -> 92 | IF12: =Timing!IF12 -> 90 | IG12: =Timing!IG12 -> 91 | IH12: =Timing!IH12 -> 92 | II12: =Timing!II12 -> 92 | IJ12: =Timing!IJ12 -> 90 | IK12: =Timing!IK12 -> 91 | IL12: =Timing!IL12 -> 92 | IM12: =Timing!IM12 -> 92 | IN12: =Timing!IN12 -> 90 | IO12: =Timing!IO12 -> 91 | IP12: =Timing!IP12 -> 92 | IQ12: =Timing!IQ12 -> 92 | IR12: =Timing!IR12 -> 91 | IS12: =Timing!IS12 -> 91 | IT12: =Timing!IT12 -> 92 | IU12: =Timing!IU12 -> 92
C13: Week(s) in Period | D13: #num | J13: =Timing!J13 -> 13.14285714 | K13: =Timing!K13 -> 13.14285714 | L13: =Timing!L13 -> 13 | M13: =Timing!M13 -> 13 | N13: =Timing!N13 -> 13.14285714 | O13: =Timing!O13 -> 13.14285714 | P13: =Timing!P13 -> 12.85714286 | Q13: =Timing!Q13 -> 13 | R13: =Timing!R13 -> 13.14285714 | S13: =Timing!S13 -> 13.14285714 | T13: =Timing!T13 -> 12.85714286 | U13: =Timing!U13 -> 13 | V13: =Timing!V13 -> 13.14285714 | W13: =Timing!W13 -> 13.14285714 | X13: =Timing!X13 -> 12.85714286 | Y13: =Timing!Y13 -> 13 | Z13: =Timing!Z13 -> 13.14285714 | AA13: =Timing!AA13 -> 13.14285714 | AB13: =Timing!AB13 -> 13 | AC13: =Timing!AC13 -> 13 | AD13: =Timing!AD13 -> 13.14285714 | AE13: =Timing!AE13 -> 13.14285714 | AF13: =Timing!AF13 -> 12.85714286 | AG13: =Timing!AG13 -> 13 | AH13: =Timing!AH13 -> 13.14285714 | AI13: =Timing!AI13 -> 13.14285714 | AJ13: =Timing!AJ13 -> 12.85714286 | AK13: =Timing!AK13 -> 13 | AL13: =Timing!AL13 -> 13.14285714 | AM13: =Timing!AM13 -> 13.14285714 | AN13: =Timing!AN13 -> 12.85714286 | AO13: =Timing!AO13 -> 13 | AP13: =Timing!AP13 -> 13.14285714 | AQ13: =Timing!AQ13 -> 13.14285714 | AR13: =Timing!AR13 -> 13 | AS13: =Timing!AS13 -> 13 | AT13: =Timing!AT13 -> 13.14285714 | AU13: =Timing!AU13 -> 13.14285714 | AV13: =Timing!AV13 -> 12.85714286 | AW13: =Timing!AW13 -> 13 | AX13: =Timing!AX13 -> 13.14285714 | AY13: =Timing!AY13 -> 13.14285714 | AZ13: =Timing!AZ13 -> 12.85714286 | BA13: =Timing!BA13 -> 13 | BB13: =Timing!BB13 -> 13.14285714 | BC13: =Timing!BC13 -> 13.14285714 | BD13: =Timing!BD13 -> 12.85714286 | BE13: =Timing!BE13 -> 13 | BF13: =Timing!BF13 -> 13.14285714 | BG13: =Timing!BG13 -> 13.14285714 | BH13: =Timing!BH13 -> 13 | BI13: =Timing!BI13 -> 13 | BJ13: =Timing!BJ13 -> 13.14285714 | BK13: =Timing!BK13 -> 13.14285714 | BL13: =Timing!BL13 -> 12.85714286 | BM13: =Timing!BM13 -> 13 | BN13: =Timing!BN13 -> 13.14285714 | BO13: =Timing!BO13 -> 13.14285714 | BP13: =Timing!BP13 -> 12.85714286 | BQ13: =Timing!BQ13 -> 13 | BR13: =Timing!BR13 -> 13.14285714 | BS13: =Timing!BS13 -> 13.14285714 | BT13: =Timing!BT13 -> 12.85714286 | BU13: =Timing!BU13 -> 13 | BV13: =Timing!BV13 -> 13.14285714 | BW13: =Timing!BW13 -> 13.14285714 | BX13: =Timing!BX13 -> 13 | BY13: =Timing!BY13 -> 13 | BZ13: =Timing!BZ13 -> 13.14285714 | CA13: =Timing!CA13 -> 13.14285714 | CB13: =Timing!CB13 -> 12.85714286 | CC13: =Timing!CC13 -> 13 | CD13: =Timing!CD13 -> 13.14285714 | CE13: =Timing!CE13 -> 13.14285714 | CF13: =Timing!CF13 -> 12.85714286 | CG13: =Timing!CG13 -> 13 | CH13: =Timing!CH13 -> 13.14285714 | CI13: =Timing!CI13 -> 13.14285714 | CJ13: =Timing!CJ13 -> 12.85714286 | CK13: =Timing!CK13 -> 13 | CL13: =Timing!CL13 -> 13.14285714 | CM13: =Timing!CM13 -> 13.14285714 | CN13: =Timing!CN13 -> 13 | CO13: =Timing!CO13 -> 13 | CP13: =Timing!CP13 -> 13.14285714 | CQ13: =Timing!CQ13 -> 13.14285714 | CR13: =Timing!CR13 -> 12.85714286 | CS13: =Timing!CS13 -> 13 | CT13: =Timing!CT13 -> 13.14285714 | CU13: =Timing!CU13 -> 13.14285714 | CV13: =Timing!CV13 -> 12.85714286 | CW13: =Timing!CW13 -> 13 | CX13: =Timing!CX13 -> 13.14285714 | CY13: =Timing!CY13 -> 13.14285714 | CZ13: =Timing!CZ13 -> 12.85714286 | DA13: =Timing!DA13 -> 13 | DB13: =Timing!DB13 -> 13.14285714 | DC13: =Timing!DC13 -> 13.14285714 | DD13: =Timing!DD13 -> 13 | DE13: =Timing!DE13 -> 13 | DF13: =Timing!DF13 -> 13.14285714 | DG13: =Timing!DG13 -> 13.14285714 | DH13: =Timing!DH13 -> 12.85714286 | DI13: =Timing!DI13 -> 13 | DJ13: =Timing!DJ13 -> 13.14285714 | DK13: =Timing!DK13 -> 13.14285714 | DL13: =Timing!DL13 -> 12.85714286 | DM13: =Timing!DM13 -> 13 | DN13: =Timing!DN13 -> 13.14285714 | DO13: =Timing!DO13 -> 13.14285714 | DP13: =Timing!DP13 -> 12.85714286 | DQ13: =Timing!DQ13 -> 13 | DR13: =Timing!DR13 -> 13.14285714 | DS13: =Timing!DS13 -> 13.14285714 | DT13: =Timing!DT13 -> 13 | DU13: =Timing!DU13 -> 13 | DV13: =Timing!DV13 -> 13.14285714 | DW13: =Timing!DW13 -> 13.14285714 | DX13: =Timing!DX13 -> 12.85714286 | DY13: =Timing!DY13 -> 13 | DZ13: =Timing!DZ13 -> 13.14285714 | EA13: =Timing!EA13 -> 13.14285714 | EB13: =Timing!EB13 -> 12.85714286 | EC13: =Timing!EC13 -> 13 | ED13: =Timing!ED13 -> 13.14285714 | EE13: =Timing!EE13 -> 13.14285714 | EF13: =Timing!EF13 -> 12.85714286 | EG13: =Timing!EG13 -> 13 | EH13: =Timing!EH13 -> 13.14285714 | EI13: =Timing!EI13 -> 13.14285714 | EJ13: =Timing!EJ13 -> 13 | EK13: =Timing!EK13 -> 13 | EL13: =Timing!EL13 -> 13.14285714 | EM13: =Timing!EM13 -> 13.14285714 | EN13: =Timing!EN13 -> 12.85714286 | EO13: =Timing!EO13 -> 13 | EP13: =Timing!EP13 -> 13.14285714 | EQ13: =Timing!EQ13 -> 13.14285714 | ER13: =Timing!ER13 -> 12.85714286 | ES13: =Timing!ES13 -> 13 | ET13: =Timing!ET13 -> 13.14285714 | EU13: =Timing!EU13 -> 13.14285714 | EV13: =Timing!EV13 -> 12.85714286 | EW13: =Timing!EW13 -> 13 | EX13: =Timing!EX13 -> 13.14285714 | EY13: =Timing!EY13 -> 13.14285714 | EZ13: =Timing!EZ13 -> 13 | FA13: =Timing!FA13 -> 13 | FB13: =Timing!FB13 -> 13.14285714 | FC13: =Timing!FC13 -> 13.14285714 | FD13: =Timing!FD13 -> 12.85714286 | FE13: =Timing!FE13 -> 13 | FF13: =Timing!FF13 -> 13.14285714 | FG13: =Timing!FG13 -> 13.14285714 | FH13: =Timing!FH13 -> 12.85714286 | FI13: =Timing!FI13 -> 13 | FJ13: =Timing!FJ13 -> 13.14285714 | FK13: =Timing!FK13 -> 13.14285714 | FL13: =Timing!FL13 -> 12.85714286 | FM13: =Timing!FM13 -> 13 | FN13: =Timing!FN13 -> 13.14285714 | FO13: =Timing!FO13 -> 13.14285714 | FP13: =Timing!FP13 -> 13 | FQ13: =Timing!FQ13 -> 13 | FR13: =Timing!FR13 -> 13.14285714 | FS13: =Timing!FS13 -> 13.14285714 | FT13: =Timing!FT13 -> 12.85714286 | FU13: =Timing!FU13 -> 13 | FV13: =Timing!FV13 -> 13.14285714 | FW13: =Timing!FW13 -> 13.14285714 | FX13: =Timing!FX13 -> 12.85714286 | FY13: =Timing!FY13 -> 13 | FZ13: =Timing!FZ13 -> 13.14285714 | GA13: =Timing!GA13 -> 13.14285714 | GB13: =Timing!GB13 -> 12.85714286 | GC13: =Timing!GC13 -> 13 | GD13: =Timing!GD13 -> 13.14285714 | GE13: =Timing!GE13 -> 13.14285714 | GF13: =Timing!GF13 -> 13 | GG13: =Timing!GG13 -> 13 | GH13: =Timing!GH13 -> 13.14285714 | GI13: =Timing!GI13 -> 13.14285714 | GJ13: =Timing!GJ13 -> 12.85714286 | GK13: =Timing!GK13 -> 13 | GL13: =Timing!GL13 -> 13.14285714 | GM13: =Timing!GM13 -> 13.14285714 | GN13: =Timing!GN13 -> 12.85714286 | GO13: =Timing!GO13 -> 13 | GP13: =Timing!GP13 -> 13.14285714 | GQ13: =Timing!GQ13 -> 13.14285714 | GR13: =Timing!GR13 -> 12.85714286 | GS13: =Timing!GS13 -> 13 | GT13: =Timing!GT13 -> 13.14285714 | GU13: =Timing!GU13 -> 13.14285714 | GV13: =Timing!GV13 -> 13 | GW13: =Timing!GW13 -> 13 | GX13: =Timing!GX13 -> 13.14285714 | GY13: =Timing!GY13 -> 13.14285714 | GZ13: =Timing!GZ13 -> 12.85714286 | HA13: =Timing!HA13 -> 13 | HB13: =Timing!HB13 -> 13.14285714 | HC13: =Timing!HC13 -> 13.14285714 | HD13: =Timing!HD13 -> 12.85714286 | HE13: =Timing!HE13 -> 13 | HF13: =Timing!HF13 -> 13.14285714 | HG13: =Timing!HG13 -> 13.14285714 | HH13: =Timing!HH13 -> 12.85714286 | HI13: =Timing!HI13 -> 13 | HJ13: =Timing!HJ13 -> 13.14285714 | HK13: =Timing!HK13 -> 13.14285714 | HL13: =Timing!HL13 -> 13 | HM13: =Timing!HM13 -> 13 | HN13: =Timing!HN13 -> 13.14285714 | HO13: =Timing!HO13 -> 13.14285714 | HP13: =Timing!HP13 -> 12.85714286 | HQ13: =Timing!HQ13 -> 13 | HR13: =Timing!HR13 -> 13.14285714 | HS13: =Timing!HS13 -> 13.14285714 | HT13: =Timing!HT13 -> 12.85714286 | HU13: =Timing!HU13 -> 13 | HV13: =Timing!HV13 -> 13.14285714 | HW13: =Timing!HW13 -> 13.14285714 | HX13: =Timing!HX13 -> 12.85714286 | HY13: =Timing!HY13 -> 13 | HZ13: =Timing!HZ13 -> 13.14285714 | IA13: =Timing!IA13 -> 13.14285714 | IB13: =Timing!IB13 -> 13 | IC13: =Timing!IC13 -> 13 | ID13: =Timing!ID13 -> 13.14285714 | IE13: =Timing!IE13 -> 13.14285714 | IF13: =Timing!IF13 -> 12.85714286 | IG13: =Timing!IG13 -> 13 | IH13: =Timing!IH13 -> 13.14285714 | II13: =Timing!II13 -> 13.14285714 | IJ13: =Timing!IJ13 -> 12.85714286 | IK13: =Timing!IK13 -> 13 | IL13: =Timing!IL13 -> 13.14285714 | IM13: =Timing!IM13 -> 13.14285714 | IN13: =Timing!IN13 -> 12.85714286 | IO13: =Timing!IO13 -> 13 | IP13: =Timing!IP13 -> 13.14285714 | IQ13: =Timing!IQ13 -> 13.14285714 | IR13: =Timing!IR13 -> 13 | IS13: =Timing!IS13 -> 13 | IT13: =Timing!IT13 -> 13.14285714 | IU13: =Timing!IU13 -> 13.14285714
C14: Calendar Month | D14: #num | J14: =Timing!J14 -> 9 | K14: =Timing!K14 -> 12 | L14: =Timing!L14 -> 3 | M14: =Timing!M14 -> 6 | N14: =Timing!N14 -> 9 | O14: =Timing!O14 -> 12 | P14: =Timing!P14 -> 3 | Q14: =Timing!Q14 -> 6 | R14: =Timing!R14 -> 9 | S14: =Timing!S14 -> 12 | T14: =Timing!T14 -> 3 | U14: =Timing!U14 -> 6 | V14: =Timing!V14 -> 9 | W14: =Timing!W14 -> 12 | X14: =Timing!X14 -> 3 | Y14: =Timing!Y14 -> 6 | Z14: =Timing!Z14 -> 9 | AA14: =Timing!AA14 -> 12 | AB14: =Timing!AB14 -> 3 | AC14: =Timing!AC14 -> 6 | AD14: =Timing!AD14 -> 9 | AE14: =Timing!AE14 -> 12 | AF14: =Timing!AF14 -> 3 | AG14: =Timing!AG14 -> 6 | AH14: =Timing!AH14 -> 9 | AI14: =Timing!AI14 -> 12 | AJ14: =Timing!AJ14 -> 3 | AK14: =Timing!AK14 -> 6 | AL14: =Timing!AL14 -> 9 | AM14: =Timing!AM14 -> 12 | AN14: =Timing!AN14 -> 3 | AO14: =Timing!AO14 -> 6 | AP14: =Timing!AP14 -> 9 | AQ14: =Timing!AQ14 -> 12 | AR14: =Timing!AR14 -> 3 | AS14: =Timing!AS14 -> 6 | AT14: =Timing!AT14 -> 9 | AU14: =Timing!AU14 -> 12 | AV14: =Timing!AV14 -> 3 | AW14: =Timing!AW14 -> 6 | AX14: =Timing!AX14 -> 9 | AY14: =Timing!AY14 -> 12 | AZ14: =Timing!AZ14 -> 3 | BA14: =Timing!BA14 -> 6 | BB14: =Timing!BB14 -> 9 | BC14: =Timing!BC14 -> 12 | BD14: =Timing!BD14 -> 3 | BE14: =Timing!BE14 -> 6 | BF14: =Timing!BF14 -> 9 | BG14: =Timing!BG14 -> 12 | BH14: =Timing!BH14 -> 3 | BI14: =Timing!BI14 -> 6 | BJ14: =Timing!BJ14 -> 9 | BK14: =Timing!BK14 -> 12 | BL14: =Timing!BL14 -> 3 | BM14: =Timing!BM14 -> 6 | BN14: =Timing!BN14 -> 9 | BO14: =Timing!BO14 -> 12 | BP14: =Timing!BP14 -> 3 | BQ14: =Timing!BQ14 -> 6 | BR14: =Timing!BR14 -> 9 | BS14: =Timing!BS14 -> 12 | BT14: =Timing!BT14 -> 3 | BU14: =Timing!BU14 -> 6 | BV14: =Timing!BV14 -> 9 | BW14: =Timing!BW14 -> 12 | BX14: =Timing!BX14 -> 3 | BY14: =Timing!BY14 -> 6 | BZ14: =Timing!BZ14 -> 9 | CA14: =Timing!CA14 -> 12 | CB14: =Timing!CB14 -> 3 | CC14: =Timing!CC14 -> 6 | CD14: =Timing!CD14 -> 9 | CE14: =Timing!CE14 -> 12 | CF14: =Timing!CF14 -> 3 | CG14: =Timing!CG14 -> 6 | CH14: =Timing!CH14 -> 9 | CI14: =Timing!CI14 -> 12 | CJ14: =Timing!CJ14 -> 3 | CK14: =Timing!CK14 -> 6 | CL14: =Timing!CL14 -> 9 | CM14: =Timing!CM14 -> 12 | CN14: =Timing!CN14 -> 3 | CO14: =Timing!CO14 -> 6 | CP14: =Timing!CP14 -> 9 | CQ14: =Timing!CQ14 -> 12 | CR14: =Timing!CR14 -> 3 | CS14: =Timing!CS14 -> 6 | CT14: =Timing!CT14 -> 9 | CU14: =Timing!CU14 -> 12 | CV14: =Timing!CV14 -> 3 | CW14: =Timing!CW14 -> 6 | CX14: =Timing!CX14 -> 9 | CY14: =Timing!CY14 -> 12 | CZ14: =Timing!CZ14 -> 3 | DA14: =Timing!DA14 -> 6 | DB14: =Timing!DB14 -> 9 | DC14: =Timing!DC14 -> 12 | DD14: =Timing!DD14 -> 3 | DE14: =Timing!DE14 -> 6 | DF14: =Timing!DF14 -> 9 | DG14: =Timing!DG14 -> 12 | DH14: =Timing!DH14 -> 3 | DI14: =Timing!DI14 -> 6 | DJ14: =Timing!DJ14 -> 9 | DK14: =Timing!DK14 -> 12 | DL14: =Timing!DL14 -> 3 | DM14: =Timing!DM14 -> 6 | DN14: =Timing!DN14 -> 9 | DO14: =Timing!DO14 -> 12 | DP14: =Timing!DP14 -> 3 | DQ14: =Timing!DQ14 -> 6 | DR14: =Timing!DR14 -> 9 | DS14: =Timing!DS14 -> 12 | DT14: =Timing!DT14 -> 3 | DU14: =Timing!DU14 -> 6 | DV14: =Timing!DV14 -> 9 | DW14: =Timing!DW14 -> 12 | DX14: =Timing!DX14 -> 3 | DY14: =Timing!DY14 -> 6 | DZ14: =Timing!DZ14 -> 9 | EA14: =Timing!EA14 -> 12 | EB14: =Timing!EB14 -> 3 | EC14: =Timing!EC14 -> 6 | ED14: =Timing!ED14 -> 9 | EE14: =Timing!EE14 -> 12 | EF14: =Timing!EF14 -> 3 | EG14: =Timing!EG14 -> 6 | EH14: =Timing!EH14 -> 9 | EI14: =Timing!EI14 -> 12 | EJ14: =Timing!EJ14 -> 3 | EK14: =Timing!EK14 -> 6 | EL14: =Timing!EL14 -> 9 | EM14: =Timing!EM14 -> 12 | EN14: =Timing!EN14 -> 3 | EO14: =Timing!EO14 -> 6 | EP14: =Timing!EP14 -> 9 | EQ14: =Timing!EQ14 -> 12 | ER14: =Timing!ER14 -> 3 | ES14: =Timing!ES14 -> 6 | ET14: =Timing!ET14 -> 9 | EU14: =Timing!EU14 -> 12 | EV14: =Timing!EV14 -> 3 | EW14: =Timing!EW14 -> 6 | EX14: =Timing!EX14 -> 9 | EY14: =Timing!EY14 -> 12 | EZ14: =Timing!EZ14 -> 3 | FA14: =Timing!FA14 -> 6 | FB14: =Timing!FB14 -> 9 | FC14: =Timing!FC14 -> 12 | FD14: =Timing!FD14 -> 3 | FE14: =Timing!FE14 -> 6 | FF14: =Timing!FF14 -> 9 | FG14: =Timing!FG14 -> 12 | FH14: =Timing!FH14 -> 3 | FI14: =Timing!FI14 -> 6 | FJ14: =Timing!FJ14 -> 9 | FK14: =Timing!FK14 -> 12 | FL14: =Timing!FL14 -> 3 | FM14: =Timing!FM14 -> 6 | FN14: =Timing!FN14 -> 9 | FO14: =Timing!FO14 -> 12 | FP14: =Timing!FP14 -> 3 | FQ14: =Timing!FQ14 -> 6 | FR14: =Timing!FR14 -> 9 | FS14: =Timing!FS14 -> 12 | FT14: =Timing!FT14 -> 3 | FU14: =Timing!FU14 -> 6 | FV14: =Timing!FV14 -> 9 | FW14: =Timing!FW14 -> 12 | FX14: =Timing!FX14 -> 3 | FY14: =Timing!FY14 -> 6 | FZ14: =Timing!FZ14 -> 9 | GA14: =Timing!GA14 -> 12 | GB14: =Timing!GB14 -> 3 | GC14: =Timing!GC14 -> 6 | GD14: =Timing!GD14 -> 9 | GE14: =Timing!GE14 -> 12 | GF14: =Timing!GF14 -> 3 | GG14: =Timing!GG14 -> 6 | GH14: =Timing!GH14 -> 9 | GI14: =Timing!GI14 -> 12 | GJ14: =Timing!GJ14 -> 3 | GK14: =Timing!GK14 -> 6 | GL14: =Timing!GL14 -> 9 | GM14: =Timing!GM14 -> 12 | GN14: =Timing!GN14 -> 3 | GO14: =Timing!GO14 -> 6 | GP14: =Timing!GP14 -> 9 | GQ14: =Timing!GQ14 -> 12 | GR14: =Timing!GR14 -> 3 | GS14: =Timing!GS14 -> 6 | GT14: =Timing!GT14 -> 9 | GU14: =Timing!GU14 -> 12 | GV14: =Timing!GV14 -> 3 | GW14: =Timing!GW14 -> 6 | GX14: =Timing!GX14 -> 9 | GY14: =Timing!GY14 -> 12 | GZ14: =Timing!GZ14 -> 3 | HA14: =Timing!HA14 -> 6 | HB14: =Timing!HB14 -> 9 | HC14: =Timing!HC14 -> 12 | HD14: =Timing!HD14 -> 3 | HE14: =Timing!HE14 -> 6 | HF14: =Timing!HF14 -> 9 | HG14: =Timing!HG14 -> 12 | HH14: =Timing!HH14 -> 3 | HI14: =Timing!HI14 -> 6 | HJ14: =Timing!HJ14 -> 9 | HK14: =Timing!HK14 -> 12 | HL14: =Timing!HL14 -> 3 | HM14: =Timing!HM14 -> 6 | HN14: =Timing!HN14 -> 9 | HO14: =Timing!HO14 -> 12 | HP14: =Timing!HP14 -> 3 | HQ14: =Timing!HQ14 -> 6 | HR14: =Timing!HR14 -> 9 | HS14: =Timing!HS14 -> 12 | HT14: =Timing!HT14 -> 3 | HU14: =Timing!HU14 -> 6 | HV14: =Timing!HV14 -> 9 | HW14: =Timing!HW14 -> 12 | HX14: =Timing!HX14 -> 3 | HY14: =Timing!HY14 -> 6 | HZ14: =Timing!HZ14 -> 9 | IA14: =Timing!IA14 -> 12 | IB14: =Timing!IB14 -> 3 | IC14: =Timing!IC14 -> 6 | ID14: =Timing!ID14 -> 9 | IE14: =Timing!IE14 -> 12 | IF14: =Timing!IF14 -> 3 | IG14: =Timing!IG14 -> 6 | IH14: =Timing!IH14 -> 9 | II14: =Timing!II14 -> 12 | IJ14: =Timing!IJ14 -> 3 | IK14: =Timing!IK14 -> 6 | IL14: =Timing!IL14 -> 9 | IM14: =Timing!IM14 -> 12 | IN14: =Timing!IN14 -> 3 | IO14: =Timing!IO14 -> 6 | IP14: =Timing!IP14 -> 9 | IQ14: =Timing!IQ14 -> 12 | IR14: =Timing!IR14 -> 3 | IS14: =Timing!IS14 -> 6 | IT14: =Timing!IT14 -> 9 | IU14: =Timing!IU14 -> 12
C15: Calendar Year | D15: Year | J15: =Timing!J15 -> 2019 | K15: =Timing!K15 -> 2019 | L15: =Timing!L15 -> 2020 | M15: =Timing!M15 -> 2020 | N15: =Timing!N15 -> 2020 | O15: =Timing!O15 -> 2020 | P15: =Timing!P15 -> 2021 | Q15: =Timing!Q15 -> 2021 | R15: =Timing!R15 -> 2021 | S15: =Timing!S15 -> 2021 | T15: =Timing!T15 -> 2022 | U15: =Timing!U15 -> 2022 | V15: =Timing!V15 -> 2022 | W15: =Timing!W15 -> 2022 | X15: =Timing!X15 -> 2023 | Y15: =Timing!Y15 -> 2023 | Z15: =Timing!Z15 -> 2023 | AA15: =Timing!AA15 -> 2023 | AB15: =Timing!AB15 -> 2024 | AC15: =Timing!AC15 -> 2024 | AD15: =Timing!AD15 -> 2024 | AE15: =Timing!AE15 -> 2024 | AF15: =Timing!AF15 -> 2025 | AG15: =Timing!AG15 -> 2025 | AH15: =Timing!AH15 -> 2025 | AI15: =Timing!AI15 -> 2025 | AJ15: =Timing!AJ15 -> 2026 | AK15: =Timing!AK15 -> 2026 | AL15: =Timing!AL15 -> 2026 | AM15: =Timing!AM15 -> 2026 | AN15: =Timing!AN15 -> 2027 | AO15: =Timing!AO15 -> 2027 | AP15: =Timing!AP15 -> 2027 | AQ15: =Timing!AQ15 -> 2027 | AR15: =Timing!AR15 -> 2028 | AS15: =Timing!AS15 -> 2028 | AT15: =Timing!AT15 -> 2028 | AU15: =Timing!AU15 -> 2028 | AV15: =Timing!AV15 -> 2029 | AW15: =Timing!AW15 -> 2029 | AX15: =Timing!AX15 -> 2029 | AY15: =Timing!AY15 -> 2029 | AZ15: =Timing!AZ15 -> 2030 | BA15: =Timing!BA15 -> 2030 | BB15: =Timing!BB15 -> 2030 | BC15: =Timing!BC15 -> 2030 | BD15: =Timing!BD15 -> 2031 | BE15: =Timing!BE15 -> 2031 | BF15: =Timing!BF15 -> 2031 | BG15: =Timing!BG15 -> 2031 | BH15: =Timing!BH15 -> 2032 | BI15: =Timing!BI15 -> 2032 | BJ15: =Timing!BJ15 -> 2032 | BK15: =Timing!BK15 -> 2032 | BL15: =Timing!BL15 -> 2033 | BM15: =Timing!BM15 -> 2033 | BN15: =Timing!BN15 -> 2033 | BO15: =Timing!BO15 -> 2033 | BP15: =Timing!BP15 -> 2034 | BQ15: =Timing!BQ15 -> 2034 | BR15: =Timing!BR15 -> 2034 | BS15: =Timing!BS15 -> 2034 | BT15: =Timing!BT15 -> 2035 | BU15: =Timing!BU15 -> 2035 | BV15: =Timing!BV15 -> 2035 | BW15: =Timing!BW15 -> 2035 | BX15: =Timing!BX15 -> 2036 | BY15: =Timing!BY15 -> 2036 | BZ15: =Timing!BZ15 -> 2036 | CA15: =Timing!CA15 -> 2036 | CB15: =Timing!CB15 -> 2037 | CC15: =Timing!CC15 -> 2037 | CD15: =Timing!CD15 -> 2037 | CE15: =Timing!CE15 -> 2037 | CF15: =Timing!CF15 -> 2038 | CG15: =Timing!CG15 -> 2038 | CH15: =Timing!CH15 -> 2038 | CI15: =Timing!CI15 -> 2038 | CJ15: =Timing!CJ15 -> 2039 | CK15: =Timing!CK15 -> 2039 | CL15: =Timing!CL15 -> 2039 | CM15: =Timing!CM15 -> 2039 | CN15: =Timing!CN15 -> 2040 | CO15: =Timing!CO15 -> 2040 | CP15: =Timing!CP15 -> 2040 | CQ15: =Timing!CQ15 -> 2040 | CR15: =Timing!CR15 -> 2041 | CS15: =Timing!CS15 -> 2041 | CT15: =Timing!CT15 -> 2041 | CU15: =Timing!CU15 -> 2041 | CV15: =Timing!CV15 -> 2042 | CW15: =Timing!CW15 -> 2042 | CX15: =Timing!CX15 -> 2042 | CY15: =Timing!CY15 -> 2042 | CZ15: =Timing!CZ15 -> 2043 | DA15: =Timing!DA15 -> 2043 | DB15: =Timing!DB15 -> 2043 | DC15: =Timing!DC15 -> 2043 | DD15: =Timing!DD15 -> 2044 | DE15: =Timing!DE15 -> 2044 | DF15: =Timing!DF15 -> 2044 | DG15: =Timing!DG15 -> 2044 | DH15: =Timing!DH15 -> 2045 | DI15: =Timing!DI15 -> 2045 | DJ15: =Timing!DJ15 -> 2045 | DK15: =Timing!DK15 -> 2045 | DL15: =Timing!DL15 -> 2046 | DM15: =Timing!DM15 -> 2046 | DN15: =Timing!DN15 -> 2046 | DO15: =Timing!DO15 -> 2046 | DP15: =Timing!DP15 -> 2047 | DQ15: =Timing!DQ15 -> 2047 | DR15: =Timing!DR15 -> 2047 | DS15: =Timing!DS15 -> 2047 | DT15: =Timing!DT15 -> 2048 | DU15: =Timing!DU15 -> 2048 | DV15: =Timing!DV15 -> 2048 | DW15: =Timing!DW15 -> 2048 | DX15: =Timing!DX15 -> 2049 | DY15: =Timing!DY15 -> 2049 | DZ15: =Timing!DZ15 -> 2049 | EA15: =Timing!EA15 -> 2049 | EB15: =Timing!EB15 -> 2050 | EC15: =Timing!EC15 -> 2050 | ED15: =Timing!ED15 -> 2050 | EE15: =Timing!EE15 -> 2050 | EF15: =Timing!EF15 -> 2051 | EG15: =Timing!EG15 -> 2051 | EH15: =Timing!EH15 -> 2051 | EI15: =Timing!EI15 -> 2051 | EJ15: =Timing!EJ15 -> 2052 | EK15: =Timing!EK15 -> 2052 | EL15: =Timing!EL15 -> 2052 | EM15: =Timing!EM15 -> 2052 | EN15: =Timing!EN15 -> 2053 | EO15: =Timing!EO15 -> 2053 | EP15: =Timing!EP15 -> 2053 | EQ15: =Timing!EQ15 -> 2053 | ER15: =Timing!ER15 -> 2054 | ES15: =Timing!ES15 -> 2054 | ET15: =Timing!ET15 -> 2054 | EU15: =Timing!EU15 -> 2054 | EV15: =Timing!EV15 -> 2055 | EW15: =Timing!EW15 -> 2055 | EX15: =Timing!EX15 -> 2055 | EY15: =Timing!EY15 -> 2055 | EZ15: =Timing!EZ15 -> 2056 | FA15: =Timing!FA15 -> 2056 | FB15: =Timing!FB15 -> 2056 | FC15: =Timing!FC15 -> 2056 | FD15: =Timing!FD15 -> 2057 | FE15: =Timing!FE15 -> 2057 | FF15: =Timing!FF15 -> 2057 | FG15: =Timing!FG15 -> 2057 | FH15: =Timing!FH15 -> 2058 | FI15: =Timing!FI15 -> 2058 | FJ15: =Timing!FJ15 -> 2058 | FK15: =Timing!FK15 -> 2058 | FL15: =Timing!FL15 -> 2059 | FM15: =Timing!FM15 -> 2059 | FN15: =Timing!FN15 -> 2059 | FO15: =Timing!FO15 -> 2059 | FP15: =Timing!FP15 -> 2060 | FQ15: =Timing!FQ15 -> 2060 | FR15: =Timing!FR15 -> 2060 | FS15: =Timing!FS15 -> 2060 | FT15: =Timing!FT15 -> 2061 | FU15: =Timing!FU15 -> 2061 | FV15: =Timing!FV15 -> 2061 | FW15: =Timing!FW15 -> 2061 | FX15: =Timing!FX15 -> 2062 | FY15: =Timing!FY15 -> 2062 | FZ15: =Timing!FZ15 -> 2062 | GA15: =Timing!GA15 -> 2062 | GB15: =Timing!GB15 -> 2063 | GC15: =Timing!GC15 -> 2063 | GD15: =Timing!GD15 -> 2063 | GE15: =Timing!GE15 -> 2063 | GF15: =Timing!GF15 -> 2064 | GG15: =Timing!GG15 -> 2064 | GH15: =Timing!GH15 -> 2064 | GI15: =Timing!GI15 -> 2064 | GJ15: =Timing!GJ15 -> 2065 | GK15: =Timing!GK15 -> 2065 | GL15: =Timing!GL15 -> 2065 | GM15: =Timing!GM15 -> 2065 | GN15: =Timing!GN15 -> 2066 | GO15: =Timing!GO15 -> 2066 | GP15: =Timing!GP15 -> 2066 | GQ15: =Timing!GQ15 -> 2066 | GR15: =Timing!GR15 -> 2067 | GS15: =Timing!GS15 -> 2067 | GT15: =Timing!GT15 -> 2067 | GU15: =Timing!GU15 -> 2067 | GV15: =Timing!GV15 -> 2068 | GW15: =Timing!GW15 -> 2068 | GX15: =Timing!GX15 -> 2068 | GY15: =Timing!GY15 -> 2068 | GZ15: =Timing!GZ15 -> 2069 | HA15: =Timing!HA15 -> 2069 | HB15: =Timing!HB15 -> 2069 | HC15: =Timing!HC15 -> 2069 | HD15: =Timing!HD15 -> 2070 | HE15: =Timing!HE15 -> 2070 | HF15: =Timing!HF15 -> 2070 | HG15: =Timing!HG15 -> 2070 | HH15: =Timing!HH15 -> 2071 | HI15: =Timing!HI15 -> 2071 | HJ15: =Timing!HJ15 -> 2071 | HK15: =Timing!HK15 -> 2071 | HL15: =Timing!HL15 -> 2072 | HM15: =Timing!HM15 -> 2072 | HN15: =Timing!HN15 -> 2072 | HO15: =Timing!HO15 -> 2072 | HP15: =Timing!HP15 -> 2073 | HQ15: =Timing!HQ15 -> 2073 | HR15: =Timing!HR15 -> 2073 | HS15: =Timing!HS15 -> 2073 | HT15: =Timing!HT15 -> 2074 | HU15: =Timing!HU15 -> 2074 | HV15: =Timing!HV15 -> 2074 | HW15: =Timing!HW15 -> 2074 | HX15: =Timing!HX15 -> 2075 | HY15: =Timing!HY15 -> 2075 | HZ15: =Timing!HZ15 -> 2075 | IA15: =Timing!IA15 -> 2075 | IB15: =Timing!IB15 -> 2076 | IC15: =Timing!IC15 -> 2076 | ID15: =Timing!ID15 -> 2076 | IE15: =Timing!IE15 -> 2076 | IF15: =Timing!IF15 -> 2077 | IG15: =Timing!IG15 -> 2077 | IH15: =Timing!IH15 -> 2077 | II15: =Timing!II15 -> 2077 | IJ15: =Timing!IJ15 -> 2078 | IK15: =Timing!IK15 -> 2078 | IL15: =Timing!IL15 -> 2078 | IM15: =Timing!IM15 -> 2078 | IN15: =Timing!IN15 -> 2079 | IO15: =Timing!IO15 -> 2079 | IP15: =Timing!IP15 -> 2079 | IQ15: =Timing!IQ15 -> 2079 | IR15: =Timing!IR15 -> 2080 | IS15: =Timing!IS15 -> 2080 | IT15: =Timing!IT15 -> 2080 | IU15: =Timing!IU15 -> 2080
C16: Financial Year | D16: Year | J16: =Timing!J16 -> 2020 | K16: =Timing!K16 -> 2020 | L16: =Timing!L16 -> 2020 | M16: =Timing!M16 -> 2020 | N16: =Timing!N16 -> 2021 | O16: =Timing!O16 -> 2021 | P16: =Timing!P16 -> 2021 | Q16: =Timing!Q16 -> 2021 | R16: =Timing!R16 -> 2022 | S16: =Timing!S16 -> 2022 | T16: =Timing!T16 -> 2022 | U16: =Timing!U16 -> 2022 | V16: =Timing!V16 -> 2023 | W16: =Timing!W16 -> 2023 | X16: =Timing!X16 -> 2023 | Y16: =Timing!Y16 -> 2023 | Z16: =Timing!Z16 -> 2024 | AA16: =Timing!AA16 -> 2024 | AB16: =Timing!AB16 -> 2024 | AC16: =Timing!AC16 -> 2024 | AD16: =Timing!AD16 -> 2025 | AE16: =Timing!AE16 -> 2025 | AF16: =Timing!AF16 -> 2025 | AG16: =Timing!AG16 -> 2025 | AH16: =Timing!AH16 -> 2026 | AI16: =Timing!AI16 -> 2026 | AJ16: =Timing!AJ16 -> 2026 | AK16: =Timing!AK16 -> 2026 | AL16: =Timing!AL16 -> 2027 | AM16: =Timing!AM16 -> 2027 | AN16: =Timing!AN16 -> 2027 | AO16: =Timing!AO16 -> 2027 | AP16: =Timing!AP16 -> 2028 | AQ16: =Timing!AQ16 -> 2028 | AR16: =Timing!AR16 -> 2028 | AS16: =Timing!AS16 -> 2028 | AT16: =Timing!AT16 -> 2029 | AU16: =Timing!AU16 -> 2029 | AV16: =Timing!AV16 -> 2029 | AW16: =Timing!AW16 -> 2029 | AX16: =Timing!AX16 -> 2030 | AY16: =Timing!AY16 -> 2030 | AZ16: =Timing!AZ16 -> 2030 | BA16: =Timing!BA16 -> 2030 | BB16: =Timing!BB16 -> 2031 | BC16: =Timing!BC16 -> 2031 | BD16: =Timing!BD16 -> 2031 | BE16: =Timing!BE16 -> 2031 | BF16: =Timing!BF16 -> 2032 | BG16: =Timing!BG16 -> 2032 | BH16: =Timing!BH16 -> 2032 | BI16: =Timing!BI16 -> 2032 | BJ16: =Timing!BJ16 -> 2033 | BK16: =Timing!BK16 -> 2033 | BL16: =Timing!BL16 -> 2033 | BM16: =Timing!BM16 -> 2033 | BN16: =Timing!BN16 -> 2034 | BO16: =Timing!BO16 -> 2034 | BP16: =Timing!BP16 -> 2034 | BQ16: =Timing!BQ16 -> 2034 | BR16: =Timing!BR16 -> 2035 | BS16: =Timing!BS16 -> 2035 | BT16: =Timing!BT16 -> 2035 | BU16: =Timing!BU16 -> 2035 | BV16: =Timing!BV16 -> 2036 | BW16: =Timing!BW16 -> 2036 | BX16: =Timing!BX16 -> 2036 | BY16: =Timing!BY16 -> 2036 | BZ16: =Timing!BZ16 -> 2037 | CA16: =Timing!CA16 -> 2037 | CB16: =Timing!CB16 -> 2037 | CC16: =Timing!CC16 -> 2037 | CD16: =Timing!CD16 -> 2038 | CE16: =Timing!CE16 -> 2038 | CF16: =Timing!CF16 -> 2038 | CG16: =Timing!CG16 -> 2038 | CH16: =Timing!CH16 -> 2039 | CI16: =Timing!CI16 -> 2039 | CJ16: =Timing!CJ16 -> 2039 | CK16: =Timing!CK16 -> 2039 | CL16: =Timing!CL16 -> 2040 | CM16: =Timing!CM16 -> 2040 | CN16: =Timing!CN16 -> 2040 | CO16: =Timing!CO16 -> 2040 | CP16: =Timing!CP16 -> 2041 | CQ16: =Timing!CQ16 -> 2041 | CR16: =Timing!CR16 -> 2041 | CS16: =Timing!CS16 -> 2041 | CT16: =Timing!CT16 -> 2042 | CU16: =Timing!CU16 -> 2042 | CV16: =Timing!CV16 -> 2042 | CW16: =Timing!CW16 -> 2042 | CX16: =Timing!CX16 -> 2043 | CY16: =Timing!CY16 -> 2043 | CZ16: =Timing!CZ16 -> 2043 | DA16: =Timing!DA16 -> 2043 | DB16: =Timing!DB16 -> 2044 | DC16: =Timing!DC16 -> 2044 | DD16: =Timing!DD16 -> 2044 | DE16: =Timing!DE16 -> 2044 | DF16: =Timing!DF16 -> 2045 | DG16: =Timing!DG16 -> 2045 | DH16: =Timing!DH16 -> 2045 | DI16: =Timing!DI16 -> 2045 | DJ16: =Timing!DJ16 -> 2046 | DK16: =Timing!DK16 -> 2046 | DL16: =Timing!DL16 -> 2046 | DM16: =Timing!DM16 -> 2046 | DN16: =Timing!DN16 -> 2047 | DO16: =Timing!DO16 -> 2047 | DP16: =Timing!DP16 -> 2047 | DQ16: =Timing!DQ16 -> 2047 | DR16: =Timing!DR16 -> 2048 | DS16: =Timing!DS16 -> 2048 | DT16: =Timing!DT16 -> 2048 | DU16: =Timing!DU16 -> 2048 | DV16: =Timing!DV16 -> 2049 | DW16: =Timing!DW16 -> 2049 | DX16: =Timing!DX16 -> 2049 | DY16: =Timing!DY16 -> 2049 | DZ16: =Timing!DZ16 -> 2050 | EA16: =Timing!EA16 -> 2050 | EB16: =Timing!EB16 -> 2050 | EC16: =Timing!EC16 -> 2050 | ED16: =Timing!ED16 -> 2051 | EE16: =Timing!EE16 -> 2051 | EF16: =Timing!EF16 -> 2051 | EG16: =Timing!EG16 -> 2051 | EH16: =Timing!EH16 -> 2052 | EI16: =Timing!EI16 -> 2052 | EJ16: =Timing!EJ16 -> 2052 | EK16: =Timing!EK16 -> 2052 | EL16: =Timing!EL16 -> 2053 | EM16: =Timing!EM16 -> 2053 | EN16: =Timing!EN16 -> 2053 | EO16: =Timing!EO16 -> 2053 | EP16: =Timing!EP16 -> 2054 | EQ16: =Timing!EQ16 -> 2054 | ER16: =Timing!ER16 -> 2054 | ES16: =Timing!ES16 -> 2054 | ET16: =Timing!ET16 -> 2055 | EU16: =Timing!EU16 -> 2055 | EV16: =Timing!EV16 -> 2055 | EW16: =Timing!EW16 -> 2055 | EX16: =Timing!EX16 -> 2056 | EY16: =Timing!EY16 -> 2056 | EZ16: =Timing!EZ16 -> 2056 | FA16: =Timing!FA16 -> 2056 | FB16: =Timing!FB16 -> 2057 | FC16: =Timing!FC16 -> 2057 | FD16: =Timing!FD16 -> 2057 | FE16: =Timing!FE16 -> 2057 | FF16: =Timing!FF16 -> 2058 | FG16: =Timing!FG16 -> 2058 | FH16: =Timing!FH16 -> 2058 | FI16: =Timing!FI16 -> 2058 | FJ16: =Timing!FJ16 -> 2059 | FK16: =Timing!FK16 -> 2059 | FL16: =Timing!FL16 -> 2059 | FM16: =Timing!FM16 -> 2059 | FN16: =Timing!FN16 -> 2060 | FO16: =Timing!FO16 -> 2060 | FP16: =Timing!FP16 -> 2060 | FQ16: =Timing!FQ16 -> 2060 | FR16: =Timing!FR16 -> 2061 | FS16: =Timing!FS16 -> 2061 | FT16: =Timing!FT16 -> 2061 | FU16: =Timing!FU16 -> 2061 | FV16: =Timing!FV16 -> 2062 | FW16: =Timing!FW16 -> 2062 | FX16: =Timing!FX16 -> 2062 | FY16: =Timing!FY16 -> 2062 | FZ16: =Timing!FZ16 -> 2063 | GA16: =Timing!GA16 -> 2063 | GB16: =Timing!GB16 -> 2063 | GC16: =Timing!GC16 -> 2063 | GD16: =Timing!GD16 -> 2064 | GE16: =Timing!GE16 -> 2064 | GF16: =Timing!GF16 -> 2064 | GG16: =Timing!GG16 -> 2064 | GH16: =Timing!GH16 -> 2065 | GI16: =Timing!GI16 -> 2065 | GJ16: =Timing!GJ16 -> 2065 | GK16: =Timing!GK16 -> 2065 | GL16: =Timing!GL16 -> 2066 | GM16: =Timing!GM16 -> 2066 | GN16: =Timing!GN16 -> 2066 | GO16: =Timing!GO16 -> 2066 | GP16: =Timing!GP16 -> 2067 | GQ16: =Timing!GQ16 -> 2067 | GR16: =Timing!GR16 -> 2067 | GS16: =Timing!GS16 -> 2067 | GT16: =Timing!GT16 -> 2068 | GU16: =Timing!GU16 -> 2068 | GV16: =Timing!GV16 -> 2068 | GW16: =Timing!GW16 -> 2068 | GX16: =Timing!GX16 -> 2069 | GY16: =Timing!GY16 -> 2069 | GZ16: =Timing!GZ16 -> 2069 | HA16: =Timing!HA16 -> 2069 | HB16: =Timing!HB16 -> 2070 | HC16: =Timing!HC16 -> 2070 | HD16: =Timing!HD16 -> 2070 | HE16: =Timing!HE16 -> 2070 | HF16: =Timing!HF16 -> 2071 | HG16: =Timing!HG16 -> 2071 | HH16: =Timing!HH16 -> 2071 | HI16: =Timing!HI16 -> 2071 | HJ16: =Timing!HJ16 -> 2072 | HK16: =Timing!HK16 -> 2072 | HL16: =Timing!HL16 -> 2072 | HM16: =Timing!HM16 -> 2072 | HN16: =Timing!HN16 -> 2073 | HO16: =Timing!HO16 -> 2073 | HP16: =Timing!HP16 -> 2073 | HQ16: =Timing!HQ16 -> 2073 | HR16: =Timing!HR16 -> 2074 | HS16: =Timing!HS16 -> 2074 | HT16: =Timing!HT16 -> 2074 | HU16: =Timing!HU16 -> 2074 | HV16: =Timing!HV16 -> 2075 | HW16: =Timing!HW16 -> 2075 | HX16: =Timing!HX16 -> 2075 | HY16: =Timing!HY16 -> 2075 | HZ16: =Timing!HZ16 -> 2076 | IA16: =Timing!IA16 -> 2076 | IB16: =Timing!IB16 -> 2076 | IC16: =Timing!IC16 -> 2076 | ID16: =Timing!ID16 -> 2077 | IE16: =Timing!IE16 -> 2077 | IF16: =Timing!IF16 -> 2077 | IG16: =Timing!IG16 -> 2077 | IH16: =Timing!IH16 -> 2078 | II16: =Timing!II16 -> 2078 | IJ16: =Timing!IJ16 -> 2078 | IK16: =Timing!IK16 -> 2078 | IL16: =Timing!IL16 -> 2079 | IM16: =Timing!IM16 -> 2079 | IN16: =Timing!IN16 -> 2079 | IO16: =Timing!IO16 -> 2079 | IP16: =Timing!IP16 -> 2080 | IQ16: =Timing!IQ16 -> 2080 | IR16: =Timing!IR16 -> 2080 | IS16: =Timing!IS16 -> 2080 | IT16: =Timing!IT16 -> 2081 | IU16: =Timing!IU16 -> 2081
C18: Cons / Ops Flags
C19: Construction Year Counter | D19: Num | J19: =Timing!J19 -> 0 | K19: =Timing!K19 -> 0 | L19: =Timing!L19 -> 0 | M19: =Timing!M19 -> 0 | N19: =Timing!N19 -> 0 | O19: =Timing!O19 -> 0 | P19: =Timing!P19 -> 0 | Q19: =Timing!Q19 -> 0 | R19: =Timing!R19 -> 1 | S19: =Timing!S19 -> 0 | T19: =Timing!T19 -> 0 | U19: =Timing!U19 -> 0 | V19: =Timing!V19 -> 1 | W19: =Timing!W19 -> 0 | X19: =Timing!X19 -> 0 | Y19: =Timing!Y19 -> 0 | Z19: =Timing!Z19 -> 0 | AA19: =Timing!AA19 -> 0 | AB19: =Timing!AB19 -> 0 | AC19: =Timing!AC19 -> 0 | AD19: =Timing!AD19 -> 0 | AE19: =Timing!AE19 -> 0 | AF19: =Timing!AF19 -> 0 | AG19: =Timing!AG19 -> 0 | AH19: =Timing!AH19 -> 0 | AI19: =Timing!AI19 -> 0 | AJ19: =Timing!AJ19 -> 0 | AK19: =Timing!AK19 -> 0 | AL19: =Timing!AL19 -> 0 | AM19: =Timing!AM19 -> 0 | AN19: =Timing!AN19 -> 0 | AO19: =Timing!AO19 -> 0 | AP19: =Timing!AP19 -> 0 | AQ19: =Timing!AQ19 -> 0 | AR19: =Timing!AR19 -> 0 | AS19: =Timing!AS19 -> 0 | AT19: =Timing!AT19 -> 0 | AU19: =Timing!AU19 -> 0 | AV19: =Timing!AV19 -> 0 | AW19: =Timing!AW19 -> 0 | AX19: =Timing!AX19 -> 0 | AY19: =Timing!AY19 -> 0 | AZ19: =Timing!AZ19 -> 0 | BA19: =Timing!BA19 -> 0 | BB19: =Timing!BB19 -> 0 | BC19: =Timing!BC19 -> 0 | BD19: =Timing!BD19 -> 0 | BE19: =Timing!BE19 -> 0 | BF19: =Timing!BF19 -> 0 | BG19: =Timing!BG19 -> 0 | BH19: =Timing!BH19 -> 0 | BI19: =Timing!BI19 -> 0 | BJ19: =Timing!BJ19 -> 0 | BK19: =Timing!BK19 -> 0 | BL19: =Timing!BL19 -> 0 | BM19: =Timing!BM19 -> 0 | BN19: =Timing!BN19 -> 0 | BO19: =Timing!BO19 -> 0 | BP19: =Timing!BP19 -> 0 | BQ19: =Timing!BQ19 -> 0 | BR19: =Timing!BR19 -> 0 | BS19: =Timing!BS19 -> 0 | BT19: =Timing!BT19 -> 0 | BU19: =Timing!BU19 -> 0 | BV19: =Timing!BV19 -> 0 | BW19: =Timing!BW19 -> 0 | BX19: =Timing!BX19 -> 0 | BY19: =Timing!BY19 -> 0 | BZ19: =Timing!BZ19 -> 0 | CA19: =Timing!CA19 -> 0 | CB19: =Timing!CB19 -> 0 | CC19: =Timing!CC19 -> 0 | CD19: =Timing!CD19 -> 0 | CE19: =Timing!CE19 -> 0 | CF19: =Timing!CF19 -> 0 | CG19: =Timing!CG19 -> 0 | CH19: =Timing!CH19 -> 0 | CI19: =Timing!CI19 -> 0 | CJ19: =Timing!CJ19 -> 0 | CK19: =Timing!CK19 -> 0 | CL19: =Timing!CL19 -> 0 | CM19: =Timing!CM19 -> 0 | CN19: =Timing!CN19 -> 0 | CO19: =Timing!CO19 -> 0 | CP19: =Timing!CP19 -> 0 | CQ19: =Timing!CQ19 -> 0 | CR19: =Timing!CR19 -> 0 | CS19: =Timing!CS19 -> 0 | CT19: =Timing!CT19 -> 0 | CU19: =Timing!CU19 -> 0 | CV19: =Timing!CV19 -> 0 | CW19: =Timing!CW19 -> 0 | CX19: =Timing!CX19 -> 0 | CY19: =Timing!CY19 -> 0 | CZ19: =Timing!CZ19 -> 0 | DA19: =Timing!DA19 -> 0 | DB19: =Timing!DB19 -> 0 | DC19: =Timing!DC19 -> 0 | DD19: =Timing!DD19 -> 0 | DE19: =Timing!DE19 -> 0 | DF19: =Timing!DF19 -> 0 | DG19: =Timing!DG19 -> 0 | DH19: =Timing!DH19 -> 0 | DI19: =Timing!DI19 -> 0 | DJ19: =Timing!DJ19 -> 0 | DK19: =Timing!DK19 -> 0 | DL19: =Timing!DL19 -> 0 | DM19: =Timing!DM19 -> 0 | DN19: =Timing!DN19 -> 0 | DO19: =Timing!DO19 -> 0 | DP19: =Timing!DP19 -> 0 | DQ19: =Timing!DQ19 -> 0 | DR19: =Timing!DR19 -> 0 | DS19: =Timing!DS19 -> 0 | DT19: =Timing!DT19 -> 0 | DU19: =Timing!DU19 -> 0 | DV19: =Timing!DV19 -> 0 | DW19: =Timing!DW19 -> 0 | DX19: =Timing!DX19 -> 0 | DY19: =Timing!DY19 -> 0 | DZ19: =Timing!DZ19 -> 0 | EA19: =Timing!EA19 -> 0 | EB19: =Timing!EB19 -> 0 | EC19: =Timing!EC19 -> 0 | ED19: =Timing!ED19 -> 0 | EE19: =Timing!EE19 -> 0 | EF19: =Timing!EF19 -> 0 | EG19: =Timing!EG19 -> 0 | EH19: =Timing!EH19 -> 0 | EI19: =Timing!EI19 -> 0 | EJ19: =Timing!EJ19 -> 0 | EK19: =Timing!EK19 -> 0 | EL19: =Timing!EL19 -> 0 | EM19: =Timing!EM19 -> 0 | EN19: =Timing!EN19 -> 0 | EO19: =Timing!EO19 -> 0 | EP19: =Timing!EP19 -> 0 | EQ19: =Timing!EQ19 -> 0 | ER19: =Timing!ER19 -> 0 | ES19: =Timing!ES19 -> 0 | ET19: =Timing!ET19 -> 0 | EU19: =Timing!EU19 -> 0 | EV19: =Timing!EV19 -> 0 | EW19: =Timing!EW19 -> 0 | EX19: =Timing!EX19 -> 0 | EY19: =Timing!EY19 -> 0 | EZ19: =Timing!EZ19 -> 0 | FA19: =Timing!FA19 -> 0 | FB19: =Timing!FB19 -> 0 | FC19: =Timing!FC19 -> 0 | FD19: =Timing!FD19 -> 0 | FE19: =Timing!FE19 -> 0 | FF19: =Timing!FF19 -> 0 | FG19: =Timing!FG19 -> 0 | FH19: =Timing!FH19 -> 0 | FI19: =Timing!FI19 -> 0 | FJ19: =Timing!FJ19 -> 0 | FK19: =Timing!FK19 -> 0 | FL19: =Timing!FL19 -> 0 | FM19: =Timing!FM19 -> 0 | FN19: =Timing!FN19 -> 0 | FO19: =Timing!FO19 -> 0 | FP19: =Timing!FP19 -> 0 | FQ19: =Timing!FQ19 -> 0 | FR19: =Timing!FR19 -> 0 | FS19: =Timing!FS19 -> 0 | FT19: =Timing!FT19 -> 0 | FU19: =Timing!FU19 -> 0 | FV19: =Timing!FV19 -> 0 | FW19: =Timing!FW19 -> 0 | FX19: =Timing!FX19 -> 0 | FY19: =Timing!FY19 -> 0 | FZ19: =Timing!FZ19 -> 0 | GA19: =Timing!GA19 -> 0 | GB19: =Timing!GB19 -> 0 | GC19: =Timing!GC19 -> 0 | GD19: =Timing!GD19 -> 0 | GE19: =Timing!GE19 -> 0 | GF19: =Timing!GF19 -> 0 | GG19: =Timing!GG19 -> 0 | GH19: =Timing!GH19 -> 0 | GI19: =Timing!GI19 -> 0 | GJ19: =Timing!GJ19 -> 0 | GK19: =Timing!GK19 -> 0 | GL19: =Timing!GL19 -> 0 | GM19: =Timing!GM19 -> 0 | GN19: =Timing!GN19 -> 0 | GO19: =Timing!GO19 -> 0 | GP19: =Timing!GP19 -> 0 | GQ19: =Timing!GQ19 -> 0 | GR19: =Timing!GR19 -> 0 | GS19: =Timing!GS19 -> 0 | GT19: =Timing!GT19 -> 0 | GU19: =Timing!GU19 -> 0 | GV19: =Timing!GV19 -> 0 | GW19: =Timing!GW19 -> 0 | GX19: =Timing!GX19 -> 0 | GY19: =Timing!GY19 -> 0 | GZ19: =Timing!GZ19 -> 0 | HA19: =Timing!HA19 -> 0 | HB19: =Timing!HB19 -> 0 | HC19: =Timing!HC19 -> 0 | HD19: =Timing!HD19 -> 0 | HE19: =Timing!HE19 -> 0 | HF19: =Timing!HF19 -> 0 | HG19: =Timing!HG19 -> 0 | HH19: =Timing!HH19 -> 0 | HI19: =Timing!HI19 -> 0 | HJ19: =Timing!HJ19 -> 0 | HK19: =Timing!HK19 -> 0 | HL19: =Timing!HL19 -> 0 | HM19: =Timing!HM19 -> 0 | HN19: =Timing!HN19 -> 0 | HO19: =Timing!HO19 -> 0 | HP19: =Timing!HP19 -> 0 | HQ19: =Timing!HQ19 -> 0 | HR19: =Timing!HR19 -> 0 | HS19: =Timing!HS19 -> 0 | HT19: =Timing!HT19 -> 0 | HU19: =Timing!HU19 -> 0 | HV19: =Timing!HV19 -> 0 | HW19: =Timing!HW19 -> 0 | HX19: =Timing!HX19 -> 0 | HY19: =Timing!HY19 -> 0 | HZ19: =Timing!HZ19 -> 0 | IA19: =Timing!IA19 -> 0 | IB19: =Timing!IB19 -> 0 | IC19: =Timing!IC19 -> 0 | ID19: =Timing!ID19 -> 0 | IE19: =Timing!IE19 -> 0 | IF19: =Timing!IF19 -> 0 | IG19: =Timing!IG19 -> 0 | IH19: =Timing!IH19 -> 0 | II19: =Timing!II19 -> 0 | IJ19: =Timing!IJ19 -> 0 | IK19: =Timing!IK19 -> 0 | IL19: =Timing!IL19 -> 0 | IM19: =Timing!IM19 -> 0 | IN19: =Timing!IN19 -> 0 | IO19: =Timing!IO19 -> 0 | IP19: =Timing!IP19 -> 0 | IQ19: =Timing!IQ19 -> 0 | IR19: =Timing!IR19 -> 0 | IS19: =Timing!IS19 -> 0 | IT19: =Timing!IT19 -> 0 | IU19: =Timing!IU19 -> 0
C20: Operations Year Counter | D20: Num | J20: =Timing!J20 -> 0 | K20: =Timing!K20 -> 0 | L20: =Timing!L20 -> 0 | M20: =Timing!M20 -> 0 | N20: =Timing!N20 -> 0 | O20: =Timing!O20 -> 0 | P20: =Timing!P20 -> 0 | Q20: =Timing!Q20 -> 0 | R20: =Timing!R20 -> 0 | S20: =Timing!S20 -> 0 | T20: =Timing!T20 -> 0 | U20: =Timing!U20 -> 0 | V20: =Timing!V20 -> 0 | W20: =Timing!W20 -> 0 | X20: =Timing!X20 -> 0 | Y20: =Timing!Y20 -> 0 | Z20: =Timing!Z20 -> 1 | AA20: =Timing!AA20 -> 0 | AB20: =Timing!AB20 -> 0 | AC20: =Timing!AC20 -> 0 | AD20: =Timing!AD20 -> 1 | AE20: =Timing!AE20 -> 0 | AF20: =Timing!AF20 -> 0 | AG20: =Timing!AG20 -> 0 | AH20: =Timing!AH20 -> 1 | AI20: =Timing!AI20 -> 0 | AJ20: =Timing!AJ20 -> 0 | AK20: =Timing!AK20 -> 0 | AL20: =Timing!AL20 -> 1 | AM20: =Timing!AM20 -> 0 | AN20: =Timing!AN20 -> 0 | AO20: =Timing!AO20 -> 0 | AP20: =Timing!AP20 -> 1 | AQ20: =Timing!AQ20 -> 0 | AR20: =Timing!AR20 -> 0 | AS20: =Timing!AS20 -> 0 | AT20: =Timing!AT20 -> 1 | AU20: =Timing!AU20 -> 0 | AV20: =Timing!AV20 -> 0 | AW20: =Timing!AW20 -> 0 | AX20: =Timing!AX20 -> 1 | AY20: =Timing!AY20 -> 0 | AZ20: =Timing!AZ20 -> 0 | BA20: =Timing!BA20 -> 0 | BB20: =Timing!BB20 -> 1 | BC20: =Timing!BC20 -> 0 | BD20: =Timing!BD20 -> 0 | BE20: =Timing!BE20 -> 0 | BF20: =Timing!BF20 -> 1 | BG20: =Timing!BG20 -> 0 | BH20: =Timing!BH20 -> 0 | BI20: =Timing!BI20 -> 0 | BJ20: =Timing!BJ20 -> 1 | BK20: =Timing!BK20 -> 0 | BL20: =Timing!BL20 -> 0 | BM20: =Timing!BM20 -> 0 | BN20: =Timing!BN20 -> 1 | BO20: =Timing!BO20 -> 0 | BP20: =Timing!BP20 -> 0 | BQ20: =Timing!BQ20 -> 0 | BR20: =Timing!BR20 -> 1 | BS20: =Timing!BS20 -> 0 | BT20: =Timing!BT20 -> 0 | BU20: =Timing!BU20 -> 0 | BV20: =Timing!BV20 -> 1 | BW20: =Timing!BW20 -> 0 | BX20: =Timing!BX20 -> 0 | BY20: =Timing!BY20 -> 0 | BZ20: =Timing!BZ20 -> 1 | CA20: =Timing!CA20 -> 0 | CB20: =Timing!CB20 -> 0 | CC20: =Timing!CC20 -> 0 | CD20: =Timing!CD20 -> 1 | CE20: =Timing!CE20 -> 0 | CF20: =Timing!CF20 -> 0 | CG20: =Timing!CG20 -> 0 | CH20: =Timing!CH20 -> 1 | CI20: =Timing!CI20 -> 0 | CJ20: =Timing!CJ20 -> 0 | CK20: =Timing!CK20 -> 0 | CL20: =Timing!CL20 -> 1 | CM20: =Timing!CM20 -> 0 | CN20: =Timing!CN20 -> 0 | CO20: =Timing!CO20 -> 0 | CP20: =Timing!CP20 -> 1 | CQ20: =Timing!CQ20 -> 0 | CR20: =Timing!CR20 -> 0 | CS20: =Timing!CS20 -> 0 | CT20: =Timing!CT20 -> 1 | CU20: =Timing!CU20 -> 0 | CV20: =Timing!CV20 -> 0 | CW20: =Timing!CW20 -> 0 | CX20: =Timing!CX20 -> 1 | CY20: =Timing!CY20 -> 0 | CZ20: =Timing!CZ20 -> 0 | DA20: =Timing!DA20 -> 0 | DB20: =Timing!DB20 -> 1 | DC20: =Timing!DC20 -> 0 | DD20: =Timing!DD20 -> 0 | DE20: =Timing!DE20 -> 0 | DF20: =Timing!DF20 -> 1 | DG20: =Timing!DG20 -> 0 | DH20: =Timing!DH20 -> 0 | DI20: =Timing!DI20 -> 0 | DJ20: =Timing!DJ20 -> 1 | DK20: =Timing!DK20 -> 0 | DL20: =Timing!DL20 -> 0 | DM20: =Timing!DM20 -> 0 | DN20: =Timing!DN20 -> 1 | DO20: =Timing!DO20 -> 0 | DP20: =Timing!DP20 -> 0 | DQ20: =Timing!DQ20 -> 0 | DR20: =Timing!DR20 -> 1 | DS20: =Timing!DS20 -> 0 | DT20: =Timing!DT20 -> 0 | DU20: =Timing!DU20 -> 0 | DV20: =Timing!DV20 -> 1 | DW20: =Timing!DW20 -> 0 | DX20: =Timing!DX20 -> 0 | DY20: =Timing!DY20 -> 0 | DZ20: =Timing!DZ20 -> 1 | EA20: =Timing!EA20 -> 0 | EB20: =Timing!EB20 -> 0 | EC20: =Timing!EC20 -> 0 | ED20: =Timing!ED20 -> 1 | EE20: =Timing!EE20 -> 0 | EF20: =Timing!EF20 -> 0 | EG20: =Timing!EG20 -> 0 | EH20: =Timing!EH20 -> 1 | EI20: =Timing!EI20 -> 0 | EJ20: =Timing!EJ20 -> 0 | EK20: =Timing!EK20 -> 0 | EL20: =Timing!EL20 -> 1 | EM20: =Timing!EM20 -> 0 | EN20: =Timing!EN20 -> 0 | EO20: =Timing!EO20 -> 0 | EP20: =Timing!EP20 -> 1 | EQ20: =Timing!EQ20 -> 0 | ER20: =Timing!ER20 -> 0 | ES20: =Timing!ES20 -> 0 | ET20: =Timing!ET20 -> 1 | EU20: =Timing!EU20 -> 0 | EV20: =Timing!EV20 -> 0 | EW20: =Timing!EW20 -> 0 | EX20: =Timing!EX20 -> 1 | EY20: =Timing!EY20 -> 0 | EZ20: =Timing!EZ20 -> 0 | FA20: =Timing!FA20 -> 0 | FB20: =Timing!FB20 -> 1 | FC20: =Timing!FC20 -> 0 | FD20: =Timing!FD20 -> 0 | FE20: =Timing!FE20 -> 0 | FF20: =Timing!FF20 -> 1 | FG20: =Timing!FG20 -> 0 | FH20: =Timing!FH20 -> 0 | FI20: =Timing!FI20 -> 0 | FJ20: =Timing!FJ20 -> 1 | FK20: =Timing!FK20 -> 0 | FL20: =Timing!FL20 -> 0 | FM20: =Timing!FM20 -> 0 | FN20: =Timing!FN20 -> 1 | FO20: =Timing!FO20 -> 0 | FP20: =Timing!FP20 -> 0 | FQ20: =Timing!FQ20 -> 0 | FR20: =Timing!FR20 -> 1 | FS20: =Timing!FS20 -> 0 | FT20: =Timing!FT20 -> 0 | FU20: =Timing!FU20 -> 0 | FV20: =Timing!FV20 -> 1 | FW20: =Timing!FW20 -> 0 | FX20: =Timing!FX20 -> 0 | FY20: =Timing!FY20 -> 0 | FZ20: =Timing!FZ20 -> 1 | GA20: =Timing!GA20 -> 0 | GB20: =Timing!GB20 -> 0 | GC20: =Timing!GC20 -> 0 | GD20: =Timing!GD20 -> 1 | GE20: =Timing!GE20 -> 0 | GF20: =Timing!GF20 -> 0 | GG20: =Timing!GG20 -> 0 | GH20: =Timing!GH20 -> 1 | GI20: =Timing!GI20 -> 0 | GJ20: =Timing!GJ20 -> 0 | GK20: =Timing!GK20 -> 0 | GL20: =Timing!GL20 -> 1 | GM20: =Timing!GM20 -> 0 | GN20: =Timing!GN20 -> 0 | GO20: =Timing!GO20 -> 0 | GP20: =Timing!GP20 -> 1 | GQ20: =Timing!GQ20 -> 0 | GR20: =Timing!GR20 -> 0 | GS20: =Timing!GS20 -> 0 | GT20: =Timing!GT20 -> 1 | GU20: =Timing!GU20 -> 0 | GV20: =Timing!GV20 -> 0 | GW20: =Timing!GW20 -> 0 | GX20: =Timing!GX20 -> 1 | GY20: =Timing!GY20 -> 0 | GZ20: =Timing!GZ20 -> 0 | HA20: =Timing!HA20 -> 0 | HB20: =Timing!HB20 -> 1 | HC20: =Timing!HC20 -> 0 | HD20: =Timing!HD20 -> 0 | HE20: =Timing!HE20 -> 0 | HF20: =Timing!HF20 -> 1 | HG20: =Timing!HG20 -> 0 | HH20: =Timing!HH20 -> 0 | HI20: =Timing!HI20 -> 0 | HJ20: =Timing!HJ20 -> 1 | HK20: =Timing!HK20 -> 0 | HL20: =Timing!HL20 -> 0 | HM20: =Timing!HM20 -> 0 | HN20: =Timing!HN20 -> 1 | HO20: =Timing!HO20 -> 0 | HP20: =Timing!HP20 -> 0 | HQ20: =Timing!HQ20 -> 0 | HR20: =Timing!HR20 -> 0 | HS20: =Timing!HS20 -> 0 | HT20: =Timing!HT20 -> 0 | HU20: =Timing!HU20 -> 0 | HV20: =Timing!HV20 -> 0 | HW20: =Timing!HW20 -> 0 | HX20: =Timing!HX20 -> 0 | HY20: =Timing!HY20 -> 0 | HZ20: =Timing!HZ20 -> 0 | IA20: =Timing!IA20 -> 0 | IB20: =Timing!IB20 -> 0 | IC20: =Timing!IC20 -> 0 | ID20: =Timing!ID20 -> 0 | IE20: =Timing!IE20 -> 0 | IF20: =Timing!IF20 -> 0 | IG20: =Timing!IG20 -> 0 | IH20: =Timing!IH20 -> 0 | II20: =Timing!II20 -> 0 | IJ20: =Timing!IJ20 -> 0 | IK20: =Timing!IK20 -> 0 | IL20: =Timing!IL20 -> 0 | IM20: =Timing!IM20 -> 0 | IN20: =Timing!IN20 -> 0 | IO20: =Timing!IO20 -> 0 | IP20: =Timing!IP20 -> 0 | IQ20: =Timing!IQ20 -> 0 | IR20: =Timing!IR20 -> 0 | IS20: =Timing!IS20 -> 0 | IT20: =Timing!IT20 -> 0 | IU20: =Timing!IU20 -> 0
C22: Cons / Ops Counters
C23: Construction Quarter Counter | D23: Num | J23: =Timing!J23 -> 0 | K23: =Timing!K23 -> 0 | L23: =Timing!L23 -> 0 | M23: =Timing!M23 -> 0 | N23: =Timing!N23 -> 0 | O23: =Timing!O23 -> 0 | P23: =Timing!P23 -> 0 | Q23: =Timing!Q23 -> 0 | R23: =Timing!R23 -> 1 | S23: =Timing!S23 -> 2 | T23: =Timing!T23 -> 3 | U23: =Timing!U23 -> 4 | V23: =Timing!V23 -> 5 | W23: =Timing!W23 -> 6 | X23: =Timing!X23 -> 0 | Y23: =Timing!Y23 -> 0 | Z23: =Timing!Z23 -> 0 | AA23: =Timing!AA23 -> 0 | AB23: =Timing!AB23 -> 0 | AC23: =Timing!AC23 -> 0 | AD23: =Timing!AD23 -> 0 | AE23: =Timing!AE23 -> 0 | AF23: =Timing!AF23 -> 0 | AG23: =Timing!AG23 -> 0 | AH23: =Timing!AH23 -> 0 | AI23: =Timing!AI23 -> 0 | AJ23: =Timing!AJ23 -> 0 | AK23: =Timing!AK23 -> 0 | AL23: =Timing!AL23 -> 0 | AM23: =Timing!AM23 -> 0 | AN23: =Timing!AN23 -> 0 | AO23: =Timing!AO23 -> 0 | AP23: =Timing!AP23 -> 0 | AQ23: =Timing!AQ23 -> 0 | AR23: =Timing!AR23 -> 0 | AS23: =Timing!AS23 -> 0 | AT23: =Timing!AT23 -> 0 | AU23: =Timing!AU23 -> 0 | AV23: =Timing!AV23 -> 0 | AW23: =Timing!AW23 -> 0 | AX23: =Timing!AX23 -> 0 | AY23: =Timing!AY23 -> 0 | AZ23: =Timing!AZ23 -> 0 | BA23: =Timing!BA23 -> 0 | BB23: =Timing!BB23 -> 0 | BC23: =Timing!BC23 -> 0 | BD23: =Timing!BD23 -> 0 | BE23: =Timing!BE23 -> 0 | BF23: =Timing!BF23 -> 0 | BG23: =Timing!BG23 -> 0 | BH23: =Timing!BH23 -> 0 | BI23: =Timing!BI23 -> 0 | BJ23: =Timing!BJ23 -> 0 | BK23: =Timing!BK23 -> 0 | BL23: =Timing!BL23 -> 0 | BM23: =Timing!BM23 -> 0 | BN23: =Timing!BN23 -> 0 | BO23: =Timing!BO23 -> 0 | BP23: =Timing!BP23 -> 0 | BQ23: =Timing!BQ23 -> 0 | BR23: =Timing!BR23 -> 0 | BS23: =Timing!BS23 -> 0 | BT23: =Timing!BT23 -> 0 | BU23: =Timing!BU23 -> 0 | BV23: =Timing!BV23 -> 0 | BW23: =Timing!BW23 -> 0 | BX23: =Timing!BX23 -> 0 | BY23: =Timing!BY23 -> 0 | BZ23: =Timing!BZ23 -> 0 | CA23: =Timing!CA23 -> 0 | CB23: =Timing!CB23 -> 0 | CC23: =Timing!CC23 -> 0 | CD23: =Timing!CD23 -> 0 | CE23: =Timing!CE23 -> 0 | CF23: =Timing!CF23 -> 0 | CG23: =Timing!CG23 -> 0 | CH23: =Timing!CH23 -> 0 | CI23: =Timing!CI23 -> 0 | CJ23: =Timing!CJ23 -> 0 | CK23: =Timing!CK23 -> 0 | CL23: =Timing!CL23 -> 0 | CM23: =Timing!CM23 -> 0 | CN23: =Timing!CN23 -> 0 | CO23: =Timing!CO23 -> 0 | CP23: =Timing!CP23 -> 0 | CQ23: =Timing!CQ23 -> 0 | CR23: =Timing!CR23 -> 0 | CS23: =Timing!CS23 -> 0 | CT23: =Timing!CT23 -> 0 | CU23: =Timing!CU23 -> 0 | CV23: =Timing!CV23 -> 0 | CW23: =Timing!CW23 -> 0 | CX23: =Timing!CX23 -> 0 | CY23: =Timing!CY23 -> 0 | CZ23: =Timing!CZ23 -> 0 | DA23: =Timing!DA23 -> 0 | DB23: =Timing!DB23 -> 0 | DC23: =Timing!DC23 -> 0 | DD23: =Timing!DD23 -> 0 | DE23: =Timing!DE23 -> 0 | DF23: =Timing!DF23 -> 0 | DG23: =Timing!DG23 -> 0 | DH23: =Timing!DH23 -> 0 | DI23: =Timing!DI23 -> 0 | DJ23: =Timing!DJ23 -> 0 | DK23: =Timing!DK23 -> 0 | DL23: =Timing!DL23 -> 0 | DM23: =Timing!DM23 -> 0 | DN23: =Timing!DN23 -> 0 | DO23: =Timing!DO23 -> 0 | DP23: =Timing!DP23 -> 0 | DQ23: =Timing!DQ23 -> 0 | DR23: =Timing!DR23 -> 0 | DS23: =Timing!DS23 -> 0 | DT23: =Timing!DT23 -> 0 | DU23: =Timing!DU23 -> 0 | DV23: =Timing!DV23 -> 0 | DW23: =Timing!DW23 -> 0 | DX23: =Timing!DX23 -> 0 | DY23: =Timing!DY23 -> 0 | DZ23: =Timing!DZ23 -> 0 | EA23: =Timing!EA23 -> 0 | EB23: =Timing!EB23 -> 0 | EC23: =Timing!EC23 -> 0 | ED23: =Timing!ED23 -> 0 | EE23: =Timing!EE23 -> 0 | EF23: =Timing!EF23 -> 0 | EG23: =Timing!EG23 -> 0 | EH23: =Timing!EH23 -> 0 | EI23: =Timing!EI23 -> 0 | EJ23: =Timing!EJ23 -> 0 | EK23: =Timing!EK23 -> 0 | EL23: =Timing!EL23 -> 0 | EM23: =Timing!EM23 -> 0 | EN23: =Timing!EN23 -> 0 | EO23: =Timing!EO23 -> 0 | EP23: =Timing!EP23 -> 0 | EQ23: =Timing!EQ23 -> 0 | ER23: =Timing!ER23 -> 0 | ES23: =Timing!ES23 -> 0 | ET23: =Timing!ET23 -> 0 | EU23: =Timing!EU23 -> 0 | EV23: =Timing!EV23 -> 0 | EW23: =Timing!EW23 -> 0 | EX23: =Timing!EX23 -> 0 | EY23: =Timing!EY23 -> 0 | EZ23: =Timing!EZ23 -> 0 | FA23: =Timing!FA23 -> 0 | FB23: =Timing!FB23 -> 0 | FC23: =Timing!FC23 -> 0 | FD23: =Timing!FD23 -> 0 | FE23: =Timing!FE23 -> 0 | FF23: =Timing!FF23 -> 0 | FG23: =Timing!FG23 -> 0 | FH23: =Timing!FH23 -> 0 | FI23: =Timing!FI23 -> 0 | FJ23: =Timing!FJ23 -> 0 | FK23: =Timing!FK23 -> 0 | FL23: =Timing!FL23 -> 0 | FM23: =Timing!FM23 -> 0 | FN23: =Timing!FN23 -> 0 | FO23: =Timing!FO23 -> 0 | FP23: =Timing!FP23 -> 0 | FQ23: =Timing!FQ23 -> 0 | FR23: =Timing!FR23 -> 0 | FS23: =Timing!FS23 -> 0 | FT23: =Timing!FT23 -> 0 | FU23: =Timing!FU23 -> 0 | FV23: =Timing!FV23 -> 0 | FW23: =Timing!FW23 -> 0 | FX23: =Timing!FX23 -> 0 | FY23: =Timing!FY23 -> 0 | FZ23: =Timing!FZ23 -> 0 | GA23: =Timing!GA23 -> 0 | GB23: =Timing!GB23 -> 0 | GC23: =Timing!GC23 -> 0 | GD23: =Timing!GD23 -> 0 | GE23: =Timing!GE23 -> 0 | GF23: =Timing!GF23 -> 0 | GG23: =Timing!GG23 -> 0 | GH23: =Timing!GH23 -> 0 | GI23: =Timing!GI23 -> 0 | GJ23: =Timing!GJ23 -> 0 | GK23: =Timing!GK23 -> 0 | GL23: =Timing!GL23 -> 0 | GM23: =Timing!GM23 -> 0 | GN23: =Timing!GN23 -> 0 | GO23: =Timing!GO23 -> 0 | GP23: =Timing!GP23 -> 0 | GQ23: =Timing!GQ23 -> 0 | GR23: =Timing!GR23 -> 0 | GS23: =Timing!GS23 -> 0 | GT23: =Timing!GT23 -> 0 | GU23: =Timing!GU23 -> 0 | GV23: =Timing!GV23 -> 0 | GW23: =Timing!GW23 -> 0 | GX23: =Timing!GX23 -> 0 | GY23: =Timing!GY23 -> 0 | GZ23: =Timing!GZ23 -> 0 | HA23: =Timing!HA23 -> 0 | HB23: =Timing!HB23 -> 0 | HC23: =Timing!HC23 -> 0 | HD23: =Timing!HD23 -> 0 | HE23: =Timing!HE23 -> 0 | HF23: =Timing!HF23 -> 0 | HG23: =Timing!HG23 -> 0 | HH23: =Timing!HH23 -> 0 | HI23: =Timing!HI23 -> 0 | HJ23: =Timing!HJ23 -> 0 | HK23: =Timing!HK23 -> 0 | HL23: =Timing!HL23 -> 0 | HM23: =Timing!HM23 -> 0 | HN23: =Timing!HN23 -> 0 | HO23: =Timing!HO23 -> 0 | HP23: =Timing!HP23 -> 0 | HQ23: =Timing!HQ23 -> 0 | HR23: =Timing!HR23 -> 0 | HS23: =Timing!HS23 -> 0 | HT23: =Timing!HT23 -> 0 | HU23: =Timing!HU23 -> 0 | HV23: =Timing!HV23 -> 0 | HW23: =Timing!HW23 -> 0 | HX23: =Timing!HX23 -> 0 | HY23: =Timing!HY23 -> 0 | HZ23: =Timing!HZ23 -> 0 | IA23: =Timing!IA23 -> 0 | IB23: =Timing!IB23 -> 0 | IC23: =Timing!IC23 -> 0 | ID23: =Timing!ID23 -> 0 | IE23: =Timing!IE23 -> 0 | IF23: =Timing!IF23 -> 0 | IG23: =Timing!IG23 -> 0 | IH23: =Timing!IH23 -> 0 | II23: =Timing!II23 -> 0 | IJ23: =Timing!IJ23 -> 0 | IK23: =Timing!IK23 -> 0 | IL23: =Timing!IL23 -> 0 | IM23: =Timing!IM23 -> 0 | IN23: =Timing!IN23 -> 0 | IO23: =Timing!IO23 -> 0 | IP23: =Timing!IP23 -> 0 | IQ23: =Timing!IQ23 -> 0 | IR23: =Timing!IR23 -> 0 | IS23: =Timing!IS23 -> 0 | IT23: =Timing!IT23 -> 0 | IU23: =Timing!IU23 -> 0
C24: Construction Year Counter | D24: Num | J24: =Timing!J24 -> 0 | K24: =Timing!K24 -> 0 | L24: =Timing!L24 -> 0 | M24: =Timing!M24 -> 0 | N24: =Timing!N24 -> 0 | O24: =Timing!O24 -> 0 | P24: =Timing!P24 -> 0 | Q24: =Timing!Q24 -> 0 | R24: =Timing!R24 -> 1 | S24: =Timing!S24 -> 1 | T24: =Timing!T24 -> 1 | U24: =Timing!U24 -> 1 | V24: =Timing!V24 -> 2 | W24: =Timing!W24 -> 2 | X24: =Timing!X24 -> 0 | Y24: =Timing!Y24 -> 0 | Z24: =Timing!Z24 -> 0 | AA24: =Timing!AA24 -> 0 | AB24: =Timing!AB24 -> 0 | AC24: =Timing!AC24 -> 0 | AD24: =Timing!AD24 -> 0 | AE24: =Timing!AE24 -> 0 | AF24: =Timing!AF24 -> 0 | AG24: =Timing!AG24 -> 0 | AH24: =Timing!AH24 -> 0 | AI24: =Timing!AI24 -> 0 | AJ24: =Timing!AJ24 -> 0 | AK24: =Timing!AK24 -> 0 | AL24: =Timing!AL24 -> 0 | AM24: =Timing!AM24 -> 0 | AN24: =Timing!AN24 -> 0 | AO24: =Timing!AO24 -> 0 | AP24: =Timing!AP24 -> 0 | AQ24: =Timing!AQ24 -> 0 | AR24: =Timing!AR24 -> 0 | AS24: =Timing!AS24 -> 0 | AT24: =Timing!AT24 -> 0 | AU24: =Timing!AU24 -> 0 | AV24: =Timing!AV24 -> 0 | AW24: =Timing!AW24 -> 0 | AX24: =Timing!AX24 -> 0 | AY24: =Timing!AY24 -> 0 | AZ24: =Timing!AZ24 -> 0 | BA24: =Timing!BA24 -> 0 | BB24: =Timing!BB24 -> 0 | BC24: =Timing!BC24 -> 0 | BD24: =Timing!BD24 -> 0 | BE24: =Timing!BE24 -> 0 | BF24: =Timing!BF24 -> 0 | BG24: =Timing!BG24 -> 0 | BH24: =Timing!BH24 -> 0 | BI24: =Timing!BI24 -> 0 | BJ24: =Timing!BJ24 -> 0 | BK24: =Timing!BK24 -> 0 | BL24: =Timing!BL24 -> 0 | BM24: =Timing!BM24 -> 0 | BN24: =Timing!BN24 -> 0 | BO24: =Timing!BO24 -> 0 | BP24: =Timing!BP24 -> 0 | BQ24: =Timing!BQ24 -> 0 | BR24: =Timing!BR24 -> 0 | BS24: =Timing!BS24 -> 0 | BT24: =Timing!BT24 -> 0 | BU24: =Timing!BU24 -> 0 | BV24: =Timing!BV24 -> 0 | BW24: =Timing!BW24 -> 0 | BX24: =Timing!BX24 -> 0 | BY24: =Timing!BY24 -> 0 | BZ24: =Timing!BZ24 -> 0 | CA24: =Timing!CA24 -> 0 | CB24: =Timing!CB24 -> 0 | CC24: =Timing!CC24 -> 0 | CD24: =Timing!CD24 -> 0 | CE24: =Timing!CE24 -> 0 | CF24: =Timing!CF24 -> 0 | CG24: =Timing!CG24 -> 0 | CH24: =Timing!CH24 -> 0 | CI24: =Timing!CI24 -> 0 | CJ24: =Timing!CJ24 -> 0 | CK24: =Timing!CK24 -> 0 | CL24: =Timing!CL24 -> 0 | CM24: =Timing!CM24 -> 0 | CN24: =Timing!CN24 -> 0 | CO24: =Timing!CO24 -> 0 | CP24: =Timing!CP24 -> 0 | CQ24: =Timing!CQ24 -> 0 | CR24: =Timing!CR24 -> 0 | CS24: =Timing!CS24 -> 0 | CT24: =Timing!CT24 -> 0 | CU24: =Timing!CU24 -> 0 | CV24: =Timing!CV24 -> 0 | CW24: =Timing!CW24 -> 0 | CX24: =Timing!CX24 -> 0 | CY24: =Timing!CY24 -> 0 | CZ24: =Timing!CZ24 -> 0 | DA24: =Timing!DA24 -> 0 | DB24: =Timing!DB24 -> 0 | DC24: =Timing!DC24 -> 0 | DD24: =Timing!DD24 -> 0 | DE24: =Timing!DE24 -> 0 | DF24: =Timing!DF24 -> 0 | DG24: =Timing!DG24 -> 0 | DH24: =Timing!DH24 -> 0 | DI24: =Timing!DI24 -> 0 | DJ24: =Timing!DJ24 -> 0 | DK24: =Timing!DK24 -> 0 | DL24: =Timing!DL24 -> 0 | DM24: =Timing!DM24 -> 0 | DN24: =Timing!DN24 -> 0 | DO24: =Timing!DO24 -> 0 | DP24: =Timing!DP24 -> 0 | DQ24: =Timing!DQ24 -> 0 | DR24: =Timing!DR24 -> 0 | DS24: =Timing!DS24 -> 0 | DT24: =Timing!DT24 -> 0 | DU24: =Timing!DU24 -> 0 | DV24: =Timing!DV24 -> 0 | DW24: =Timing!DW24 -> 0 | DX24: =Timing!DX24 -> 0 | DY24: =Timing!DY24 -> 0 | DZ24: =Timing!DZ24 -> 0 | EA24: =Timing!EA24 -> 0 | EB24: =Timing!EB24 -> 0 | EC24: =Timing!EC24 -> 0 | ED24: =Timing!ED24 -> 0 | EE24: =Timing!EE24 -> 0 | EF24: =Timing!EF24 -> 0 | EG24: =Timing!EG24 -> 0 | EH24: =Timing!EH24 -> 0 | EI24: =Timing!EI24 -> 0 | EJ24: =Timing!EJ24 -> 0 | EK24: =Timing!EK24 -> 0 | EL24: =Timing!EL24 -> 0 | EM24: =Timing!EM24 -> 0 | EN24: =Timing!EN24 -> 0 | EO24: =Timing!EO24 -> 0 | EP24: =Timing!EP24 -> 0 | EQ24: =Timing!EQ24 -> 0 | ER24: =Timing!ER24 -> 0 | ES24: =Timing!ES24 -> 0 | ET24: =Timing!ET24 -> 0 | EU24: =Timing!EU24 -> 0 | EV24: =Timing!EV24 -> 0 | EW24: =Timing!EW24 -> 0 | EX24: =Timing!EX24 -> 0 | EY24: =Timing!EY24 -> 0 | EZ24: =Timing!EZ24 -> 0 | FA24: =Timing!FA24 -> 0 | FB24: =Timing!FB24 -> 0 | FC24: =Timing!FC24 -> 0 | FD24: =Timing!FD24 -> 0 | FE24: =Timing!FE24 -> 0 | FF24: =Timing!FF24 -> 0 | FG24: =Timing!FG24 -> 0 | FH24: =Timing!FH24 -> 0 | FI24: =Timing!FI24 -> 0 | FJ24: =Timing!FJ24 -> 0 | FK24: =Timing!FK24 -> 0 | FL24: =Timing!FL24 -> 0 | FM24: =Timing!FM24 -> 0 | FN24: =Timing!FN24 -> 0 | FO24: =Timing!FO24 -> 0 | FP24: =Timing!FP24 -> 0 | FQ24: =Timing!FQ24 -> 0 | FR24: =Timing!FR24 -> 0 | FS24: =Timing!FS24 -> 0 | FT24: =Timing!FT24 -> 0 | FU24: =Timing!FU24 -> 0 | FV24: =Timing!FV24 -> 0 | FW24: =Timing!FW24 -> 0 | FX24: =Timing!FX24 -> 0 | FY24: =Timing!FY24 -> 0 | FZ24: =Timing!FZ24 -> 0 | GA24: =Timing!GA24 -> 0 | GB24: =Timing!GB24 -> 0 | GC24: =Timing!GC24 -> 0 | GD24: =Timing!GD24 -> 0 | GE24: =Timing!GE24 -> 0 | GF24: =Timing!GF24 -> 0 | GG24: =Timing!GG24 -> 0 | GH24: =Timing!GH24 -> 0 | GI24: =Timing!GI24 -> 0 | GJ24: =Timing!GJ24 -> 0 | GK24: =Timing!GK24 -> 0 | GL24: =Timing!GL24 -> 0 | GM24: =Timing!GM24 -> 0 | GN24: =Timing!GN24 -> 0 | GO24: =Timing!GO24 -> 0 | GP24: =Timing!GP24 -> 0 | GQ24: =Timing!GQ24 -> 0 | GR24: =Timing!GR24 -> 0 | GS24: =Timing!GS24 -> 0 | GT24: =Timing!GT24 -> 0 | GU24: =Timing!GU24 -> 0 | GV24: =Timing!GV24 -> 0 | GW24: =Timing!GW24 -> 0 | GX24: =Timing!GX24 -> 0 | GY24: =Timing!GY24 -> 0 | GZ24: =Timing!GZ24 -> 0 | HA24: =Timing!HA24 -> 0 | HB24: =Timing!HB24 -> 0 | HC24: =Timing!HC24 -> 0 | HD24: =Timing!HD24 -> 0 | HE24: =Timing!HE24 -> 0 | HF24: =Timing!HF24 -> 0 | HG24: =Timing!HG24 -> 0 | HH24: =Timing!HH24 -> 0 | HI24: =Timing!HI24 -> 0 | HJ24: =Timing!HJ24 -> 0 | HK24: =Timing!HK24 -> 0 | HL24: =Timing!HL24 -> 0 | HM24: =Timing!HM24 -> 0 | HN24: =Timing!HN24 -> 0 | HO24: =Timing!HO24 -> 0 | HP24: =Timing!HP24 -> 0 | HQ24: =Timing!HQ24 -> 0 | HR24: =Timing!HR24 -> 0 | HS24: =Timing!HS24 -> 0 | HT24: =Timing!HT24 -> 0 | HU24: =Timing!HU24 -> 0 | HV24: =Timing!HV24 -> 0 | HW24: =Timing!HW24 -> 0 | HX24: =Timing!HX24 -> 0 | HY24: =Timing!HY24 -> 0 | HZ24: =Timing!HZ24 -> 0 | IA24: =Timing!IA24 -> 0 | IB24: =Timing!IB24 -> 0 | IC24: =Timing!IC24 -> 0 | ID24: =Timing!ID24 -> 0 | IE24: =Timing!IE24 -> 0 | IF24: =Timing!IF24 -> 0 | IG24: =Timing!IG24 -> 0 | IH24: =Timing!IH24 -> 0 | II24: =Timing!II24 -> 0 | IJ24: =Timing!IJ24 -> 0 | IK24: =Timing!IK24 -> 0 | IL24: =Timing!IL24 -> 0 | IM24: =Timing!IM24 -> 0 | IN24: =Timing!IN24 -> 0 | IO24: =Timing!IO24 -> 0 | IP24: =Timing!IP24 -> 0 | IQ24: =Timing!IQ24 -> 0 | IR24: =Timing!IR24 -> 0 | IS24: =Timing!IS24 -> 0 | IT24: =Timing!IT24 -> 0 | IU24: =Timing!IU24 -> 0
C25: Operations Quarter Counter | D25: Num | J25: =Timing!J25 -> 0 | K25: =Timing!K25 -> 0 | L25: =Timing!L25 -> 0 | M25: =Timing!M25 -> 0 | N25: =Timing!N25 -> 0 | O25: =Timing!O25 -> 0 | P25: =Timing!P25 -> 0 | Q25: =Timing!Q25 -> 0 | R25: =Timing!R25 -> 0 | S25: =Timing!S25 -> 0 | T25: =Timing!T25 -> 0 | U25: =Timing!U25 -> 0 | V25: =Timing!V25 -> 0 | W25: =Timing!W25 -> 0 | X25: =Timing!X25 -> 1 | Y25: =Timing!Y25 -> 2 | Z25: =Timing!Z25 -> 3 | AA25: =Timing!AA25 -> 4 | AB25: =Timing!AB25 -> 5 | AC25: =Timing!AC25 -> 6 | AD25: =Timing!AD25 -> 7 | AE25: =Timing!AE25 -> 8 | AF25: =Timing!AF25 -> 9 | AG25: =Timing!AG25 -> 10 | AH25: =Timing!AH25 -> 11 | AI25: =Timing!AI25 -> 12 | AJ25: =Timing!AJ25 -> 13 | AK25: =Timing!AK25 -> 14 | AL25: =Timing!AL25 -> 15 | AM25: =Timing!AM25 -> 16 | AN25: =Timing!AN25 -> 17 | AO25: =Timing!AO25 -> 18 | AP25: =Timing!AP25 -> 19 | AQ25: =Timing!AQ25 -> 20 | AR25: =Timing!AR25 -> 21 | AS25: =Timing!AS25 -> 22 | AT25: =Timing!AT25 -> 23 | AU25: =Timing!AU25 -> 24 | AV25: =Timing!AV25 -> 25 | AW25: =Timing!AW25 -> 26 | AX25: =Timing!AX25 -> 27 | AY25: =Timing!AY25 -> 28 | AZ25: =Timing!AZ25 -> 29 | BA25: =Timing!BA25 -> 30 | BB25: =Timing!BB25 -> 31 | BC25: =Timing!BC25 -> 32 | BD25: =Timing!BD25 -> 33 | BE25: =Timing!BE25 -> 34 | BF25: =Timing!BF25 -> 35 | BG25: =Timing!BG25 -> 36 | BH25: =Timing!BH25 -> 37 | BI25: =Timing!BI25 -> 38 | BJ25: =Timing!BJ25 -> 39 | BK25: =Timing!BK25 -> 40 | BL25: =Timing!BL25 -> 41 | BM25: =Timing!BM25 -> 42 | BN25: =Timing!BN25 -> 43 | BO25: =Timing!BO25 -> 44 | BP25: =Timing!BP25 -> 45 | BQ25: =Timing!BQ25 -> 46 | BR25: =Timing!BR25 -> 47 | BS25: =Timing!BS25 -> 48 | BT25: =Timing!BT25 -> 49 | BU25: =Timing!BU25 -> 50 | BV25: =Timing!BV25 -> 51 | BW25: =Timing!BW25 -> 52 | BX25: =Timing!BX25 -> 53 | BY25: =Timing!BY25 -> 54 | BZ25: =Timing!BZ25 -> 55 | CA25: =Timing!CA25 -> 56 | CB25: =Timing!CB25 -> 57 | CC25: =Timing!CC25 -> 58 | CD25: =Timing!CD25 -> 59 | CE25: =Timing!CE25 -> 60 | CF25: =Timing!CF25 -> 61 | CG25: =Timing!CG25 -> 62 | CH25: =Timing!CH25 -> 63 | CI25: =Timing!CI25 -> 64 | CJ25: =Timing!CJ25 -> 65 | CK25: =Timing!CK25 -> 66 | CL25: =Timing!CL25 -> 67 | CM25: =Timing!CM25 -> 68 | CN25: =Timing!CN25 -> 69 | CO25: =Timing!CO25 -> 70 | CP25: =Timing!CP25 -> 71 | CQ25: =Timing!CQ25 -> 72 | CR25: =Timing!CR25 -> 73 | CS25: =Timing!CS25 -> 74 | CT25: =Timing!CT25 -> 75 | CU25: =Timing!CU25 -> 76 | CV25: =Timing!CV25 -> 77 | CW25: =Timing!CW25 -> 78 | CX25: =Timing!CX25 -> 79 | CY25: =Timing!CY25 -> 80 | CZ25: =Timing!CZ25 -> 81 | DA25: =Timing!DA25 -> 82 | DB25: =Timing!DB25 -> 83 | DC25: =Timing!DC25 -> 84 | DD25: =Timing!DD25 -> 85 | DE25: =Timing!DE25 -> 86 | DF25: =Timing!DF25 -> 87 | DG25: =Timing!DG25 -> 88 | DH25: =Timing!DH25 -> 89 | DI25: =Timing!DI25 -> 90 | DJ25: =Timing!DJ25 -> 91 | DK25: =Timing!DK25 -> 92 | DL25: =Timing!DL25 -> 93 | DM25: =Timing!DM25 -> 94 | DN25: =Timing!DN25 -> 95 | DO25: =Timing!DO25 -> 96 | DP25: =Timing!DP25 -> 97 | DQ25: =Timing!DQ25 -> 98 | DR25: =Timing!DR25 -> 99 | DS25: =Timing!DS25 -> 100 | DT25: =Timing!DT25 -> 101 | DU25: =Timing!DU25 -> 102 | DV25: =Timing!DV25 -> 103 | DW25: =Timing!DW25 -> 104 | DX25: =Timing!DX25 -> 105 | DY25: =Timing!DY25 -> 106 | DZ25: =Timing!DZ25 -> 107 | EA25: =Timing!EA25 -> 108 | EB25: =Timing!EB25 -> 109 | EC25: =Timing!EC25 -> 110 | ED25: =Timing!ED25 -> 111 | EE25: =Timing!EE25 -> 112 | EF25: =Timing!EF25 -> 113 | EG25: =Timing!EG25 -> 114 | EH25: =Timing!EH25 -> 115 | EI25: =Timing!EI25 -> 116 | EJ25: =Timing!EJ25 -> 117 | EK25: =Timing!EK25 -> 118 | EL25: =Timing!EL25 -> 119 | EM25: =Timing!EM25 -> 120 | EN25: =Timing!EN25 -> 121 | EO25: =Timing!EO25 -> 122 | EP25: =Timing!EP25 -> 123 | EQ25: =Timing!EQ25 -> 124 | ER25: =Timing!ER25 -> 125 | ES25: =Timing!ES25 -> 126 | ET25: =Timing!ET25 -> 127 | EU25: =Timing!EU25 -> 128 | EV25: =Timing!EV25 -> 129 | EW25: =Timing!EW25 -> 130 | EX25: =Timing!EX25 -> 131 | EY25: =Timing!EY25 -> 132 | EZ25: =Timing!EZ25 -> 133 | FA25: =Timing!FA25 -> 134 | FB25: =Timing!FB25 -> 135 | FC25: =Timing!FC25 -> 136 | FD25: =Timing!FD25 -> 137 | FE25: =Timing!FE25 -> 138 | FF25: =Timing!FF25 -> 139 | FG25: =Timing!FG25 -> 140 | FH25: =Timing!FH25 -> 141 | FI25: =Timing!FI25 -> 142 | FJ25: =Timing!FJ25 -> 143 | FK25: =Timing!FK25 -> 144 | FL25: =Timing!FL25 -> 145 | FM25: =Timing!FM25 -> 146 | FN25: =Timing!FN25 -> 147 | FO25: =Timing!FO25 -> 148 | FP25: =Timing!FP25 -> 149 | FQ25: =Timing!FQ25 -> 150 | FR25: =Timing!FR25 -> 151 | FS25: =Timing!FS25 -> 152 | FT25: =Timing!FT25 -> 153 | FU25: =Timing!FU25 -> 154 | FV25: =Timing!FV25 -> 155 | FW25: =Timing!FW25 -> 156 | FX25: =Timing!FX25 -> 157 | FY25: =Timing!FY25 -> 158 | FZ25: =Timing!FZ25 -> 159 | GA25: =Timing!GA25 -> 160 | GB25: =Timing!GB25 -> 161 | GC25: =Timing!GC25 -> 162 | GD25: =Timing!GD25 -> 163 | GE25: =Timing!GE25 -> 164 | GF25: =Timing!GF25 -> 165 | GG25: =Timing!GG25 -> 166 | GH25: =Timing!GH25 -> 167 | GI25: =Timing!GI25 -> 168 | GJ25: =Timing!GJ25 -> 169 | GK25: =Timing!GK25 -> 170 | GL25: =Timing!GL25 -> 171 | GM25: =Timing!GM25 -> 172 | GN25: =Timing!GN25 -> 173 | GO25: =Timing!GO25 -> 174 | GP25: =Timing!GP25 -> 175 | GQ25: =Timing!GQ25 -> 176 | GR25: =Timing!GR25 -> 177 | GS25: =Timing!GS25 -> 178 | GT25: =Timing!GT25 -> 179 | GU25: =Timing!GU25 -> 180 | GV25: =Timing!GV25 -> 181 | GW25: =Timing!GW25 -> 182 | GX25: =Timing!GX25 -> 183 | GY25: =Timing!GY25 -> 184 | GZ25: =Timing!GZ25 -> 185 | HA25: =Timing!HA25 -> 186 | HB25: =Timing!HB25 -> 187 | HC25: =Timing!HC25 -> 188 | HD25: =Timing!HD25 -> 189 | HE25: =Timing!HE25 -> 190 | HF25: =Timing!HF25 -> 191 | HG25: =Timing!HG25 -> 192 | HH25: =Timing!HH25 -> 193 | HI25: =Timing!HI25 -> 194 | HJ25: =Timing!HJ25 -> 195 | HK25: =Timing!HK25 -> 196 | HL25: =Timing!HL25 -> 197 | HM25: =Timing!HM25 -> 198 | HN25: =Timing!HN25 -> 199 | HO25: =Timing!HO25 -> 200 | HP25: =Timing!HP25 -> 0 | HQ25: =Timing!HQ25 -> 0 | HR25: =Timing!HR25 -> 0 | HS25: =Timing!HS25 -> 0 | HT25: =Timing!HT25 -> 0 | HU25: =Timing!HU25 -> 0 | HV25: =Timing!HV25 -> 0 | HW25: =Timing!HW25 -> 0 | HX25: =Timing!HX25 -> 0 | HY25: =Timing!HY25 -> 0 | HZ25: =Timing!HZ25 -> 0 | IA25: =Timing!IA25 -> 0 | IB25: =Timing!IB25 -> 0 | IC25: =Timing!IC25 -> 0 | ID25: =Timing!ID25 -> 0 | IE25: =Timing!IE25 -> 0 | IF25: =Timing!IF25 -> 0 | IG25: =Timing!IG25 -> 0 | IH25: =Timing!IH25 -> 0 | II25: =Timing!II25 -> 0 | IJ25: =Timing!IJ25 -> 0 | IK25: =Timing!IK25 -> 0 | IL25: =Timing!IL25 -> 0 | IM25: =Timing!IM25 -> 0 | IN25: =Timing!IN25 -> 0 | IO25: =Timing!IO25 -> 0 | IP25: =Timing!IP25 -> 0 | IQ25: =Timing!IQ25 -> 0 | IR25: =Timing!IR25 -> 0 | IS25: =Timing!IS25 -> 0 | IT25: =Timing!IT25 -> 0 | IU25: =Timing!IU25 -> 0
C26: Operations Year Counter | D26: Num | J26: =Timing!J26 -> 0 | K26: =Timing!K26 -> 0 | L26: =Timing!L26 -> 0 | M26: =Timing!M26 -> 0 | N26: =Timing!N26 -> 0 | O26: =Timing!O26 -> 0 | P26: =Timing!P26 -> 0 | Q26: =Timing!Q26 -> 0 | R26: =Timing!R26 -> 0 | S26: =Timing!S26 -> 0 | T26: =Timing!T26 -> 0 | U26: =Timing!U26 -> 0 | V26: =Timing!V26 -> 0 | W26: =Timing!W26 -> 0 | X26: =Timing!X26 -> 1 | Y26: =Timing!Y26 -> 1 | Z26: =Timing!Z26 -> 1 | AA26: =Timing!AA26 -> 1 | AB26: =Timing!AB26 -> 2 | AC26: =Timing!AC26 -> 2 | AD26: =Timing!AD26 -> 2 | AE26: =Timing!AE26 -> 2 | AF26: =Timing!AF26 -> 3 | AG26: =Timing!AG26 -> 3 | AH26: =Timing!AH26 -> 3 | AI26: =Timing!AI26 -> 3 | AJ26: =Timing!AJ26 -> 4 | AK26: =Timing!AK26 -> 4 | AL26: =Timing!AL26 -> 4 | AM26: =Timing!AM26 -> 4 | AN26: =Timing!AN26 -> 5 | AO26: =Timing!AO26 -> 5 | AP26: =Timing!AP26 -> 5 | AQ26: =Timing!AQ26 -> 5 | AR26: =Timing!AR26 -> 6 | AS26: =Timing!AS26 -> 6 | AT26: =Timing!AT26 -> 6 | AU26: =Timing!AU26 -> 6 | AV26: =Timing!AV26 -> 7 | AW26: =Timing!AW26 -> 7 | AX26: =Timing!AX26 -> 7 | AY26: =Timing!AY26 -> 7 | AZ26: =Timing!AZ26 -> 8 | BA26: =Timing!BA26 -> 8 | BB26: =Timing!BB26 -> 8 | BC26: =Timing!BC26 -> 8 | BD26: =Timing!BD26 -> 9 | BE26: =Timing!BE26 -> 9 | BF26: =Timing!BF26 -> 9 | BG26: =Timing!BG26 -> 9 | BH26: =Timing!BH26 -> 10 | BI26: =Timing!BI26 -> 10 | BJ26: =Timing!BJ26 -> 10 | BK26: =Timing!BK26 -> 10 | BL26: =Timing!BL26 -> 11 | BM26: =Timing!BM26 -> 11 | BN26: =Timing!BN26 -> 11 | BO26: =Timing!BO26 -> 11 | BP26: =Timing!BP26 -> 12 | BQ26: =Timing!BQ26 -> 12 | BR26: =Timing!BR26 -> 12 | BS26: =Timing!BS26 -> 12 | BT26: =Timing!BT26 -> 13 | BU26: =Timing!BU26 -> 13 | BV26: =Timing!BV26 -> 13 | BW26: =Timing!BW26 -> 13 | BX26: =Timing!BX26 -> 14 | BY26: =Timing!BY26 -> 14 | BZ26: =Timing!BZ26 -> 14 | CA26: =Timing!CA26 -> 14 | CB26: =Timing!CB26 -> 15 | CC26: =Timing!CC26 -> 15 | CD26: =Timing!CD26 -> 15 | CE26: =Timing!CE26 -> 15 | CF26: =Timing!CF26 -> 16 | CG26: =Timing!CG26 -> 16 | CH26: =Timing!CH26 -> 16 | CI26: =Timing!CI26 -> 16 | CJ26: =Timing!CJ26 -> 17 | CK26: =Timing!CK26 -> 17 | CL26: =Timing!CL26 -> 17 | CM26: =Timing!CM26 -> 17 | CN26: =Timing!CN26 -> 18 | CO26: =Timing!CO26 -> 18 | CP26: =Timing!CP26 -> 18 | CQ26: =Timing!CQ26 -> 18 | CR26: =Timing!CR26 -> 19 | CS26: =Timing!CS26 -> 19 | CT26: =Timing!CT26 -> 19 | CU26: =Timing!CU26 -> 19 | CV26: =Timing!CV26 -> 20 | CW26: =Timing!CW26 -> 20 | CX26: =Timing!CX26 -> 20 | CY26: =Timing!CY26 -> 20 | CZ26: =Timing!CZ26 -> 21 | DA26: =Timing!DA26 -> 21 | DB26: =Timing!DB26 -> 21 | DC26: =Timing!DC26 -> 21 | DD26: =Timing!DD26 -> 22 | DE26: =Timing!DE26 -> 22 | DF26: =Timing!DF26 -> 22 | DG26: =Timing!DG26 -> 22 | DH26: =Timing!DH26 -> 23 | DI26: =Timing!DI26 -> 23 | DJ26: =Timing!DJ26 -> 23 | DK26: =Timing!DK26 -> 23 | DL26: =Timing!DL26 -> 24 | DM26: =Timing!DM26 -> 24 | DN26: =Timing!DN26 -> 24 | DO26: =Timing!DO26 -> 24 | DP26: =Timing!DP26 -> 25 | DQ26: =Timing!DQ26 -> 25 | DR26: =Timing!DR26 -> 25 | DS26: =Timing!DS26 -> 25 | DT26: =Timing!DT26 -> 26 | DU26: =Timing!DU26 -> 26 | DV26: =Timing!DV26 -> 26 | DW26: =Timing!DW26 -> 26 | DX26: =Timing!DX26 -> 27 | DY26: =Timing!DY26 -> 27 | DZ26: =Timing!DZ26 -> 27 | EA26: =Timing!EA26 -> 27 | EB26: =Timing!EB26 -> 28 | EC26: =Timing!EC26 -> 28 | ED26: =Timing!ED26 -> 28 | EE26: =Timing!EE26 -> 28 | EF26: =Timing!EF26 -> 29 | EG26: =Timing!EG26 -> 29 | EH26: =Timing!EH26 -> 29 | EI26: =Timing!EI26 -> 29 | EJ26: =Timing!EJ26 -> 30 | EK26: =Timing!EK26 -> 30 | EL26: =Timing!EL26 -> 30 | EM26: =Timing!EM26 -> 30 | EN26: =Timing!EN26 -> 31 | EO26: =Timing!EO26 -> 31 | EP26: =Timing!EP26 -> 31 | EQ26: =Timing!EQ26 -> 31 | ER26: =Timing!ER26 -> 32 | ES26: =Timing!ES26 -> 32 | ET26: =Timing!ET26 -> 32 | EU26: =Timing!EU26 -> 32 | EV26: =Timing!EV26 -> 33 | EW26: =Timing!EW26 -> 33 | EX26: =Timing!EX26 -> 33 | EY26: =Timing!EY26 -> 33 | EZ26: =Timing!EZ26 -> 34 | FA26: =Timing!FA26 -> 34 | FB26: =Timing!FB26 -> 34 | FC26: =Timing!FC26 -> 34 | FD26: =Timing!FD26 -> 35 | FE26: =Timing!FE26 -> 35 | FF26: =Timing!FF26 -> 35 | FG26: =Timing!FG26 -> 35 | FH26: =Timing!FH26 -> 36 | FI26: =Timing!FI26 -> 36 | FJ26: =Timing!FJ26 -> 36 | FK26: =Timing!FK26 -> 36 | FL26: =Timing!FL26 -> 37 | FM26: =Timing!FM26 -> 37 | FN26: =Timing!FN26 -> 37 | FO26: =Timing!FO26 -> 37 | FP26: =Timing!FP26 -> 38 | FQ26: =Timing!FQ26 -> 38 | FR26: =Timing!FR26 -> 38 | FS26: =Timing!FS26 -> 38 | FT26: =Timing!FT26 -> 39 | FU26: =Timing!FU26 -> 39 | FV26: =Timing!FV26 -> 39 | FW26: =Timing!FW26 -> 39 | FX26: =Timing!FX26 -> 40 | FY26: =Timing!FY26 -> 40 | FZ26: =Timing!FZ26 -> 40 | GA26: =Timing!GA26 -> 40 | GB26: =Timing!GB26 -> 41 | GC26: =Timing!GC26 -> 41 | GD26: =Timing!GD26 -> 41 | GE26: =Timing!GE26 -> 41 | GF26: =Timing!GF26 -> 42 | GG26: =Timing!GG26 -> 42 | GH26: =Timing!GH26 -> 42 | GI26: =Timing!GI26 -> 42 | GJ26: =Timing!GJ26 -> 43 | GK26: =Timing!GK26 -> 43 | GL26: =Timing!GL26 -> 43 | GM26: =Timing!GM26 -> 43 | GN26: =Timing!GN26 -> 44 | GO26: =Timing!GO26 -> 44 | GP26: =Timing!GP26 -> 44 | GQ26: =Timing!GQ26 -> 44 | GR26: =Timing!GR26 -> 45 | GS26: =Timing!GS26 -> 45 | GT26: =Timing!GT26 -> 45 | GU26: =Timing!GU26 -> 45 | GV26: =Timing!GV26 -> 46 | GW26: =Timing!GW26 -> 46 | GX26: =Timing!GX26 -> 46 | GY26: =Timing!GY26 -> 46 | GZ26: =Timing!GZ26 -> 47 | HA26: =Timing!HA26 -> 47 | HB26: =Timing!HB26 -> 47 | HC26: =Timing!HC26 -> 47 | HD26: =Timing!HD26 -> 48 | HE26: =Timing!HE26 -> 48 | HF26: =Timing!HF26 -> 48 | HG26: =Timing!HG26 -> 48 | HH26: =Timing!HH26 -> 49 | HI26: =Timing!HI26 -> 49 | HJ26: =Timing!HJ26 -> 49 | HK26: =Timing!HK26 -> 49 | HL26: =Timing!HL26 -> 50 | HM26: =Timing!HM26 -> 50 | HN26: =Timing!HN26 -> 50 | HO26: =Timing!HO26 -> 50 | HP26: =Timing!HP26 -> 0 | HQ26: =Timing!HQ26 -> 0 | HR26: =Timing!HR26 -> 0 | HS26: =Timing!HS26 -> 0 | HT26: =Timing!HT26 -> 0 | HU26: =Timing!HU26 -> 0 | HV26: =Timing!HV26 -> 0 | HW26: =Timing!HW26 -> 0 | HX26: =Timing!HX26 -> 0 | HY26: =Timing!HY26 -> 0 | HZ26: =Timing!HZ26 -> 0 | IA26: =Timing!IA26 -> 0 | IB26: =Timing!IB26 -> 0 | IC26: =Timing!IC26 -> 0 | ID26: =Timing!ID26 -> 0 | IE26: =Timing!IE26 -> 0 | IF26: =Timing!IF26 -> 0 | IG26: =Timing!IG26 -> 0 | IH26: =Timing!IH26 -> 0 | II26: =Timing!II26 -> 0 | IJ26: =Timing!IJ26 -> 0 | IK26: =Timing!IK26 -> 0 | IL26: =Timing!IL26 -> 0 | IM26: =Timing!IM26 -> 0 | IN26: =Timing!IN26 -> 0 | IO26: =Timing!IO26 -> 0 | IP26: =Timing!IP26 -> 0 | IQ26: =Timing!IQ26 -> 0 | IR26: =Timing!IR26 -> 0 | IS26: =Timing!IS26 -> 0 | IT26: =Timing!IT26 -> 0 | IU26: =Timing!IU26 -> 0
B28: Cash Flow Waterfall
C29: Income
C30: Residential sales revenue | D30: AUD M | I30: =SUM(J30:IU30) -> 0 | J30: =Ops!J671 -> 0 | K30: =Ops!K671 -> 0 | L30: =Ops!L671 -> 0 | M30: =Ops!M671 -> 0 | N30: =Ops!N671 -> 0 | O30: =Ops!O671 -> 0 | P30: =Ops!P671 -> 0 | Q30: =Ops!Q671 -> 0 | R30: =Ops!R671 -> 0 | S30: =Ops!S671 -> 0 | T30: =Ops!T671 -> 0 | U30: =Ops!U671 -> 0 | V30: =Ops!V671 -> 0 | W30: =Ops!W671 -> 0 | X30: =Ops!X671 -> 0 | Y30: =Ops!Y671 -> 0 | Z30: =Ops!Z671 -> 0 | AA30: =Ops!AA671 -> 0 | AB30: =Ops!AB671 -> 0 | AC30: =Ops!AC671 -> 0 | AD30: =Ops!AD671 -> 0 | AE30: =Ops!AE671 -> 0 | AF30: =Ops!AF671 -> 0 | AG30: =Ops!AG671 -> 0 | AH30: =Ops!AH671 -> 0 | AI30: =Ops!AI671 -> 0 | AJ30: =Ops!AJ671 -> 0 | AK30: =Ops!AK671 -> 0 | AL30: =Ops!AL671 -> 0 | AM30: =Ops!AM671 -> 0 | AN30: =Ops!AN671 -> 0 | AO30: =Ops!AO671 -> 0 | AP30: =Ops!AP671 -> 0 | AQ30: =Ops!AQ671 -> 0 | AR30: =Ops!AR671 -> 0 | AS30: =Ops!AS671 -> 0 | AT30: =Ops!AT671 -> 0 | AU30: =Ops!AU671 -> 0 | AV30: =Ops!AV671 -> 0 | AW30: =Ops!AW671 -> 0 | AX30: =Ops!AX671 -> 0 | AY30: =Ops!AY671 -> 0 | AZ30: =Ops!AZ671 -> 0 | BA30: =Ops!BA671 -> 0 | BB30: =Ops!BB671 -> 0 | BC30: =Ops!BC671 -> 0 | BD30: =Ops!BD671 -> 0 | BE30: =Ops!BE671 -> 0 | BF30: =Ops!BF671 -> 0 | BG30: =Ops!BG671 -> 0 | BH30: =Ops!BH671 -> 0 | BI30: =Ops!BI671 -> 0 | BJ30: =Ops!BJ671 -> 0 | BK30: =Ops!BK671 -> 0 | BL30: =Ops!BL671 -> 0 | BM30: =Ops!BM671 -> 0 | BN30: =Ops!BN671 -> 0 | BO30: =Ops!BO671 -> 0 | BP30: =Ops!BP671 -> 0 | BQ30: =Ops!BQ671 -> 0 | BR30: =Ops!BR671 -> 0 | BS30: =Ops!BS671 -> 0 | BT30: =Ops!BT671 -> 0 | BU30: =Ops!BU671 -> 0 | BV30: =Ops!BV671 -> 0 | BW30: =Ops!BW671 -> 0 | BX30: =Ops!BX671 -> 0 | BY30: =Ops!BY671 -> 0 | BZ30: =Ops!BZ671 -> 0 | CA30: =Ops!CA671 -> 0 | CB30: =Ops!CB671 -> 0 | CC30: =Ops!CC671 -> 0 | CD30: =Ops!CD671 -> 0 | CE30: =Ops!CE671 -> 0 | CF30: =Ops!CF671 -> 0 | CG30: =Ops!CG671 -> 0 | CH30: =Ops!CH671 -> 0 | CI30: =Ops!CI671 -> 0 | CJ30: =Ops!CJ671 -> 0 | CK30: =Ops!CK671 -> 0 | CL30: =Ops!CL671 -> 0 | CM30: =Ops!CM671 -> 0 | CN30: =Ops!CN671 -> 0 | CO30: =Ops!CO671 -> 0 | CP30: =Ops!CP671 -> 0 | CQ30: =Ops!CQ671 -> 0 | CR30: =Ops!CR671 -> 0 | CS30: =Ops!CS671 -> 0 | CT30: =Ops!CT671 -> 0 | CU30: =Ops!CU671 -> 0 | CV30: =Ops!CV671 -> 0 | CW30: =Ops!CW671 -> 0 | CX30: =Ops!CX671 -> 0 | CY30: =Ops!CY671 -> 0 | CZ30: =Ops!CZ671 -> 0 | DA30: =Ops!DA671 -> 0 | DB30: =Ops!DB671 -> 0 | DC30: =Ops!DC671 -> 0 | DD30: =Ops!DD671 -> 0 | DE30: =Ops!DE671 -> 0 | DF30: =Ops!DF671 -> 0 | DG30: =Ops!DG671 -> 0 | DH30: =Ops!DH671 -> 0 | DI30: =Ops!DI671 -> 0 | DJ30: =Ops!DJ671 -> 0 | DK30: =Ops!DK671 -> 0 | DL30: =Ops!DL671 -> 0 | DM30: =Ops!DM671 -> 0 | DN30: =Ops!DN671 -> 0 | DO30: =Ops!DO671 -> 0 | DP30: =Ops!DP671 -> 0 | DQ30: =Ops!DQ671 -> 0 | DR30: =Ops!DR671 -> 0 | DS30: =Ops!DS671 -> 0 | DT30: =Ops!DT671 -> 0 | DU30: =Ops!DU671 -> 0 | DV30: =Ops!DV671 -> 0 | DW30: =Ops!DW671 -> 0 | DX30: =Ops!DX671 -> 0 | DY30: =Ops!DY671 -> 0 | DZ30: =Ops!DZ671 -> 0 | EA30: =Ops!EA671 -> 0 | EB30: =Ops!EB671 -> 0 | EC30: =Ops!EC671 -> 0 | ED30: =Ops!ED671 -> 0 | EE30: =Ops!EE671 -> 0 | EF30: =Ops!EF671 -> 0 | EG30: =Ops!EG671 -> 0 | EH30: =Ops!EH671 -> 0 | EI30: =Ops!EI671 -> 0 | EJ30: =Ops!EJ671 -> 0 | EK30: =Ops!EK671 -> 0 | EL30: =Ops!EL671 -> 0 | EM30: =Ops!EM671 -> 0 | EN30: =Ops!EN671 -> 0 | EO30: =Ops!EO671 -> 0 | EP30: =Ops!EP671 -> 0 | EQ30: =Ops!EQ671 -> 0 | ER30: =Ops!ER671 -> 0 | ES30: =Ops!ES671 -> 0 | ET30: =Ops!ET671 -> 0 | EU30: =Ops!EU671 -> 0 | EV30: =Ops!EV671 -> 0 | EW30: =Ops!EW671 -> 0 | EX30: =Ops!EX671 -> 0 | EY30: =Ops!EY671 -> 0 | EZ30: =Ops!EZ671 -> 0 | FA30: =Ops!FA671 -> 0 | FB30: =Ops!FB671 -> 0 | FC30: =Ops!FC671 -> 0 | FD30: =Ops!FD671 -> 0 | FE30: =Ops!FE671 -> 0 | FF30: =Ops!FF671 -> 0 | FG30: =Ops!FG671 -> 0 | FH30: =Ops!FH671 -> 0 | FI30: =Ops!FI671 -> 0 | FJ30: =Ops!FJ671 -> 0 | FK30: =Ops!FK671 -> 0 | FL30: =Ops!FL671 -> 0 | FM30: =Ops!FM671 -> 0 | FN30: =Ops!FN671 -> 0 | FO30: =Ops!FO671 -> 0 | FP30: =Ops!FP671 -> 0 | FQ30: =Ops!FQ671 -> 0 | FR30: =Ops!FR671 -> 0 | FS30: =Ops!FS671 -> 0 | FT30: =Ops!FT671 -> 0 | FU30: =Ops!FU671 -> 0 | FV30: =Ops!FV671 -> 0 | FW30: =Ops!FW671 -> 0 | FX30: =Ops!FX671 -> 0 | FY30: =Ops!FY671 -> 0 | FZ30: =Ops!FZ671 -> 0 | GA30: =Ops!GA671 -> 0 | GB30: =Ops!GB671 -> 0 | GC30: =Ops!GC671 -> 0 | GD30: =Ops!GD671 -> 0 | GE30: =Ops!GE671 -> 0 | GF30: =Ops!GF671 -> 0 | GG30: =Ops!GG671 -> 0 | GH30: =Ops!GH671 -> 0 | GI30: =Ops!GI671 -> 0 | GJ30: =Ops!GJ671 -> 0 | GK30: =Ops!GK671 -> 0 | GL30: =Ops!GL671 -> 0 | GM30: =Ops!GM671 -> 0 | GN30: =Ops!GN671 -> 0 | GO30: =Ops!GO671 -> 0 | GP30: =Ops!GP671 -> 0 | GQ30: =Ops!GQ671 -> 0 | GR30: =Ops!GR671 -> 0 | GS30: =Ops!GS671 -> 0 | GT30: =Ops!GT671 -> 0 | GU30: =Ops!GU671 -> 0 | GV30: =Ops!GV671 -> 0 | GW30: =Ops!GW671 -> 0 | GX30: =Ops!GX671 -> 0 | GY30: =Ops!GY671 -> 0 | GZ30: =Ops!GZ671 -> 0 | HA30: =Ops!HA671 -> 0 | HB30: =Ops!HB671 -> 0 | HC30: =Ops!HC671 -> 0 | HD30: =Ops!HD671 -> 0 | HE30: =Ops!HE671 -> 0 | HF30: =Ops!HF671 -> 0 | HG30: =Ops!HG671 -> 0 | HH30: =Ops!HH671 -> 0 | HI30: =Ops!HI671 -> 0 | HJ30: =Ops!HJ671 -> 0 | HK30: =Ops!HK671 -> 0 | HL30: =Ops!HL671 -> 0 | HM30: =Ops!HM671 -> 0 | HN30: =Ops!HN671 -> 0 | HO30: =Ops!HO671 -> 0 | HP30: =Ops!HP671 -> 0 | HQ30: =Ops!HQ671 -> 0 | HR30: =Ops!HR671 -> 0 | HS30: =Ops!HS671 -> 0 | HT30: =Ops!HT671 -> 0 | HU30: =Ops!HU671 -> 0 | HV30: =Ops!HV671 -> 0 | HW30: =Ops!HW671 -> 0 | HX30: =Ops!HX671 -> 0 | HY30: =Ops!HY671 -> 0 | HZ30: =Ops!HZ671 -> 0 | IA30: =Ops!IA671 -> 0 | IB30: =Ops!IB671 -> 0 | IC30: =Ops!IC671 -> 0 | ID30: =Ops!ID671 -> 0 | IE30: =Ops!IE671 -> 0 | IF30: =Ops!IF671 -> 0 | IG30: =Ops!IG671 -> 0 | IH30: =Ops!IH671 -> 0 | II30: =Ops!II671 -> 0 | IJ30: =Ops!IJ671 -> 0 | IK30: =Ops!IK671 -> 0 | IL30: =Ops!IL671 -> 0 | IM30: =Ops!IM671 -> 0 | IN30: =Ops!IN671 -> 0 | IO30: =Ops!IO671 -> 0 | IP30: =Ops!IP671 -> 0 | IQ30: =Ops!IQ671 -> 0 | IR30: =Ops!IR671 -> 0 | IS30: =Ops!IS671 -> 0 | IT30: =Ops!IT671 -> 0 | IU30: =Ops!IU671 -> 0
C31: Residential rental revenue | D31: AUD M | I31: =SUM(J31:IU31) -> 673.8040658 | J31: =Ops!J672 -> 0 | K31: =Ops!K672 -> 0 | L31: =Ops!L672 -> 0 | M31: =Ops!M672 -> 0 | N31: =Ops!N672 -> 0 | O31: =Ops!O672 -> 0 | P31: =Ops!P672 -> 0 | Q31: =Ops!Q672 -> 0 | R31: =Ops!R672 -> 0 | S31: =Ops!S672 -> 0 | T31: =Ops!T672 -> 0 | U31: =Ops!U672 -> 0 | V31: =Ops!V672 -> 0 | W31: =Ops!W672 -> 0 | X31: =Ops!X672 -> 1.95205725 | Y31: =Ops!Y672 -> 1.973746775 | Z31: =Ops!Z672 -> 1.9954363 | AA31: =Ops!AA672 -> 1.9954363 | AB31: =Ops!AB672 -> 1.994210725 | AC31: =Ops!AC672 -> 1.994210725 | AD31: =Ops!AD672 -> 2.016125129 | AE31: =Ops!AE672 -> 2.056447631 | AF31: =Ops!AF672 -> 2.032386101 | AG31: =Ops!AG672 -> 2.054968169 | AH31: =Ops!AH672 -> 2.077550236 | AI31: =Ops!AI672 -> 2.119101241 | AJ31: =Ops!AJ672 -> 2.073033823 | AK31: =Ops!AK672 -> 2.096067532 | AL31: =Ops!AL672 -> 2.119101241 | AM31: =Ops!AM672 -> 2.161483266 | AN31: =Ops!AN672 -> 2.114494499 | AO31: =Ops!AO672 -> 2.137988883 | AP31: =Ops!AP672 -> 2.161483266 | AQ31: =Ops!AQ672 -> 2.204712931 | AR31: =Ops!AR672 -> 2.18074866 | AS31: =Ops!AS672 -> 2.18074866 | AT31: =Ops!AT672 -> 2.204712931 | AU31: =Ops!AU672 -> 2.24880719 | AV31: =Ops!AV672 -> 2.199920077 | AW31: =Ops!AW672 -> 2.224363633 | AX31: =Ops!AX672 -> 2.24880719 | AY31: =Ops!AY672 -> 2.293783334 | AZ31: =Ops!AZ672 -> 2.243918478 | BA31: =Ops!BA672 -> 2.268850906 | BB31: =Ops!BB672 -> 2.293783334 | BC31: =Ops!BC672 -> 2.339659 | BD31: =Ops!BD672 -> 2.288796848 | BE31: =Ops!BE672 -> 2.314227924 | BF31: =Ops!BF672 -> 2.339659 | BG31: =Ops!BG672 -> 2.38645218 | BH31: =Ops!BH672 -> 2.360512483 | BI31: =Ops!BI672 -> 2.360512483 | BJ31: =Ops!BJ672 -> 2.38645218 | BK31: =Ops!BK672 -> 2.434181224 | BL31: =Ops!BL672 -> 2.381264241 | BM31: =Ops!BM672 -> 2.407722732 | BN31: =Ops!BN672 -> 2.434181224 | BO31: =Ops!BO672 -> 2.482864848 | BP31: =Ops!BP672 -> 2.428889526 | BQ31: =Ops!BQ672 -> 2.455877187 | BR31: =Ops!BR672 -> 2.482864848 | BS31: =Ops!BS672 -> 2.532522145 | BT31: =Ops!BT672 -> 2.477467316 | BU31: =Ops!BU672 -> 2.504994731 | BV31: =Ops!BV672 -> 2.532522145 | BW31: =Ops!BW672 -> 2.583172588 | BX31: =Ops!BX672 -> 2.555094625 | BY31: =Ops!BY672 -> 2.555094625 | BZ31: =Ops!BZ672 -> 2.583172588 | CA31: =Ops!CA672 -> 2.63483604 | CB31: =Ops!CB672 -> 2.577556996 | CC31: =Ops!CC672 -> 2.606196518 | CD31: =Ops!CD672 -> 2.63483604 | CE31: =Ops!CE672 -> 2.687532761 | CF31: =Ops!CF672 -> 2.629108136 | CG31: =Ops!CG672 -> 2.658320448 | CH31: =Ops!CH672 -> 2.687532761 | CI31: =Ops!CI672 -> 2.741283416 | CJ31: =Ops!CJ672 -> 2.681690298 | CK31: =Ops!CK672 -> 2.711486857 | CL31: =Ops!CL672 -> 2.741283416 | CM31: =Ops!CM672 -> 2.796109084 | CN31: =Ops!CN672 -> 2.765716594 | CO31: =Ops!CO672 -> 2.765716594 | CP31: =Ops!CP672 -> 2.796109084 | CQ31: =Ops!CQ672 -> 2.852031266 | CR31: =Ops!CR672 -> 2.790030586 | CS31: =Ops!CS672 -> 2.821030926 | CT31: =Ops!CT672 -> 2.852031266 | CU31: =Ops!CU672 -> 2.909071891 | CV31: =Ops!CV672 -> 2.845831198 | CW31: =Ops!CW672 -> 2.877451545 | CX31: =Ops!CX672 -> 2.909071891 | CY31: =Ops!CY672 -> 2.967253329 | CZ31: =Ops!CZ672 -> 2.902747822 | DA31: =Ops!DA672 -> 2.935000576 | DB31: =Ops!DB672 -> 2.967253329 | DC31: =Ops!DC672 -> 3.026598396 | DD31: =Ops!DD672 -> 2.993700587 | DE31: =Ops!DE672 -> 2.993700587 | DF31: =Ops!DF672 -> 3.026598396 | DG31: =Ops!DG672 -> 3.087130364 | DH31: =Ops!DH672 -> 3.020018834 | DI31: =Ops!DI672 -> 3.053574599 | DJ31: =Ops!DJ672 -> 3.087130364 | DK31: =Ops!DK672 -> 3.148872971 | DL31: =Ops!DL672 -> 3.080419211 | DM31: =Ops!DM672 -> 3.114646091 | DN31: =Ops!DN672 -> 3.148872971 | DO31: =Ops!DO672 -> 3.21185043 | DP31: =Ops!DP672 -> 3.142027595 | DQ31: =Ops!DQ672 -> 3.176939013 | DR31: =Ops!DR672 -> 3.21185043 | DS31: =Ops!DS672 -> 3.276087439 | DT31: =Ops!DT672 -> 3.240477793 | DU31: =Ops!DU672 -> 3.240477793 | DV31: =Ops!DV672 -> 3.276087439 | DW31: =Ops!DW672 -> 3.341609188 | DX31: =Ops!DX672 -> 3.26896551 | DY31: =Ops!DY672 -> 3.305287349 | DZ31: =Ops!DZ672 -> 3.341609188 | EA31: =Ops!EA672 -> 3.408441371 | EB31: =Ops!EB672 -> 3.33434482 | EC31: =Ops!EC672 -> 3.371393096 | ED31: =Ops!ED672 -> 3.408441371 | EE31: =Ops!EE672 -> 3.476610199 | EF31: =Ops!EF672 -> 3.401031716 | EG31: =Ops!EG672 -> 3.438820958 | EH31: =Ops!EH672 -> 3.476610199 | EI31: =Ops!EI672 -> 3.546142403 | EJ31: =Ops!EJ672 -> 3.507597377 | EK31: =Ops!EK672 -> 3.507597377 | EL31: =Ops!EL672 -> 3.546142403 | EM31: =Ops!EM672 -> 3.617065251 | EN31: =Ops!EN672 -> 3.538433398 | EO31: =Ops!EO672 -> 3.577749324 | EP31: =Ops!EP672 -> 3.617065251 | EQ31: =Ops!EQ672 -> 3.689406556 | ER31: =Ops!ER672 -> 3.609202066 | ES31: =Ops!ES672 -> 3.649304311 | ET31: =Ops!ET672 -> 3.689406556 | EU31: =Ops!EU672 -> 3.763194687 | EV31: =Ops!EV672 -> 3.681386107 | EW31: =Ops!EW672 -> 3.722290397 | EX31: =Ops!EX672 -> 3.763194687 | EY31: =Ops!EY672 -> 3.838458581 | EZ31: =Ops!EZ672 -> 3.796736205 | FA31: =Ops!FA672 -> 3.796736205 | FB31: =Ops!FB672 -> 3.838458581 | FC31: =Ops!FC672 -> 3.915227752 | FD31: =Ops!FD672 -> 3.830114106 | FE31: =Ops!FE672 -> 3.872670929 | FF31: =Ops!FF672 -> 3.915227752 | FG31: =Ops!FG672 -> 3.993532307 | FH31: =Ops!FH672 -> 3.906716388 | FI31: =Ops!FI672 -> 3.950124348 | FJ31: =Ops!FJ672 -> 3.993532307 | FK31: =Ops!FK672 -> 4.073402954 | FL31: =Ops!FL672 -> 3.984850715 | FM31: =Ops!FM672 -> 4.029126835 | FN31: =Ops!FN672 -> 4.073402954 | FO31: =Ops!FO672 -> 4.154871013 | FP31: =Ops!FP672 -> 4.109709371 | FQ31: =Ops!FQ672 -> 4.109709371 | FR31: =Ops!FR672 -> 4.154871013 | FS31: =Ops!FS672 -> 4.237968433 | FT31: =Ops!FT672 -> 4.145838684 | FU31: =Ops!FU672 -> 4.191903559 | FV31: =Ops!FV672 -> 4.237968433 | FW31: =Ops!FW672 -> 4.322727802 | FX31: =Ops!FX672 -> 4.228755458 | FY31: =Ops!FY672 -> 4.27574163 | FZ31: =Ops!FZ672 -> 4.322727802 | GA31: =Ops!GA672 -> 4.409182358 | GB31: =Ops!GB672 -> 4.313330567 | GC31: =Ops!GC672 -> 4.361256462 | GD31: =Ops!GD672 -> 4.409182358 | GE31: =Ops!GE672 -> 4.497366005 | GF31: =Ops!GF672 -> 4.448481592 | GG31: =Ops!GG672 -> 4.448481592 | GH31: =Ops!GH672 -> 4.497366005 | GI31: =Ops!GI672 -> 4.587313325 | GJ31: =Ops!GJ672 -> 4.487589122 | GK31: =Ops!GK672 -> 4.537451224 | GL31: =Ops!GL672 -> 4.587313325 | GM31: =Ops!GM672 -> 4.679059591 | GN31: =Ops!GN672 -> 4.577340905 | GO31: =Ops!GO672 -> 4.628200248 | GP31: =Ops!GP672 -> 4.679059591 | GQ31: =Ops!GQ672 -> 4.772640783 | GR31: =Ops!GR672 -> 4.668887723 | GS31: =Ops!GS672 -> 4.720764253 | GT31: =Ops!GT672 -> 4.772640783 | GU31: =Ops!GU672 -> 4.868093599 | GV31: =Ops!GV672 -> 4.815179538 | GW31: =Ops!GW672 -> 4.815179538 | GX31: =Ops!GX672 -> 4.868093599 | GY31: =Ops!GY672 -> 4.965455471 | GZ31: =Ops!GZ672 -> 4.857510787 | HA31: =Ops!HA672 -> 4.911483129 | HB31: =Ops!HB672 -> 4.965455471 | HC31: =Ops!HC672 -> 5.06476458 | HD31: =Ops!HD672 -> 4.954661002 | HE31: =Ops!HE672 -> 5.009712791 | HF31: =Ops!HF672 -> 5.06476458 | HG31: =Ops!HG672 -> 5.166059872 | HH31: =Ops!HH672 -> 5.053754222 | HI31: =Ops!HI672 -> 5.109907047 | HJ31: =Ops!HJ672 -> 5.166059872 | HK31: =Ops!HK672 -> 5.269381069 | HL31: =Ops!HL672 -> 5.212105188 | HM31: =Ops!HM672 -> 5.212105188 | HN31: =Ops!HN672 -> 5.269381069 | HO31: =Ops!HO672 -> 5.374768691 | HP31: =Ops!HP672 -> 0 | HQ31: =Ops!HQ672 -> 0 | HR31: =Ops!HR672 -> 0 | HS31: =Ops!HS672 -> 0 | HT31: =Ops!HT672 -> 0 | HU31: =Ops!HU672 -> 0 | HV31: =Ops!HV672 -> 0 | HW31: =Ops!HW672 -> 0 | HX31: =Ops!HX672 -> 0 | HY31: =Ops!HY672 -> 0 | HZ31: =Ops!HZ672 -> 0 | IA31: =Ops!IA672 -> 0 | IB31: =Ops!IB672 -> 0 | IC31: =Ops!IC672 -> 0 | ID31: =Ops!ID672 -> 0 | IE31: =Ops!IE672 -> 0 | IF31: =Ops!IF672 -> 0 | IG31: =Ops!IG672 -> 0 | IH31: =Ops!IH672 -> 0 | II31: =Ops!II672 -> 0 | IJ31: =Ops!IJ672 -> 0 | IK31: =Ops!IK672 -> 0 | IL31: =Ops!IL672 -> 0 | IM31: =Ops!IM672 -> 0 | IN31: =Ops!IN672 -> 0 | IO31: =Ops!IO672 -> 0 | IP31: =Ops!IP672 -> 0 | IQ31: =Ops!IQ672 -> 0 | IR31: =Ops!IR672 -> 0 | IS31: =Ops!IS672 -> 0 | IT31: =Ops!IT672 -> 0 | IU31: =Ops!IU672 -> 0
C32: Commercial and retail sales revenue | D32: AUD M | I32: 0 | J32: =Ops!J673 -> 0 | K32: =Ops!K673 -> 0 | L32: =Ops!L673 -> 0 | M32: =Ops!M673 -> 0 | N32: =Ops!N673 -> 0 | O32: =Ops!O673 -> 0 | P32: =Ops!P673 -> 0 | Q32: =Ops!Q673 -> 0 | R32: =Ops!R673 -> 0 | S32: =Ops!S673 -> 0 | T32: =Ops!T673 -> 0 | U32: =Ops!U673 -> 0 | V32: =Ops!V673 -> 0 | W32: =Ops!W673 -> 0 | X32: =Ops!X673 -> 0 | Y32: =Ops!Y673 -> 0 | Z32: =Ops!Z673 -> 0 | AA32: =Ops!AA673 -> 0 | AB32: =Ops!AB673 -> 0 | AC32: =Ops!AC673 -> 0 | AD32: =Ops!AD673 -> 0 | AE32: =Ops!AE673 -> 0 | AF32: =Ops!AF673 -> 0 | AG32: =Ops!AG673 -> 0 | AH32: =Ops!AH673 -> 0 | AI32: =Ops!AI673 -> 0 | AJ32: =Ops!AJ673 -> 0 | AK32: =Ops!AK673 -> 0 | AL32: =Ops!AL673 -> 0 | AM32: =Ops!AM673 -> 0 | AN32: =Ops!AN673 -> 0 | AO32: =Ops!AO673 -> 0 | AP32: =Ops!AP673 -> 0 | AQ32: =Ops!AQ673 -> 0 | AR32: =Ops!AR673 -> 0 | AS32: =Ops!AS673 -> 0 | AT32: =Ops!AT673 -> 0 | AU32: =Ops!AU673 -> 0 | AV32: =Ops!AV673 -> 0 | AW32: =Ops!AW673 -> 0 | AX32: =Ops!AX673 -> 0 | AY32: =Ops!AY673 -> 0 | AZ32: =Ops!AZ673 -> 0 | BA32: =Ops!BA673 -> 0 | BB32: =Ops!BB673 -> 0 | BC32: =Ops!BC673 -> 0 | BD32: =Ops!BD673 -> 0 | BE32: =Ops!BE673 -> 0 | BF32: =Ops!BF673 -> 0 | BG32: =Ops!BG673 -> 0 | BH32: =Ops!BH673 -> 0 | BI32: =Ops!BI673 -> 0 | BJ32: =Ops!BJ673 -> 0 | BK32: =Ops!BK673 -> 0 | BL32: =Ops!BL673 -> 0 | BM32: =Ops!BM673 -> 0 | BN32: =Ops!BN673 -> 0 | BO32: =Ops!BO673 -> 0 | BP32: =Ops!BP673 -> 0 | BQ32: =Ops!BQ673 -> 0 | BR32: =Ops!BR673 -> 0 | BS32: =Ops!BS673 -> 0 | BT32: =Ops!BT673 -> 0 | BU32: =Ops!BU673 -> 0 | BV32: =Ops!BV673 -> 0 | BW32: =Ops!BW673 -> 0 | BX32: =Ops!BX673 -> 0 | BY32: =Ops!BY673 -> 0 | BZ32: =Ops!BZ673 -> 0 | CA32: =Ops!CA673 -> 0 | CB32: =Ops!CB673 -> 0 | CC32: =Ops!CC673 -> 0 | CD32: =Ops!CD673 -> 0 | CE32: =Ops!CE673 -> 0 | CF32: =Ops!CF673 -> 0 | CG32: =Ops!CG673 -> 0 | CH32: =Ops!CH673 -> 0 | CI32: =Ops!CI673 -> 0 | CJ32: =Ops!CJ673 -> 0 | CK32: =Ops!CK673 -> 0 | CL32: =Ops!CL673 -> 0 | CM32: =Ops!CM673 -> 0 | CN32: =Ops!CN673 -> 0 | CO32: =Ops!CO673 -> 0 | CP32: =Ops!CP673 -> 0 | CQ32: =Ops!CQ673 -> 0 | CR32: =Ops!CR673 -> 0 | CS32: =Ops!CS673 -> 0 | CT32: =Ops!CT673 -> 0 | CU32: =Ops!CU673 -> 0 | CV32: =Ops!CV673 -> 0 | CW32: =Ops!CW673 -> 0 | CX32: =Ops!CX673 -> 0 | CY32: =Ops!CY673 -> 0 | CZ32: =Ops!CZ673 -> 0 | DA32: =Ops!DA673 -> 0 | DB32: =Ops!DB673 -> 0 | DC32: =Ops!DC673 -> 0 | DD32: =Ops!DD673 -> 0 | DE32: =Ops!DE673 -> 0 | DF32: =Ops!DF673 -> 0 | DG32: =Ops!DG673 -> 0 | DH32: =Ops!DH673 -> 0 | DI32: =Ops!DI673 -> 0 | DJ32: =Ops!DJ673 -> 0 | DK32: =Ops!DK673 -> 0 | DL32: =Ops!DL673 -> 0 | DM32: =Ops!DM673 -> 0 | DN32: =Ops!DN673 -> 0 | DO32: =Ops!DO673 -> 0 | DP32: =Ops!DP673 -> 0 | DQ32: =Ops!DQ673 -> 0 | DR32: =Ops!DR673 -> 0 | DS32: =Ops!DS673 -> 0 | DT32: =Ops!DT673 -> 0 | DU32: =Ops!DU673 -> 0 | DV32: =Ops!DV673 -> 0 | DW32: =Ops!DW673 -> 0 | DX32: =Ops!DX673 -> 0 | DY32: =Ops!DY673 -> 0 | DZ32: =Ops!DZ673 -> 0 | EA32: =Ops!EA673 -> 0 | EB32: =Ops!EB673 -> 0 | EC32: =Ops!EC673 -> 0 | ED32: =Ops!ED673 -> 0 | EE32: =Ops!EE673 -> 0 | EF32: =Ops!EF673 -> 0 | EG32: =Ops!EG673 -> 0 | EH32: =Ops!EH673 -> 0 | EI32: =Ops!EI673 -> 0 | EJ32: =Ops!EJ673 -> 0 | EK32: =Ops!EK673 -> 0 | EL32: =Ops!EL673 -> 0 | EM32: =Ops!EM673 -> 0 | EN32: =Ops!EN673 -> 0 | EO32: =Ops!EO673 -> 0 | EP32: =Ops!EP673 -> 0 | EQ32: =Ops!EQ673 -> 0 | ER32: =Ops!ER673 -> 0 | ES32: =Ops!ES673 -> 0 | ET32: =Ops!ET673 -> 0 | EU32: =Ops!EU673 -> 0 | EV32: =Ops!EV673 -> 0 | EW32: =Ops!EW673 -> 0 | EX32: =Ops!EX673 -> 0 | EY32: =Ops!EY673 -> 0 | EZ32: =Ops!EZ673 -> 0 | FA32: =Ops!FA673 -> 0 | FB32: =Ops!FB673 -> 0 | FC32: =Ops!FC673 -> 0 | FD32: =Ops!FD673 -> 0 | FE32: =Ops!FE673 -> 0 | FF32: =Ops!FF673 -> 0 | FG32: =Ops!FG673 -> 0 | FH32: =Ops!FH673 -> 0 | FI32: =Ops!FI673 -> 0 | FJ32: =Ops!FJ673 -> 0 | FK32: =Ops!FK673 -> 0 | FL32: =Ops!FL673 -> 0 | FM32: =Ops!FM673 -> 0 | FN32: =Ops!FN673 -> 0 | FO32: =Ops!FO673 -> 0 | FP32: =Ops!FP673 -> 0 | FQ32: =Ops!FQ673 -> 0 | FR32: =Ops!FR673 -> 0 | FS32: =Ops!FS673 -> 0 | FT32: =Ops!FT673 -> 0 | FU32: =Ops!FU673 -> 0 | FV32: =Ops!FV673 -> 0 | FW32: =Ops!FW673 -> 0 | FX32: =Ops!FX673 -> 0 | FY32: =Ops!FY673 -> 0 | FZ32: =Ops!FZ673 -> 0 | GA32: =Ops!GA673 -> 0 | GB32: =Ops!GB673 -> 0 | GC32: =Ops!GC673 -> 0 | GD32: =Ops!GD673 -> 0 | GE32: =Ops!GE673 -> 0 | GF32: =Ops!GF673 -> 0 | GG32: =Ops!GG673 -> 0 | GH32: =Ops!GH673 -> 0 | GI32: =Ops!GI673 -> 0 | GJ32: =Ops!GJ673 -> 0 | GK32: =Ops!GK673 -> 0 | GL32: =Ops!GL673 -> 0 | GM32: =Ops!GM673 -> 0 | GN32: =Ops!GN673 -> 0 | GO32: =Ops!GO673 -> 0 | GP32: =Ops!GP673 -> 0 | GQ32: =Ops!GQ673 -> 0 | GR32: =Ops!GR673 -> 0 | GS32: =Ops!GS673 -> 0 | GT32: =Ops!GT673 -> 0 | GU32: =Ops!GU673 -> 0 | GV32: =Ops!GV673 -> 0 | GW32: =Ops!GW673 -> 0 | GX32: =Ops!GX673 -> 0 | GY32: =Ops!GY673 -> 0 | GZ32: =Ops!GZ673 -> 0 | HA32: =Ops!HA673 -> 0 | HB32: =Ops!HB673 -> 0 | HC32: =Ops!HC673 -> 0 | HD32: =Ops!HD673 -> 0 | HE32: =Ops!HE673 -> 0 | HF32: =Ops!HF673 -> 0 | HG32: =Ops!HG673 -> 0 | HH32: =Ops!HH673 -> 0 | HI32: =Ops!HI673 -> 0 | HJ32: =Ops!HJ673 -> 0 | HK32: =Ops!HK673 -> 0 | HL32: =Ops!HL673 -> 0 | HM32: =Ops!HM673 -> 0 | HN32: =Ops!HN673 -> 0 | HO32: =Ops!HO673 -> 0 | HP32: =Ops!HP673 -> 0 | HQ32: =Ops!HQ673 -> 0 | HR32: =Ops!HR673 -> 0 | HS32: =Ops!HS673 -> 0 | HT32: =Ops!HT673 -> 0 | HU32: =Ops!HU673 -> 0 | HV32: =Ops!HV673 -> 0 | HW32: =Ops!HW673 -> 0 | HX32: =Ops!HX673 -> 0 | HY32: =Ops!HY673 -> 0 | HZ32: =Ops!HZ673 -> 0 | IA32: =Ops!IA673 -> 0 | IB32: =Ops!IB673 -> 0 | IC32: =Ops!IC673 -> 0 | ID32: =Ops!ID673 -> 0 | IE32: =Ops!IE673 -> 0 | IF32: =Ops!IF673 -> 0 | IG32: =Ops!IG673 -> 0 | IH32: =Ops!IH673 -> 0 | II32: =Ops!II673 -> 0 | IJ32: =Ops!IJ673 -> 0 | IK32: =Ops!IK673 -> 0 | IL32: =Ops!IL673 -> 0 | IM32: =Ops!IM673 -> 0 | IN32: =Ops!IN673 -> 0 | IO32: =Ops!IO673 -> 0 | IP32: =Ops!IP673 -> 0 | IQ32: =Ops!IQ673 -> 0 | IR32: =Ops!IR673 -> 0 | IS32: =Ops!IS673 -> 0 | IT32: =Ops!IT673 -> 0 | IU32: =Ops!IU673 -> 0
C33: Commercial and retail lease revenue | D33: AUD M | I33: 346.5394133 | J33: =Ops!J674 -> 0 | K33: =Ops!K674 -> 0 | L33: =Ops!L674 -> 0 | M33: =Ops!M674 -> 0 | N33: =Ops!N674 -> 0 | O33: =Ops!O674 -> 0 | P33: =Ops!P674 -> 0 | Q33: =Ops!Q674 -> 0 | R33: =Ops!R674 -> 0 | S33: =Ops!S674 -> 0 | T33: =Ops!T674 -> 0 | U33: =Ops!U674 -> 0 | V33: =Ops!V674 -> 0 | W33: =Ops!W674 -> 0 | X33: =Ops!X674 -> 1.039406709 | Y33: =Ops!Y674 -> 1.039406709 | Z33: =Ops!Z674 -> 1.039406709 | AA33: =Ops!AA674 -> 1.039406709 | AB33: =Ops!AB674 -> 1.039406709 | AC33: =Ops!AC674 -> 1.039406709 | AD33: =Ops!AD674 -> 1.039406709 | AE33: =Ops!AE674 -> 1.060194843 | AF33: =Ops!AF674 -> 1.060194843 | AG33: =Ops!AG674 -> 1.060194843 | AH33: =Ops!AH674 -> 1.060194843 | AI33: =Ops!AI674 -> 1.08139874 | AJ33: =Ops!AJ674 -> 1.08139874 | AK33: =Ops!AK674 -> 1.08139874 | AL33: =Ops!AL674 -> 1.08139874 | AM33: =Ops!AM674 -> 1.103026715 | AN33: =Ops!AN674 -> 1.103026715 | AO33: =Ops!AO674 -> 1.103026715 | AP33: =Ops!AP674 -> 1.103026715 | AQ33: =Ops!AQ674 -> 1.125087249 | AR33: =Ops!AR674 -> 1.125087249 | AS33: =Ops!AS674 -> 1.125087249 | AT33: =Ops!AT674 -> 1.125087249 | AU33: =Ops!AU674 -> 1.147588994 | AV33: =Ops!AV674 -> 1.147588994 | AW33: =Ops!AW674 -> 1.147588994 | AX33: =Ops!AX674 -> 1.147588994 | AY33: =Ops!AY674 -> 1.170540774 | AZ33: =Ops!AZ674 -> 1.170540774 | BA33: =Ops!BA674 -> 1.170540774 | BB33: =Ops!BB674 -> 1.170540774 | BC33: =Ops!BC674 -> 1.193951589 | BD33: =Ops!BD674 -> 1.193951589 | BE33: =Ops!BE674 -> 1.193951589 | BF33: =Ops!BF674 -> 1.193951589 | BG33: =Ops!BG674 -> 1.217830621 | BH33: =Ops!BH674 -> 1.217830621 | BI33: =Ops!BI674 -> 1.217830621 | BJ33: =Ops!BJ674 -> 1.217830621 | BK33: =Ops!BK674 -> 1.242187233 | BL33: =Ops!BL674 -> 1.242187233 | BM33: =Ops!BM674 -> 1.242187233 | BN33: =Ops!BN674 -> 1.242187233 | BO33: =Ops!BO674 -> 1.267030978 | BP33: =Ops!BP674 -> 1.267030978 | BQ33: =Ops!BQ674 -> 1.267030978 | BR33: =Ops!BR674 -> 1.267030978 | BS33: =Ops!BS674 -> 1.292371598 | BT33: =Ops!BT674 -> 1.292371598 | BU33: =Ops!BU674 -> 1.292371598 | BV33: =Ops!BV674 -> 1.292371598 | BW33: =Ops!BW674 -> 1.31821903 | BX33: =Ops!BX674 -> 1.31821903 | BY33: =Ops!BY674 -> 1.31821903 | BZ33: =Ops!BZ674 -> 1.31821903 | CA33: =Ops!CA674 -> 1.34458341 | CB33: =Ops!CB674 -> 1.34458341 | CC33: =Ops!CC674 -> 1.34458341 | CD33: =Ops!CD674 -> 1.34458341 | CE33: =Ops!CE674 -> 1.371475078 | CF33: =Ops!CF674 -> 1.371475078 | CG33: =Ops!CG674 -> 1.371475078 | CH33: =Ops!CH674 -> 1.371475078 | CI33: =Ops!CI674 -> 1.39890458 | CJ33: =Ops!CJ674 -> 1.39890458 | CK33: =Ops!CK674 -> 1.39890458 | CL33: =Ops!CL674 -> 1.39890458 | CM33: =Ops!CM674 -> 1.426882672 | CN33: =Ops!CN674 -> 1.426882672 | CO33: =Ops!CO674 -> 1.426882672 | CP33: =Ops!CP674 -> 1.426882672 | CQ33: =Ops!CQ674 -> 1.455420325 | CR33: =Ops!CR674 -> 1.455420325 | CS33: =Ops!CS674 -> 1.455420325 | CT33: =Ops!CT674 -> 1.455420325 | CU33: =Ops!CU674 -> 1.484528731 | CV33: =Ops!CV674 -> 1.484528731 | CW33: =Ops!CW674 -> 1.484528731 | CX33: =Ops!CX674 -> 1.484528731 | CY33: =Ops!CY674 -> 1.514219306 | CZ33: =Ops!CZ674 -> 1.514219306 | DA33: =Ops!DA674 -> 1.514219306 | DB33: =Ops!DB674 -> 1.514219306 | DC33: =Ops!DC674 -> 1.544503692 | DD33: =Ops!DD674 -> 1.544503692 | DE33: =Ops!DE674 -> 1.544503692 | DF33: =Ops!DF674 -> 1.544503692 | DG33: =Ops!DG674 -> 1.575393766 | DH33: =Ops!DH674 -> 1.575393766 | DI33: =Ops!DI674 -> 1.575393766 | DJ33: =Ops!DJ674 -> 1.575393766 | DK33: =Ops!DK674 -> 1.606901641 | DL33: =Ops!DL674 -> 1.606901641 | DM33: =Ops!DM674 -> 1.606901641 | DN33: =Ops!DN674 -> 1.606901641 | DO33: =Ops!DO674 -> 1.639039674 | DP33: =Ops!DP674 -> 1.639039674 | DQ33: =Ops!DQ674 -> 1.639039674 | DR33: =Ops!DR674 -> 1.639039674 | DS33: =Ops!DS674 -> 1.671820468 | DT33: =Ops!DT674 -> 1.671820468 | DU33: =Ops!DU674 -> 1.671820468 | DV33: =Ops!DV674 -> 1.671820468 | DW33: =Ops!DW674 -> 1.705256877 | DX33: =Ops!DX674 -> 1.705256877 | DY33: =Ops!DY674 -> 1.705256877 | DZ33: =Ops!DZ674 -> 1.705256877 | EA33: =Ops!EA674 -> 1.739362015 | EB33: =Ops!EB674 -> 1.739362015 | EC33: =Ops!EC674 -> 1.739362015 | ED33: =Ops!ED674 -> 1.739362015 | EE33: =Ops!EE674 -> 1.774149255 | EF33: =Ops!EF674 -> 1.774149255 | EG33: =Ops!EG674 -> 1.774149255 | EH33: =Ops!EH674 -> 1.774149255 | EI33: =Ops!EI674 -> 1.80963224 | EJ33: =Ops!EJ674 -> 1.80963224 | EK33: =Ops!EK674 -> 1.80963224 | EL33: =Ops!EL674 -> 1.80963224 | EM33: =Ops!EM674 -> 1.845824885 | EN33: =Ops!EN674 -> 1.845824885 | EO33: =Ops!EO674 -> 1.845824885 | EP33: =Ops!EP674 -> 1.845824885 | EQ33: =Ops!EQ674 -> 1.882741382 | ER33: =Ops!ER674 -> 1.882741382 | ES33: =Ops!ES674 -> 1.882741382 | ET33: =Ops!ET674 -> 1.882741382 | EU33: =Ops!EU674 -> 1.92039621 | EV33: =Ops!EV674 -> 1.92039621 | EW33: =Ops!EW674 -> 1.92039621 | EX33: =Ops!EX674 -> 1.92039621 | EY33: =Ops!EY674 -> 1.958804134 | EZ33: =Ops!EZ674 -> 1.958804134 | FA33: =Ops!FA674 -> 1.958804134 | FB33: =Ops!FB674 -> 1.958804134 | FC33: =Ops!FC674 -> 1.997980217 | FD33: =Ops!FD674 -> 1.997980217 | FE33: =Ops!FE674 -> 1.997980217 | FF33: =Ops!FF674 -> 1.997980217 | FG33: =Ops!FG674 -> 2.037939821 | FH33: =Ops!FH674 -> 2.037939821 | FI33: =Ops!FI674 -> 2.037939821 | FJ33: =Ops!FJ674 -> 2.037939821 | FK33: =Ops!FK674 -> 2.078698618 | FL33: =Ops!FL674 -> 2.078698618 | FM33: =Ops!FM674 -> 2.078698618 | FN33: =Ops!FN674 -> 2.078698618 | FO33: =Ops!FO674 -> 2.12027259 | FP33: =Ops!FP674 -> 2.12027259 | FQ33: =Ops!FQ674 -> 2.12027259 | FR33: =Ops!FR674 -> 2.12027259 | FS33: =Ops!FS674 -> 2.162678042 | FT33: =Ops!FT674 -> 2.162678042 | FU33: =Ops!FU674 -> 2.162678042 | FV33: =Ops!FV674 -> 2.162678042 | FW33: =Ops!FW674 -> 2.205931603 | FX33: =Ops!FX674 -> 2.205931603 | FY33: =Ops!FY674 -> 2.205931603 | FZ33: =Ops!FZ674 -> 2.205931603 | GA33: =Ops!GA674 -> 2.250050235 | GB33: =Ops!GB674 -> 2.250050235 | GC33: =Ops!GC674 -> 2.250050235 | GD33: =Ops!GD674 -> 2.250050235 | GE33: =Ops!GE674 -> 2.29505124 | GF33: =Ops!GF674 -> 2.29505124 | GG33: =Ops!GG674 -> 2.29505124 | GH33: =Ops!GH674 -> 2.29505124 | GI33: =Ops!GI674 -> 2.340952264 | GJ33: =Ops!GJ674 -> 2.340952264 | GK33: =Ops!GK674 -> 2.340952264 | GL33: =Ops!GL674 -> 2.340952264 | GM33: =Ops!GM674 -> 2.38777131 | GN33: =Ops!GN674 -> 2.38777131 | GO33: =Ops!GO674 -> 2.38777131 | GP33: =Ops!GP674 -> 2.38777131 | GQ33: =Ops!GQ674 -> 2.435526736 | GR33: =Ops!GR674 -> 2.435526736 | GS33: =Ops!GS674 -> 2.435526736 | GT33: =Ops!GT674 -> 2.435526736 | GU33: =Ops!GU674 -> 2.484237271 | GV33: =Ops!GV674 -> 2.484237271 | GW33: =Ops!GW674 -> 2.484237271 | GX33: =Ops!GX674 -> 2.484237271 | GY33: =Ops!GY674 -> 2.533922016 | GZ33: =Ops!GZ674 -> 2.533922016 | HA33: =Ops!HA674 -> 2.533922016 | HB33: =Ops!HB674 -> 2.533922016 | HC33: =Ops!HC674 -> 2.584600456 | HD33: =Ops!HD674 -> 2.584600456 | HE33: =Ops!HE674 -> 2.584600456 | HF33: =Ops!HF674 -> 2.584600456 | HG33: =Ops!HG674 -> 2.636292465 | HH33: =Ops!HH674 -> 2.636292465 | HI33: =Ops!HI674 -> 2.636292465 | HJ33: =Ops!HJ674 -> 2.636292465 | HK33: =Ops!HK674 -> 2.689018315 | HL33: =Ops!HL674 -> 2.689018315 | HM33: =Ops!HM674 -> 2.689018315 | HN33: =Ops!HN674 -> 2.689018315 | HO33: =Ops!HO674 -> 2.742798681 | HP33: =Ops!HP674 -> 0 | HQ33: =Ops!HQ674 -> 0 | HR33: =Ops!HR674 -> 0 | HS33: =Ops!HS674 -> 0 | HT33: =Ops!HT674 -> 0 | HU33: =Ops!HU674 -> 0 | HV33: =Ops!HV674 -> 0 | HW33: =Ops!HW674 -> 0 | HX33: =Ops!HX674 -> 0 | HY33: =Ops!HY674 -> 0 | HZ33: =Ops!HZ674 -> 0 | IA33: =Ops!IA674 -> 0 | IB33: =Ops!IB674 -> 0 | IC33: =Ops!IC674 -> 0 | ID33: =Ops!ID674 -> 0 | IE33: =Ops!IE674 -> 0 | IF33: =Ops!IF674 -> 0 | IG33: =Ops!IG674 -> 0 | IH33: =Ops!IH674 -> 0 | II33: =Ops!II674 -> 0 | IJ33: =Ops!IJ674 -> 0 | IK33: =Ops!IK674 -> 0 | IL33: =Ops!IL674 -> 0 | IM33: =Ops!IM674 -> 0 | IN33: =Ops!IN674 -> 0 | IO33: =Ops!IO674 -> 0 | IP33: =Ops!IP674 -> 0 | IQ33: =Ops!IQ674 -> 0 | IR33: =Ops!IR674 -> 0 | IS33: =Ops!IS674 -> 0 | IT33: =Ops!IT674 -> 0 | IU33: =Ops!IU674 -> 0
C34: Interest income | D34: AUD M | I34: 1.077393356 | J34: =Ops!J728 -> 0 | K34: =Ops!K728 -> 0 | L34: =Ops!L728 -> 0 | M34: =Ops!M728 -> 0 | N34: =Ops!N728 -> 0 | O34: =Ops!O728 -> 0 | P34: =Ops!P728 -> 0 | Q34: =Ops!Q728 -> 0 | R34: =Ops!R728 -> 0 | S34: =Ops!S728 -> -0.0006200589282 | T34: =Ops!T728 -> -0.001651893422 | U34: =Ops!U728 -> -0.003501423932 | V34: =Ops!V728 -> -0.004997423067 | W34: =Ops!W728 -> -0.00513496032 | X34: =Ops!X728 -> 0.01134934173 | Y34: =Ops!Y728 -> 0.01135453671 | Z34: =Ops!Z728 -> 0.009277815794 | AA34: =Ops!AA728 -> 0.007248416239 | AB34: =Ops!AB728 -> 0.005160129126 | AC34: =Ops!AC728 -> 0.003366222246 | AD34: =Ops!AD728 -> 0.001587674654 | AE34: =Ops!AE728 -> -5.87972777e-05 | AF34: =Ops!AF728 -> -0.00163253216 | AG34: =Ops!AG728 -> -0.003248469565 | AH34: =Ops!AH728 -> -0.004837755432 | AI34: =Ops!AI728 -> -0.004674060188 | AJ34: =Ops!AJ728 -> -0.004368636387 | AK34: =Ops!AK728 -> -0.004228637768 | AL34: =Ops!AL728 -> -0.004242757593 | AM34: =Ops!AM728 -> -0.004242060036 | AN34: =Ops!AN728 -> -0.004095679348 | AO34: =Ops!AO728 -> -0.004110481151 | AP34: =Ops!AP728 -> -0.004123845602 | AQ34: =Ops!AQ728 -> -0.004123501041 | AR34: =Ops!AR728 -> -0.004021706866 | AS34: =Ops!AS728 -> -0.003981957752 | AT34: =Ops!AT728 -> -0.003993928517 | AU34: =Ops!AU728 -> -0.003993631028 | AV34: =Ops!AV728 -> -0.003857038829 | AW34: =Ops!AW728 -> -0.003869131077 | AX34: =Ops!AX728 -> -0.003879764489 | AY34: =Ops!AY728 -> -0.003879400057 | AZ34: =Ops!AZ728 -> -0.003733878964 | BA34: =Ops!BA728 -> -0.003992382092 | BB34: =Ops!BB728 -> -0.004255127956 | BC34: =Ops!BC728 -> -0.004505833914 | BD34: =Ops!BD728 -> -0.004351144267 | BE34: =Ops!BE728 -> -0.004375389763 | BF34: =Ops!BF728 -> -0.004398052561 | BG34: =Ops!BG728 -> -0.004397716143 | BH34: =Ops!BH728 -> -0.004289409851 | BI34: =Ops!BI728 -> -0.004252635362 | BJ34: =Ops!BJ728 -> -0.004273858632 | BK34: =Ops!BK728 -> -0.004273580689 | BL34: =Ops!BL728 -> -0.004130637691 | BM34: =Ops!BM728 -> -0.004168791984 | BN34: =Ops!BN728 -> -0.004206042498 | BO34: =Ops!BO728 -> -0.004222690848 | BP34: =Ops!BP728 -> -0.004066368421 | BQ34: =Ops!BQ728 -> -0.004087212474 | BR34: =Ops!BR728 -> -0.004106652527 | BS34: =Ops!BS728 -> -0.004106247061 | BT34: =Ops!BT728 -> -0.003949894398 | BU34: =Ops!BU728 -> -0.003969554195 | BV34: =Ops!BV728 -> -0.003987834313 | BW34: =Ops!BW728 -> -0.00398746347 | BX34: =Ops!BX728 -> -0.003873737518 | BY34: =Ops!BY728 -> -0.003833906689 | BZ34: =Ops!BZ728 -> -0.003850867912 | CA34: =Ops!CA728 -> -0.003850554955 | CB34: =Ops!CB728 -> -0.00371026602 | CC34: =Ops!CC728 -> -0.003727526651 | CD34: =Ops!CD728 -> -0.003743380512 | CE34: =Ops!CE728 -> -0.003743017224 | CF34: =Ops!CF728 -> -0.003586812326 | CG34: =Ops!CG728 -> -0.003602803176 | CH34: =Ops!CH728 -> -0.003617374216 | CI34: =Ops!CI728 -> -0.003616984421 | CJ34: =Ops!CJ728 -> -0.003460831628 | CK34: =Ops!CK728 -> -0.00347553502 | CL34: =Ops!CL728 -> -0.003488806052 | CM34: =Ops!CM728 -> -0.003488401937 | CN34: =Ops!CN728 -> -0.003369329546 | CO34: =Ops!CO728 -> -0.003326190401 | CP34: =Ops!CP728 -> -0.003337977232 | CQ34: =Ops!CQ728 -> -0.003337619229 | CR34: =Ops!CR728 -> -0.003201351991 | CS34: =Ops!CS728 -> -0.003213407451 | CT34: =Ops!CT728 -> -0.003224007601 | CU34: =Ops!CU728 -> -0.003223592947 | CV34: =Ops!CV728 -> -0.003067622064 | CW34: =Ops!CW728 -> -0.003078276548 | CX34: =Ops!CX728 -> -0.003087462749 | CY34: =Ops!CY728 -> -0.003087010115 | CZ34: =Ops!CZ728 -> -0.00293111783 | DA34: =Ops!DA728 -> -0.002960413704 | DB34: =Ops!DB728 -> -0.002988785974 | DC34: =Ops!DC728 -> -0.003008811837 | DD34: =Ops!DD728 -> -0.002883600044 | DE34: =Ops!DE728 -> -0.002836887304 | DF34: =Ops!DF728 -> -0.002843581214 | DG34: =Ops!DG728 -> -0.002843124817 | DH34: =Ops!DH728 -> -0.002709985015 | DI34: =Ops!DI728 -> -0.002716939567 | DJ34: =Ops!DJ728 -> -0.002722392479 | DK34: =Ops!DK728 -> -0.002721927239 | DL34: =Ops!DL728 -> -0.002565137486 | DM34: =Ops!DM728 -> -0.002571048145 | DN34: =Ops!DN728 -> -0.002462174377 | DO34: =Ops!DO728 -> -0.002218648282 | DP34: =Ops!DP728 -> -0.001706200173 | DQ34: =Ops!DQ728 -> -0.001564016293 | DR34: =Ops!DR728 -> -0.001486675232 | DS34: =Ops!DS728 -> -0.001483284284 | DT34: =Ops!DT728 -> -0.001113680837 | DU34: =Ops!DU728 -> -0.0009353854084 | DV34: =Ops!DV728 -> -0.0008525662703 | DW34: =Ops!DW728 -> -0.0008497618648 | DX34: =Ops!DX728 -> -0.000560063585 | DY34: =Ops!DY728 -> -0.0004778801046 | DZ34: =Ops!DZ728 -> -0.0003903902533 | EA34: =Ops!EA728 -> -0.0003880169479 | EB34: =Ops!EB728 -> -9.282936281e-06 | EC34: =Ops!EC728 -> 7.942178121e-05 | ED34: =Ops!ED728 -> 0.0001735060971 | EE34: =Ops!EE728 -> 0.0003307058897 | EF34: =Ops!EF728 -> 0.0006664148155 | EG34: =Ops!EG728 -> 0.0008211854737 | EH34: =Ops!EH728 -> 0.001081414625 | EI34: =Ops!EI728 -> 0.001435420432 | EJ34: =Ops!EJ728 -> 0.001965741782 | EK34: =Ops!EK728 -> 0.002409683467 | EL34: =Ops!EL728 -> 0.002886662211 | EM34: =Ops!EM728 -> 0.003444509237 | EN34: =Ops!EN728 -> 0.004113563007 | EO34: =Ops!EO728 -> 0.004312791056 | EP34: =Ops!EP728 -> 0.004620934315 | EQ34: =Ops!EQ728 -> 0.004987841649 | ER34: =Ops!ER728 -> 0.005439772672 | ES34: =Ops!ES728 -> 0.005853933053 | ET34: =Ops!ET728 -> 0.006386148511 | EU34: =Ops!EU728 -> 0.006964972655 | EV34: =Ops!EV728 -> 0.007586017926 | EW34: =Ops!EW728 -> 0.008231204619 | EX34: =Ops!EX728 -> 0.009003870659 | EY34: =Ops!EY728 -> 0.009801933189 | EZ34: =Ops!EZ728 -> 0.01069823304 | FA34: =Ops!FA728 -> 0.01158918476 | FB34: =Ops!FB728 -> 0.01262064952 | FC34: =Ops!FC728 -> 0.01364566134 | FD34: =Ops!FD728 -> 0.01456785694 | FE34: =Ops!FE728 -> 0.01572685484 | FF34: =Ops!FF728 -> 0.01703307064 | FG34: =Ops!FG728 -> 0.01829254942 | FH34: =Ops!FH728 -> 0.01920305306 | FI34: =Ops!FI728 -> 0.01949331177 | FJ34: =Ops!FJ728 -> 0.01974627655 | FK34: =Ops!FK728 -> 0.01966979759 | FL34: =Ops!FL728 -> 0.01920452819 | FM34: =Ops!FM728 -> 0.01949280636 | FN34: =Ops!FN728 -> 0.01974475392 | FO34: =Ops!FO728 -> 0.01970752248 | FP34: =Ops!FP728 -> 0.01945648352 | FQ34: =Ops!FQ728 -> 0.01949280337 | FR34: =Ops!FR728 -> 0.01974372886 | FS34: =Ops!FS728 -> 0.01967133383 | FT34: =Ops!FT728 -> 0.01920802575 | FU34: =Ops!FU728 -> 0.0194922878 | FV34: =Ops!FV728 -> 0.01974217476 | FW34: =Ops!FW728 -> 0.01967185358 | FX34: =Ops!FX728 -> 0.01920954701 | FY34: =Ops!FY728 -> 0.01949176698 | FZ34: =Ops!FZ728 -> 0.01974060515 | GA34: =Ops!GA728 -> 0.01975626328 | GB34: =Ops!GB728 -> 0.01937593285 | GC34: =Ops!GC728 -> 0.01965938794 | GD34: =Ops!GD728 -> 0.01990975354 | GE34: =Ops!GE728 -> 0.01987596459 | GF34: =Ops!GF728 -> 0.01962649982 | GG34: =Ops!GG728 -> 0.01965938442 | GH34: =Ops!GH728 -> 0.01990866762 | GI34: =Ops!GI728 -> 0.01984327242 | GJ34: =Ops!GJ728 -> 0.01937963907 | GK34: =Ops!GK728 -> 0.01965883947 | GL34: =Ops!GL728 -> 0.01990702316 | GM34: =Ops!GM728 -> 0.01984382461 | GN34: =Ops!GN728 -> 0.01938125174 | GO34: =Ops!GO728 -> 0.01965828904 | GP34: =Ops!GP728 -> 0.0199053619 | GQ34: =Ops!GQ728 -> 0.01984438195 | GR34: =Ops!GR728 -> 0.01938288028 | GS34: =Ops!GS728 -> 0.0196577332 | GT34: =Ops!GT728 -> 0.01990368478 | GU34: =Ops!GU728 -> 0.01987431391 | GV34: =Ops!GV728 -> 0.01962923698 | GW34: =Ops!GW728 -> 0.0196577302 | GX34: =Ops!GX728 -> 0.01990255554 | GY34: =Ops!GY728 -> 0.01984607874 | GZ34: =Ops!GZ728 -> 0.01938673846 | HA34: =Ops!HA728 -> 0.01965716389 | HB34: =Ops!HB728 -> 0.01990084555 | HC34: =Ops!HC728 -> 0.01984665351 | HD34: =Ops!HD728 -> 0.01938841591 | HE34: =Ops!HE728 -> 0.01965659188 | HF34: =Ops!HF728 -> 0.01989911911 | HG34: =Ops!HG728 -> 0.01984723424 | HH34: =Ops!HH728 -> 0.01939011011 | HI34: =Ops!HI728 -> 0.0196560148 | HJ34: =Ops!HJ728 -> 0.01989737648 | HK34: =Ops!HK728 -> 0.01987259865 | HL34: =Ops!HL728 -> 0.01963208355 | HM34: =Ops!HM728 -> 0.01965601211 | HN34: =Ops!HN728 -> 0.01989620381 | HO34: =Ops!HO728 -> 0.009948101938 | HP34: =Ops!HP728 -> 0 | HQ34: =Ops!HQ728 -> 0 | HR34: =Ops!HR728 -> 0 | HS34: =Ops!HS728 -> 0 | HT34: =Ops!HT728 -> 0 | HU34: =Ops!HU728 -> 0 | HV34: =Ops!HV728 -> 0 | HW34: =Ops!HW728 -> 0 | HX34: =Ops!HX728 -> 0 | HY34: =Ops!HY728 -> 0 | HZ34: =Ops!HZ728 -> 0 | IA34: =Ops!IA728 -> 0 | IB34: =Ops!IB728 -> 0 | IC34: =Ops!IC728 -> 0 | ID34: =Ops!ID728 -> 0 | IE34: =Ops!IE728 -> 0 | IF34: =Ops!IF728 -> 0 | IG34: =Ops!IG728 -> 0 | IH34: =Ops!IH728 -> 0 | II34: =Ops!II728 -> 0 | IJ34: =Ops!IJ728 -> 0 | IK34: =Ops!IK728 -> 0 | IL34: =Ops!IL728 -> 0 | IM34: =Ops!IM728 -> 0 | IN34: =Ops!IN728 -> 0 | IO34: =Ops!IO728 -> 0 | IP34: =Ops!IP728 -> 0 | IQ34: =Ops!IQ728 -> 0 | IR34: =Ops!IR728 -> 0 | IS34: =Ops!IS728 -> 0 | IT34: =Ops!IT728 -> 0 | IU34: =Ops!IU728 -> 0
C35: Total revenue | D35: AUD M | I35: 1021.420872 | J35: =SUM(J30:J34) -> 0 | K35: =SUM(K30:K34) -> 0 | L35: 0 | M35: 0 | N35: 0 | O35: 0 | P35: 0 | Q35: 0 | R35: 0 | S35: -0.0006200589282 | T35: -0.001651893422 | U35: -0.003501423932 | V35: -0.004997423067 | W35: -0.00513496032 | X35: 3.0028133 | Y35: 3.02450802 | Z35: 3.044120825 | AA35: 3.042091425 | AB35: 3.038777563 | AC35: 3.036983656 | AD35: 3.057119512 | AE35: 3.116583677 | AF35: 3.090948411 | AG35: 3.111914542 | AH35: 3.132907324 | AI35: 3.195825921 | AJ35: 3.150063926 | AK35: 3.173237634 | AL35: 3.196257223 | AM35: 3.26026792 | AN35: 3.213425534 | AO35: 3.236905116 | AP35: 3.260386135 | AQ35: 3.325676679 | AR35: 3.301814202 | AS35: 3.301853951 | AT35: 3.325806252 | AU35: 3.392402553 | AV35: 3.343652032 | AW35: 3.368083496 | AX35: 3.392516419 | AY35: 3.460444707 | AZ35: 3.410725373 | BA35: 3.435399298 | BB35: 3.460068979 | BC35: 3.529104756 | BD35: 3.478397293 | BE35: 3.503804124 | BF35: 3.529212537 | BG35: 3.599885085 | BH35: 3.574053694 | BI35: 3.574090468 | BJ35: 3.600008943 | BK35: 3.672094877 | BL35: 3.619320836 | BM35: 3.645741174 | BN35: 3.672162415 | BO35: 3.745673136 | BP35: 3.691854135 | BQ35: 3.718820953 | BR35: 3.745789174 | BS35: 3.820787496 | BT35: 3.765889019 | BU35: 3.793396774 | BV35: 3.820905909 | BW35: =SUM(BW30:BW34) -> 3.897404154 | BX35: 3.869439917 | BY35: 3.869479748 | BZ35: 3.89754075 | CA35: 3.975568895 | CB35: 3.91843014 | CC35: 3.947052401 | CD35: 3.97567607 | CE35: 4.055264822 | CF35: 3.996996402 | CG35: 4.026192723 | CH35: 4.055390465 | CI35: 4.136571012 | CJ35: 4.077134047 | CK35: 4.106915902 | CL35: 4.13669919 | CM35: 4.219503354 | CN35: 4.189229936 | CO35: 4.189273075 | CP35: 4.219653779 | CQ35: 4.304113972 | CR35: 4.242249559 | CS35: 4.273237844 | CT35: 4.304227583 | CU35: 4.39037703 | CV35: 4.327292307 | CW35: 4.358902 | CX35: 4.39051316 | CY35: 4.478385625 | CZ35: 4.41403601 | DA35: 4.446259468 | DB35: 4.478483849 | DC35: 4.568093276 | DD35: 4.535320679 | DE35: 4.535367392 | DF35: 4.568258507 | DG35: 4.659681005 | DH35: 4.592702615 | DI35: 4.626251425 | DJ35: 4.659801737 | DK35: 4.753052685 | DL35: 4.684755715 | DM35: 4.718976684 | DN35: 4.753312438 | DO35: 4.848671456 | DP35: 4.779361069 | DQ35: 4.814414671 | DR35: 4.849403429 | DS35: 4.946424622 | DT35: 4.91118458 | DU35: 4.911362875 | DV35: 4.94705534 | DW35: 5.046016303 | DX35: 4.973662323 | DY35: 5.010066346 | DZ35: 5.046475675 | EA35: 5.147415369 | EB35: 5.073697552 | EC35: 5.110834532 | ED35: 5.147976892 | EE35: 5.25109016 | EF35: 5.175847386 | EG35: 5.213791398 | EH35: 5.251840868 | EI35: =SUM(EI30:EI34) -> 5.357210063 | EJ35: 5.319195359 | EK35: 5.3196393 | EL35: 5.358661305 | EM35: 5.466334645 | EN35: 5.388371845 | EO35: 5.427887 | EP35: 5.46751107 | EQ35: 5.57713578 | ER35: 5.497383221 | ES35: 5.537899626 | ET35: 5.578534087 | EU35: 5.69055587 | EV35: 5.609368335 | EW35: 5.650917812 | EX35: 5.692594768 | EY35: 5.807064648 | EZ35: 5.766238572 | FA35: 5.767129524 | FB35: 5.809883365 | FC35: 5.926853631 | FD35: 5.84266218 | FE35: 5.886378001 | FF35: 5.93024104 | FG35: 6.049764678 | FH35: 5.963859262 | FI35: 6.007557481 | FJ35: 6.051218405 | FK35: 6.171771369 | FL35: 6.082753861 | FM35: 6.127318259 | FN35: 6.171846325 | FO35: 6.294851125 | FP35: 6.249438445 | FQ35: 6.249474765 | FR35: 6.294887332 | FS35: 6.420317809 | FT35: 6.327724752 | FU35: 6.374073888 | FV35: 6.42038865 | FW35: 6.548331258 | FX35: 6.453896608 | FY35: 6.501165 | FZ35: 6.54840001 | GA35: 6.678988856 | GB35: 6.582756735 | GC35: 6.630966085 | GD35: 6.679142346 | GE35: 6.812293209 | GF35: 6.763159331 | GG35: 6.763192216 | GH35: 6.812325912 | GI35: 6.948108862 | GJ35: =SUM(GJ30:GJ34) -> 6.847921026 | GK35: 6.898062327 | GL35: 6.948172612 | GM35: 7.086674726 | GN35: 6.984493466 | GO35: 7.035629847 | GP35: 7.086736263 | GQ35: 7.228011901 | GR35: 7.123797339 | GS35: 7.175948722 | GT35: 7.228071204 | GU35: 7.372205183 | GV35: 7.319046046 | GW35: 7.319074539 | GX35: 7.372233425 | GY35: 7.519223566 | GZ35: 7.410819541 | HA35: 7.465062309 | HB35: 7.519278332 | HC35: 7.66921169 | HD35: 7.558649875 | HE35: 7.613969839 | HF35: 7.669264156 | HG35: 7.822199571 | HH35: 7.709436798 | HI35: 7.765855527 | HJ35: 7.822249714 | HK35: 7.978271983 | HL35: 7.920755586 | HM35: 7.920779515 | HN35: 7.978295588 | HO35: 8.127515474 | HP35: 0 | HQ35: 0 | HR35: 0 | HS35: 0 | HT35: 0 | HU35: 0 | HV35: 0 | HW35: 0 | HX35: 0 | HY35: 0 | HZ35: 0 | IA35: 0 | IB35: 0 | IC35: 0 | ID35: 0 | IE35: 0 | IF35: 0 | IG35: 0 | IH35: 0 | II35: 0 | IJ35: 0 | IK35: 0 | IL35: 0 | IM35: 0 | IN35: 0 | IO35: 0 | IP35: 0 | IQ35: 0 | IR35: 0 | IS35: 0 | IT35: 0 | IU35: 0
C37: Operational Expenditure
C38: =Ops!C697 -> Planned & Preventative Maintenance/Upgrades | D38: AUD M | I38: =SUM(J38:IU38) -> -113.7673407 | J38: =Ops!J697 -> 0 | K38: =Ops!K697 -> 0 | L38: =Ops!L697 -> 0 | M38: =Ops!M697 -> 0 | N38: =Ops!N697 -> 0 | O38: =Ops!O697 -> 0 | P38: =Ops!P697 -> 0 | Q38: =Ops!Q697 -> 0 | R38: =Ops!R697 -> 0 | S38: =Ops!S697 -> 0 | T38: =Ops!T697 -> 0 | U38: =Ops!U697 -> 0 | V38: =Ops!V697 -> 0 | W38: =Ops!W697 -> 0 | X38: =Ops!X697 -> -0.3344275 | Y38: =Ops!Y697 -> -0.3344275 | Z38: =Ops!Z697 -> -0.3344275 | AA38: =Ops!AA697 -> -0.3344275 | AB38: =Ops!AB697 -> -0.3378925 | AC38: =Ops!AC697 -> -0.3378925 | AD38: =Ops!AD697 -> -0.3378925 | AE38: =Ops!AE697 -> -0.34465035 | AF38: =Ops!AF697 -> -0.34818465 | AG38: =Ops!AG697 -> -0.34818465 | AH38: =Ops!AH697 -> -0.34818465 | AI38: =Ops!AI697 -> -0.355148343 | AJ38: =Ops!AJ697 -> -0.355148343 | AK38: =Ops!AK697 -> -0.355148343 | AL38: =Ops!AL697 -> -0.355148343 | AM38: =Ops!AM697 -> -0.3622513099 | AN38: =Ops!AN697 -> -0.3622513099 | AO38: =Ops!AO697 -> -0.3622513099 | AP38: =Ops!AP697 -> -0.3622513099 | AQ38: =Ops!AQ697 -> -0.3694963361 | AR38: =Ops!AR697 -> -0.3694963361 | AS38: =Ops!AS697 -> -0.3694963361 | AT38: =Ops!AT697 -> -0.3694963361 | AU38: =Ops!AU697 -> -0.3768862628 | AV38: =Ops!AV697 -> -0.3768862628 | AW38: =Ops!AW697 -> -0.3768862628 | AX38: =Ops!AX697 -> -0.3768862628 | AY38: =Ops!AY697 -> -0.384423988 | AZ38: =Ops!AZ697 -> -0.384423988 | BA38: =Ops!BA697 -> -0.384423988 | BB38: =Ops!BB697 -> -0.384423988 | BC38: =Ops!BC697 -> -0.3921124678 | BD38: =Ops!BD697 -> -0.3921124678 | BE38: =Ops!BE697 -> -0.3921124678 | BF38: =Ops!BF697 -> -0.3921124678 | BG38: =Ops!BG697 -> -0.3999547172 | BH38: =Ops!BH697 -> -0.3999547172 | BI38: =Ops!BI697 -> -0.3999547172 | BJ38: =Ops!BJ697 -> -0.3999547172 | BK38: =Ops!BK697 -> -0.4079538115 | BL38: =Ops!BL697 -> -0.4079538115 | BM38: =Ops!BM697 -> -0.4079538115 | BN38: =Ops!BN697 -> -0.4079538115 | BO38: =Ops!BO697 -> -0.4161128877 | BP38: =Ops!BP697 -> -0.4161128877 | BQ38: =Ops!BQ697 -> -0.4161128877 | BR38: =Ops!BR697 -> -0.4161128877 | BS38: =Ops!BS697 -> -0.4244351455 | BT38: =Ops!BT697 -> -0.4244351455 | BU38: =Ops!BU697 -> -0.4244351455 | BV38: =Ops!BV697 -> -0.4244351455 | BW38: =Ops!BW697 -> -0.4329238484 | BX38: =Ops!BX697 -> -0.4329238484 | BY38: =Ops!BY697 -> -0.4329238484 | BZ38: =Ops!BZ697 -> -0.4329238484 | CA38: =Ops!CA697 -> -0.4415823254 | CB38: =Ops!CB697 -> -0.4415823254 | CC38: =Ops!CC697 -> -0.4415823254 | CD38: =Ops!CD697 -> -0.4415823254 | CE38: =Ops!CE697 -> -0.4504139719 | CF38: =Ops!CF697 -> -0.4504139719 | CG38: =Ops!CG697 -> -0.4504139719 | CH38: =Ops!CH697 -> -0.4504139719 | CI38: =Ops!CI697 -> -0.4594222513 | CJ38: =Ops!CJ697 -> -0.4594222513 | CK38: =Ops!CK697 -> -0.4594222513 | CL38: =Ops!CL697 -> -0.4594222513 | CM38: =Ops!CM697 -> -0.4686106963 | CN38: =Ops!CN697 -> -0.4686106963 | CO38: =Ops!CO697 -> -0.4686106963 | CP38: =Ops!CP697 -> -0.4686106963 | CQ38: =Ops!CQ697 -> -0.4779829103 | CR38: =Ops!CR697 -> -0.4779829103 | CS38: =Ops!CS697 -> -0.4779829103 | CT38: =Ops!CT697 -> -0.4779829103 | CU38: =Ops!CU697 -> -0.4875425685 | CV38: =Ops!CV697 -> -0.4875425685 | CW38: =Ops!CW697 -> -0.4875425685 | CX38: =Ops!CX697 -> -0.4875425685 | CY38: =Ops!CY697 -> -0.4972934198 | CZ38: =Ops!CZ697 -> -0.4972934198 | DA38: =Ops!DA697 -> -0.4972934198 | DB38: =Ops!DB697 -> -0.4972934198 | DC38: =Ops!DC697 -> -0.5072392882 | DD38: =Ops!DD697 -> -0.5072392882 | DE38: =Ops!DE697 -> -0.5072392882 | DF38: =Ops!DF697 -> -0.5072392882 | DG38: =Ops!DG697 -> -0.517384074 | DH38: =Ops!DH697 -> -0.517384074 | DI38: =Ops!DI697 -> -0.517384074 | DJ38: =Ops!DJ697 -> -0.517384074 | DK38: =Ops!DK697 -> -0.5277317555 | DL38: =Ops!DL697 -> -0.5277317555 | DM38: =Ops!DM697 -> -0.5277317555 | DN38: =Ops!DN697 -> -0.5277317555 | DO38: =Ops!DO697 -> -0.5382863906 | DP38: =Ops!DP697 -> -0.5382863906 | DQ38: =Ops!DQ697 -> -0.5382863906 | DR38: =Ops!DR697 -> -0.5382863906 | DS38: =Ops!DS697 -> -0.5490521184 | DT38: =Ops!DT697 -> -0.5490521184 | DU38: =Ops!DU697 -> -0.5490521184 | DV38: =Ops!DV697 -> -0.5490521184 | DW38: =Ops!DW697 -> -0.5600331608 | DX38: =Ops!DX697 -> -0.5600331608 | DY38: =Ops!DY697 -> -0.5600331608 | DZ38: =Ops!DZ697 -> -0.5600331608 | EA38: =Ops!EA697 -> -0.571233824 | EB38: =Ops!EB697 -> -0.571233824 | EC38: =Ops!EC697 -> -0.571233824 | ED38: =Ops!ED697 -> -0.571233824 | EE38: =Ops!EE697 -> -0.5826585005 | EF38: =Ops!EF697 -> -0.5826585005 | EG38: =Ops!EG697 -> -0.5826585005 | EH38: =Ops!EH697 -> -0.5826585005 | EI38: =Ops!EI697 -> -0.5943116705 | EJ38: =Ops!EJ697 -> -0.5943116705 | EK38: =Ops!EK697 -> -0.5943116705 | EL38: =Ops!EL697 -> -0.5943116705 | EM38: =Ops!EM697 -> -0.6061979039 | EN38: =Ops!EN697 -> -0.6061979039 | EO38: =Ops!EO697 -> -0.6061979039 | EP38: =Ops!EP697 -> -0.6061979039 | EQ38: =Ops!EQ697 -> -0.6183218619 | ER38: =Ops!ER697 -> -0.6183218619 | ES38: =Ops!ES697 -> -0.6183218619 | ET38: =Ops!ET697 -> -0.6183218619 | EU38: =Ops!EU697 -> -0.6306882992 | EV38: =Ops!EV697 -> -0.6306882992 | EW38: =Ops!EW697 -> -0.6306882992 | EX38: =Ops!EX697 -> -0.6306882992 | EY38: =Ops!EY697 -> -0.6433020652 | EZ38: =Ops!EZ697 -> -0.6433020652 | FA38: =Ops!FA697 -> -0.6433020652 | FB38: =Ops!FB697 -> -0.6433020652 | FC38: =Ops!FC697 -> -0.6561681065 | FD38: =Ops!FD697 -> -0.6561681065 | FE38: =Ops!FE697 -> -0.6561681065 | FF38: =Ops!FF697 -> -0.6561681065 | FG38: =Ops!FG697 -> -0.6692914686 | FH38: =Ops!FH697 -> -0.6692914686 | FI38: =Ops!FI697 -> -0.6692914686 | FJ38: =Ops!FJ697 -> -0.6692914686 | FK38: =Ops!FK697 -> -0.682677298 | FL38: =Ops!FL697 -> -0.682677298 | FM38: =Ops!FM697 -> -0.682677298 | FN38: =Ops!FN697 -> -0.682677298 | FO38: =Ops!FO697 -> -0.6963308439 | FP38: =Ops!FP697 -> -0.6963308439 | FQ38: =Ops!FQ697 -> -0.6963308439 | FR38: =Ops!FR697 -> -0.6963308439 | FS38: =Ops!FS697 -> -0.7102574608 | FT38: =Ops!FT697 -> -0.7102574608 | FU38: =Ops!FU697 -> -0.7102574608 | FV38: =Ops!FV697 -> -0.7102574608 | FW38: =Ops!FW697 -> -0.72446261 | FX38: =Ops!FX697 -> -0.72446261 | FY38: =Ops!FY697 -> -0.72446261 | FZ38: =Ops!FZ697 -> -0.72446261 | GA38: =Ops!GA697 -> -0.7389518622 | GB38: =Ops!GB697 -> -0.7389518622 | GC38: =Ops!GC697 -> -0.7389518622 | GD38: =Ops!GD697 -> -0.7389518622 | GE38: =Ops!GE697 -> -0.7537308995 | GF38: =Ops!GF697 -> -0.7537308995 | GG38: =Ops!GG697 -> -0.7537308995 | GH38: =Ops!GH697 -> -0.7537308995 | GI38: =Ops!GI697 -> -0.7688055175 | GJ38: =Ops!GJ697 -> -0.7688055175 | GK38: =Ops!GK697 -> -0.7688055175 | GL38: =Ops!GL697 -> -0.7688055175 | GM38: =Ops!GM697 -> -0.7841816278 | GN38: =Ops!GN697 -> -0.7841816278 | GO38: =Ops!GO697 -> -0.7841816278 | GP38: =Ops!GP697 -> -0.7841816278 | GQ38: =Ops!GQ697 -> -0.7998652604 | GR38: =Ops!GR697 -> -0.7998652604 | GS38: =Ops!GS697 -> -0.7998652604 | GT38: =Ops!GT697 -> -0.7998652604 | GU38: =Ops!GU697 -> -0.8158625656 | GV38: =Ops!GV697 -> -0.8158625656 | GW38: =Ops!GW697 -> -0.8158625656 | GX38: =Ops!GX697 -> -0.8158625656 | GY38: =Ops!GY697 -> -0.8321798169 | GZ38: =Ops!GZ697 -> -0.8321798169 | HA38: =Ops!HA697 -> -0.8321798169 | HB38: =Ops!HB697 -> -0.8321798169 | HC38: =Ops!HC697 -> -0.8488234132 | HD38: =Ops!HD697 -> -0.8488234132 | HE38: =Ops!HE697 -> -0.8488234132 | HF38: =Ops!HF697 -> -0.8488234132 | HG38: =Ops!HG697 -> -0.8657998815 | HH38: =Ops!HH697 -> -0.8657998815 | HI38: =Ops!HI697 -> -0.8657998815 | HJ38: =Ops!HJ697 -> -0.8657998815 | HK38: =Ops!HK697 -> -0.8831158791 | HL38: =Ops!HL697 -> -0.8831158791 | HM38: =Ops!HM697 -> -0.8831158791 | HN38: =Ops!HN697 -> -0.8831158791 | HO38: =Ops!HO697 -> -0.9007781967 | HP38: =Ops!HP697 -> 0 | HQ38: =Ops!HQ697 -> 0 | HR38: =Ops!HR697 -> 0 | HS38: =Ops!HS697 -> 0 | HT38: =Ops!HT697 -> 0 | HU38: =Ops!HU697 -> 0 | HV38: =Ops!HV697 -> 0 | HW38: =Ops!HW697 -> 0 | HX38: =Ops!HX697 -> 0 | HY38: =Ops!HY697 -> 0 | HZ38: =Ops!HZ697 -> 0 | IA38: =Ops!IA697 -> 0 | IB38: =Ops!IB697 -> 0 | IC38: =Ops!IC697 -> 0 | ID38: =Ops!ID697 -> 0 | IE38: =Ops!IE697 -> 0 | IF38: =Ops!IF697 -> 0 | IG38: =Ops!IG697 -> 0 | IH38: =Ops!IH697 -> 0 | II38: =Ops!II697 -> 0 | IJ38: =Ops!IJ697 -> 0 | IK38: =Ops!IK697 -> 0 | IL38: =Ops!IL697 -> 0 | IM38: =Ops!IM697 -> 0 | IN38: =Ops!IN697 -> 0 | IO38: =Ops!IO697 -> 0 | IP38: =Ops!IP697 -> 0 | IQ38: =Ops!IQ697 -> 0 | IR38: =Ops!IR697 -> 0 | IS38: =Ops!IS697 -> 0 | IT38: =Ops!IT697 -> 0 | IU38: =Ops!IU697 -> 0
C39: =Ops!C698 -> Property Management Fees | D39: AUD M | I39: -28.44183518 | J39: =Ops!J698 -> 0 | K39: =Ops!K698 -> 0 | L39: =Ops!L698 -> 0 | M39: =Ops!M698 -> 0 | N39: =Ops!N698 -> 0 | O39: =Ops!O698 -> 0 | P39: =Ops!P698 -> 0 | Q39: =Ops!Q698 -> 0 | R39: =Ops!R698 -> 0 | S39: =Ops!S698 -> 0 | T39: =Ops!T698 -> 0 | U39: =Ops!U698 -> 0 | V39: =Ops!V698 -> 0 | W39: =Ops!W698 -> 0 | X39: =Ops!X698 -> -0.083606875 | Y39: =Ops!Y698 -> -0.083606875 | Z39: =Ops!Z698 -> -0.083606875 | AA39: =Ops!AA698 -> -0.083606875 | AB39: =Ops!AB698 -> -0.084473125 | AC39: =Ops!AC698 -> -0.084473125 | AD39: =Ops!AD698 -> -0.084473125 | AE39: =Ops!AE698 -> -0.0861625875 | AF39: =Ops!AF698 -> -0.0870461625 | AG39: =Ops!AG698 -> -0.0870461625 | AH39: =Ops!AH698 -> -0.0870461625 | AI39: =Ops!AI698 -> -0.08878708575 | AJ39: =Ops!AJ698 -> -0.08878708575 | AK39: =Ops!AK698 -> -0.08878708575 | AL39: =Ops!AL698 -> -0.08878708575 | AM39: =Ops!AM698 -> -0.09056282746 | AN39: =Ops!AN698 -> -0.09056282746 | AO39: =Ops!AO698 -> -0.09056282746 | AP39: =Ops!AP698 -> -0.09056282746 | AQ39: =Ops!AQ698 -> -0.09237408401 | AR39: =Ops!AR698 -> -0.09237408401 | AS39: =Ops!AS698 -> -0.09237408401 | AT39: =Ops!AT698 -> -0.09237408401 | AU39: =Ops!AU698 -> -0.09422156569 | AV39: =Ops!AV698 -> -0.09422156569 | AW39: =Ops!AW698 -> -0.09422156569 | AX39: =Ops!AX698 -> -0.09422156569 | AY39: =Ops!AY698 -> -0.09610599701 | AZ39: =Ops!AZ698 -> -0.09610599701 | BA39: =Ops!BA698 -> -0.09610599701 | BB39: =Ops!BB698 -> -0.09610599701 | BC39: =Ops!BC698 -> -0.09802811695 | BD39: =Ops!BD698 -> -0.09802811695 | BE39: =Ops!BE698 -> -0.09802811695 | BF39: =Ops!BF698 -> -0.09802811695 | BG39: =Ops!BG698 -> -0.09998867929 | BH39: =Ops!BH698 -> -0.09998867929 | BI39: =Ops!BI698 -> -0.09998867929 | BJ39: =Ops!BJ698 -> -0.09998867929 | BK39: =Ops!BK698 -> -0.1019884529 | BL39: =Ops!BL698 -> -0.1019884529 | BM39: =Ops!BM698 -> -0.1019884529 | BN39: =Ops!BN698 -> -0.1019884529 | BO39: =Ops!BO698 -> -0.1040282219 | BP39: =Ops!BP698 -> -0.1040282219 | BQ39: =Ops!BQ698 -> -0.1040282219 | BR39: =Ops!BR698 -> -0.1040282219 | BS39: =Ops!BS698 -> -0.1061087864 | BT39: =Ops!BT698 -> -0.1061087864 | BU39: =Ops!BU698 -> -0.1061087864 | BV39: =Ops!BV698 -> -0.1061087864 | BW39: =Ops!BW698 -> -0.1082309621 | BX39: =Ops!BX698 -> -0.1082309621 | BY39: =Ops!BY698 -> -0.1082309621 | BZ39: =Ops!BZ698 -> -0.1082309621 | CA39: =Ops!CA698 -> -0.1103955813 | CB39: =Ops!CB698 -> -0.1103955813 | CC39: =Ops!CC698 -> -0.1103955813 | CD39: =Ops!CD698 -> -0.1103955813 | CE39: =Ops!CE698 -> -0.112603493 | CF39: =Ops!CF698 -> -0.112603493 | CG39: =Ops!CG698 -> -0.112603493 | CH39: =Ops!CH698 -> -0.112603493 | CI39: =Ops!CI698 -> -0.1148555628 | CJ39: =Ops!CJ698 -> -0.1148555628 | CK39: =Ops!CK698 -> -0.1148555628 | CL39: =Ops!CL698 -> -0.1148555628 | CM39: =Ops!CM698 -> -0.1171526741 | CN39: =Ops!CN698 -> -0.1171526741 | CO39: =Ops!CO698 -> -0.1171526741 | CP39: =Ops!CP698 -> -0.1171526741 | CQ39: =Ops!CQ698 -> -0.1194957276 | CR39: =Ops!CR698 -> -0.1194957276 | CS39: =Ops!CS698 -> -0.1194957276 | CT39: =Ops!CT698 -> -0.1194957276 | CU39: =Ops!CU698 -> -0.1218856421 | CV39: =Ops!CV698 -> -0.1218856421 | CW39: =Ops!CW698 -> -0.1218856421 | CX39: =Ops!CX698 -> -0.1218856421 | CY39: =Ops!CY698 -> -0.124323355 | CZ39: =Ops!CZ698 -> -0.124323355 | DA39: =Ops!DA698 -> -0.124323355 | DB39: =Ops!DB698 -> -0.124323355 | DC39: =Ops!DC698 -> -0.1268098221 | DD39: =Ops!DD698 -> -0.1268098221 | DE39: =Ops!DE698 -> -0.1268098221 | DF39: =Ops!DF698 -> -0.1268098221 | DG39: =Ops!DG698 -> -0.1293460185 | DH39: =Ops!DH698 -> -0.1293460185 | DI39: =Ops!DI698 -> -0.1293460185 | DJ39: =Ops!DJ698 -> -0.1293460185 | DK39: =Ops!DK698 -> -0.1319329389 | DL39: =Ops!DL698 -> -0.1319329389 | DM39: =Ops!DM698 -> -0.1319329389 | DN39: =Ops!DN698 -> -0.1319329389 | DO39: =Ops!DO698 -> -0.1345715976 | DP39: =Ops!DP698 -> -0.1345715976 | DQ39: =Ops!DQ698 -> -0.1345715976 | DR39: =Ops!DR698 -> -0.1345715976 | DS39: =Ops!DS698 -> -0.1372630296 | DT39: =Ops!DT698 -> -0.1372630296 | DU39: =Ops!DU698 -> -0.1372630296 | DV39: =Ops!DV698 -> -0.1372630296 | DW39: =Ops!DW698 -> -0.1400082902 | DX39: =Ops!DX698 -> -0.1400082902 | DY39: =Ops!DY698 -> -0.1400082902 | DZ39: =Ops!DZ698 -> -0.1400082902 | EA39: =Ops!EA698 -> -0.142808456 | EB39: =Ops!EB698 -> -0.142808456 | EC39: =Ops!EC698 -> -0.142808456 | ED39: =Ops!ED698 -> -0.142808456 | EE39: =Ops!EE698 -> -0.1456646251 | EF39: =Ops!EF698 -> -0.1456646251 | EG39: =Ops!EG698 -> -0.1456646251 | EH39: =Ops!EH698 -> -0.1456646251 | EI39: =Ops!EI698 -> -0.1485779176 | EJ39: =Ops!EJ698 -> -0.1485779176 | EK39: =Ops!EK698 -> -0.1485779176 | EL39: =Ops!EL698 -> -0.1485779176 | EM39: =Ops!EM698 -> -0.151549476 | EN39: =Ops!EN698 -> -0.151549476 | EO39: =Ops!EO698 -> -0.151549476 | EP39: =Ops!EP698 -> -0.151549476 | EQ39: =Ops!EQ698 -> -0.1545804655 | ER39: =Ops!ER698 -> -0.1545804655 | ES39: =Ops!ES698 -> -0.1545804655 | ET39: =Ops!ET698 -> -0.1545804655 | EU39: =Ops!EU698 -> -0.1576720748 | EV39: =Ops!EV698 -> -0.1576720748 | EW39: =Ops!EW698 -> -0.1576720748 | EX39: =Ops!EX698 -> -0.1576720748 | EY39: =Ops!EY698 -> -0.1608255163 | EZ39: =Ops!EZ698 -> -0.1608255163 | FA39: =Ops!FA698 -> -0.1608255163 | FB39: =Ops!FB698 -> -0.1608255163 | FC39: =Ops!FC698 -> -0.1640420266 | FD39: =Ops!FD698 -> -0.1640420266 | FE39: =Ops!FE698 -> -0.1640420266 | FF39: =Ops!FF698 -> -0.1640420266 | FG39: =Ops!FG698 -> -0.1673228672 | FH39: =Ops!FH698 -> -0.1673228672 | FI39: =Ops!FI698 -> -0.1673228672 | FJ39: =Ops!FJ698 -> -0.1673228672 | FK39: =Ops!FK698 -> -0.1706693245 | FL39: =Ops!FL698 -> -0.1706693245 | FM39: =Ops!FM698 -> -0.1706693245 | FN39: =Ops!FN698 -> -0.1706693245 | FO39: =Ops!FO698 -> -0.174082711 | FP39: =Ops!FP698 -> -0.174082711 | FQ39: =Ops!FQ698 -> -0.174082711 | FR39: =Ops!FR698 -> -0.174082711 | FS39: =Ops!FS698 -> -0.1775643652 | FT39: =Ops!FT698 -> -0.1775643652 | FU39: =Ops!FU698 -> -0.1775643652 | FV39: =Ops!FV698 -> -0.1775643652 | FW39: =Ops!FW698 -> -0.1811156525 | FX39: =Ops!FX698 -> -0.1811156525 | FY39: =Ops!FY698 -> -0.1811156525 | FZ39: =Ops!FZ698 -> -0.1811156525 | GA39: =Ops!GA698 -> -0.1847379656 | GB39: =Ops!GB698 -> -0.1847379656 | GC39: =Ops!GC698 -> -0.1847379656 | GD39: =Ops!GD698 -> -0.1847379656 | GE39: =Ops!GE698 -> -0.1884327249 | GF39: =Ops!GF698 -> -0.1884327249 | GG39: =Ops!GG698 -> -0.1884327249 | GH39: =Ops!GH698 -> -0.1884327249 | GI39: =Ops!GI698 -> -0.1922013794 | GJ39: =Ops!GJ698 -> -0.1922013794 | GK39: =Ops!GK698 -> -0.1922013794 | GL39: =Ops!GL698 -> -0.1922013794 | GM39: =Ops!GM698 -> -0.196045407 | GN39: =Ops!GN698 -> -0.196045407 | GO39: =Ops!GO698 -> -0.196045407 | GP39: =Ops!GP698 -> -0.196045407 | GQ39: =Ops!GQ698 -> -0.1999663151 | GR39: =Ops!GR698 -> -0.1999663151 | GS39: =Ops!GS698 -> -0.1999663151 | GT39: =Ops!GT698 -> -0.1999663151 | GU39: =Ops!GU698 -> -0.2039656414 | GV39: =Ops!GV698 -> -0.2039656414 | GW39: =Ops!GW698 -> -0.2039656414 | GX39: =Ops!GX698 -> -0.2039656414 | GY39: =Ops!GY698 -> -0.2080449542 | GZ39: =Ops!GZ698 -> -0.2080449542 | HA39: =Ops!HA698 -> -0.2080449542 | HB39: =Ops!HB698 -> -0.2080449542 | HC39: =Ops!HC698 -> -0.2122058533 | HD39: =Ops!HD698 -> -0.2122058533 | HE39: =Ops!HE698 -> -0.2122058533 | HF39: =Ops!HF698 -> -0.2122058533 | HG39: =Ops!HG698 -> -0.2164499704 | HH39: =Ops!HH698 -> -0.2164499704 | HI39: =Ops!HI698 -> -0.2164499704 | HJ39: =Ops!HJ698 -> -0.2164499704 | HK39: =Ops!HK698 -> -0.2207789698 | HL39: =Ops!HL698 -> -0.2207789698 | HM39: =Ops!HM698 -> -0.2207789698 | HN39: =Ops!HN698 -> -0.2207789698 | HO39: =Ops!HO698 -> -0.2251945492 | HP39: =Ops!HP698 -> 0 | HQ39: =Ops!HQ698 -> 0 | HR39: =Ops!HR698 -> 0 | HS39: =Ops!HS698 -> 0 | HT39: =Ops!HT698 -> 0 | HU39: =Ops!HU698 -> 0 | HV39: =Ops!HV698 -> 0 | HW39: =Ops!HW698 -> 0 | HX39: =Ops!HX698 -> 0 | HY39: =Ops!HY698 -> 0 | HZ39: =Ops!HZ698 -> 0 | IA39: =Ops!IA698 -> 0 | IB39: =Ops!IB698 -> 0 | IC39: =Ops!IC698 -> 0 | ID39: =Ops!ID698 -> 0 | IE39: =Ops!IE698 -> 0 | IF39: =Ops!IF698 -> 0 | IG39: =Ops!IG698 -> 0 | IH39: =Ops!IH698 -> 0 | II39: =Ops!II698 -> 0 | IJ39: =Ops!IJ698 -> 0 | IK39: =Ops!IK698 -> 0 | IL39: =Ops!IL698 -> 0 | IM39: =Ops!IM698 -> 0 | IN39: =Ops!IN698 -> 0 | IO39: =Ops!IO698 -> 0 | IP39: =Ops!IP698 -> 0 | IQ39: =Ops!IQ698 -> 0 | IR39: =Ops!IR698 -> 0 | IS39: =Ops!IS698 -> 0 | IT39: =Ops!IT698 -> 0 | IU39: =Ops!IU698 -> 0
C40: =Ops!C699 -> Lettings Costs / Marketing | D40: AUD M | I40: -28.44183518 | J40: =Ops!J699 -> 0 | K40: =Ops!K699 -> 0 | L40: =Ops!L699 -> 0 | M40: =Ops!M699 -> 0 | N40: =Ops!N699 -> 0 | O40: =Ops!O699 -> 0 | P40: =Ops!P699 -> 0 | Q40: =Ops!Q699 -> 0 | R40: =Ops!R699 -> 0 | S40: =Ops!S699 -> 0 | T40: =Ops!T699 -> 0 | U40: =Ops!U699 -> 0 | V40: =Ops!V699 -> 0 | W40: =Ops!W699 -> 0 | X40: =Ops!X699 -> -0.083606875 | Y40: =Ops!Y699 -> -0.083606875 | Z40: =Ops!Z699 -> -0.083606875 | AA40: =Ops!AA699 -> -0.083606875 | AB40: =Ops!AB699 -> -0.084473125 | AC40: =Ops!AC699 -> -0.084473125 | AD40: =Ops!AD699 -> -0.084473125 | AE40: =Ops!AE699 -> -0.0861625875 | AF40: =Ops!AF699 -> -0.0870461625 | AG40: =Ops!AG699 -> -0.0870461625 | AH40: =Ops!AH699 -> -0.0870461625 | AI40: =Ops!AI699 -> -0.08878708575 | AJ40: =Ops!AJ699 -> -0.08878708575 | AK40: =Ops!AK699 -> -0.08878708575 | AL40: =Ops!AL699 -> -0.08878708575 | AM40: =Ops!AM699 -> -0.09056282746 | AN40: =Ops!AN699 -> -0.09056282746 | AO40: =Ops!AO699 -> -0.09056282746 | AP40: =Ops!AP699 -> -0.09056282746 | AQ40: =Ops!AQ699 -> -0.09237408401 | AR40: =Ops!AR699 -> -0.09237408401 | AS40: =Ops!AS699 -> -0.09237408401 | AT40: =Ops!AT699 -> -0.09237408401 | AU40: =Ops!AU699 -> -0.09422156569 | AV40: =Ops!AV699 -> -0.09422156569 | AW40: =Ops!AW699 -> -0.09422156569 | AX40: =Ops!AX699 -> -0.09422156569 | AY40: =Ops!AY699 -> -0.09610599701 | AZ40: =Ops!AZ699 -> -0.09610599701 | BA40: =Ops!BA699 -> -0.09610599701 | BB40: =Ops!BB699 -> -0.09610599701 | BC40: =Ops!BC699 -> -0.09802811695 | BD40: =Ops!BD699 -> -0.09802811695 | BE40: =Ops!BE699 -> -0.09802811695 | BF40: =Ops!BF699 -> -0.09802811695 | BG40: =Ops!BG699 -> -0.09998867929 | BH40: =Ops!BH699 -> -0.09998867929 | BI40: =Ops!BI699 -> -0.09998867929 | BJ40: =Ops!BJ699 -> -0.09998867929 | BK40: =Ops!BK699 -> -0.1019884529 | BL40: =Ops!BL699 -> -0.1019884529 | BM40: =Ops!BM699 -> -0.1019884529 | BN40: =Ops!BN699 -> -0.1019884529 | BO40: =Ops!BO699 -> -0.1040282219 | BP40: =Ops!BP699 -> -0.1040282219 | BQ40: =Ops!BQ699 -> -0.1040282219 | BR40: =Ops!BR699 -> -0.1040282219 | BS40: =Ops!BS699 -> -0.1061087864 | BT40: =Ops!BT699 -> -0.1061087864 | BU40: =Ops!BU699 -> -0.1061087864 | BV40: =Ops!BV699 -> -0.1061087864 | BW40: =Ops!BW699 -> -0.1082309621 | BX40: =Ops!BX699 -> -0.1082309621 | BY40: =Ops!BY699 -> -0.1082309621 | BZ40: =Ops!BZ699 -> -0.1082309621 | CA40: =Ops!CA699 -> -0.1103955813 | CB40: =Ops!CB699 -> -0.1103955813 | CC40: =Ops!CC699 -> -0.1103955813 | CD40: =Ops!CD699 -> -0.1103955813 | CE40: =Ops!CE699 -> -0.112603493 | CF40: =Ops!CF699 -> -0.112603493 | CG40: =Ops!CG699 -> -0.112603493 | CH40: =Ops!CH699 -> -0.112603493 | CI40: =Ops!CI699 -> -0.1148555628 | CJ40: =Ops!CJ699 -> -0.1148555628 | CK40: =Ops!CK699 -> -0.1148555628 | CL40: =Ops!CL699 -> -0.1148555628 | CM40: =Ops!CM699 -> -0.1171526741 | CN40: =Ops!CN699 -> -0.1171526741 | CO40: =Ops!CO699 -> -0.1171526741 | CP40: =Ops!CP699 -> -0.1171526741 | CQ40: =Ops!CQ699 -> -0.1194957276 | CR40: =Ops!CR699 -> -0.1194957276 | CS40: =Ops!CS699 -> -0.1194957276 | CT40: =Ops!CT699 -> -0.1194957276 | CU40: =Ops!CU699 -> -0.1218856421 | CV40: =Ops!CV699 -> -0.1218856421 | CW40: =Ops!CW699 -> -0.1218856421 | CX40: =Ops!CX699 -> -0.1218856421 | CY40: =Ops!CY699 -> -0.124323355 | CZ40: =Ops!CZ699 -> -0.124323355 | DA40: =Ops!DA699 -> -0.124323355 | DB40: =Ops!DB699 -> -0.124323355 | DC40: =Ops!DC699 -> -0.1268098221 | DD40: =Ops!DD699 -> -0.1268098221 | DE40: =Ops!DE699 -> -0.1268098221 | DF40: =Ops!DF699 -> -0.1268098221 | DG40: =Ops!DG699 -> -0.1293460185 | DH40: =Ops!DH699 -> -0.1293460185 | DI40: =Ops!DI699 -> -0.1293460185 | DJ40: =Ops!DJ699 -> -0.1293460185 | DK40: =Ops!DK699 -> -0.1319329389 | DL40: =Ops!DL699 -> -0.1319329389 | DM40: =Ops!DM699 -> -0.1319329389 | DN40: =Ops!DN699 -> -0.1319329389 | DO40: =Ops!DO699 -> -0.1345715976 | DP40: =Ops!DP699 -> -0.1345715976 | DQ40: =Ops!DQ699 -> -0.1345715976 | DR40: =Ops!DR699 -> -0.1345715976 | DS40: =Ops!DS699 -> -0.1372630296 | DT40: =Ops!DT699 -> -0.1372630296 | DU40: =Ops!DU699 -> -0.1372630296 | DV40: =Ops!DV699 -> -0.1372630296 | DW40: =Ops!DW699 -> -0.1400082902 | DX40: =Ops!DX699 -> -0.1400082902 | DY40: =Ops!DY699 -> -0.1400082902 | DZ40: =Ops!DZ699 -> -0.1400082902 | EA40: =Ops!EA699 -> -0.142808456 | EB40: =Ops!EB699 -> -0.142808456 | EC40: =Ops!EC699 -> -0.142808456 | ED40: =Ops!ED699 -> -0.142808456 | EE40: =Ops!EE699 -> -0.1456646251 | EF40: =Ops!EF699 -> -0.1456646251 | EG40: =Ops!EG699 -> -0.1456646251 | EH40: =Ops!EH699 -> -0.1456646251 | EI40: =Ops!EI699 -> -0.1485779176 | EJ40: =Ops!EJ699 -> -0.1485779176 | EK40: =Ops!EK699 -> -0.1485779176 | EL40: =Ops!EL699 -> -0.1485779176 | EM40: =Ops!EM699 -> -0.151549476 | EN40: =Ops!EN699 -> -0.151549476 | EO40: =Ops!EO699 -> -0.151549476 | EP40: =Ops!EP699 -> -0.151549476 | EQ40: =Ops!EQ699 -> -0.1545804655 | ER40: =Ops!ER699 -> -0.1545804655 | ES40: =Ops!ES699 -> -0.1545804655 | ET40: =Ops!ET699 -> -0.1545804655 | EU40: =Ops!EU699 -> -0.1576720748 | EV40: =Ops!EV699 -> -0.1576720748 | EW40: =Ops!EW699 -> -0.1576720748 | EX40: =Ops!EX699 -> -0.1576720748 | EY40: =Ops!EY699 -> -0.1608255163 | EZ40: =Ops!EZ699 -> -0.1608255163 | FA40: =Ops!FA699 -> -0.1608255163 | FB40: =Ops!FB699 -> -0.1608255163 | FC40: =Ops!FC699 -> -0.1640420266 | FD40: =Ops!FD699 -> -0.1640420266 | FE40: =Ops!FE699 -> -0.1640420266 | FF40: =Ops!FF699 -> -0.1640420266 | FG40: =Ops!FG699 -> -0.1673228672 | FH40: =Ops!FH699 -> -0.1673228672 | FI40: =Ops!FI699 -> -0.1673228672 | FJ40: =Ops!FJ699 -> -0.1673228672 | FK40: =Ops!FK699 -> -0.1706693245 | FL40: =Ops!FL699 -> -0.1706693245 | FM40: =Ops!FM699 -> -0.1706693245 | FN40: =Ops!FN699 -> -0.1706693245 | FO40: =Ops!FO699 -> -0.174082711 | FP40: =Ops!FP699 -> -0.174082711 | FQ40: =Ops!FQ699 -> -0.174082711 | FR40: =Ops!FR699 -> -0.174082711 | FS40: =Ops!FS699 -> -0.1775643652 | FT40: =Ops!FT699 -> -0.1775643652 | FU40: =Ops!FU699 -> -0.1775643652 | FV40: =Ops!FV699 -> -0.1775643652 | FW40: =Ops!FW699 -> -0.1811156525 | FX40: =Ops!FX699 -> -0.1811156525 | FY40: =Ops!FY699 -> -0.1811156525 | FZ40: =Ops!FZ699 -> -0.1811156525 | GA40: =Ops!GA699 -> -0.1847379656 | GB40: =Ops!GB699 -> -0.1847379656 | GC40: =Ops!GC699 -> -0.1847379656 | GD40: =Ops!GD699 -> -0.1847379656 | GE40: =Ops!GE699 -> -0.1884327249 | GF40: =Ops!GF699 -> -0.1884327249 | GG40: =Ops!GG699 -> -0.1884327249 | GH40: =Ops!GH699 -> -0.1884327249 | GI40: =Ops!GI699 -> -0.1922013794 | GJ40: =Ops!GJ699 -> -0.1922013794 | GK40: =Ops!GK699 -> -0.1922013794 | GL40: =Ops!GL699 -> -0.1922013794 | GM40: =Ops!GM699 -> -0.196045407 | GN40: =Ops!GN699 -> -0.196045407 | GO40: =Ops!GO699 -> -0.196045407 | GP40: =Ops!GP699 -> -0.196045407 | GQ40: =Ops!GQ699 -> -0.1999663151 | GR40: =Ops!GR699 -> -0.1999663151 | GS40: =Ops!GS699 -> -0.1999663151 | GT40: =Ops!GT699 -> -0.1999663151 | GU40: =Ops!GU699 -> -0.2039656414 | GV40: =Ops!GV699 -> -0.2039656414 | GW40: =Ops!GW699 -> -0.2039656414 | GX40: =Ops!GX699 -> -0.2039656414 | GY40: =Ops!GY699 -> -0.2080449542 | GZ40: =Ops!GZ699 -> -0.2080449542 | HA40: =Ops!HA699 -> -0.2080449542 | HB40: =Ops!HB699 -> -0.2080449542 | HC40: =Ops!HC699 -> -0.2122058533 | HD40: =Ops!HD699 -> -0.2122058533 | HE40: =Ops!HE699 -> -0.2122058533 | HF40: =Ops!HF699 -> -0.2122058533 | HG40: =Ops!HG699 -> -0.2164499704 | HH40: =Ops!HH699 -> -0.2164499704 | HI40: =Ops!HI699 -> -0.2164499704 | HJ40: =Ops!HJ699 -> -0.2164499704 | HK40: =Ops!HK699 -> -0.2207789698 | HL40: =Ops!HL699 -> -0.2207789698 | HM40: =Ops!HM699 -> -0.2207789698 | HN40: =Ops!HN699 -> -0.2207789698 | HO40: =Ops!HO699 -> -0.2251945492 | HP40: =Ops!HP699 -> 0 | HQ40: =Ops!HQ699 -> 0 | HR40: =Ops!HR699 -> 0 | HS40: =Ops!HS699 -> 0 | HT40: =Ops!HT699 -> 0 | HU40: =Ops!HU699 -> 0 | HV40: =Ops!HV699 -> 0 | HW40: =Ops!HW699 -> 0 | HX40: =Ops!HX699 -> 0 | HY40: =Ops!HY699 -> 0 | HZ40: =Ops!HZ699 -> 0 | IA40: =Ops!IA699 -> 0 | IB40: =Ops!IB699 -> 0 | IC40: =Ops!IC699 -> 0 | ID40: =Ops!ID699 -> 0 | IE40: =Ops!IE699 -> 0 | IF40: =Ops!IF699 -> 0 | IG40: =Ops!IG699 -> 0 | IH40: =Ops!IH699 -> 0 | II40: =Ops!II699 -> 0 | IJ40: =Ops!IJ699 -> 0 | IK40: =Ops!IK699 -> 0 | IL40: =Ops!IL699 -> 0 | IM40: =Ops!IM699 -> 0 | IN40: =Ops!IN699 -> 0 | IO40: =Ops!IO699 -> 0 | IP40: =Ops!IP699 -> 0 | IQ40: =Ops!IQ699 -> 0 | IR40: =Ops!IR699 -> 0 | IS40: =Ops!IS699 -> 0 | IT40: =Ops!IT699 -> 0 | IU40: =Ops!IU699 -> 0
C41: =Ops!C700 -> Council Rates | D41: AUD M | I41: -62.57203741 | J41: =Ops!J700 -> 0 | K41: =Ops!K700 -> 0 | L41: =Ops!L700 -> 0 | M41: =Ops!M700 -> 0 | N41: =Ops!N700 -> 0 | O41: =Ops!O700 -> 0 | P41: =Ops!P700 -> 0 | Q41: =Ops!Q700 -> 0 | R41: =Ops!R700 -> 0 | S41: =Ops!S700 -> 0 | T41: =Ops!T700 -> 0 | U41: =Ops!U700 -> 0 | V41: =Ops!V700 -> 0 | W41: =Ops!W700 -> 0 | X41: =Ops!X700 -> -0.183935125 | Y41: =Ops!Y700 -> -0.183935125 | Z41: =Ops!Z700 -> -0.183935125 | AA41: =Ops!AA700 -> -0.183935125 | AB41: =Ops!AB700 -> -0.185840875 | AC41: =Ops!AC700 -> -0.185840875 | AD41: =Ops!AD700 -> -0.185840875 | AE41: =Ops!AE700 -> -0.1895576925 | AF41: =Ops!AF700 -> -0.1915015575 | AG41: =Ops!AG700 -> -0.1915015575 | AH41: =Ops!AH700 -> -0.1915015575 | AI41: =Ops!AI700 -> -0.1953315886 | AJ41: =Ops!AJ700 -> -0.1953315886 | AK41: =Ops!AK700 -> -0.1953315886 | AL41: =Ops!AL700 -> -0.1953315886 | AM41: =Ops!AM700 -> -0.1992382204 | AN41: =Ops!AN700 -> -0.1992382204 | AO41: =Ops!AO700 -> -0.1992382204 | AP41: =Ops!AP700 -> -0.1992382204 | AQ41: =Ops!AQ700 -> -0.2032229848 | AR41: =Ops!AR700 -> -0.2032229848 | AS41: =Ops!AS700 -> -0.2032229848 | AT41: =Ops!AT700 -> -0.2032229848 | AU41: =Ops!AU700 -> -0.2072874445 | AV41: =Ops!AV700 -> -0.2072874445 | AW41: =Ops!AW700 -> -0.2072874445 | AX41: =Ops!AX700 -> -0.2072874445 | AY41: =Ops!AY700 -> -0.2114331934 | AZ41: =Ops!AZ700 -> -0.2114331934 | BA41: =Ops!BA700 -> -0.2114331934 | BB41: =Ops!BB700 -> -0.2114331934 | BC41: =Ops!BC700 -> -0.2156618573 | BD41: =Ops!BD700 -> -0.2156618573 | BE41: =Ops!BE700 -> -0.2156618573 | BF41: =Ops!BF700 -> -0.2156618573 | BG41: =Ops!BG700 -> -0.2199750944 | BH41: =Ops!BH700 -> -0.2199750944 | BI41: =Ops!BI700 -> -0.2199750944 | BJ41: =Ops!BJ700 -> -0.2199750944 | BK41: =Ops!BK700 -> -0.2243745963 | BL41: =Ops!BL700 -> -0.2243745963 | BM41: =Ops!BM700 -> -0.2243745963 | BN41: =Ops!BN700 -> -0.2243745963 | BO41: =Ops!BO700 -> -0.2288620882 | BP41: =Ops!BP700 -> -0.2288620882 | BQ41: =Ops!BQ700 -> -0.2288620882 | BR41: =Ops!BR700 -> -0.2288620882 | BS41: =Ops!BS700 -> -0.23343933 | BT41: =Ops!BT700 -> -0.23343933 | BU41: =Ops!BU700 -> -0.23343933 | BV41: =Ops!BV700 -> -0.23343933 | BW41: =Ops!BW700 -> -0.2381081166 | BX41: =Ops!BX700 -> -0.2381081166 | BY41: =Ops!BY700 -> -0.2381081166 | BZ41: =Ops!BZ700 -> -0.2381081166 | CA41: =Ops!CA700 -> -0.2428702789 | CB41: =Ops!CB700 -> -0.2428702789 | CC41: =Ops!CC700 -> -0.2428702789 | CD41: =Ops!CD700 -> -0.2428702789 | CE41: =Ops!CE700 -> -0.2477276845 | CF41: =Ops!CF700 -> -0.2477276845 | CG41: =Ops!CG700 -> -0.2477276845 | CH41: =Ops!CH700 -> -0.2477276845 | CI41: =Ops!CI700 -> -0.2526822382 | CJ41: =Ops!CJ700 -> -0.2526822382 | CK41: =Ops!CK700 -> -0.2526822382 | CL41: =Ops!CL700 -> -0.2526822382 | CM41: =Ops!CM700 -> -0.257735883 | CN41: =Ops!CN700 -> -0.257735883 | CO41: =Ops!CO700 -> -0.257735883 | CP41: =Ops!CP700 -> -0.257735883 | CQ41: =Ops!CQ700 -> -0.2628906006 | CR41: =Ops!CR700 -> -0.2628906006 | CS41: =Ops!CS700 -> -0.2628906006 | CT41: =Ops!CT700 -> -0.2628906006 | CU41: =Ops!CU700 -> -0.2681484127 | CV41: =Ops!CV700 -> -0.2681484127 | CW41: =Ops!CW700 -> -0.2681484127 | CX41: =Ops!CX700 -> -0.2681484127 | CY41: =Ops!CY700 -> -0.2735113809 | CZ41: =Ops!CZ700 -> -0.2735113809 | DA41: =Ops!DA700 -> -0.2735113809 | DB41: =Ops!DB700 -> -0.2735113809 | DC41: =Ops!DC700 -> -0.2789816085 | DD41: =Ops!DD700 -> -0.2789816085 | DE41: =Ops!DE700 -> -0.2789816085 | DF41: =Ops!DF700 -> -0.2789816085 | DG41: =Ops!DG700 -> -0.2845612407 | DH41: =Ops!DH700 -> -0.2845612407 | DI41: =Ops!DI700 -> -0.2845612407 | DJ41: =Ops!DJ700 -> -0.2845612407 | DK41: =Ops!DK700 -> -0.2902524655 | DL41: =Ops!DL700 -> -0.2902524655 | DM41: =Ops!DM700 -> -0.2902524655 | DN41: =Ops!DN700 -> -0.2902524655 | DO41: =Ops!DO700 -> -0.2960575148 | DP41: =Ops!DP700 -> -0.2960575148 | DQ41: =Ops!DQ700 -> -0.2960575148 | DR41: =Ops!DR700 -> -0.2960575148 | DS41: =Ops!DS700 -> -0.3019786651 | DT41: =Ops!DT700 -> -0.3019786651 | DU41: =Ops!DU700 -> -0.3019786651 | DV41: =Ops!DV700 -> -0.3019786651 | DW41: =Ops!DW700 -> -0.3080182384 | DX41: =Ops!DX700 -> -0.3080182384 | DY41: =Ops!DY700 -> -0.3080182384 | DZ41: =Ops!DZ700 -> -0.3080182384 | EA41: =Ops!EA700 -> -0.3141786032 | EB41: =Ops!EB700 -> -0.3141786032 | EC41: =Ops!EC700 -> -0.3141786032 | ED41: =Ops!ED700 -> -0.3141786032 | EE41: =Ops!EE700 -> -0.3204621752 | EF41: =Ops!EF700 -> -0.3204621752 | EG41: =Ops!EG700 -> -0.3204621752 | EH41: =Ops!EH700 -> -0.3204621752 | EI41: =Ops!EI700 -> -0.3268714188 | EJ41: =Ops!EJ700 -> -0.3268714188 | EK41: =Ops!EK700 -> -0.3268714188 | EL41: =Ops!EL700 -> -0.3268714188 | EM41: =Ops!EM700 -> -0.3334088471 | EN41: =Ops!EN700 -> -0.3334088471 | EO41: =Ops!EO700 -> -0.3334088471 | EP41: =Ops!EP700 -> -0.3334088471 | EQ41: =Ops!EQ700 -> -0.3400770241 | ER41: =Ops!ER700 -> -0.3400770241 | ES41: =Ops!ES700 -> -0.3400770241 | ET41: =Ops!ET700 -> -0.3400770241 | EU41: =Ops!EU700 -> -0.3468785646 | EV41: =Ops!EV700 -> -0.3468785646 | EW41: =Ops!EW700 -> -0.3468785646 | EX41: =Ops!EX700 -> -0.3468785646 | EY41: =Ops!EY700 -> -0.3538161358 | EZ41: =Ops!EZ700 -> -0.3538161358 | FA41: =Ops!FA700 -> -0.3538161358 | FB41: =Ops!FB700 -> -0.3538161358 | FC41: =Ops!FC700 -> -0.3608924586 | FD41: =Ops!FD700 -> -0.3608924586 | FE41: =Ops!FE700 -> -0.3608924586 | FF41: =Ops!FF700 -> -0.3608924586 | FG41: =Ops!FG700 -> -0.3681103077 | FH41: =Ops!FH700 -> -0.3681103077 | FI41: =Ops!FI700 -> -0.3681103077 | FJ41: =Ops!FJ700 -> -0.3681103077 | FK41: =Ops!FK700 -> -0.3754725139 | FL41: =Ops!FL700 -> -0.3754725139 | FM41: =Ops!FM700 -> -0.3754725139 | FN41: =Ops!FN700 -> -0.3754725139 | FO41: =Ops!FO700 -> -0.3829819642 | FP41: =Ops!FP700 -> -0.3829819642 | FQ41: =Ops!FQ700 -> -0.3829819642 | FR41: =Ops!FR700 -> -0.3829819642 | FS41: =Ops!FS700 -> -0.3906416034 | FT41: =Ops!FT700 -> -0.3906416034 | FU41: =Ops!FU700 -> -0.3906416034 | FV41: =Ops!FV700 -> -0.3906416034 | FW41: =Ops!FW700 -> -0.3984544355 | FX41: =Ops!FX700 -> -0.3984544355 | FY41: =Ops!FY700 -> -0.3984544355 | FZ41: =Ops!FZ700 -> -0.3984544355 | GA41: =Ops!GA700 -> -0.4064235242 | GB41: =Ops!GB700 -> -0.4064235242 | GC41: =Ops!GC700 -> -0.4064235242 | GD41: =Ops!GD700 -> -0.4064235242 | GE41: =Ops!GE700 -> -0.4145519947 | GF41: =Ops!GF700 -> -0.4145519947 | GG41: =Ops!GG700 -> -0.4145519947 | GH41: =Ops!GH700 -> -0.4145519947 | GI41: =Ops!GI700 -> -0.4228430346 | GJ41: =Ops!GJ700 -> -0.4228430346 | GK41: =Ops!GK700 -> -0.4228430346 | GL41: =Ops!GL700 -> -0.4228430346 | GM41: =Ops!GM700 -> -0.4312998953 | GN41: =Ops!GN700 -> -0.4312998953 | GO41: =Ops!GO700 -> -0.4312998953 | GP41: =Ops!GP700 -> -0.4312998953 | GQ41: =Ops!GQ700 -> -0.4399258932 | GR41: =Ops!GR700 -> -0.4399258932 | GS41: =Ops!GS700 -> -0.4399258932 | GT41: =Ops!GT700 -> -0.4399258932 | GU41: =Ops!GU700 -> -0.4487244111 | GV41: =Ops!GV700 -> -0.4487244111 | GW41: =Ops!GW700 -> -0.4487244111 | GX41: =Ops!GX700 -> -0.4487244111 | GY41: =Ops!GY700 -> -0.4576988993 | GZ41: =Ops!GZ700 -> -0.4576988993 | HA41: =Ops!HA700 -> -0.4576988993 | HB41: =Ops!HB700 -> -0.4576988993 | HC41: =Ops!HC700 -> -0.4668528773 | HD41: =Ops!HD700 -> -0.4668528773 | HE41: =Ops!HE700 -> -0.4668528773 | HF41: =Ops!HF700 -> -0.4668528773 | HG41: =Ops!HG700 -> -0.4761899348 | HH41: =Ops!HH700 -> -0.4761899348 | HI41: =Ops!HI700 -> -0.4761899348 | HJ41: =Ops!HJ700 -> -0.4761899348 | HK41: =Ops!HK700 -> -0.4857137335 | HL41: =Ops!HL700 -> -0.4857137335 | HM41: =Ops!HM700 -> -0.4857137335 | HN41: =Ops!HN700 -> -0.4857137335 | HO41: =Ops!HO700 -> -0.4954280082 | HP41: =Ops!HP700 -> 0 | HQ41: =Ops!HQ700 -> 0 | HR41: =Ops!HR700 -> 0 | HS41: =Ops!HS700 -> 0 | HT41: =Ops!HT700 -> 0 | HU41: =Ops!HU700 -> 0 | HV41: =Ops!HV700 -> 0 | HW41: =Ops!HW700 -> 0 | HX41: =Ops!HX700 -> 0 | HY41: =Ops!HY700 -> 0 | HZ41: =Ops!HZ700 -> 0 | IA41: =Ops!IA700 -> 0 | IB41: =Ops!IB700 -> 0 | IC41: =Ops!IC700 -> 0 | ID41: =Ops!ID700 -> 0 | IE41: =Ops!IE700 -> 0 | IF41: =Ops!IF700 -> 0 | IG41: =Ops!IG700 -> 0 | IH41: =Ops!IH700 -> 0 | II41: =Ops!II700 -> 0 | IJ41: =Ops!IJ700 -> 0 | IK41: =Ops!IK700 -> 0 | IL41: =Ops!IL700 -> 0 | IM41: =Ops!IM700 -> 0 | IN41: =Ops!IN700 -> 0 | IO41: =Ops!IO700 -> 0 | IP41: =Ops!IP700 -> 0 | IQ41: =Ops!IQ700 -> 0 | IR41: =Ops!IR700 -> 0 | IS41: =Ops!IS700 -> 0 | IT41: =Ops!IT700 -> 0 | IU41: =Ops!IU700 -> 0
C42: =Ops!C701 -> Water Rates | D42: AUD M | I42: -45.50693629 | J42: =Ops!J701 -> 0 | K42: =Ops!K701 -> 0 | L42: =Ops!L701 -> 0 | M42: =Ops!M701 -> 0 | N42: =Ops!N701 -> 0 | O42: =Ops!O701 -> 0 | P42: =Ops!P701 -> 0 | Q42: =Ops!Q701 -> 0 | R42: =Ops!R701 -> 0 | S42: =Ops!S701 -> 0 | T42: =Ops!T701 -> 0 | U42: =Ops!U701 -> 0 | V42: =Ops!V701 -> 0 | W42: =Ops!W701 -> 0 | X42: =Ops!X701 -> -0.133771 | Y42: =Ops!Y701 -> -0.133771 | Z42: =Ops!Z701 -> -0.133771 | AA42: =Ops!AA701 -> -0.133771 | AB42: =Ops!AB701 -> -0.135157 | AC42: =Ops!AC701 -> -0.135157 | AD42: =Ops!AD701 -> -0.135157 | AE42: =Ops!AE701 -> -0.13786014 | AF42: =Ops!AF701 -> -0.13927386 | AG42: =Ops!AG701 -> -0.13927386 | AH42: =Ops!AH701 -> -0.13927386 | AI42: =Ops!AI701 -> -0.1420593372 | AJ42: =Ops!AJ701 -> -0.1420593372 | AK42: =Ops!AK701 -> -0.1420593372 | AL42: =Ops!AL701 -> -0.1420593372 | AM42: =Ops!AM701 -> -0.1449005239 | AN42: =Ops!AN701 -> -0.1449005239 | AO42: =Ops!AO701 -> -0.1449005239 | AP42: =Ops!AP701 -> -0.1449005239 | AQ42: =Ops!AQ701 -> -0.1477985344 | AR42: =Ops!AR701 -> -0.1477985344 | AS42: =Ops!AS701 -> -0.1477985344 | AT42: =Ops!AT701 -> -0.1477985344 | AU42: =Ops!AU701 -> -0.1507545051 | AV42: =Ops!AV701 -> -0.1507545051 | AW42: =Ops!AW701 -> -0.1507545051 | AX42: =Ops!AX701 -> -0.1507545051 | AY42: =Ops!AY701 -> -0.1537695952 | AZ42: =Ops!AZ701 -> -0.1537695952 | BA42: =Ops!BA701 -> -0.1537695952 | BB42: =Ops!BB701 -> -0.1537695952 | BC42: =Ops!BC701 -> -0.1568449871 | BD42: =Ops!BD701 -> -0.1568449871 | BE42: =Ops!BE701 -> -0.1568449871 | BF42: =Ops!BF701 -> -0.1568449871 | BG42: =Ops!BG701 -> -0.1599818869 | BH42: =Ops!BH701 -> -0.1599818869 | BI42: =Ops!BI701 -> -0.1599818869 | BJ42: =Ops!BJ701 -> -0.1599818869 | BK42: =Ops!BK701 -> -0.1631815246 | BL42: =Ops!BL701 -> -0.1631815246 | BM42: =Ops!BM701 -> -0.1631815246 | BN42: =Ops!BN701 -> -0.1631815246 | BO42: =Ops!BO701 -> -0.1664451551 | BP42: =Ops!BP701 -> -0.1664451551 | BQ42: =Ops!BQ701 -> -0.1664451551 | BR42: =Ops!BR701 -> -0.1664451551 | BS42: =Ops!BS701 -> -0.1697740582 | BT42: =Ops!BT701 -> -0.1697740582 | BU42: =Ops!BU701 -> -0.1697740582 | BV42: =Ops!BV701 -> -0.1697740582 | BW42: =Ops!BW701 -> -0.1731695394 | BX42: =Ops!BX701 -> -0.1731695394 | BY42: =Ops!BY701 -> -0.1731695394 | BZ42: =Ops!BZ701 -> -0.1731695394 | CA42: =Ops!CA701 -> -0.1766329301 | CB42: =Ops!CB701 -> -0.1766329301 | CC42: =Ops!CC701 -> -0.1766329301 | CD42: =Ops!CD701 -> -0.1766329301 | CE42: =Ops!CE701 -> -0.1801655887 | CF42: =Ops!CF701 -> -0.1801655887 | CG42: =Ops!CG701 -> -0.1801655887 | CH42: =Ops!CH701 -> -0.1801655887 | CI42: =Ops!CI701 -> -0.1837689005 | CJ42: =Ops!CJ701 -> -0.1837689005 | CK42: =Ops!CK701 -> -0.1837689005 | CL42: =Ops!CL701 -> -0.1837689005 | CM42: =Ops!CM701 -> -0.1874442785 | CN42: =Ops!CN701 -> -0.1874442785 | CO42: =Ops!CO701 -> -0.1874442785 | CP42: =Ops!CP701 -> -0.1874442785 | CQ42: =Ops!CQ701 -> -0.1911931641 | CR42: =Ops!CR701 -> -0.1911931641 | CS42: =Ops!CS701 -> -0.1911931641 | CT42: =Ops!CT701 -> -0.1911931641 | CU42: =Ops!CU701 -> -0.1950170274 | CV42: =Ops!CV701 -> -0.1950170274 | CW42: =Ops!CW701 -> -0.1950170274 | CX42: =Ops!CX701 -> -0.1950170274 | CY42: =Ops!CY701 -> -0.1989173679 | CZ42: =Ops!CZ701 -> -0.1989173679 | DA42: =Ops!DA701 -> -0.1989173679 | DB42: =Ops!DB701 -> -0.1989173679 | DC42: =Ops!DC701 -> -0.2028957153 | DD42: =Ops!DD701 -> -0.2028957153 | DE42: =Ops!DE701 -> -0.2028957153 | DF42: =Ops!DF701 -> -0.2028957153 | DG42: =Ops!DG701 -> -0.2069536296 | DH42: =Ops!DH701 -> -0.2069536296 | DI42: =Ops!DI701 -> -0.2069536296 | DJ42: =Ops!DJ701 -> -0.2069536296 | DK42: =Ops!DK701 -> -0.2110927022 | DL42: =Ops!DL701 -> -0.2110927022 | DM42: =Ops!DM701 -> -0.2110927022 | DN42: =Ops!DN701 -> -0.2110927022 | DO42: =Ops!DO701 -> -0.2153145562 | DP42: =Ops!DP701 -> -0.2153145562 | DQ42: =Ops!DQ701 -> -0.2153145562 | DR42: =Ops!DR701 -> -0.2153145562 | DS42: =Ops!DS701 -> -0.2196208474 | DT42: =Ops!DT701 -> -0.2196208474 | DU42: =Ops!DU701 -> -0.2196208474 | DV42: =Ops!DV701 -> -0.2196208474 | DW42: =Ops!DW701 -> -0.2240132643 | DX42: =Ops!DX701 -> -0.2240132643 | DY42: =Ops!DY701 -> -0.2240132643 | DZ42: =Ops!DZ701 -> -0.2240132643 | EA42: =Ops!EA701 -> -0.2284935296 | EB42: =Ops!EB701 -> -0.2284935296 | EC42: =Ops!EC701 -> -0.2284935296 | ED42: =Ops!ED701 -> -0.2284935296 | EE42: =Ops!EE701 -> -0.2330634002 | EF42: =Ops!EF701 -> -0.2330634002 | EG42: =Ops!EG701 -> -0.2330634002 | EH42: =Ops!EH701 -> -0.2330634002 | EI42: =Ops!EI701 -> -0.2377246682 | EJ42: =Ops!EJ701 -> -0.2377246682 | EK42: =Ops!EK701 -> -0.2377246682 | EL42: =Ops!EL701 -> -0.2377246682 | EM42: =Ops!EM701 -> -0.2424791615 | EN42: =Ops!EN701 -> -0.2424791615 | EO42: =Ops!EO701 -> -0.2424791615 | EP42: =Ops!EP701 -> -0.2424791615 | EQ42: =Ops!EQ701 -> -0.2473287448 | ER42: =Ops!ER701 -> -0.2473287448 | ES42: =Ops!ES701 -> -0.2473287448 | ET42: =Ops!ET701 -> -0.2473287448 | EU42: =Ops!EU701 -> -0.2522753197 | EV42: =Ops!EV701 -> -0.2522753197 | EW42: =Ops!EW701 -> -0.2522753197 | EX42: =Ops!EX701 -> -0.2522753197 | EY42: =Ops!EY701 -> -0.2573208261 | EZ42: =Ops!EZ701 -> -0.2573208261 | FA42: =Ops!FA701 -> -0.2573208261 | FB42: =Ops!FB701 -> -0.2573208261 | FC42: =Ops!FC701 -> -0.2624672426 | FD42: =Ops!FD701 -> -0.2624672426 | FE42: =Ops!FE701 -> -0.2624672426 | FF42: =Ops!FF701 -> -0.2624672426 | FG42: =Ops!FG701 -> -0.2677165874 | FH42: =Ops!FH701 -> -0.2677165874 | FI42: =Ops!FI701 -> -0.2677165874 | FJ42: =Ops!FJ701 -> -0.2677165874 | FK42: =Ops!FK701 -> -0.2730709192 | FL42: =Ops!FL701 -> -0.2730709192 | FM42: =Ops!FM701 -> -0.2730709192 | FN42: =Ops!FN701 -> -0.2730709192 | FO42: =Ops!FO701 -> -0.2785323376 | FP42: =Ops!FP701 -> -0.2785323376 | FQ42: =Ops!FQ701 -> -0.2785323376 | FR42: =Ops!FR701 -> -0.2785323376 | FS42: =Ops!FS701 -> -0.2841029843 | FT42: =Ops!FT701 -> -0.2841029843 | FU42: =Ops!FU701 -> -0.2841029843 | FV42: =Ops!FV701 -> -0.2841029843 | FW42: =Ops!FW701 -> -0.289785044 | FX42: =Ops!FX701 -> -0.289785044 | FY42: =Ops!FY701 -> -0.289785044 | FZ42: =Ops!FZ701 -> -0.289785044 | GA42: =Ops!GA701 -> -0.2955807449 | GB42: =Ops!GB701 -> -0.2955807449 | GC42: =Ops!GC701 -> -0.2955807449 | GD42: =Ops!GD701 -> -0.2955807449 | GE42: =Ops!GE701 -> -0.3014923598 | GF42: =Ops!GF701 -> -0.3014923598 | GG42: =Ops!GG701 -> -0.3014923598 | GH42: =Ops!GH701 -> -0.3014923598 | GI42: =Ops!GI701 -> -0.307522207 | GJ42: =Ops!GJ701 -> -0.307522207 | GK42: =Ops!GK701 -> -0.307522207 | GL42: =Ops!GL701 -> -0.307522207 | GM42: =Ops!GM701 -> -0.3136726511 | GN42: =Ops!GN701 -> -0.3136726511 | GO42: =Ops!GO701 -> -0.3136726511 | GP42: =Ops!GP701 -> -0.3136726511 | GQ42: =Ops!GQ701 -> -0.3199461041 | GR42: =Ops!GR701 -> -0.3199461041 | GS42: =Ops!GS701 -> -0.3199461041 | GT42: =Ops!GT701 -> -0.3199461041 | GU42: =Ops!GU701 -> -0.3263450262 | GV42: =Ops!GV701 -> -0.3263450262 | GW42: =Ops!GW701 -> -0.3263450262 | GX42: =Ops!GX701 -> -0.3263450262 | GY42: =Ops!GY701 -> -0.3328719268 | GZ42: =Ops!GZ701 -> -0.3328719268 | HA42: =Ops!HA701 -> -0.3328719268 | HB42: =Ops!HB701 -> -0.3328719268 | HC42: =Ops!HC701 -> -0.3395293653 | HD42: =Ops!HD701 -> -0.3395293653 | HE42: =Ops!HE701 -> -0.3395293653 | HF42: =Ops!HF701 -> -0.3395293653 | HG42: =Ops!HG701 -> -0.3463199526 | HH42: =Ops!HH701 -> -0.3463199526 | HI42: =Ops!HI701 -> -0.3463199526 | HJ42: =Ops!HJ701 -> -0.3463199526 | HK42: =Ops!HK701 -> -0.3532463516 | HL42: =Ops!HL701 -> -0.3532463516 | HM42: =Ops!HM701 -> -0.3532463516 | HN42: =Ops!HN701 -> -0.3532463516 | HO42: =Ops!HO701 -> -0.3603112787 | HP42: =Ops!HP701 -> 0 | HQ42: =Ops!HQ701 -> 0 | HR42: =Ops!HR701 -> 0 | HS42: =Ops!HS701 -> 0 | HT42: =Ops!HT701 -> 0 | HU42: =Ops!HU701 -> 0 | HV42: =Ops!HV701 -> 0 | HW42: =Ops!HW701 -> 0 | HX42: =Ops!HX701 -> 0 | HY42: =Ops!HY701 -> 0 | HZ42: =Ops!HZ701 -> 0 | IA42: =Ops!IA701 -> 0 | IB42: =Ops!IB701 -> 0 | IC42: =Ops!IC701 -> 0 | ID42: =Ops!ID701 -> 0 | IE42: =Ops!IE701 -> 0 | IF42: =Ops!IF701 -> 0 | IG42: =Ops!IG701 -> 0 | IH42: =Ops!IH701 -> 0 | II42: =Ops!II701 -> 0 | IJ42: =Ops!IJ701 -> 0 | IK42: =Ops!IK701 -> 0 | IL42: =Ops!IL701 -> 0 | IM42: =Ops!IM701 -> 0 | IN42: =Ops!IN701 -> 0 | IO42: =Ops!IO701 -> 0 | IP42: =Ops!IP701 -> 0 | IQ42: =Ops!IQ701 -> 0 | IR42: =Ops!IR701 -> 0 | IS42: =Ops!IS701 -> 0 | IT42: =Ops!IT701 -> 0 | IU42: =Ops!IU701 -> 0
C43: =Ops!C702 -> Insurances | D43: AUD M | I43: -17.06510111 | J43: =Ops!J702 -> 0 | K43: =Ops!K702 -> 0 | L43: =Ops!L702 -> 0 | M43: =Ops!M702 -> 0 | N43: =Ops!N702 -> 0 | O43: =Ops!O702 -> 0 | P43: =Ops!P702 -> 0 | Q43: =Ops!Q702 -> 0 | R43: =Ops!R702 -> 0 | S43: =Ops!S702 -> 0 | T43: =Ops!T702 -> 0 | U43: =Ops!U702 -> 0 | V43: =Ops!V702 -> 0 | W43: =Ops!W702 -> 0 | X43: =Ops!X702 -> -0.050164125 | Y43: =Ops!Y702 -> -0.050164125 | Z43: =Ops!Z702 -> -0.050164125 | AA43: =Ops!AA702 -> -0.050164125 | AB43: =Ops!AB702 -> -0.050683875 | AC43: =Ops!AC702 -> -0.050683875 | AD43: =Ops!AD702 -> -0.050683875 | AE43: =Ops!AE702 -> -0.0516975525 | AF43: =Ops!AF702 -> -0.0522276975 | AG43: =Ops!AG702 -> -0.0522276975 | AH43: =Ops!AH702 -> -0.0522276975 | AI43: =Ops!AI702 -> -0.05327225145 | AJ43: =Ops!AJ702 -> -0.05327225145 | AK43: =Ops!AK702 -> -0.05327225145 | AL43: =Ops!AL702 -> -0.05327225145 | AM43: =Ops!AM702 -> -0.05433769648 | AN43: =Ops!AN702 -> -0.05433769648 | AO43: =Ops!AO702 -> -0.05433769648 | AP43: =Ops!AP702 -> -0.05433769648 | AQ43: =Ops!AQ702 -> -0.05542445041 | AR43: =Ops!AR702 -> -0.05542445041 | AS43: =Ops!AS702 -> -0.05542445041 | AT43: =Ops!AT702 -> -0.05542445041 | AU43: =Ops!AU702 -> -0.05653293942 | AV43: =Ops!AV702 -> -0.05653293942 | AW43: =Ops!AW702 -> -0.05653293942 | AX43: =Ops!AX702 -> -0.05653293942 | AY43: =Ops!AY702 -> -0.05766359821 | AZ43: =Ops!AZ702 -> -0.05766359821 | BA43: =Ops!BA702 -> -0.05766359821 | BB43: =Ops!BB702 -> -0.05766359821 | BC43: =Ops!BC702 -> -0.05881687017 | BD43: =Ops!BD702 -> -0.05881687017 | BE43: =Ops!BE702 -> -0.05881687017 | BF43: =Ops!BF702 -> -0.05881687017 | BG43: =Ops!BG702 -> -0.05999320757 | BH43: =Ops!BH702 -> -0.05999320757 | BI43: =Ops!BI702 -> -0.05999320757 | BJ43: =Ops!BJ702 -> -0.05999320757 | BK43: =Ops!BK702 -> -0.06119307172 | BL43: =Ops!BL702 -> -0.06119307172 | BM43: =Ops!BM702 -> -0.06119307172 | BN43: =Ops!BN702 -> -0.06119307172 | BO43: =Ops!BO702 -> -0.06241693316 | BP43: =Ops!BP702 -> -0.06241693316 | BQ43: =Ops!BQ702 -> -0.06241693316 | BR43: =Ops!BR702 -> -0.06241693316 | BS43: =Ops!BS702 -> -0.06366527182 | BT43: =Ops!BT702 -> -0.06366527182 | BU43: =Ops!BU702 -> -0.06366527182 | BV43: =Ops!BV702 -> -0.06366527182 | BW43: =Ops!BW702 -> -0.06493857726 | BX43: =Ops!BX702 -> -0.06493857726 | BY43: =Ops!BY702 -> -0.06493857726 | BZ43: =Ops!BZ702 -> -0.06493857726 | CA43: =Ops!CA702 -> -0.0662373488 | CB43: =Ops!CB702 -> -0.0662373488 | CC43: =Ops!CC702 -> -0.0662373488 | CD43: =Ops!CD702 -> -0.0662373488 | CE43: =Ops!CE702 -> -0.06756209578 | CF43: =Ops!CF702 -> -0.06756209578 | CG43: =Ops!CG702 -> -0.06756209578 | CH43: =Ops!CH702 -> -0.06756209578 | CI43: =Ops!CI702 -> -0.06891333769 | CJ43: =Ops!CJ702 -> -0.06891333769 | CK43: =Ops!CK702 -> -0.06891333769 | CL43: =Ops!CL702 -> -0.06891333769 | CM43: =Ops!CM702 -> -0.07029160445 | CN43: =Ops!CN702 -> -0.07029160445 | CO43: =Ops!CO702 -> -0.07029160445 | CP43: =Ops!CP702 -> -0.07029160445 | CQ43: =Ops!CQ702 -> -0.07169743654 | CR43: =Ops!CR702 -> -0.07169743654 | CS43: =Ops!CS702 -> -0.07169743654 | CT43: =Ops!CT702 -> -0.07169743654 | CU43: =Ops!CU702 -> -0.07313138527 | CV43: =Ops!CV702 -> -0.07313138527 | CW43: =Ops!CW702 -> -0.07313138527 | CX43: =Ops!CX702 -> -0.07313138527 | CY43: =Ops!CY702 -> -0.07459401297 | CZ43: =Ops!CZ702 -> -0.07459401297 | DA43: =Ops!DA702 -> -0.07459401297 | DB43: =Ops!DB702 -> -0.07459401297 | DC43: =Ops!DC702 -> -0.07608589323 | DD43: =Ops!DD702 -> -0.07608589323 | DE43: =Ops!DE702 -> -0.07608589323 | DF43: =Ops!DF702 -> -0.07608589323 | DG43: =Ops!DG702 -> -0.0776076111 | DH43: =Ops!DH702 -> -0.0776076111 | DI43: =Ops!DI702 -> -0.0776076111 | DJ43: =Ops!DJ702 -> -0.0776076111 | DK43: =Ops!DK702 -> -0.07915976332 | DL43: =Ops!DL702 -> -0.07915976332 | DM43: =Ops!DM702 -> -0.07915976332 | DN43: =Ops!DN702 -> -0.07915976332 | DO43: =Ops!DO702 -> -0.08074295859 | DP43: =Ops!DP702 -> -0.08074295859 | DQ43: =Ops!DQ702 -> -0.08074295859 | DR43: =Ops!DR702 -> -0.08074295859 | DS43: =Ops!DS702 -> -0.08235781776 | DT43: =Ops!DT702 -> -0.08235781776 | DU43: =Ops!DU702 -> -0.08235781776 | DV43: =Ops!DV702 -> -0.08235781776 | DW43: =Ops!DW702 -> -0.08400497411 | DX43: =Ops!DX702 -> -0.08400497411 | DY43: =Ops!DY702 -> -0.08400497411 | DZ43: =Ops!DZ702 -> -0.08400497411 | EA43: =Ops!EA702 -> -0.0856850736 | EB43: =Ops!EB702 -> -0.0856850736 | EC43: =Ops!EC702 -> -0.0856850736 | ED43: =Ops!ED702 -> -0.0856850736 | EE43: =Ops!EE702 -> -0.08739877507 | EF43: =Ops!EF702 -> -0.08739877507 | EG43: =Ops!EG702 -> -0.08739877507 | EH43: =Ops!EH702 -> -0.08739877507 | EI43: =Ops!EI702 -> -0.08914675057 | EJ43: =Ops!EJ702 -> -0.08914675057 | EK43: =Ops!EK702 -> -0.08914675057 | EL43: =Ops!EL702 -> -0.08914675057 | EM43: =Ops!EM702 -> -0.09092968558 | EN43: =Ops!EN702 -> -0.09092968558 | EO43: =Ops!EO702 -> -0.09092968558 | EP43: =Ops!EP702 -> -0.09092968558 | EQ43: =Ops!EQ702 -> -0.09274827929 | ER43: =Ops!ER702 -> -0.09274827929 | ES43: =Ops!ES702 -> -0.09274827929 | ET43: =Ops!ET702 -> -0.09274827929 | EU43: =Ops!EU702 -> -0.09460324488 | EV43: =Ops!EV702 -> -0.09460324488 | EW43: =Ops!EW702 -> -0.09460324488 | EX43: =Ops!EX702 -> -0.09460324488 | EY43: =Ops!EY702 -> -0.09649530978 | EZ43: =Ops!EZ702 -> -0.09649530978 | FA43: =Ops!FA702 -> -0.09649530978 | FB43: =Ops!FB702 -> -0.09649530978 | FC43: =Ops!FC702 -> -0.09842521597 | FD43: =Ops!FD702 -> -0.09842521597 | FE43: =Ops!FE702 -> -0.09842521597 | FF43: =Ops!FF702 -> -0.09842521597 | FG43: =Ops!FG702 -> -0.1003937203 | FH43: =Ops!FH702 -> -0.1003937203 | FI43: =Ops!FI702 -> -0.1003937203 | FJ43: =Ops!FJ702 -> -0.1003937203 | FK43: =Ops!FK702 -> -0.1024015947 | FL43: =Ops!FL702 -> -0.1024015947 | FM43: =Ops!FM702 -> -0.1024015947 | FN43: =Ops!FN702 -> -0.1024015947 | FO43: =Ops!FO702 -> -0.1044496266 | FP43: =Ops!FP702 -> -0.1044496266 | FQ43: =Ops!FQ702 -> -0.1044496266 | FR43: =Ops!FR702 -> -0.1044496266 | FS43: =Ops!FS702 -> -0.1065386191 | FT43: =Ops!FT702 -> -0.1065386191 | FU43: =Ops!FU702 -> -0.1065386191 | FV43: =Ops!FV702 -> -0.1065386191 | FW43: =Ops!FW702 -> -0.1086693915 | FX43: =Ops!FX702 -> -0.1086693915 | FY43: =Ops!FY702 -> -0.1086693915 | FZ43: =Ops!FZ702 -> -0.1086693915 | GA43: =Ops!GA702 -> -0.1108427793 | GB43: =Ops!GB702 -> -0.1108427793 | GC43: =Ops!GC702 -> -0.1108427793 | GD43: =Ops!GD702 -> -0.1108427793 | GE43: =Ops!GE702 -> -0.1130596349 | GF43: =Ops!GF702 -> -0.1130596349 | GG43: =Ops!GG702 -> -0.1130596349 | GH43: =Ops!GH702 -> -0.1130596349 | GI43: =Ops!GI702 -> -0.1153208276 | GJ43: =Ops!GJ702 -> -0.1153208276 | GK43: =Ops!GK702 -> -0.1153208276 | GL43: =Ops!GL702 -> -0.1153208276 | GM43: =Ops!GM702 -> -0.1176272442 | GN43: =Ops!GN702 -> -0.1176272442 | GO43: =Ops!GO702 -> -0.1176272442 | GP43: =Ops!GP702 -> -0.1176272442 | GQ43: =Ops!GQ702 -> -0.1199797891 | GR43: =Ops!GR702 -> -0.1199797891 | GS43: =Ops!GS702 -> -0.1199797891 | GT43: =Ops!GT702 -> -0.1199797891 | GU43: =Ops!GU702 -> -0.1223793848 | GV43: =Ops!GV702 -> -0.1223793848 | GW43: =Ops!GW702 -> -0.1223793848 | GX43: =Ops!GX702 -> -0.1223793848 | GY43: =Ops!GY702 -> -0.1248269725 | GZ43: =Ops!GZ702 -> -0.1248269725 | HA43: =Ops!HA702 -> -0.1248269725 | HB43: =Ops!HB702 -> -0.1248269725 | HC43: =Ops!HC702 -> -0.127323512 | HD43: =Ops!HD702 -> -0.127323512 | HE43: =Ops!HE702 -> -0.127323512 | HF43: =Ops!HF702 -> -0.127323512 | HG43: =Ops!HG702 -> -0.1298699822 | HH43: =Ops!HH702 -> -0.1298699822 | HI43: =Ops!HI702 -> -0.1298699822 | HJ43: =Ops!HJ702 -> -0.1298699822 | HK43: =Ops!HK702 -> -0.1324673819 | HL43: =Ops!HL702 -> -0.1324673819 | HM43: =Ops!HM702 -> -0.1324673819 | HN43: =Ops!HN702 -> -0.1324673819 | HO43: =Ops!HO702 -> -0.1351167295 | HP43: =Ops!HP702 -> 0 | HQ43: =Ops!HQ702 -> 0 | HR43: =Ops!HR702 -> 0 | HS43: =Ops!HS702 -> 0 | HT43: =Ops!HT702 -> 0 | HU43: =Ops!HU702 -> 0 | HV43: =Ops!HV702 -> 0 | HW43: =Ops!HW702 -> 0 | HX43: =Ops!HX702 -> 0 | HY43: =Ops!HY702 -> 0 | HZ43: =Ops!HZ702 -> 0 | IA43: =Ops!IA702 -> 0 | IB43: =Ops!IB702 -> 0 | IC43: =Ops!IC702 -> 0 | ID43: =Ops!ID702 -> 0 | IE43: =Ops!IE702 -> 0 | IF43: =Ops!IF702 -> 0 | IG43: =Ops!IG702 -> 0 | IH43: =Ops!IH702 -> 0 | II43: =Ops!II702 -> 0 | IJ43: =Ops!IJ702 -> 0 | IK43: =Ops!IK702 -> 0 | IL43: =Ops!IL702 -> 0 | IM43: =Ops!IM702 -> 0 | IN43: =Ops!IN702 -> 0 | IO43: =Ops!IO702 -> 0 | IP43: =Ops!IP702 -> 0 | IQ43: =Ops!IQ702 -> 0 | IR43: =Ops!IR702 -> 0 | IS43: =Ops!IS702 -> 0 | IT43: =Ops!IT702 -> 0 | IU43: =Ops!IU702 -> 0
C44: =Ops!C703 -> CHP Corporate Overhead and Misc. | D44: AUD M | I44: -125.1440748 | J44: =Ops!J703 -> 0 | K44: =Ops!K703 -> 0 | L44: =Ops!L703 -> 0 | M44: =Ops!M703 -> 0 | N44: =Ops!N703 -> 0 | O44: =Ops!O703 -> 0 | P44: =Ops!P703 -> 0 | Q44: =Ops!Q703 -> 0 | R44: =Ops!R703 -> 0 | S44: =Ops!S703 -> 0 | T44: =Ops!T703 -> 0 | U44: =Ops!U703 -> 0 | V44: =Ops!V703 -> 0 | W44: =Ops!W703 -> 0 | X44: =Ops!X703 -> -0.36787025 | Y44: =Ops!Y703 -> -0.36787025 | Z44: =Ops!Z703 -> -0.36787025 | AA44: =Ops!AA703 -> -0.36787025 | AB44: =Ops!AB703 -> -0.37168175 | AC44: =Ops!AC703 -> -0.37168175 | AD44: =Ops!AD703 -> -0.37168175 | AE44: =Ops!AE703 -> -0.379115385 | AF44: =Ops!AF703 -> -0.383003115 | AG44: =Ops!AG703 -> -0.383003115 | AH44: =Ops!AH703 -> -0.383003115 | AI44: =Ops!AI703 -> -0.3906631773 | AJ44: =Ops!AJ703 -> -0.3906631773 | AK44: =Ops!AK703 -> -0.3906631773 | AL44: =Ops!AL703 -> -0.3906631773 | AM44: =Ops!AM703 -> -0.3984764408 | AN44: =Ops!AN703 -> -0.3984764408 | AO44: =Ops!AO703 -> -0.3984764408 | AP44: =Ops!AP703 -> -0.3984764408 | AQ44: =Ops!AQ703 -> -0.4064459697 | AR44: =Ops!AR703 -> -0.4064459697 | AS44: =Ops!AS703 -> -0.4064459697 | AT44: =Ops!AT703 -> -0.4064459697 | AU44: =Ops!AU703 -> -0.4145748891 | AV44: =Ops!AV703 -> -0.4145748891 | AW44: =Ops!AW703 -> -0.4145748891 | AX44: =Ops!AX703 -> -0.4145748891 | AY44: =Ops!AY703 -> -0.4228663868 | AZ44: =Ops!AZ703 -> -0.4228663868 | BA44: =Ops!BA703 -> -0.4228663868 | BB44: =Ops!BB703 -> -0.4228663868 | BC44: =Ops!BC703 -> -0.4313237146 | BD44: =Ops!BD703 -> -0.4313237146 | BE44: =Ops!BE703 -> -0.4313237146 | BF44: =Ops!BF703 -> -0.4313237146 | BG44: =Ops!BG703 -> -0.4399501889 | BH44: =Ops!BH703 -> -0.4399501889 | BI44: =Ops!BI703 -> -0.4399501889 | BJ44: =Ops!BJ703 -> -0.4399501889 | BK44: =Ops!BK703 -> -0.4487491926 | BL44: =Ops!BL703 -> -0.4487491926 | BM44: =Ops!BM703 -> -0.4487491926 | BN44: =Ops!BN703 -> -0.4487491926 | BO44: =Ops!BO703 -> -0.4577241765 | BP44: =Ops!BP703 -> -0.4577241765 | BQ44: =Ops!BQ703 -> -0.4577241765 | BR44: =Ops!BR703 -> -0.4577241765 | BS44: =Ops!BS703 -> -0.46687866 | BT44: =Ops!BT703 -> -0.46687866 | BU44: =Ops!BU703 -> -0.46687866 | BV44: =Ops!BV703 -> -0.46687866 | BW44: =Ops!BW703 -> -0.4762162332 | BX44: =Ops!BX703 -> -0.4762162332 | BY44: =Ops!BY703 -> -0.4762162332 | BZ44: =Ops!BZ703 -> -0.4762162332 | CA44: =Ops!CA703 -> -0.4857405579 | CB44: =Ops!CB703 -> -0.4857405579 | CC44: =Ops!CC703 -> -0.4857405579 | CD44: =Ops!CD703 -> -0.4857405579 | CE44: =Ops!CE703 -> -0.495455369 | CF44: =Ops!CF703 -> -0.495455369 | CG44: =Ops!CG703 -> -0.495455369 | CH44: =Ops!CH703 -> -0.495455369 | CI44: =Ops!CI703 -> -0.5053644764 | CJ44: =Ops!CJ703 -> -0.5053644764 | CK44: =Ops!CK703 -> -0.5053644764 | CL44: =Ops!CL703 -> -0.5053644764 | CM44: =Ops!CM703 -> -0.515471766 | CN44: =Ops!CN703 -> -0.515471766 | CO44: =Ops!CO703 -> -0.515471766 | CP44: =Ops!CP703 -> -0.515471766 | CQ44: =Ops!CQ703 -> -0.5257812013 | CR44: =Ops!CR703 -> -0.5257812013 | CS44: =Ops!CS703 -> -0.5257812013 | CT44: =Ops!CT703 -> -0.5257812013 | CU44: =Ops!CU703 -> -0.5362968253 | CV44: =Ops!CV703 -> -0.5362968253 | CW44: =Ops!CW703 -> -0.5362968253 | CX44: =Ops!CX703 -> -0.5362968253 | CY44: =Ops!CY703 -> -0.5470227618 | CZ44: =Ops!CZ703 -> -0.5470227618 | DA44: =Ops!DA703 -> -0.5470227618 | DB44: =Ops!DB703 -> -0.5470227618 | DC44: =Ops!DC703 -> -0.557963217 | DD44: =Ops!DD703 -> -0.557963217 | DE44: =Ops!DE703 -> -0.557963217 | DF44: =Ops!DF703 -> -0.557963217 | DG44: =Ops!DG703 -> -0.5691224814 | DH44: =Ops!DH703 -> -0.5691224814 | DI44: =Ops!DI703 -> -0.5691224814 | DJ44: =Ops!DJ703 -> -0.5691224814 | DK44: =Ops!DK703 -> -0.580504931 | DL44: =Ops!DL703 -> -0.580504931 | DM44: =Ops!DM703 -> -0.580504931 | DN44: =Ops!DN703 -> -0.580504931 | DO44: =Ops!DO703 -> -0.5921150296 | DP44: =Ops!DP703 -> -0.5921150296 | DQ44: =Ops!DQ703 -> -0.5921150296 | DR44: =Ops!DR703 -> -0.5921150296 | DS44: =Ops!DS703 -> -0.6039573302 | DT44: =Ops!DT703 -> -0.6039573302 | DU44: =Ops!DU703 -> -0.6039573302 | DV44: =Ops!DV703 -> -0.6039573302 | DW44: =Ops!DW703 -> -0.6160364768 | DX44: =Ops!DX703 -> -0.6160364768 | DY44: =Ops!DY703 -> -0.6160364768 | DZ44: =Ops!DZ703 -> -0.6160364768 | EA44: =Ops!EA703 -> -0.6283572064 | EB44: =Ops!EB703 -> -0.6283572064 | EC44: =Ops!EC703 -> -0.6283572064 | ED44: =Ops!ED703 -> -0.6283572064 | EE44: =Ops!EE703 -> -0.6409243505 | EF44: =Ops!EF703 -> -0.6409243505 | EG44: =Ops!EG703 -> -0.6409243505 | EH44: =Ops!EH703 -> -0.6409243505 | EI44: =Ops!EI703 -> -0.6537428375 | EJ44: =Ops!EJ703 -> -0.6537428375 | EK44: =Ops!EK703 -> -0.6537428375 | EL44: =Ops!EL703 -> -0.6537428375 | EM44: =Ops!EM703 -> -0.6668176943 | EN44: =Ops!EN703 -> -0.6668176943 | EO44: =Ops!EO703 -> -0.6668176943 | EP44: =Ops!EP703 -> -0.6668176943 | EQ44: =Ops!EQ703 -> -0.6801540481 | ER44: =Ops!ER703 -> -0.6801540481 | ES44: =Ops!ES703 -> -0.6801540481 | ET44: =Ops!ET703 -> -0.6801540481 | EU44: =Ops!EU703 -> -0.6937571291 | EV44: =Ops!EV703 -> -0.6937571291 | EW44: =Ops!EW703 -> -0.6937571291 | EX44: =Ops!EX703 -> -0.6937571291 | EY44: =Ops!EY703 -> -0.7076322717 | EZ44: =Ops!EZ703 -> -0.7076322717 | FA44: =Ops!FA703 -> -0.7076322717 | FB44: =Ops!FB703 -> -0.7076322717 | FC44: =Ops!FC703 -> -0.7217849171 | FD44: =Ops!FD703 -> -0.7217849171 | FE44: =Ops!FE703 -> -0.7217849171 | FF44: =Ops!FF703 -> -0.7217849171 | FG44: =Ops!FG703 -> -0.7362206155 | FH44: =Ops!FH703 -> -0.7362206155 | FI44: =Ops!FI703 -> -0.7362206155 | FJ44: =Ops!FJ703 -> -0.7362206155 | FK44: =Ops!FK703 -> -0.7509450278 | FL44: =Ops!FL703 -> -0.7509450278 | FM44: =Ops!FM703 -> -0.7509450278 | FN44: =Ops!FN703 -> -0.7509450278 | FO44: =Ops!FO703 -> -0.7659639283 | FP44: =Ops!FP703 -> -0.7659639283 | FQ44: =Ops!FQ703 -> -0.7659639283 | FR44: =Ops!FR703 -> -0.7659639283 | FS44: =Ops!FS703 -> -0.7812832069 | FT44: =Ops!FT703 -> -0.7812832069 | FU44: =Ops!FU703 -> -0.7812832069 | FV44: =Ops!FV703 -> -0.7812832069 | FW44: =Ops!FW703 -> -0.796908871 | FX44: =Ops!FX703 -> -0.796908871 | FY44: =Ops!FY703 -> -0.796908871 | FZ44: =Ops!FZ703 -> -0.796908871 | GA44: =Ops!GA703 -> -0.8128470485 | GB44: =Ops!GB703 -> -0.8128470485 | GC44: =Ops!GC703 -> -0.8128470485 | GD44: =Ops!GD703 -> -0.8128470485 | GE44: =Ops!GE703 -> -0.8291039894 | GF44: =Ops!GF703 -> -0.8291039894 | GG44: =Ops!GG703 -> -0.8291039894 | GH44: =Ops!GH703 -> -0.8291039894 | GI44: =Ops!GI703 -> -0.8456860692 | GJ44: =Ops!GJ703 -> -0.8456860692 | GK44: =Ops!GK703 -> -0.8456860692 | GL44: =Ops!GL703 -> -0.8456860692 | GM44: =Ops!GM703 -> -0.8625997906 | GN44: =Ops!GN703 -> -0.8625997906 | GO44: =Ops!GO703 -> -0.8625997906 | GP44: =Ops!GP703 -> -0.8625997906 | GQ44: =Ops!GQ703 -> -0.8798517864 | GR44: =Ops!GR703 -> -0.8798517864 | GS44: =Ops!GS703 -> -0.8798517864 | GT44: =Ops!GT703 -> -0.8798517864 | GU44: =Ops!GU703 -> -0.8974488221 | GV44: =Ops!GV703 -> -0.8974488221 | GW44: =Ops!GW703 -> -0.8974488221 | GX44: =Ops!GX703 -> -0.8974488221 | GY44: =Ops!GY703 -> -0.9153977986 | GZ44: =Ops!GZ703 -> -0.9153977986 | HA44: =Ops!HA703 -> -0.9153977986 | HB44: =Ops!HB703 -> -0.9153977986 | HC44: =Ops!HC703 -> -0.9337057545 | HD44: =Ops!HD703 -> -0.9337057545 | HE44: =Ops!HE703 -> -0.9337057545 | HF44: =Ops!HF703 -> -0.9337057545 | HG44: =Ops!HG703 -> -0.9523798696 | HH44: =Ops!HH703 -> -0.9523798696 | HI44: =Ops!HI703 -> -0.9523798696 | HJ44: =Ops!HJ703 -> -0.9523798696 | HK44: =Ops!HK703 -> -0.971427467 | HL44: =Ops!HL703 -> -0.971427467 | HM44: =Ops!HM703 -> -0.971427467 | HN44: =Ops!HN703 -> -0.971427467 | HO44: =Ops!HO703 -> -0.9908560164 | HP44: =Ops!HP703 -> 0 | HQ44: =Ops!HQ703 -> 0 | HR44: =Ops!HR703 -> 0 | HS44: =Ops!HS703 -> 0 | HT44: =Ops!HT703 -> 0 | HU44: =Ops!HU703 -> 0 | HV44: =Ops!HV703 -> 0 | HW44: =Ops!HW703 -> 0 | HX44: =Ops!HX703 -> 0 | HY44: =Ops!HY703 -> 0 | HZ44: =Ops!HZ703 -> 0 | IA44: =Ops!IA703 -> 0 | IB44: =Ops!IB703 -> 0 | IC44: =Ops!IC703 -> 0 | ID44: =Ops!ID703 -> 0 | IE44: =Ops!IE703 -> 0 | IF44: =Ops!IF703 -> 0 | IG44: =Ops!IG703 -> 0 | IH44: =Ops!IH703 -> 0 | II44: =Ops!II703 -> 0 | IJ44: =Ops!IJ703 -> 0 | IK44: =Ops!IK703 -> 0 | IL44: =Ops!IL703 -> 0 | IM44: =Ops!IM703 -> 0 | IN44: =Ops!IN703 -> 0 | IO44: =Ops!IO703 -> 0 | IP44: =Ops!IP703 -> 0 | IQ44: =Ops!IQ703 -> 0 | IR44: =Ops!IR703 -> 0 | IS44: =Ops!IS703 -> 0 | IT44: =Ops!IT703 -> 0 | IU44: =Ops!IU703 -> 0
C45: =Ops!C704 -> Life Cycle Costs | D45: AUD M | I45: -96.70223963 | J45: =Ops!J704 -> 0 | K45: =Ops!K704 -> 0 | L45: =Ops!L704 -> 0 | M45: =Ops!M704 -> 0 | N45: =Ops!N704 -> 0 | O45: =Ops!O704 -> 0 | P45: =Ops!P704 -> 0 | Q45: =Ops!Q704 -> 0 | R45: =Ops!R704 -> 0 | S45: =Ops!S704 -> 0 | T45: =Ops!T704 -> 0 | U45: =Ops!U704 -> 0 | V45: =Ops!V704 -> 0 | W45: =Ops!W704 -> 0 | X45: =Ops!X704 -> -0.284263375 | Y45: =Ops!Y704 -> -0.284263375 | Z45: =Ops!Z704 -> -0.284263375 | AA45: =Ops!AA704 -> -0.284263375 | AB45: =Ops!AB704 -> -0.287208625 | AC45: =Ops!AC704 -> -0.287208625 | AD45: =Ops!AD704 -> -0.287208625 | AE45: =Ops!AE704 -> -0.2929527975 | AF45: =Ops!AF704 -> -0.2959569525 | AG45: =Ops!AG704 -> -0.2959569525 | AH45: =Ops!AH704 -> -0.2959569525 | AI45: =Ops!AI704 -> -0.3018760915 | AJ45: =Ops!AJ704 -> -0.3018760915 | AK45: =Ops!AK704 -> -0.3018760915 | AL45: =Ops!AL704 -> -0.3018760915 | AM45: =Ops!AM704 -> -0.3079136134 | AN45: =Ops!AN704 -> -0.3079136134 | AO45: =Ops!AO704 -> -0.3079136134 | AP45: =Ops!AP704 -> -0.3079136134 | AQ45: =Ops!AQ704 -> -0.3140718856 | AR45: =Ops!AR704 -> -0.3140718856 | AS45: =Ops!AS704 -> -0.3140718856 | AT45: =Ops!AT704 -> -0.3140718856 | AU45: =Ops!AU704 -> -0.3203533234 | AV45: =Ops!AV704 -> -0.3203533234 | AW45: =Ops!AW704 -> -0.3203533234 | AX45: =Ops!AX704 -> -0.3203533234 | AY45: =Ops!AY704 -> -0.3267603898 | AZ45: =Ops!AZ704 -> -0.3267603898 | BA45: =Ops!BA704 -> -0.3267603898 | BB45: =Ops!BB704 -> -0.3267603898 | BC45: =Ops!BC704 -> -0.3332955976 | BD45: =Ops!BD704 -> -0.3332955976 | BE45: =Ops!BE704 -> -0.3332955976 | BF45: =Ops!BF704 -> -0.3332955976 | BG45: =Ops!BG704 -> -0.3399615096 | BH45: =Ops!BH704 -> -0.3399615096 | BI45: =Ops!BI704 -> -0.3399615096 | BJ45: =Ops!BJ704 -> -0.3399615096 | BK45: =Ops!BK704 -> -0.3467607398 | BL45: =Ops!BL704 -> -0.3467607398 | BM45: =Ops!BM704 -> -0.3467607398 | BN45: =Ops!BN704 -> -0.3467607398 | BO45: =Ops!BO704 -> -0.3536959546 | BP45: =Ops!BP704 -> -0.3536959546 | BQ45: =Ops!BQ704 -> -0.3536959546 | BR45: =Ops!BR704 -> -0.3536959546 | BS45: =Ops!BS704 -> -0.3607698737 | BT45: =Ops!BT704 -> -0.3607698737 | BU45: =Ops!BU704 -> -0.3607698737 | BV45: =Ops!BV704 -> -0.3607698737 | BW45: =Ops!BW704 -> -0.3679852711 | BX45: =Ops!BX704 -> -0.3679852711 | BY45: =Ops!BY704 -> -0.3679852711 | BZ45: =Ops!BZ704 -> -0.3679852711 | CA45: =Ops!CA704 -> -0.3753449766 | CB45: =Ops!CB704 -> -0.3753449766 | CC45: =Ops!CC704 -> -0.3753449766 | CD45: =Ops!CD704 -> -0.3753449766 | CE45: =Ops!CE704 -> -0.3828518761 | CF45: =Ops!CF704 -> -0.3828518761 | CG45: =Ops!CG704 -> -0.3828518761 | CH45: =Ops!CH704 -> -0.3828518761 | CI45: =Ops!CI704 -> -0.3905089136 | CJ45: =Ops!CJ704 -> -0.3905089136 | CK45: =Ops!CK704 -> -0.3905089136 | CL45: =Ops!CL704 -> -0.3905089136 | CM45: =Ops!CM704 -> -0.3983190919 | CN45: =Ops!CN704 -> -0.3983190919 | CO45: =Ops!CO704 -> -0.3983190919 | CP45: =Ops!CP704 -> -0.3983190919 | CQ45: =Ops!CQ704 -> -0.4062854737 | CR45: =Ops!CR704 -> -0.4062854737 | CS45: =Ops!CS704 -> -0.4062854737 | CT45: =Ops!CT704 -> -0.4062854737 | CU45: =Ops!CU704 -> -0.4144111832 | CV45: =Ops!CV704 -> -0.4144111832 | CW45: =Ops!CW704 -> -0.4144111832 | CX45: =Ops!CX704 -> -0.4144111832 | CY45: =Ops!CY704 -> -0.4226994069 | CZ45: =Ops!CZ704 -> -0.4226994069 | DA45: =Ops!DA704 -> -0.4226994069 | DB45: =Ops!DB704 -> -0.4226994069 | DC45: =Ops!DC704 -> -0.431153395 | DD45: =Ops!DD704 -> -0.431153395 | DE45: =Ops!DE704 -> -0.431153395 | DF45: =Ops!DF704 -> -0.431153395 | DG45: =Ops!DG704 -> -0.4397764629 | DH45: =Ops!DH704 -> -0.4397764629 | DI45: =Ops!DI704 -> -0.4397764629 | DJ45: =Ops!DJ704 -> -0.4397764629 | DK45: =Ops!DK704 -> -0.4485719921 | DL45: =Ops!DL704 -> -0.4485719921 | DM45: =Ops!DM704 -> -0.4485719921 | DN45: =Ops!DN704 -> -0.4485719921 | DO45: =Ops!DO704 -> -0.457543432 | DP45: =Ops!DP704 -> -0.457543432 | DQ45: =Ops!DQ704 -> -0.457543432 | DR45: =Ops!DR704 -> -0.457543432 | DS45: =Ops!DS704 -> -0.4666943006 | DT45: =Ops!DT704 -> -0.4666943006 | DU45: =Ops!DU704 -> -0.4666943006 | DV45: =Ops!DV704 -> -0.4666943006 | DW45: =Ops!DW704 -> -0.4760281866 | DX45: =Ops!DX704 -> -0.4760281866 | DY45: =Ops!DY704 -> -0.4760281866 | DZ45: =Ops!DZ704 -> -0.4760281866 | EA45: =Ops!EA704 -> -0.4855487504 | EB45: =Ops!EB704 -> -0.4855487504 | EC45: =Ops!EC704 -> -0.4855487504 | ED45: =Ops!ED704 -> -0.4855487504 | EE45: =Ops!EE704 -> -0.4952597254 | EF45: =Ops!EF704 -> -0.4952597254 | EG45: =Ops!EG704 -> -0.4952597254 | EH45: =Ops!EH704 -> -0.4952597254 | EI45: =Ops!EI704 -> -0.5051649199 | EJ45: =Ops!EJ704 -> -0.5051649199 | EK45: =Ops!EK704 -> -0.5051649199 | EL45: =Ops!EL704 -> -0.5051649199 | EM45: =Ops!EM704 -> -0.5152682183 | EN45: =Ops!EN704 -> -0.5152682183 | EO45: =Ops!EO704 -> -0.5152682183 | EP45: =Ops!EP704 -> -0.5152682183 | EQ45: =Ops!EQ704 -> -0.5255735827 | ER45: =Ops!ER704 -> -0.5255735827 | ES45: =Ops!ES704 -> -0.5255735827 | ET45: =Ops!ET704 -> -0.5255735827 | EU45: =Ops!EU704 -> -0.5360850543 | EV45: =Ops!EV704 -> -0.5360850543 | EW45: =Ops!EW704 -> -0.5360850543 | EX45: =Ops!EX704 -> -0.5360850543 | EY45: =Ops!EY704 -> -0.5468067554 | EZ45: =Ops!EZ704 -> -0.5468067554 | FA45: =Ops!FA704 -> -0.5468067554 | FB45: =Ops!FB704 -> -0.5468067554 | FC45: =Ops!FC704 -> -0.5577428905 | FD45: =Ops!FD704 -> -0.5577428905 | FE45: =Ops!FE704 -> -0.5577428905 | FF45: =Ops!FF704 -> -0.5577428905 | FG45: =Ops!FG704 -> -0.5688977483 | FH45: =Ops!FH704 -> -0.5688977483 | FI45: =Ops!FI704 -> -0.5688977483 | FJ45: =Ops!FJ704 -> -0.5688977483 | FK45: =Ops!FK704 -> -0.5802757033 | FL45: =Ops!FL704 -> -0.5802757033 | FM45: =Ops!FM704 -> -0.5802757033 | FN45: =Ops!FN704 -> -0.5802757033 | FO45: =Ops!FO704 -> -0.5918812173 | FP45: =Ops!FP704 -> -0.5918812173 | FQ45: =Ops!FQ704 -> -0.5918812173 | FR45: =Ops!FR704 -> -0.5918812173 | FS45: =Ops!FS704 -> -0.6037188417 | FT45: =Ops!FT704 -> -0.6037188417 | FU45: =Ops!FU704 -> -0.6037188417 | FV45: =Ops!FV704 -> -0.6037188417 | FW45: =Ops!FW704 -> -0.6157932185 | FX45: =Ops!FX704 -> -0.6157932185 | FY45: =Ops!FY704 -> -0.6157932185 | FZ45: =Ops!FZ704 -> -0.6157932185 | GA45: =Ops!GA704 -> -0.6281090829 | GB45: =Ops!GB704 -> -0.6281090829 | GC45: =Ops!GC704 -> -0.6281090829 | GD45: =Ops!GD704 -> -0.6281090829 | GE45: =Ops!GE704 -> -0.6406712646 | GF45: =Ops!GF704 -> -0.6406712646 | GG45: =Ops!GG704 -> -0.6406712646 | GH45: =Ops!GH704 -> -0.6406712646 | GI45: =Ops!GI704 -> -0.6534846898 | GJ45: =Ops!GJ704 -> -0.6534846898 | GK45: =Ops!GK704 -> -0.6534846898 | GL45: =Ops!GL704 -> -0.6534846898 | GM45: =Ops!GM704 -> -0.6665543836 | GN45: =Ops!GN704 -> -0.6665543836 | GO45: =Ops!GO704 -> -0.6665543836 | GP45: =Ops!GP704 -> -0.6665543836 | GQ45: =Ops!GQ704 -> -0.6798854713 | GR45: =Ops!GR704 -> -0.6798854713 | GS45: =Ops!GS704 -> -0.6798854713 | GT45: =Ops!GT704 -> -0.6798854713 | GU45: =Ops!GU704 -> -0.6934831807 | GV45: =Ops!GV704 -> -0.6934831807 | GW45: =Ops!GW704 -> -0.6934831807 | GX45: =Ops!GX704 -> -0.6934831807 | GY45: =Ops!GY704 -> -0.7073528444 | GZ45: =Ops!GZ704 -> -0.7073528444 | HA45: =Ops!HA704 -> -0.7073528444 | HB45: =Ops!HB704 -> -0.7073528444 | HC45: =Ops!HC704 -> -0.7214999012 | HD45: =Ops!HD704 -> -0.7214999012 | HE45: =Ops!HE704 -> -0.7214999012 | HF45: =Ops!HF704 -> -0.7214999012 | HG45: =Ops!HG704 -> -0.7359298993 | HH45: =Ops!HH704 -> -0.7359298993 | HI45: =Ops!HI704 -> -0.7359298993 | HJ45: =Ops!HJ704 -> -0.7359298993 | HK45: =Ops!HK704 -> -0.7506484973 | HL45: =Ops!HL704 -> -0.7506484973 | HM45: =Ops!HM704 -> -0.7506484973 | HN45: =Ops!HN704 -> -0.7506484973 | HO45: =Ops!HO704 -> -0.7656614672 | HP45: =Ops!HP704 -> 0 | HQ45: =Ops!HQ704 -> 0 | HR45: =Ops!HR704 -> 0 | HS45: =Ops!HS704 -> 0 | HT45: =Ops!HT704 -> 0 | HU45: =Ops!HU704 -> 0 | HV45: =Ops!HV704 -> 0 | HW45: =Ops!HW704 -> 0 | HX45: =Ops!HX704 -> 0 | HY45: =Ops!HY704 -> 0 | HZ45: =Ops!HZ704 -> 0 | IA45: =Ops!IA704 -> 0 | IB45: =Ops!IB704 -> 0 | IC45: =Ops!IC704 -> 0 | ID45: =Ops!ID704 -> 0 | IE45: =Ops!IE704 -> 0 | IF45: =Ops!IF704 -> 0 | IG45: =Ops!IG704 -> 0 | IH45: =Ops!IH704 -> 0 | II45: =Ops!II704 -> 0 | IJ45: =Ops!IJ704 -> 0 | IK45: =Ops!IK704 -> 0 | IL45: =Ops!IL704 -> 0 | IM45: =Ops!IM704 -> 0 | IN45: =Ops!IN704 -> 0 | IO45: =Ops!IO704 -> 0 | IP45: =Ops!IP704 -> 0 | IQ45: =Ops!IQ704 -> 0 | IR45: =Ops!IR704 -> 0 | IS45: =Ops!IS704 -> 0 | IT45: =Ops!IT704 -> 0 | IU45: =Ops!IU704 -> 0
C46: =Ops!C705 -> [spare] | D46: AUD M | I46: 0 | J46: =Ops!J705 -> 0 | K46: =Ops!K705 -> 0 | L46: =Ops!L705 -> 0 | M46: =Ops!M705 -> 0 | N46: =Ops!N705 -> 0 | O46: =Ops!O705 -> 0 | P46: =Ops!P705 -> 0 | Q46: =Ops!Q705 -> 0 | R46: =Ops!R705 -> 0 | S46: =Ops!S705 -> 0 | T46: =Ops!T705 -> 0 | U46: =Ops!U705 -> 0 | V46: =Ops!V705 -> 0 | W46: =Ops!W705 -> 0 | X46: =Ops!X705 -> 0 | Y46: =Ops!Y705 -> 0 | Z46: =Ops!Z705 -> 0 | AA46: =Ops!AA705 -> 0 | AB46: =Ops!AB705 -> 0 | AC46: =Ops!AC705 -> 0 | AD46: =Ops!AD705 -> 0 | AE46: =Ops!AE705 -> 0 | AF46: =Ops!AF705 -> 0 | AG46: =Ops!AG705 -> 0 | AH46: =Ops!AH705 -> 0 | AI46: =Ops!AI705 -> 0 | AJ46: =Ops!AJ705 -> 0 | AK46: =Ops!AK705 -> 0 | AL46: =Ops!AL705 -> 0 | AM46: =Ops!AM705 -> 0 | AN46: =Ops!AN705 -> 0 | AO46: =Ops!AO705 -> 0 | AP46: =Ops!AP705 -> 0 | AQ46: =Ops!AQ705 -> 0 | AR46: =Ops!AR705 -> 0 | AS46: =Ops!AS705 -> 0 | AT46: =Ops!AT705 -> 0 | AU46: =Ops!AU705 -> 0 | AV46: =Ops!AV705 -> 0 | AW46: =Ops!AW705 -> 0 | AX46: =Ops!AX705 -> 0 | AY46: =Ops!AY705 -> 0 | AZ46: =Ops!AZ705 -> 0 | BA46: =Ops!BA705 -> 0 | BB46: =Ops!BB705 -> 0 | BC46: =Ops!BC705 -> 0 | BD46: =Ops!BD705 -> 0 | BE46: =Ops!BE705 -> 0 | BF46: =Ops!BF705 -> 0 | BG46: =Ops!BG705 -> 0 | BH46: =Ops!BH705 -> 0 | BI46: =Ops!BI705 -> 0 | BJ46: =Ops!BJ705 -> 0 | BK46: =Ops!BK705 -> 0 | BL46: =Ops!BL705 -> 0 | BM46: =Ops!BM705 -> 0 | BN46: =Ops!BN705 -> 0 | BO46: =Ops!BO705 -> 0 | BP46: =Ops!BP705 -> 0 | BQ46: =Ops!BQ705 -> 0 | BR46: =Ops!BR705 -> 0 | BS46: =Ops!BS705 -> 0 | BT46: =Ops!BT705 -> 0 | BU46: =Ops!BU705 -> 0 | BV46: =Ops!BV705 -> 0 | BW46: =Ops!BW705 -> 0 | BX46: =Ops!BX705 -> 0 | BY46: =Ops!BY705 -> 0 | BZ46: =Ops!BZ705 -> 0 | CA46: =Ops!CA705 -> 0 | CB46: =Ops!CB705 -> 0 | CC46: =Ops!CC705 -> 0 | CD46: =Ops!CD705 -> 0 | CE46: =Ops!CE705 -> 0 | CF46: =Ops!CF705 -> 0 | CG46: =Ops!CG705 -> 0 | CH46: =Ops!CH705 -> 0 | CI46: =Ops!CI705 -> 0 | CJ46: =Ops!CJ705 -> 0 | CK46: =Ops!CK705 -> 0 | CL46: =Ops!CL705 -> 0 | CM46: =Ops!CM705 -> 0 | CN46: =Ops!CN705 -> 0 | CO46: =Ops!CO705 -> 0 | CP46: =Ops!CP705 -> 0 | CQ46: =Ops!CQ705 -> 0 | CR46: =Ops!CR705 -> 0 | CS46: =Ops!CS705 -> 0 | CT46: =Ops!CT705 -> 0 | CU46: =Ops!CU705 -> 0 | CV46: =Ops!CV705 -> 0 | CW46: =Ops!CW705 -> 0 | CX46: =Ops!CX705 -> 0 | CY46: =Ops!CY705 -> 0 | CZ46: =Ops!CZ705 -> 0 | DA46: =Ops!DA705 -> 0 | DB46: =Ops!DB705 -> 0 | DC46: =Ops!DC705 -> 0 | DD46: =Ops!DD705 -> 0 | DE46: =Ops!DE705 -> 0 | DF46: =Ops!DF705 -> 0 | DG46: =Ops!DG705 -> 0 | DH46: =Ops!DH705 -> 0 | DI46: =Ops!DI705 -> 0 | DJ46: =Ops!DJ705 -> 0 | DK46: =Ops!DK705 -> 0 | DL46: =Ops!DL705 -> 0 | DM46: =Ops!DM705 -> 0 | DN46: =Ops!DN705 -> 0 | DO46: =Ops!DO705 -> 0 | DP46: =Ops!DP705 -> 0 | DQ46: =Ops!DQ705 -> 0 | DR46: =Ops!DR705 -> 0 | DS46: =Ops!DS705 -> 0 | DT46: =Ops!DT705 -> 0 | DU46: =Ops!DU705 -> 0 | DV46: =Ops!DV705 -> 0 | DW46: =Ops!DW705 -> 0 | DX46: =Ops!DX705 -> 0 | DY46: =Ops!DY705 -> 0 | DZ46: =Ops!DZ705 -> 0 | EA46: =Ops!EA705 -> 0 | EB46: =Ops!EB705 -> 0 | EC46: =Ops!EC705 -> 0 | ED46: =Ops!ED705 -> 0 | EE46: =Ops!EE705 -> 0 | EF46: =Ops!EF705 -> 0 | EG46: =Ops!EG705 -> 0 | EH46: =Ops!EH705 -> 0 | EI46: =Ops!EI705 -> 0 | EJ46: =Ops!EJ705 -> 0 | EK46: =Ops!EK705 -> 0 | EL46: =Ops!EL705 -> 0 | EM46: =Ops!EM705 -> 0 | EN46: =Ops!EN705 -> 0 | EO46: =Ops!EO705 -> 0 | EP46: =Ops!EP705 -> 0 | EQ46: =Ops!EQ705 -> 0 | ER46: =Ops!ER705 -> 0 | ES46: =Ops!ES705 -> 0 | ET46: =Ops!ET705 -> 0 | EU46: =Ops!EU705 -> 0 | EV46: =Ops!EV705 -> 0 | EW46: =Ops!EW705 -> 0 | EX46: =Ops!EX705 -> 0 | EY46: =Ops!EY705 -> 0 | EZ46: =Ops!EZ705 -> 0 | FA46: =Ops!FA705 -> 0 | FB46: =Ops!FB705 -> 0 | FC46: =Ops!FC705 -> 0 | FD46: =Ops!FD705 -> 0 | FE46: =Ops!FE705 -> 0 | FF46: =Ops!FF705 -> 0 | FG46: =Ops!FG705 -> 0 | FH46: =Ops!FH705 -> 0 | FI46: =Ops!FI705 -> 0 | FJ46: =Ops!FJ705 -> 0 | FK46: =Ops!FK705 -> 0 | FL46: =Ops!FL705 -> 0 | FM46: =Ops!FM705 -> 0 | FN46: =Ops!FN705 -> 0 | FO46: =Ops!FO705 -> 0 | FP46: =Ops!FP705 -> 0 | FQ46: =Ops!FQ705 -> 0 | FR46: =Ops!FR705 -> 0 | FS46: =Ops!FS705 -> 0 | FT46: =Ops!FT705 -> 0 | FU46: =Ops!FU705 -> 0 | FV46: =Ops!FV705 -> 0 | FW46: =Ops!FW705 -> 0 | FX46: =Ops!FX705 -> 0 | FY46: =Ops!FY705 -> 0 | FZ46: =Ops!FZ705 -> 0 | GA46: =Ops!GA705 -> 0 | GB46: =Ops!GB705 -> 0 | GC46: =Ops!GC705 -> 0 | GD46: =Ops!GD705 -> 0 | GE46: =Ops!GE705 -> 0 | GF46: =Ops!GF705 -> 0 | GG46: =Ops!GG705 -> 0 | GH46: =Ops!GH705 -> 0 | GI46: =Ops!GI705 -> 0 | GJ46: =Ops!GJ705 -> 0 | GK46: =Ops!GK705 -> 0 | GL46: =Ops!GL705 -> 0 | GM46: =Ops!GM705 -> 0 | GN46: =Ops!GN705 -> 0 | GO46: =Ops!GO705 -> 0 | GP46: =Ops!GP705 -> 0 | GQ46: =Ops!GQ705 -> 0 | GR46: =Ops!GR705 -> 0 | GS46: =Ops!GS705 -> 0 | GT46: =Ops!GT705 -> 0 | GU46: =Ops!GU705 -> 0 | GV46: =Ops!GV705 -> 0 | GW46: =Ops!GW705 -> 0 | GX46: =Ops!GX705 -> 0 | GY46: =Ops!GY705 -> 0 | GZ46: =Ops!GZ705 -> 0 | HA46: =Ops!HA705 -> 0 | HB46: =Ops!HB705 -> 0 | HC46: =Ops!HC705 -> 0 | HD46: =Ops!HD705 -> 0 | HE46: =Ops!HE705 -> 0 | HF46: =Ops!HF705 -> 0 | HG46: =Ops!HG705 -> 0 | HH46: =Ops!HH705 -> 0 | HI46: =Ops!HI705 -> 0 | HJ46: =Ops!HJ705 -> 0 | HK46: =Ops!HK705 -> 0 | HL46: =Ops!HL705 -> 0 | HM46: =Ops!HM705 -> 0 | HN46: =Ops!HN705 -> 0 | HO46: =Ops!HO705 -> 0 | HP46: =Ops!HP705 -> 0 | HQ46: =Ops!HQ705 -> 0 | HR46: =Ops!HR705 -> 0 | HS46: =Ops!HS705 -> 0 | HT46: =Ops!HT705 -> 0 | HU46: =Ops!HU705 -> 0 | HV46: =Ops!HV705 -> 0 | HW46: =Ops!HW705 -> 0 | HX46: =Ops!HX705 -> 0 | HY46: =Ops!HY705 -> 0 | HZ46: =Ops!HZ705 -> 0 | IA46: =Ops!IA705 -> 0 | IB46: =Ops!IB705 -> 0 | IC46: =Ops!IC705 -> 0 | ID46: =Ops!ID705 -> 0 | IE46: =Ops!IE705 -> 0 | IF46: =Ops!IF705 -> 0 | IG46: =Ops!IG705 -> 0 | IH46: =Ops!IH705 -> 0 | II46: =Ops!II705 -> 0 | IJ46: =Ops!IJ705 -> 0 | IK46: =Ops!IK705 -> 0 | IL46: =Ops!IL705 -> 0 | IM46: =Ops!IM705 -> 0 | IN46: =Ops!IN705 -> 0 | IO46: =Ops!IO705 -> 0 | IP46: =Ops!IP705 -> 0 | IQ46: =Ops!IQ705 -> 0 | IR46: =Ops!IR705 -> 0 | IS46: =Ops!IS705 -> 0 | IT46: =Ops!IT705 -> 0 | IU46: =Ops!IU705 -> 0
C47: =Ops!C706 -> [spare] | D47: AUD M | I47: 0 | J47: =Ops!J706 -> 0 | K47: =Ops!K706 -> 0 | L47: =Ops!L706 -> 0 | M47: =Ops!M706 -> 0 | N47: =Ops!N706 -> 0 | O47: =Ops!O706 -> 0 | P47: =Ops!P706 -> 0 | Q47: =Ops!Q706 -> 0 | R47: =Ops!R706 -> 0 | S47: =Ops!S706 -> 0 | T47: =Ops!T706 -> 0 | U47: =Ops!U706 -> 0 | V47: =Ops!V706 -> 0 | W47: =Ops!W706 -> 0 | X47: =Ops!X706 -> 0 | Y47: =Ops!Y706 -> 0 | Z47: =Ops!Z706 -> 0 | AA47: =Ops!AA706 -> 0 | AB47: =Ops!AB706 -> 0 | AC47: =Ops!AC706 -> 0 | AD47: =Ops!AD706 -> 0 | AE47: =Ops!AE706 -> 0 | AF47: =Ops!AF706 -> 0 | AG47: =Ops!AG706 -> 0 | AH47: =Ops!AH706 -> 0 | AI47: =Ops!AI706 -> 0 | AJ47: =Ops!AJ706 -> 0 | AK47: =Ops!AK706 -> 0 | AL47: =Ops!AL706 -> 0 | AM47: =Ops!AM706 -> 0 | AN47: =Ops!AN706 -> 0 | AO47: =Ops!AO706 -> 0 | AP47: =Ops!AP706 -> 0 | AQ47: =Ops!AQ706 -> 0 | AR47: =Ops!AR706 -> 0 | AS47: =Ops!AS706 -> 0 | AT47: =Ops!AT706 -> 0 | AU47: =Ops!AU706 -> 0 | AV47: =Ops!AV706 -> 0 | AW47: =Ops!AW706 -> 0 | AX47: =Ops!AX706 -> 0 | AY47: =Ops!AY706 -> 0 | AZ47: =Ops!AZ706 -> 0 | BA47: =Ops!BA706 -> 0 | BB47: =Ops!BB706 -> 0 | BC47: =Ops!BC706 -> 0 | BD47: =Ops!BD706 -> 0 | BE47: =Ops!BE706 -> 0 | BF47: =Ops!BF706 -> 0 | BG47: =Ops!BG706 -> 0 | BH47: =Ops!BH706 -> 0 | BI47: =Ops!BI706 -> 0 | BJ47: =Ops!BJ706 -> 0 | BK47: =Ops!BK706 -> 0 | BL47: =Ops!BL706 -> 0 | BM47: =Ops!BM706 -> 0 | BN47: =Ops!BN706 -> 0 | BO47: =Ops!BO706 -> 0 | BP47: =Ops!BP706 -> 0 | BQ47: =Ops!BQ706 -> 0 | BR47: =Ops!BR706 -> 0 | BS47: =Ops!BS706 -> 0 | BT47: =Ops!BT706 -> 0 | BU47: =Ops!BU706 -> 0 | BV47: =Ops!BV706 -> 0 | BW47: =Ops!BW706 -> 0 | BX47: =Ops!BX706 -> 0 | BY47: =Ops!BY706 -> 0 | BZ47: =Ops!BZ706 -> 0 | CA47: =Ops!CA706 -> 0 | CB47: =Ops!CB706 -> 0 | CC47: =Ops!CC706 -> 0 | CD47: =Ops!CD706 -> 0 | CE47: =Ops!CE706 -> 0 | CF47: =Ops!CF706 -> 0 | CG47: =Ops!CG706 -> 0 | CH47: =Ops!CH706 -> 0 | CI47: =Ops!CI706 -> 0 | CJ47: =Ops!CJ706 -> 0 | CK47: =Ops!CK706 -> 0 | CL47: =Ops!CL706 -> 0 | CM47: =Ops!CM706 -> 0 | CN47: =Ops!CN706 -> 0 | CO47: =Ops!CO706 -> 0 | CP47: =Ops!CP706 -> 0 | CQ47: =Ops!CQ706 -> 0 | CR47: =Ops!CR706 -> 0 | CS47: =Ops!CS706 -> 0 | CT47: =Ops!CT706 -> 0 | CU47: =Ops!CU706 -> 0 | CV47: =Ops!CV706 -> 0 | CW47: =Ops!CW706 -> 0 | CX47: =Ops!CX706 -> 0 | CY47: =Ops!CY706 -> 0 | CZ47: =Ops!CZ706 -> 0 | DA47: =Ops!DA706 -> 0 | DB47: =Ops!DB706 -> 0 | DC47: =Ops!DC706 -> 0 | DD47: =Ops!DD706 -> 0 | DE47: =Ops!DE706 -> 0 | DF47: =Ops!DF706 -> 0 | DG47: =Ops!DG706 -> 0 | DH47: =Ops!DH706 -> 0 | DI47: =Ops!DI706 -> 0 | DJ47: =Ops!DJ706 -> 0 | DK47: =Ops!DK706 -> 0 | DL47: =Ops!DL706 -> 0 | DM47: =Ops!DM706 -> 0 | DN47: =Ops!DN706 -> 0 | DO47: =Ops!DO706 -> 0 | DP47: =Ops!DP706 -> 0 | DQ47: =Ops!DQ706 -> 0 | DR47: =Ops!DR706 -> 0 | DS47: =Ops!DS706 -> 0 | DT47: =Ops!DT706 -> 0 | DU47: =Ops!DU706 -> 0 | DV47: =Ops!DV706 -> 0 | DW47: =Ops!DW706 -> 0 | DX47: =Ops!DX706 -> 0 | DY47: =Ops!DY706 -> 0 | DZ47: =Ops!DZ706 -> 0 | EA47: =Ops!EA706 -> 0 | EB47: =Ops!EB706 -> 0 | EC47: =Ops!EC706 -> 0 | ED47: =Ops!ED706 -> 0 | EE47: =Ops!EE706 -> 0 | EF47: =Ops!EF706 -> 0 | EG47: =Ops!EG706 -> 0 | EH47: =Ops!EH706 -> 0 | EI47: =Ops!EI706 -> 0 | EJ47: =Ops!EJ706 -> 0 | EK47: =Ops!EK706 -> 0 | EL47: =Ops!EL706 -> 0 | EM47: =Ops!EM706 -> 0 | EN47: =Ops!EN706 -> 0 | EO47: =Ops!EO706 -> 0 | EP47: =Ops!EP706 -> 0 | EQ47: =Ops!EQ706 -> 0 | ER47: =Ops!ER706 -> 0 | ES47: =Ops!ES706 -> 0 | ET47: =Ops!ET706 -> 0 | EU47: =Ops!EU706 -> 0 | EV47: =Ops!EV706 -> 0 | EW47: =Ops!EW706 -> 0 | EX47: =Ops!EX706 -> 0 | EY47: =Ops!EY706 -> 0 | EZ47: =Ops!EZ706 -> 0 | FA47: =Ops!FA706 -> 0 | FB47: =Ops!FB706 -> 0 | FC47: =Ops!FC706 -> 0 | FD47: =Ops!FD706 -> 0 | FE47: =Ops!FE706 -> 0 | FF47: =Ops!FF706 -> 0 | FG47: =Ops!FG706 -> 0 | FH47: =Ops!FH706 -> 0 | FI47: =Ops!FI706 -> 0 | FJ47: =Ops!FJ706 -> 0 | FK47: =Ops!FK706 -> 0 | FL47: =Ops!FL706 -> 0 | FM47: =Ops!FM706 -> 0 | FN47: =Ops!FN706 -> 0 | FO47: =Ops!FO706 -> 0 | FP47: =Ops!FP706 -> 0 | FQ47: =Ops!FQ706 -> 0 | FR47: =Ops!FR706 -> 0 | FS47: =Ops!FS706 -> 0 | FT47: =Ops!FT706 -> 0 | FU47: =Ops!FU706 -> 0 | FV47: =Ops!FV706 -> 0 | FW47: =Ops!FW706 -> 0 | FX47: =Ops!FX706 -> 0 | FY47: =Ops!FY706 -> 0 | FZ47: =Ops!FZ706 -> 0 | GA47: =Ops!GA706 -> 0 | GB47: =Ops!GB706 -> 0 | GC47: =Ops!GC706 -> 0 | GD47: =Ops!GD706 -> 0 | GE47: =Ops!GE706 -> 0 | GF47: =Ops!GF706 -> 0 | GG47: =Ops!GG706 -> 0 | GH47: =Ops!GH706 -> 0 | GI47: =Ops!GI706 -> 0 | GJ47: =Ops!GJ706 -> 0 | GK47: =Ops!GK706 -> 0 | GL47: =Ops!GL706 -> 0 | GM47: =Ops!GM706 -> 0 | GN47: =Ops!GN706 -> 0 | GO47: =Ops!GO706 -> 0 | GP47: =Ops!GP706 -> 0 | GQ47: =Ops!GQ706 -> 0 | GR47: =Ops!GR706 -> 0 | GS47: =Ops!GS706 -> 0 | GT47: =Ops!GT706 -> 0 | GU47: =Ops!GU706 -> 0 | GV47: =Ops!GV706 -> 0 | GW47: =Ops!GW706 -> 0 | GX47: =Ops!GX706 -> 0 | GY47: =Ops!GY706 -> 0 | GZ47: =Ops!GZ706 -> 0 | HA47: =Ops!HA706 -> 0 | HB47: =Ops!HB706 -> 0 | HC47: =Ops!HC706 -> 0 | HD47: =Ops!HD706 -> 0 | HE47: =Ops!HE706 -> 0 | HF47: =Ops!HF706 -> 0 | HG47: =Ops!HG706 -> 0 | HH47: =Ops!HH706 -> 0 | HI47: =Ops!HI706 -> 0 | HJ47: =Ops!HJ706 -> 0 | HK47: =Ops!HK706 -> 0 | HL47: =Ops!HL706 -> 0 | HM47: =Ops!HM706 -> 0 | HN47: =Ops!HN706 -> 0 | HO47: =Ops!HO706 -> 0 | HP47: =Ops!HP706 -> 0 | HQ47: =Ops!HQ706 -> 0 | HR47: =Ops!HR706 -> 0 | HS47: =Ops!HS706 -> 0 | HT47: =Ops!HT706 -> 0 | HU47: =Ops!HU706 -> 0 | HV47: =Ops!HV706 -> 0 | HW47: =Ops!HW706 -> 0 | HX47: =Ops!HX706 -> 0 | HY47: =Ops!HY706 -> 0 | HZ47: =Ops!HZ706 -> 0 | IA47: =Ops!IA706 -> 0 | IB47: =Ops!IB706 -> 0 | IC47: =Ops!IC706 -> 0 | ID47: =Ops!ID706 -> 0 | IE47: =Ops!IE706 -> 0 | IF47: =Ops!IF706 -> 0 | IG47: =Ops!IG706 -> 0 | IH47: =Ops!IH706 -> 0 | II47: =Ops!II706 -> 0 | IJ47: =Ops!IJ706 -> 0 | IK47: =Ops!IK706 -> 0 | IL47: =Ops!IL706 -> 0 | IM47: =Ops!IM706 -> 0 | IN47: =Ops!IN706 -> 0 | IO47: =Ops!IO706 -> 0 | IP47: =Ops!IP706 -> 0 | IQ47: =Ops!IQ706 -> 0 | IR47: =Ops!IR706 -> 0 | IS47: =Ops!IS706 -> 0 | IT47: =Ops!IT706 -> 0 | IU47: =Ops!IU706 -> 0
C48: =Ops!C707 -> [spare] | D48: AUD M | I48: 0 | J48: =Ops!J707 -> 0 | K48: =Ops!K707 -> 0 | L48: =Ops!L707 -> 0 | M48: =Ops!M707 -> 0 | N48: =Ops!N707 -> 0 | O48: =Ops!O707 -> 0 | P48: =Ops!P707 -> 0 | Q48: =Ops!Q707 -> 0 | R48: =Ops!R707 -> 0 | S48: =Ops!S707 -> 0 | T48: =Ops!T707 -> 0 | U48: =Ops!U707 -> 0 | V48: =Ops!V707 -> 0 | W48: =Ops!W707 -> 0 | X48: =Ops!X707 -> 0 | Y48: =Ops!Y707 -> 0 | Z48: =Ops!Z707 -> 0 | AA48: =Ops!AA707 -> 0 | AB48: =Ops!AB707 -> 0 | AC48: =Ops!AC707 -> 0 | AD48: =Ops!AD707 -> 0 | AE48: =Ops!AE707 -> 0 | AF48: =Ops!AF707 -> 0 | AG48: =Ops!AG707 -> 0 | AH48: =Ops!AH707 -> 0 | AI48: =Ops!AI707 -> 0 | AJ48: =Ops!AJ707 -> 0 | AK48: =Ops!AK707 -> 0 | AL48: =Ops!AL707 -> 0 | AM48: =Ops!AM707 -> 0 | AN48: =Ops!AN707 -> 0 | AO48: =Ops!AO707 -> 0 | AP48: =Ops!AP707 -> 0 | AQ48: =Ops!AQ707 -> 0 | AR48: =Ops!AR707 -> 0 | AS48: =Ops!AS707 -> 0 | AT48: =Ops!AT707 -> 0 | AU48: =Ops!AU707 -> 0 | AV48: =Ops!AV707 -> 0 | AW48: =Ops!AW707 -> 0 | AX48: =Ops!AX707 -> 0 | AY48: =Ops!AY707 -> 0 | AZ48: =Ops!AZ707 -> 0 | BA48: =Ops!BA707 -> 0 | BB48: =Ops!BB707 -> 0 | BC48: =Ops!BC707 -> 0 | BD48: =Ops!BD707 -> 0 | BE48: =Ops!BE707 -> 0 | BF48: =Ops!BF707 -> 0 | BG48: =Ops!BG707 -> 0 | BH48: =Ops!BH707 -> 0 | BI48: =Ops!BI707 -> 0 | BJ48: =Ops!BJ707 -> 0 | BK48: =Ops!BK707 -> 0 | BL48: =Ops!BL707 -> 0 | BM48: =Ops!BM707 -> 0 | BN48: =Ops!BN707 -> 0 | BO48: =Ops!BO707 -> 0 | BP48: =Ops!BP707 -> 0 | BQ48: =Ops!BQ707 -> 0 | BR48: =Ops!BR707 -> 0 | BS48: =Ops!BS707 -> 0 | BT48: =Ops!BT707 -> 0 | BU48: =Ops!BU707 -> 0 | BV48: =Ops!BV707 -> 0 | BW48: =Ops!BW707 -> 0 | BX48: =Ops!BX707 -> 0 | BY48: =Ops!BY707 -> 0 | BZ48: =Ops!BZ707 -> 0 | CA48: =Ops!CA707 -> 0 | CB48: =Ops!CB707 -> 0 | CC48: =Ops!CC707 -> 0 | CD48: =Ops!CD707 -> 0 | CE48: =Ops!CE707 -> 0 | CF48: =Ops!CF707 -> 0 | CG48: =Ops!CG707 -> 0 | CH48: =Ops!CH707 -> 0 | CI48: =Ops!CI707 -> 0 | CJ48: =Ops!CJ707 -> 0 | CK48: =Ops!CK707 -> 0 | CL48: =Ops!CL707 -> 0 | CM48: =Ops!CM707 -> 0 | CN48: =Ops!CN707 -> 0 | CO48: =Ops!CO707 -> 0 | CP48: =Ops!CP707 -> 0 | CQ48: =Ops!CQ707 -> 0 | CR48: =Ops!CR707 -> 0 | CS48: =Ops!CS707 -> 0 | CT48: =Ops!CT707 -> 0 | CU48: =Ops!CU707 -> 0 | CV48: =Ops!CV707 -> 0 | CW48: =Ops!CW707 -> 0 | CX48: =Ops!CX707 -> 0 | CY48: =Ops!CY707 -> 0 | CZ48: =Ops!CZ707 -> 0 | DA48: =Ops!DA707 -> 0 | DB48: =Ops!DB707 -> 0 | DC48: =Ops!DC707 -> 0 | DD48: =Ops!DD707 -> 0 | DE48: =Ops!DE707 -> 0 | DF48: =Ops!DF707 -> 0 | DG48: =Ops!DG707 -> 0 | DH48: =Ops!DH707 -> 0 | DI48: =Ops!DI707 -> 0 | DJ48: =Ops!DJ707 -> 0 | DK48: =Ops!DK707 -> 0 | DL48: =Ops!DL707 -> 0 | DM48: =Ops!DM707 -> 0 | DN48: =Ops!DN707 -> 0 | DO48: =Ops!DO707 -> 0 | DP48: =Ops!DP707 -> 0 | DQ48: =Ops!DQ707 -> 0 | DR48: =Ops!DR707 -> 0 | DS48: =Ops!DS707 -> 0 | DT48: =Ops!DT707 -> 0 | DU48: =Ops!DU707 -> 0 | DV48: =Ops!DV707 -> 0 | DW48: =Ops!DW707 -> 0 | DX48: =Ops!DX707 -> 0 | DY48: =Ops!DY707 -> 0 | DZ48: =Ops!DZ707 -> 0 | EA48: =Ops!EA707 -> 0 | EB48: =Ops!EB707 -> 0 | EC48: =Ops!EC707 -> 0 | ED48: =Ops!ED707 -> 0 | EE48: =Ops!EE707 -> 0 | EF48: =Ops!EF707 -> 0 | EG48: =Ops!EG707 -> 0 | EH48: =Ops!EH707 -> 0 | EI48: =Ops!EI707 -> 0 | EJ48: =Ops!EJ707 -> 0 | EK48: =Ops!EK707 -> 0 | EL48: =Ops!EL707 -> 0 | EM48: =Ops!EM707 -> 0 | EN48: =Ops!EN707 -> 0 | EO48: =Ops!EO707 -> 0 | EP48: =Ops!EP707 -> 0 | EQ48: =Ops!EQ707 -> 0 | ER48: =Ops!ER707 -> 0 | ES48: =Ops!ES707 -> 0 | ET48: =Ops!ET707 -> 0 | EU48: =Ops!EU707 -> 0 | EV48: =Ops!EV707 -> 0 | EW48: =Ops!EW707 -> 0 | EX48: =Ops!EX707 -> 0 | EY48: =Ops!EY707 -> 0 | EZ48: =Ops!EZ707 -> 0 | FA48: =Ops!FA707 -> 0 | FB48: =Ops!FB707 -> 0 | FC48: =Ops!FC707 -> 0 | FD48: =Ops!FD707 -> 0 | FE48: =Ops!FE707 -> 0 | FF48: =Ops!FF707 -> 0 | FG48: =Ops!FG707 -> 0 | FH48: =Ops!FH707 -> 0 | FI48: =Ops!FI707 -> 0 | FJ48: =Ops!FJ707 -> 0 | FK48: =Ops!FK707 -> 0 | FL48: =Ops!FL707 -> 0 | FM48: =Ops!FM707 -> 0 | FN48: =Ops!FN707 -> 0 | FO48: =Ops!FO707 -> 0 | FP48: =Ops!FP707 -> 0 | FQ48: =Ops!FQ707 -> 0 | FR48: =Ops!FR707 -> 0 | FS48: =Ops!FS707 -> 0 | FT48: =Ops!FT707 -> 0 | FU48: =Ops!FU707 -> 0 | FV48: =Ops!FV707 -> 0 | FW48: =Ops!FW707 -> 0 | FX48: =Ops!FX707 -> 0 | FY48: =Ops!FY707 -> 0 | FZ48: =Ops!FZ707 -> 0 | GA48: =Ops!GA707 -> 0 | GB48: =Ops!GB707 -> 0 | GC48: =Ops!GC707 -> 0 | GD48: =Ops!GD707 -> 0 | GE48: =Ops!GE707 -> 0 | GF48: =Ops!GF707 -> 0 | GG48: =Ops!GG707 -> 0 | GH48: =Ops!GH707 -> 0 | GI48: =Ops!GI707 -> 0 | GJ48: =Ops!GJ707 -> 0 | GK48: =Ops!GK707 -> 0 | GL48: =Ops!GL707 -> 0 | GM48: =Ops!GM707 -> 0 | GN48: =Ops!GN707 -> 0 | GO48: =Ops!GO707 -> 0 | GP48: =Ops!GP707 -> 0 | GQ48: =Ops!GQ707 -> 0 | GR48: =Ops!GR707 -> 0 | GS48: =Ops!GS707 -> 0 | GT48: =Ops!GT707 -> 0 | GU48: =Ops!GU707 -> 0 | GV48: =Ops!GV707 -> 0 | GW48: =Ops!GW707 -> 0 | GX48: =Ops!GX707 -> 0 | GY48: =Ops!GY707 -> 0 | GZ48: =Ops!GZ707 -> 0 | HA48: =Ops!HA707 -> 0 | HB48: =Ops!HB707 -> 0 | HC48: =Ops!HC707 -> 0 | HD48: =Ops!HD707 -> 0 | HE48: =Ops!HE707 -> 0 | HF48: =Ops!HF707 -> 0 | HG48: =Ops!HG707 -> 0 | HH48: =Ops!HH707 -> 0 | HI48: =Ops!HI707 -> 0 | HJ48: =Ops!HJ707 -> 0 | HK48: =Ops!HK707 -> 0 | HL48: =Ops!HL707 -> 0 | HM48: =Ops!HM707 -> 0 | HN48: =Ops!HN707 -> 0 | HO48: =Ops!HO707 -> 0 | HP48: =Ops!HP707 -> 0 | HQ48: =Ops!HQ707 -> 0 | HR48: =Ops!HR707 -> 0 | HS48: =Ops!HS707 -> 0 | HT48: =Ops!HT707 -> 0 | HU48: =Ops!HU707 -> 0 | HV48: =Ops!HV707 -> 0 | HW48: =Ops!HW707 -> 0 | HX48: =Ops!HX707 -> 0 | HY48: =Ops!HY707 -> 0 | HZ48: =Ops!HZ707 -> 0 | IA48: =Ops!IA707 -> 0 | IB48: =Ops!IB707 -> 0 | IC48: =Ops!IC707 -> 0 | ID48: =Ops!ID707 -> 0 | IE48: =Ops!IE707 -> 0 | IF48: =Ops!IF707 -> 0 | IG48: =Ops!IG707 -> 0 | IH48: =Ops!IH707 -> 0 | II48: =Ops!II707 -> 0 | IJ48: =Ops!IJ707 -> 0 | IK48: =Ops!IK707 -> 0 | IL48: =Ops!IL707 -> 0 | IM48: =Ops!IM707 -> 0 | IN48: =Ops!IN707 -> 0 | IO48: =Ops!IO707 -> 0 | IP48: =Ops!IP707 -> 0 | IQ48: =Ops!IQ707 -> 0 | IR48: =Ops!IR707 -> 0 | IS48: =Ops!IS707 -> 0 | IT48: =Ops!IT707 -> 0 | IU48: =Ops!IU707 -> 0
C49: Total opex | D49: AUD M | I49: -517.6414004 | J49: =SUM(J38:J48) -> 0 | K49: =SUM(K38:K48) -> 0 | L49: 0 | M49: 0 | N49: 0 | O49: 0 | P49: 0 | Q49: 0 | R49: 0 | S49: 0 | T49: 0 | U49: 0 | V49: 0 | W49: 0 | X49: -1.521645125 | Y49: -1.521645125 | Z49: -1.521645125 | AA49: -1.521645125 | AB49: -1.537410875 | AC49: -1.537410875 | AD49: -1.537410875 | AE49: -1.568159092 | AF49: -1.584240158 | AG49: -1.584240158 | AH49: -1.584240158 | AI49: -1.615924961 | AJ49: -1.615924961 | AK49: -1.615924961 | AL49: -1.615924961 | AM49: -1.64824346 | AN49: -1.64824346 | AO49: -1.64824346 | AP49: -1.64824346 | AQ49: -1.681208329 | AR49: -1.681208329 | AS49: -1.681208329 | AT49: -1.681208329 | AU49: -1.714832496 | AV49: -1.714832496 | AW49: -1.714832496 | AX49: -1.714832496 | AY49: -1.749129146 | AZ49: -1.749129146 | BA49: -1.749129146 | BB49: -1.749129146 | BC49: -1.784111728 | BD49: -1.784111728 | BE49: -1.784111728 | BF49: -1.784111728 | BG49: -1.819793963 | BH49: -1.819793963 | BI49: -1.819793963 | BJ49: -1.819793963 | BK49: -1.856189842 | BL49: -1.856189842 | BM49: -1.856189842 | BN49: -1.856189842 | BO49: -1.893313639 | BP49: -1.893313639 | BQ49: -1.893313639 | BR49: -1.893313639 | BS49: -1.931179912 | BT49: -1.931179912 | BU49: -1.931179912 | BV49: -1.931179912 | BW49: =SUM(BW38:BW48) -> -1.96980351 | BX49: -1.96980351 | BY49: -1.96980351 | BZ49: -1.96980351 | CA49: -2.00919958 | CB49: -2.00919958 | CC49: -2.00919958 | CD49: -2.00919958 | CE49: -2.049383572 | CF49: -2.049383572 | CG49: -2.049383572 | CH49: -2.049383572 | CI49: -2.090371243 | CJ49: -2.090371243 | CK49: -2.090371243 | CL49: -2.090371243 | CM49: -2.132178668 | CN49: -2.132178668 | CO49: -2.132178668 | CP49: -2.132178668 | CQ49: -2.174822242 | CR49: -2.174822242 | CS49: -2.174822242 | CT49: -2.174822242 | CU49: -2.218318686 | CV49: -2.218318686 | CW49: -2.218318686 | CX49: -2.218318686 | CY49: -2.26268506 | CZ49: -2.26268506 | DA49: -2.26268506 | DB49: -2.26268506 | DC49: -2.307938761 | DD49: -2.307938761 | DE49: -2.307938761 | DF49: -2.307938761 | DG49: -2.354097537 | DH49: -2.354097537 | DI49: -2.354097537 | DJ49: -2.354097537 | DK49: -2.401179487 | DL49: -2.401179487 | DM49: -2.401179487 | DN49: -2.401179487 | DO49: -2.449203077 | DP49: -2.449203077 | DQ49: -2.449203077 | DR49: -2.449203077 | DS49: -2.498187139 | DT49: -2.498187139 | DU49: -2.498187139 | DV49: -2.498187139 | DW49: -2.548150881 | DX49: -2.548150881 | DY49: -2.548150881 | DZ49: -2.548150881 | EA49: -2.599113899 | EB49: -2.599113899 | EC49: -2.599113899 | ED49: -2.599113899 | EE49: -2.651096177 | EF49: -2.651096177 | EG49: -2.651096177 | EH49: -2.651096177 | EI49: =SUM(EI38:EI48) -> -2.704118101 | EJ49: -2.704118101 | EK49: -2.704118101 | EL49: -2.704118101 | EM49: -2.758200463 | EN49: -2.758200463 | EO49: -2.758200463 | EP49: -2.758200463 | EQ49: -2.813364472 | ER49: -2.813364472 | ES49: -2.813364472 | ET49: -2.813364472 | EU49: -2.869631761 | EV49: -2.869631761 | EW49: -2.869631761 | EX49: -2.869631761 | EY49: -2.927024397 | EZ49: -2.927024397 | FA49: -2.927024397 | FB49: -2.927024397 | FC49: -2.985564884 | FD49: -2.985564884 | FE49: -2.985564884 | FF49: -2.985564884 | FG49: -3.045276182 | FH49: -3.045276182 | FI49: -3.045276182 | FJ49: -3.045276182 | FK49: -3.106181706 | FL49: -3.106181706 | FM49: -3.106181706 | FN49: -3.106181706 | FO49: -3.16830534 | FP49: -3.16830534 | FQ49: -3.16830534 | FR49: -3.16830534 | FS49: -3.231671447 | FT49: -3.231671447 | FU49: -3.231671447 | FV49: -3.231671447 | FW49: -3.296304876 | FX49: -3.296304876 | FY49: -3.296304876 | FZ49: -3.296304876 | GA49: -3.362230973 | GB49: -3.362230973 | GC49: -3.362230973 | GD49: -3.362230973 | GE49: -3.429475593 | GF49: -3.429475593 | GG49: -3.429475593 | GH49: -3.429475593 | GI49: -3.498065104 | GJ49: =SUM(GJ38:GJ48) -> -3.498065104 | GK49: -3.498065104 | GL49: -3.498065104 | GM49: -3.568026407 | GN49: -3.568026407 | GO49: -3.568026407 | GP49: -3.568026407 | GQ49: -3.639386935 | GR49: -3.639386935 | GS49: -3.639386935 | GT49: -3.639386935 | GU49: -3.712174673 | GV49: -3.712174673 | GW49: -3.712174673 | GX49: -3.712174673 | GY49: -3.786418167 | GZ49: -3.786418167 | HA49: -3.786418167 | HB49: -3.786418167 | HC49: -3.86214653 | HD49: -3.86214653 | HE49: -3.86214653 | HF49: -3.86214653 | HG49: -3.939389461 | HH49: -3.939389461 | HI49: -3.939389461 | HJ49: -3.939389461 | HK49: -4.01817725 | HL49: -4.01817725 | HM49: -4.01817725 | HN49: -4.01817725 | HO49: -4.098540795 | HP49: 0 | HQ49: 0 | HR49: 0 | HS49: 0 | HT49: 0 | HU49: 0 | HV49: 0 | HW49: 0 | HX49: 0 | HY49: 0 | HZ49: 0 | IA49: 0 | IB49: 0 | IC49: 0 | ID49: 0 | IE49: 0 | IF49: 0 | IG49: 0 | IH49: 0 | II49: 0 | IJ49: 0 | IK49: 0 | IL49: 0 | IM49: 0 | IN49: 0 | IO49: 0 | IP49: 0 | IQ49: 0 | IR49: 0 | IS49: 0 | IT49: 0 | IU49: 0
C51: Operating cash flows | D51: AUD M | I51: 503.779472 | J51: =J35+J49 -> 0 | K51: 0 | L51: 0 | M51: 0 | N51: 0 | O51: 0 | P51: 0 | Q51: 0 | R51: 0 | S51: -0.0006200589282 | T51: -0.001651893422 | U51: -0.003501423932 | V51: -0.004997423067 | W51: -0.00513496032 | X51: 1.481168175 | Y51: 1.502862895 | Z51: 1.5224757 | AA51: 1.5204463 | AB51: 1.501366688 | AC51: 1.499572781 | AD51: 1.519708637 | AE51: 1.548424584 | AF51: 1.506708254 | AG51: 1.527674384 | AH51: 1.548667166 | AI51: 1.57990096 | AJ51: 1.534138965 | AK51: 1.557312673 | AL51: 1.580332263 | AM51: 1.612024461 | AN51: 1.565182075 | AO51: 1.588661656 | AP51: =AP35+AP49 -> 1.612142675 | AQ51: 1.64446835 | AR51: 1.620605873 | AS51: 1.620645622 | AT51: 1.644597922 | AU51: 1.677570057 | AV51: 1.628819536 | AW51: 1.653251 | AX51: 1.677683923 | AY51: 1.711315562 | AZ51: 1.661596228 | BA51: 1.686270152 | BB51: 1.710939834 | BC51: 1.744993027 | BD51: 1.694285565 | BE51: 1.719692395 | BF51: 1.745100808 | BG51: 1.780091122 | BH51: 1.754259731 | BI51: 1.754296505 | BJ51: 1.78021498 | BK51: 1.815905034 | BL51: 1.763130994 | BM51: 1.789551331 | BN51: 1.815972572 | BO51: 1.852359496 | BP51: 1.798540496 | BQ51: 1.825507313 | BR51: 1.852475535 | BS51: 1.889607584 | BT51: 1.834709107 | BU51: 1.862216862 | BV51: =BV35+BV49 -> 1.889725997 | BW51: 1.927600644 | BX51: 1.899636407 | BY51: 1.899676238 | BZ51: 1.92773724 | CA51: 1.966369315 | CB51: 1.909230559 | CC51: 1.937852821 | CD51: 1.966476489 | CE51: 2.00588125 | CF51: 1.94761283 | CG51: 1.976809151 | CH51: 2.006006893 | CI51: 2.046199768 | CJ51: 1.986762803 | CK51: 2.016544659 | CL51: 2.046327946 | CM51: 2.087324686 | CN51: 2.057051268 | CO51: 2.057094407 | CP51: 2.08747511 | CQ51: 2.12929173 | CR51: 2.067427318 | CS51: 2.098415602 | CT51: 2.129405342 | CU51: 2.172058343 | CV51: 2.108973621 | CW51: 2.140583313 | CX51: 2.172194474 | CY51: 2.215700565 | CZ51: 2.15135095 | DA51: 2.183574408 | DB51: =DB35+DB49 -> 2.215798789 | DC51: 2.260154515 | DD51: 2.227381918 | DE51: 2.227428631 | DF51: 2.260319745 | DG51: 2.305583468 | DH51: 2.238605078 | DI51: 2.272153889 | DJ51: 2.305704201 | DK51: 2.351873198 | DL51: 2.283576227 | DM51: 2.317797197 | DN51: 2.352132951 | DO51: 2.399468379 | DP51: 2.330157992 | DQ51: 2.365211593 | DR51: 2.400200352 | DS51: 2.448237484 | DT51: 2.412997441 | DU51: 2.413175736 | DV51: 2.448868202 | DW51: 2.497865421 | DX51: 2.425511442 | DY51: 2.461915464 | DZ51: 2.498324793 | EA51: 2.54830147 | EB51: 2.474583652 | EC51: 2.511720633 | ED51: 2.548862993 | EE51: 2.599993983 | EF51: 2.524751209 | EG51: 2.562695221 | EH51: =EH35+EH49 -> 2.600744691 | EI51: 2.653091963 | EJ51: 2.615077258 | EK51: 2.6155212 | EL51: 2.654543204 | EM51: 2.708134182 | EN51: 2.630171383 | EO51: 2.669686538 | EP51: 2.709310607 | EQ51: 2.763771308 | ER51: 2.684018749 | ES51: 2.724535154 | ET51: 2.765169615 | EU51: 2.820924109 | EV51: 2.739736574 | EW51: 2.78128605 | EX51: 2.822963007 | EY51: 2.880040252 | EZ51: 2.839214176 | FA51: 2.840105127 | FB51: 2.882858968 | FC51: 2.941288746 | FD51: 2.857097295 | FE51: 2.900813116 | FF51: 2.944676156 | FG51: 3.004488496 | FH51: 2.91858308 | FI51: 2.962281299 | FJ51: 3.005942223 | FK51: 3.065589663 | FL51: 2.976572156 | FM51: 3.021136553 | FN51: =FN35+FN49 -> 3.06566462 | FO51: 3.126545785 | FP51: 3.081133105 | FQ51: 3.081169425 | FR51: 3.126581992 | FS51: 3.188646362 | FT51: 3.096053305 | FU51: 3.142402442 | FV51: 3.188717203 | FW51: 3.252026382 | FX51: 3.157591732 | FY51: 3.204860124 | FZ51: 3.252095134 | GA51: 3.316757883 | GB51: 3.220525762 | GC51: 3.268735112 | GD51: 3.316911373 | GE51: 3.382817616 | GF51: 3.333683738 | GG51: 3.333716623 | GH51: 3.382850319 | GI51: 3.450043757 | GJ51: =GJ35+GJ49 -> 3.349855921 | GK51: 3.399997223 | GL51: 3.450107508 | GM51: 3.518648319 | GN51: 3.416467059 | GO51: 3.46760344 | GP51: 3.518709856 | GQ51: 3.588624966 | GR51: 3.484410404 | GS51: 3.536561787 | GT51: 3.588684269 | GU51: 3.66003051 | GV51: 3.606871372 | GW51: 3.606899865 | GX51: 3.660058752 | GY51: 3.732805399 | GZ51: 3.624401374 | HA51: 3.678644142 | HB51: 3.732860165 | HC51: 3.80706516 | HD51: 3.696503344 | HE51: 3.751823309 | HF51: 3.807117625 | HG51: 3.882810111 | HH51: 3.770047337 | HI51: 3.826466067 | HJ51: 3.882860253 | HK51: 3.960094733 | HL51: 3.902578336 | HM51: 3.902602265 | HN51: 3.960118338 | HO51: 4.028974679 | HP51: 0 | HQ51: 0 | HR51: 0 | HS51: 0 | HT51: 0 | HU51: 0 | HV51: 0 | HW51: 0 | HX51: 0 | HY51: 0 | HZ51: 0 | IA51: 0 | IB51: 0 | IC51: 0 | ID51: 0 | IE51: 0 | IF51: 0 | IG51: 0 | IH51: 0 | II51: 0 | IJ51: 0 | IK51: 0 | IL51: 0 | IM51: 0 | IN51: 0 | IO51: 0 | IP51: 0 | IQ51: 0 | IR51: 0 | IS51: 0 | IT51: 0 | IU51: 0
C53: Capital Expenditure
C54: =Cons!C155 -> Design and construction | D54: AUD M | I54: =SUM(J54:IU54) -> -367.4037446 | J54: =-Cons!J155 -> 0 | K54: =-Cons!K155 -> 0 | L54: =-Cons!L155 -> 0 | M54: =-Cons!M155 -> 0 | N54: =-Cons!N155 -> 0 | O54: =-Cons!O155 -> 0 | P54: =-Cons!P155 -> 0 | Q54: =-Cons!Q155 -> 0 | R54: =-Cons!R155 -> -59.38575414 | S54: =-Cons!S155 -> -47.30995278 | T54: =-Cons!T155 -> -81.86970552 | U54: =-Cons!U155 -> -91.60012134 | V54: =-Cons!V155 -> -52.67845806 | W54: =-Cons!W155 -> -34.55975274 | X54: =-Cons!X155 -> 0 | Y54: =-Cons!Y155 -> 0 | Z54: =-Cons!Z155 -> 0 | AA54: =-Cons!AA155 -> 0 | AB54: =-Cons!AB155 -> 0 | AC54: =-Cons!AC155 -> 0 | AD54: =-Cons!AD155 -> 0 | AE54: =-Cons!AE155 -> 0 | AF54: =-Cons!AF155 -> 0 | AG54: =-Cons!AG155 -> 0 | AH54: =-Cons!AH155 -> 0 | AI54: =-Cons!AI155 -> 0 | AJ54: =-Cons!AJ155 -> 0 | AK54: =-Cons!AK155 -> 0 | AL54: =-Cons!AL155 -> 0 | AM54: =-Cons!AM155 -> 0 | AN54: =-Cons!AN155 -> 0 | AO54: =-Cons!AO155 -> 0 | AP54: =-Cons!AP155 -> 0 | AQ54: =-Cons!AQ155 -> 0 | AR54: =-Cons!AR155 -> 0 | AS54: =-Cons!AS155 -> 0 | AT54: =-Cons!AT155 -> 0 | AU54: =-Cons!AU155 -> 0 | AV54: =-Cons!AV155 -> 0 | AW54: =-Cons!AW155 -> 0 | AX54: =-Cons!AX155 -> 0 | AY54: =-Cons!AY155 -> 0 | AZ54: =-Cons!AZ155 -> 0 | BA54: =-Cons!BA155 -> 0 | BB54: =-Cons!BB155 -> 0 | BC54: =-Cons!BC155 -> 0 | BD54: =-Cons!BD155 -> 0 | BE54: =-Cons!BE155 -> 0 | BF54: =-Cons!BF155 -> 0 | BG54: =-Cons!BG155 -> 0 | BH54: =-Cons!BH155 -> 0 | BI54: =-Cons!BI155 -> 0 | BJ54: =-Cons!BJ155 -> 0 | BK54: =-Cons!BK155 -> 0 | BL54: =-Cons!BL155 -> 0 | BM54: =-Cons!BM155 -> 0 | BN54: =-Cons!BN155 -> 0 | BO54: =-Cons!BO155 -> 0 | BP54: =-Cons!BP155 -> 0 | BQ54: =-Cons!BQ155 -> 0 | BR54: =-Cons!BR155 -> 0 | BS54: =-Cons!BS155 -> 0 | BT54: =-Cons!BT155 -> 0 | BU54: =-Cons!BU155 -> 0 | BV54: =-Cons!BV155 -> 0 | BW54: =-Cons!BW155 -> 0 | BX54: =-Cons!BX155 -> 0 | BY54: =-Cons!BY155 -> 0 | BZ54: =-Cons!BZ155 -> 0 | CA54: =-Cons!CA155 -> 0 | CB54: =-Cons!CB155 -> 0 | CC54: =-Cons!CC155 -> 0 | CD54: =-Cons!CD155 -> 0 | CE54: =-Cons!CE155 -> 0 | CF54: =-Cons!CF155 -> 0 | CG54: =-Cons!CG155 -> 0 | CH54: =-Cons!CH155 -> 0 | CI54: =-Cons!CI155 -> 0 | CJ54: =-Cons!CJ155 -> 0 | CK54: =-Cons!CK155 -> 0 | CL54: =-Cons!CL155 -> 0 | CM54: =-Cons!CM155 -> 0 | CN54: =-Cons!CN155 -> 0 | CO54: =-Cons!CO155 -> 0 | CP54: =-Cons!CP155 -> 0 | CQ54: =-Cons!CQ155 -> 0 | CR54: =-Cons!CR155 -> 0 | CS54: =-Cons!CS155 -> 0 | CT54: =-Cons!CT155 -> 0 | CU54: =-Cons!CU155 -> 0 | CV54: =-Cons!CV155 -> 0 | CW54: =-Cons!CW155 -> 0 | CX54: =-Cons!CX155 -> 0 | CY54: =-Cons!CY155 -> 0 | CZ54: =-Cons!CZ155 -> 0 | DA54: =-Cons!DA155 -> 0 | DB54: =-Cons!DB155 -> 0 | DC54: =-Cons!DC155 -> 0 | DD54: =-Cons!DD155 -> 0 | DE54: =-Cons!DE155 -> 0 | DF54: =-Cons!DF155 -> 0 | DG54: =-Cons!DG155 -> 0 | DH54: =-Cons!DH155 -> 0 | DI54: =-Cons!DI155 -> 0 | DJ54: =-Cons!DJ155 -> 0 | DK54: =-Cons!DK155 -> 0 | DL54: =-Cons!DL155 -> 0 | DM54: =-Cons!DM155 -> 0 | DN54: =-Cons!DN155 -> 0 | DO54: =-Cons!DO155 -> 0 | DP54: =-Cons!DP155 -> 0 | DQ54: =-Cons!DQ155 -> 0 | DR54: =-Cons!DR155 -> 0 | DS54: =-Cons!DS155 -> 0 | DT54: =-Cons!DT155 -> 0 | DU54: =-Cons!DU155 -> 0 | DV54: =-Cons!DV155 -> 0 | DW54: =-Cons!DW155 -> 0 | DX54: =-Cons!DX155 -> 0 | DY54: =-Cons!DY155 -> 0 | DZ54: =-Cons!DZ155 -> 0 | EA54: =-Cons!EA155 -> 0 | EB54: =-Cons!EB155 -> 0 | EC54: =-Cons!EC155 -> 0 | ED54: =-Cons!ED155 -> 0 | EE54: =-Cons!EE155 -> 0 | EF54: =-Cons!EF155 -> 0 | EG54: =-Cons!EG155 -> 0 | EH54: =-Cons!EH155 -> 0 | EI54: =-Cons!EI155 -> 0 | EJ54: =-Cons!EJ155 -> 0 | EK54: =-Cons!EK155 -> 0 | EL54: =-Cons!EL155 -> 0 | EM54: =-Cons!EM155 -> 0 | EN54: =-Cons!EN155 -> 0 | EO54: =-Cons!EO155 -> 0 | EP54: =-Cons!EP155 -> 0 | EQ54: =-Cons!EQ155 -> 0 | ER54: =-Cons!ER155 -> 0 | ES54: =-Cons!ES155 -> 0 | ET54: =-Cons!ET155 -> 0 | EU54: =-Cons!EU155 -> 0 | EV54: =-Cons!EV155 -> 0 | EW54: =-Cons!EW155 -> 0 | EX54: =-Cons!EX155 -> 0 | EY54: =-Cons!EY155 -> 0 | EZ54: =-Cons!EZ155 -> 0 | FA54: =-Cons!FA155 -> 0 | FB54: =-Cons!FB155 -> 0 | FC54: =-Cons!FC155 -> 0 | FD54: =-Cons!FD155 -> 0 | FE54: =-Cons!FE155 -> 0 | FF54: =-Cons!FF155 -> 0 | FG54: =-Cons!FG155 -> 0 | FH54: =-Cons!FH155 -> 0 | FI54: =-Cons!FI155 -> 0 | FJ54: =-Cons!FJ155 -> 0 | FK54: =-Cons!FK155 -> 0 | FL54: =-Cons!FL155 -> 0 | FM54: =-Cons!FM155 -> 0 | FN54: =-Cons!FN155 -> 0 | FO54: =-Cons!FO155 -> 0 | FP54: =-Cons!FP155 -> 0 | FQ54: =-Cons!FQ155 -> 0 | FR54: =-Cons!FR155 -> 0 | FS54: =-Cons!FS155 -> 0 | FT54: =-Cons!FT155 -> 0 | FU54: =-Cons!FU155 -> 0 | FV54: =-Cons!FV155 -> 0 | FW54: =-Cons!FW155 -> 0 | FX54: =-Cons!FX155 -> 0 | FY54: =-Cons!FY155 -> 0 | FZ54: =-Cons!FZ155 -> 0 | GA54: =-Cons!GA155 -> 0 | GB54: =-Cons!GB155 -> 0 | GC54: =-Cons!GC155 -> 0 | GD54: =-Cons!GD155 -> 0 | GE54: =-Cons!GE155 -> 0 | GF54: =-Cons!GF155 -> 0 | GG54: =-Cons!GG155 -> 0 | GH54: =-Cons!GH155 -> 0 | GI54: =-Cons!GI155 -> 0 | GJ54: =-Cons!GJ155 -> 0 | GK54: =-Cons!GK155 -> 0 | GL54: =-Cons!GL155 -> 0 | GM54: =-Cons!GM155 -> 0 | GN54: =-Cons!GN155 -> 0 | GO54: =-Cons!GO155 -> 0 | GP54: =-Cons!GP155 -> 0 | GQ54: =-Cons!GQ155 -> 0 | GR54: =-Cons!GR155 -> 0 | GS54: =-Cons!GS155 -> 0 | GT54: =-Cons!GT155 -> 0 | GU54: =-Cons!GU155 -> 0 | GV54: =-Cons!GV155 -> 0 | GW54: =-Cons!GW155 -> 0 | GX54: =-Cons!GX155 -> 0 | GY54: =-Cons!GY155 -> 0 | GZ54: =-Cons!GZ155 -> 0 | HA54: =-Cons!HA155 -> 0 | HB54: =-Cons!HB155 -> 0 | HC54: =-Cons!HC155 -> 0 | HD54: =-Cons!HD155 -> 0 | HE54: =-Cons!HE155 -> 0 | HF54: =-Cons!HF155 -> 0 | HG54: =-Cons!HG155 -> 0 | HH54: =-Cons!HH155 -> 0 | HI54: =-Cons!HI155 -> 0 | HJ54: =-Cons!HJ155 -> 0 | HK54: =-Cons!HK155 -> 0 | HL54: =-Cons!HL155 -> 0 | HM54: =-Cons!HM155 -> 0 | HN54: =-Cons!HN155 -> 0 | HO54: =-Cons!HO155 -> 0 | HP54: =-Cons!HP155 -> 0 | HQ54: =-Cons!HQ155 -> 0 | HR54: =-Cons!HR155 -> 0 | HS54: =-Cons!HS155 -> 0 | HT54: =-Cons!HT155 -> 0 | HU54: =-Cons!HU155 -> 0 | HV54: =-Cons!HV155 -> 0 | HW54: =-Cons!HW155 -> 0 | HX54: =-Cons!HX155 -> 0 | HY54: =-Cons!HY155 -> 0 | HZ54: =-Cons!HZ155 -> 0 | IA54: =-Cons!IA155 -> 0 | IB54: =-Cons!IB155 -> 0 | IC54: =-Cons!IC155 -> 0 | ID54: =-Cons!ID155 -> 0 | IE54: =-Cons!IE155 -> 0 | IF54: =-Cons!IF155 -> 0 | IG54: =-Cons!IG155 -> 0 | IH54: =-Cons!IH155 -> 0 | II54: =-Cons!II155 -> 0 | IJ54: =-Cons!IJ155 -> 0 | IK54: =-Cons!IK155 -> 0 | IL54: =-Cons!IL155 -> 0 | IM54: =-Cons!IM155 -> 0 | IN54: =-Cons!IN155 -> 0 | IO54: =-Cons!IO155 -> 0 | IP54: =-Cons!IP155 -> 0 | IQ54: =-Cons!IQ155 -> 0 | IR54: =-Cons!IR155 -> 0 | IS54: =-Cons!IS155 -> 0 | IT54: =-Cons!IT155 -> 0 | IU54: =-Cons!IU155 -> 0
C55: =Cons!C156 -> Other project costs | D55: AUD M | I55: -23.89207994 | J55: =-Cons!J156 -> 0 | K55: =-Cons!K156 -> 0 | L55: =-Cons!L156 -> 0 | M55: =-Cons!M156 -> 0 | N55: =-Cons!N156 -> 0 | O55: =-Cons!O156 -> 0 | P55: =-Cons!P156 -> 0 | Q55: =-Cons!Q156 -> 0 | R55: =-Cons!R156 -> -1.959150555 | S55: =-Cons!S156 -> -3.368783272 | T55: =-Cons!T156 -> -5.829667506 | U55: =-Cons!U156 -> -6.522537825 | V55: =-Cons!V156 -> -3.751056551 | W55: =-Cons!W156 -> -2.460884234 | X55: =-Cons!X156 -> 0 | Y55: =-Cons!Y156 -> 0 | Z55: =-Cons!Z156 -> 0 | AA55: =-Cons!AA156 -> 0 | AB55: =-Cons!AB156 -> 0 | AC55: =-Cons!AC156 -> 0 | AD55: =-Cons!AD156 -> 0 | AE55: =-Cons!AE156 -> 0 | AF55: =-Cons!AF156 -> 0 | AG55: =-Cons!AG156 -> 0 | AH55: =-Cons!AH156 -> 0 | AI55: =-Cons!AI156 -> 0 | AJ55: =-Cons!AJ156 -> 0 | AK55: =-Cons!AK156 -> 0 | AL55: =-Cons!AL156 -> 0 | AM55: =-Cons!AM156 -> 0 | AN55: =-Cons!AN156 -> 0 | AO55: =-Cons!AO156 -> 0 | AP55: =-Cons!AP156 -> 0 | AQ55: =-Cons!AQ156 -> 0 | AR55: =-Cons!AR156 -> 0 | AS55: =-Cons!AS156 -> 0 | AT55: =-Cons!AT156 -> 0 | AU55: =-Cons!AU156 -> 0 | AV55: =-Cons!AV156 -> 0 | AW55: =-Cons!AW156 -> 0 | AX55: =-Cons!AX156 -> 0 | AY55: =-Cons!AY156 -> 0 | AZ55: =-Cons!AZ156 -> 0 | BA55: =-Cons!BA156 -> 0 | BB55: =-Cons!BB156 -> 0 | BC55: =-Cons!BC156 -> 0 | BD55: =-Cons!BD156 -> 0 | BE55: =-Cons!BE156 -> 0 | BF55: =-Cons!BF156 -> 0 | BG55: =-Cons!BG156 -> 0 | BH55: =-Cons!BH156 -> 0 | BI55: =-Cons!BI156 -> 0 | BJ55: =-Cons!BJ156 -> 0 | BK55: =-Cons!BK156 -> 0 | BL55: =-Cons!BL156 -> 0 | BM55: =-Cons!BM156 -> 0 | BN55: =-Cons!BN156 -> 0 | BO55: =-Cons!BO156 -> 0 | BP55: =-Cons!BP156 -> 0 | BQ55: =-Cons!BQ156 -> 0 | BR55: =-Cons!BR156 -> 0 | BS55: =-Cons!BS156 -> 0 | BT55: =-Cons!BT156 -> 0 | BU55: =-Cons!BU156 -> 0 | BV55: =-Cons!BV156 -> 0 | BW55: =-Cons!BW156 -> 0 | BX55: =-Cons!BX156 -> 0 | BY55: =-Cons!BY156 -> 0 | BZ55: =-Cons!BZ156 -> 0 | CA55: =-Cons!CA156 -> 0 | CB55: =-Cons!CB156 -> 0 | CC55: =-Cons!CC156 -> 0 | CD55: =-Cons!CD156 -> 0 | CE55: =-Cons!CE156 -> 0 | CF55: =-Cons!CF156 -> 0 | CG55: =-Cons!CG156 -> 0 | CH55: =-Cons!CH156 -> 0 | CI55: =-Cons!CI156 -> 0 | CJ55: =-Cons!CJ156 -> 0 | CK55: =-Cons!CK156 -> 0 | CL55: =-Cons!CL156 -> 0 | CM55: =-Cons!CM156 -> 0 | CN55: =-Cons!CN156 -> 0 | CO55: =-Cons!CO156 -> 0 | CP55: =-Cons!CP156 -> 0 | CQ55: =-Cons!CQ156 -> 0 | CR55: =-Cons!CR156 -> 0 | CS55: =-Cons!CS156 -> 0 | CT55: =-Cons!CT156 -> 0 | CU55: =-Cons!CU156 -> 0 | CV55: =-Cons!CV156 -> 0 | CW55: =-Cons!CW156 -> 0 | CX55: =-Cons!CX156 -> 0 | CY55: =-Cons!CY156 -> 0 | CZ55: =-Cons!CZ156 -> 0 | DA55: =-Cons!DA156 -> 0 | DB55: =-Cons!DB156 -> 0 | DC55: =-Cons!DC156 -> 0 | DD55: =-Cons!DD156 -> 0 | DE55: =-Cons!DE156 -> 0 | DF55: =-Cons!DF156 -> 0 | DG55: =-Cons!DG156 -> 0 | DH55: =-Cons!DH156 -> 0 | DI55: =-Cons!DI156 -> 0 | DJ55: =-Cons!DJ156 -> 0 | DK55: =-Cons!DK156 -> 0 | DL55: =-Cons!DL156 -> 0 | DM55: =-Cons!DM156 -> 0 | DN55: =-Cons!DN156 -> 0 | DO55: =-Cons!DO156 -> 0 | DP55: =-Cons!DP156 -> 0 | DQ55: =-Cons!DQ156 -> 0 | DR55: =-Cons!DR156 -> 0 | DS55: =-Cons!DS156 -> 0 | DT55: =-Cons!DT156 -> 0 | DU55: =-Cons!DU156 -> 0 | DV55: =-Cons!DV156 -> 0 | DW55: =-Cons!DW156 -> 0 | DX55: =-Cons!DX156 -> 0 | DY55: =-Cons!DY156 -> 0 | DZ55: =-Cons!DZ156 -> 0 | EA55: =-Cons!EA156 -> 0 | EB55: =-Cons!EB156 -> 0 | EC55: =-Cons!EC156 -> 0 | ED55: =-Cons!ED156 -> 0 | EE55: =-Cons!EE156 -> 0 | EF55: =-Cons!EF156 -> 0 | EG55: =-Cons!EG156 -> 0 | EH55: =-Cons!EH156 -> 0 | EI55: =-Cons!EI156 -> 0 | EJ55: =-Cons!EJ156 -> 0 | EK55: =-Cons!EK156 -> 0 | EL55: =-Cons!EL156 -> 0 | EM55: =-Cons!EM156 -> 0 | EN55: =-Cons!EN156 -> 0 | EO55: =-Cons!EO156 -> 0 | EP55: =-Cons!EP156 -> 0 | EQ55: =-Cons!EQ156 -> 0 | ER55: =-Cons!ER156 -> 0 | ES55: =-Cons!ES156 -> 0 | ET55: =-Cons!ET156 -> 0 | EU55: =-Cons!EU156 -> 0 | EV55: =-Cons!EV156 -> 0 | EW55: =-Cons!EW156 -> 0 | EX55: =-Cons!EX156 -> 0 | EY55: =-Cons!EY156 -> 0 | EZ55: =-Cons!EZ156 -> 0 | FA55: =-Cons!FA156 -> 0 | FB55: =-Cons!FB156 -> 0 | FC55: =-Cons!FC156 -> 0 | FD55: =-Cons!FD156 -> 0 | FE55: =-Cons!FE156 -> 0 | FF55: =-Cons!FF156 -> 0 | FG55: =-Cons!FG156 -> 0 | FH55: =-Cons!FH156 -> 0 | FI55: =-Cons!FI156 -> 0 | FJ55: =-Cons!FJ156 -> 0 | FK55: =-Cons!FK156 -> 0 | FL55: =-Cons!FL156 -> 0 | FM55: =-Cons!FM156 -> 0 | FN55: =-Cons!FN156 -> 0 | FO55: =-Cons!FO156 -> 0 | FP55: =-Cons!FP156 -> 0 | FQ55: =-Cons!FQ156 -> 0 | FR55: =-Cons!FR156 -> 0 | FS55: =-Cons!FS156 -> 0 | FT55: =-Cons!FT156 -> 0 | FU55: =-Cons!FU156 -> 0 | FV55: =-Cons!FV156 -> 0 | FW55: =-Cons!FW156 -> 0 | FX55: =-Cons!FX156 -> 0 | FY55: =-Cons!FY156 -> 0 | FZ55: =-Cons!FZ156 -> 0 | GA55: =-Cons!GA156 -> 0 | GB55: =-Cons!GB156 -> 0 | GC55: =-Cons!GC156 -> 0 | GD55: =-Cons!GD156 -> 0 | GE55: =-Cons!GE156 -> 0 | GF55: =-Cons!GF156 -> 0 | GG55: =-Cons!GG156 -> 0 | GH55: =-Cons!GH156 -> 0 | GI55: =-Cons!GI156 -> 0 | GJ55: =-Cons!GJ156 -> 0 | GK55: =-Cons!GK156 -> 0 | GL55: =-Cons!GL156 -> 0 | GM55: =-Cons!GM156 -> 0 | GN55: =-Cons!GN156 -> 0 | GO55: =-Cons!GO156 -> 0 | GP55: =-Cons!GP156 -> 0 | GQ55: =-Cons!GQ156 -> 0 | GR55: =-Cons!GR156 -> 0 | GS55: =-Cons!GS156 -> 0 | GT55: =-Cons!GT156 -> 0 | GU55: =-Cons!GU156 -> 0 | GV55: =-Cons!GV156 -> 0 | GW55: =-Cons!GW156 -> 0 | GX55: =-Cons!GX156 -> 0 | GY55: =-Cons!GY156 -> 0 | GZ55: =-Cons!GZ156 -> 0 | HA55: =-Cons!HA156 -> 0 | HB55: =-Cons!HB156 -> 0 | HC55: =-Cons!HC156 -> 0 | HD55: =-Cons!HD156 -> 0 | HE55: =-Cons!HE156 -> 0 | HF55: =-Cons!HF156 -> 0 | HG55: =-Cons!HG156 -> 0 | HH55: =-Cons!HH156 -> 0 | HI55: =-Cons!HI156 -> 0 | HJ55: =-Cons!HJ156 -> 0 | HK55: =-Cons!HK156 -> 0 | HL55: =-Cons!HL156 -> 0 | HM55: =-Cons!HM156 -> 0 | HN55: =-Cons!HN156 -> 0 | HO55: =-Cons!HO156 -> 0 | HP55: =-Cons!HP156 -> 0 | HQ55: =-Cons!HQ156 -> 0 | HR55: =-Cons!HR156 -> 0 | HS55: =-Cons!HS156 -> 0 | HT55: =-Cons!HT156 -> 0 | HU55: =-Cons!HU156 -> 0 | HV55: =-Cons!HV156 -> 0 | HW55: =-Cons!HW156 -> 0 | HX55: =-Cons!HX156 -> 0 | HY55: =-Cons!HY156 -> 0 | HZ55: =-Cons!HZ156 -> 0 | IA55: =-Cons!IA156 -> 0 | IB55: =-Cons!IB156 -> 0 | IC55: =-Cons!IC156 -> 0 | ID55: =-Cons!ID156 -> 0 | IE55: =-Cons!IE156 -> 0 | IF55: =-Cons!IF156 -> 0 | IG55: =-Cons!IG156 -> 0 | IH55: =-Cons!IH156 -> 0 | II55: =-Cons!II156 -> 0 | IJ55: =-Cons!IJ156 -> 0 | IK55: =-Cons!IK156 -> 0 | IL55: =-Cons!IL156 -> 0 | IM55: =-Cons!IM156 -> 0 | IN55: =-Cons!IN156 -> 0 | IO55: =-Cons!IO156 -> 0 | IP55: =-Cons!IP156 -> 0 | IQ55: =-Cons!IQ156 -> 0 | IR55: =-Cons!IR156 -> 0 | IS55: =-Cons!IS156 -> 0 | IT55: =-Cons!IT156 -> 0 | IU55: =-Cons!IU156 -> 0
